Workbook

Sheet Instructions
B2: =CONCATENATE(dms_Sector," ",dms_Segment," ", "Network Service Provider") -> Electricity Distribution Network Service Provider
B3: =IF(dms_Model="Reset","Regulatory Proposal RIN Template","Annual Reporting RIN") -> Regulatory Proposal RIN Template
B4: =CONCATENATE("This template is to be used by ",INDEX(dms_TradingNameFull_List,MATCH(dms_TradingName,dms_TradingName_List))," to fulfil its reporting obligations to the AER.") -> This template is to be used by TasNetworks (D) to fulfil its reporting obligations to the AER.
B5: INSTRUCTIONS
B6: GENERAL | C6: Complete the Business & other details worksheet before entering data or values in any other worksheets. The Business & other details worksheet is linked to other worksheets within the workbook and automatically generates certain column headings and conditional formatting.
B8: CONFIDENTIAL INFORMATION | C8: Please use the macro at the top of each worksheet to identify confidential information in the confidential workbook.
C9: -Do this by selecting the cell or cells that contain confidential information and then run the Mark selection as CONFIDENTIAL macro. This will format the cells a specific colour that is identified by the AER's database which in turn marks that information as confidential. -To reverse this, select the cell or cells and run the Return selection to NON-CONFIDENTIAL macro.
B11: RESPONSES | C11: Please return two (2) files to the AER: 1. A confidential version which must contain a complete set of all responses with confidential information marked using the Mark selection CONFIDENTIAL macro and which has been completed using the locked template file provided by the AER. 2. A public version with confidential information either removed completely or aggregated in some form together with writtten consent to disclose the public version of the response. Use the drop down box on the Business and other details worksheet to identify the file as either confidential ('consolidated') or public.
B13: AMENDMENTS | C13: If an NSP wishes to correct data previously submitted to the AER it should resubmit that data using the original completed submission as the starting point. Please make any necessary changes to the data. Data that is not being amended should be left unchanged. NSPs must identify the reason for the amendments in the Amendment Reason box on the Business and other details worksheet. NSPs may provide further details regarding any amendments in the Amendments worksheet. .
C14: NSP may use Amended Data macro to highlight cells that contain amended data. NB: if data is also CONFIDENTIAL, re-apply the Confidentiality macro after applying the Amended macro
C15: Please resubmit two (2) files - a confidential version and a public version of the amended submission to the AER
B17: UNITS OF MEASURE | C17: All amounts are to be unrounded and reported on a one for one basis: that is 1000 is to be entered as '1000'. Applicable units of measure may be identified in the table column headings or row descriptors.
B19: INPUT / NON-INPUT CELLS
D20: Yellow = Input cell (mandatory)
D21: Darker yellow = input cell (mandatory)
D22: Orange = input cell (if data available)
D23: Grey = Not applicable/No inputs required
D24: PLEASE DO NOT ENTER TEXT into cells that are to contain numbers (including 'numbers stored as text')
B27: NAVIGATION | C27: Many tables in the worksheets have been "grouped" to allow for easy navigation. To ungroup or group data use the outline symbols in the left margin (for Row groupings) or above the columns (for column groupings).

Sheet CONTENTS
C1: =IF(dms_MultiYear_ResponseFlag="Yes","REGULATORY REPORTING STATEMENT - HISTORICAL INFORMATION",INDEX(dms_Worksheet_List,MATCH(dms_Model,dms_Model_List))) -> REGULATORY REPORTING STATEMENT
C2: =INDEX(dms_TradingNameFull_List,MATCH(dms_TradingName,dms_TradingName_List)) -> TasNetworks (D)
C3: =CONCATENATE("REGULATORY PERIOD FROM ", FRCP_y1," TO ",dms_MultiYear_FinalYear_Result) -> REGULATORY PERIOD FROM 2024-25 TO 2028-29
D7: CONTENTS
D9: TEMPLATE | E9: NOVEMBER 2022
D11: SUBMISSION | E11: Business & other details
D13: EXPENDITURE | E13: 2.1 Expenditure summary
E14: 2.2 Repex
E15: 2.3 Augex (b)
E16: 2.5 Connections
E17: 2.6 Non-network
E18: 2.10 Overheads
E19: 2.11 Labour
E20: 2.14 Forecast price changes
E21: 2.16 Opex Summary
E22: 2.17 Step Changes
D24: ECONOMIC BENCHMARKING | E24: 3.1 Revenue
E25: 3.2 Operating expenditure
E26: 3.3 Assets (RAB)
E27: 3.4 Operational data
E28: 3.5 Physical assets
E29: 3.6 Quality of service
E30: 3.7 Operating Environment
D32: ALTERNATIVE CONTROL | E32: 4.1 Public lighting
D34: NETWORK | E34: 5.4 MD & utilisation-Spatial
D36: SERVICE | E36: 6.2 Reliability & Cust serv
D38: OTHER | E38: 7.1 Policies and Procedures
E39: 7.2 Contingent projects
E40: 7.3 Obligations
E41: 7.4 Shared Assets
E42: 7.7 TSS-LRMC
E43: 7.8 Export Services

Sheet Business & other details
V1: =INDEX(dms_Worksheet_List,MATCH(dms_Model,dms_Model_List)) -> REGULATORY REPORTING STATEMENT
V2: =INDEX(dms_TradingNameFull_List,MATCH(dms_TradingName,dms_TradingName_List)) -> TasNetworks (D)
V3: =CONCATENATE("REGULATORY PERIOD FROM ", FRCP_y1," TO ",dms_MultiYear_FinalYear_Result) -> REGULATORY PERIOD FROM 2024-25 TO 2028-29
V4: BUSINESS & OTHER DETAILS
V6: INSTRUCTIONS
V7: Complete the following business details regulatory template before entering data or values in any other regulatory template. This regulatory template is linked to other cells within the spreadsheet and automatically generates column headings and conditional formatting to distinguish business specific input and non-input cells.
Q9: SUBMISSION PARTICULARS INPUT SHEET
V12: ENTITY DETAILS
V14: Business Name
V16: Short name | AL16: TasNetworks (D)
V17: ACN/ABN | AL17: =INDEX(dms_ABN_List,MATCH(dms_TradingName,dms_TradingName_List)) -> 24167357299
V21: Business Address | BQ21: Postal Address
V23: Address 1 | AL23: =INDEX(dms_Addr1_List,MATCH(dms_TradingName,dms_TradingName_List)) -> 1-7 Maria Street | BI23: Address 1 | BQ23: =INDEX(dms_PAddr1_List,MATCH(dms_TradingName,dms_TradingName_List)) -> PO Box 606
V24: Address 2 | AL24: =IF(ISBLANK(INDEX(dms_Addr2_List,MATCH(dms_TradingName,dms_TradingName_List))),"",(INDEX(dms_Addr2_List,MATCH(dms_TradingName,dms_TradingName_List)))) ->  | BI24: Address 2 | BQ24: =IF(ISBLANK(INDEX(dms_PAddr2_List,MATCH(dms_TradingName,dms_TradingName_List))),"",(INDEX(dms_PAddr2_List,MATCH(dms_TradingName,dms_TradingName_List)))) -> 
V25: Suburb | AL25: =INDEX(dms_Suburb_List,MATCH(dms_TradingName,dms_TradingName_List)) -> LENAH VALLEY | BI25: Suburb | BQ25: =INDEX(dms_PSuburb_List,MATCH(dms_TradingName,dms_TradingName_List)) -> MOONAH
V26: State | AL26: =INDEX(dms_State_List,MATCH(dms_TradingName,dms_TradingName_List)) -> Tas | AV26: Post code | BI26: State | BQ26: =INDEX(dms_PState_List,MATCH(dms_TradingName,dms_TradingName_List)) -> Tas | CA26: Post code
BA28: `
V30: Contact Names
V32: Name | BI32: Name
V33: Phone | BI33: Phone
V34: Email | BI34: Email
Q39: REGULATORY CONTROL PERIODS
Z42: Forthcoming period | AL42: 2024-25 | AU42: =FRCP_y2 -> 2025-26 | BD42: =FRCP_y3 -> 2026-27 | BM42: =FRCP_y4 -> 2027-28 | BV42: =FRCP_y5 -> 2028-29
AL43: =FRCP_y6 -> 2029-30 | AU43: =FRCP_y7 -> 2030-31 | BD43: =FRCP_y8 -> 2031-32 | BM43: =FRCP_y9 -> 2032-33 | BV43: =FRCP_y10 -> 2033-34
AL44: =FRCP_y11 -> 2034-35 | AU44: =FRCP_y12 -> 2035-36 | BD44: =FRCP_y13 -> 2036-37 | BM44: =FRCP_y14 -> 2037-38 | BV44: =FRCP_y15 -> 2038-39
X46: RESETS | Z46: Current period | AL46: =CRCP_y1 -> 2019-20 | AU46: =CRCP_y2 -> 2020-21 | BD46: =CRCP_y3 -> 2021-22 | BM46: =CRCP_y4 -> 2022-23 | BV46: =CRCP_y5 -> 2023-24
AL47: =CRCP_y6 -> 2024-25 | AU47: =CRCP_y7 -> 2025-26 | BD47: =CRCP_y8 -> 2026-27 | BM47: =CRCP_y9 -> 2027-28 | BV47: =CRCP_y10 -> 2028-29
AL48: =CRCP_y11 -> 2029-30 | AU48: =CRCP_y12 -> 2030-31 | BD48: =CRCP_y13 -> 2031-32 | BM48: =CRCP_y14 -> 2032-33 | BV48: =CRCP_y15 -> 2033-34
Z50: Previous period | AL50: =PRCP_y1 -> 2014-15 | AU50: =PRCP_y2 -> 2015-16 | BD50: =PRCP_y3 -> 2016-17 | BM50: =PRCP_y4 -> 2017-18 | BV50: =PRCP_y5 -> 2018-19
AL51: =PRCP_y6 -> 2019-20 | AU51: =PRCP_y7 -> 2020-21 | BD51: =PRCP_y8 -> 2021-22 | BM51: =PRCP_y9 -> 2022-23 | BV51: =PRCP_y10 -> 2023-24
AL52: =PRCP_y11 -> 2024-25 | AU52: =PRCP_y12 -> 2025-26 | BD52: =PRCP_y13 -> 2026-27 | BM52: =PRCP_y14 -> 2027-28 | BV52: =PRCP_y15 -> 2028-29
Z54: Commencing year | AL54: 2022-23
X55: ANNUAL RINS
Z56: Final year | AL56: 2028-29
Q60: SUBMISSION DETAILS
Z62: RIN type | AL62: =INDIRECT(dms_Model) -> Regulatory Reporting (Reset)
Z64: Source | AL64: Regulatory proposal
X66: THIS FILE | Z66: Data Quality | AL66: Consolidated
Z68: Confidentiality Status | AL68: Public
Z70: Amended RIN Amendment Reason | AL70: .
Z74: Submission Date | AL74: 2023-01-31 | BD74: Please enter date this file submitted to AER

Sheet 2.1 Expenditure summary
B1: =INDEX(dms_Worksheet_List,MATCH(dms_Model,dms_Model_List)) -> REGULATORY REPORTING STATEMENT
B2: =INDEX(dms_TradingNameFull_List,MATCH(dms_TradingName,dms_TradingName_List)) -> TasNetworks (D)
B3: =CONCATENATE("REGULATORY PERIOD FROM ", FRCP_y1," TO ",dms_MultiYear_FinalYear_Result) -> REGULATORY PERIOD FROM 2024-25 TO 2028-29
B4: 2.1 EXPENDITURE SUMMARY & RECONCILIATION
B7: 2.1.1 - STANDARD CONTROL SERVICES CAPEX (including dual function assets)
C8: =CONCATENATE("EXPENDITURE ($0's, real ", dms_DollarReal, ")") -> EXPENDITURE ($0's, real June 2024)
C9: =CRCP_y4 -> 2022-23 | D9: =CRCP_y5 -> 2023-24 | E9: =FRCP_y1 -> 2024-25 | F9: =FRCP_y2 -> 2025-26 | G9: =FRCP_y3 -> 2026-27 | H9: =FRCP_y4 -> 2027-28 | I9: =FRCP_y5 -> 2028-29
B10: Replacement expenditure | C10: =SUM('2.2 Repex'!D12:D182) -> 52193745.64 | D10: =SUM('2.2 Repex'!E12:E182) -> 51478363.65 | E10: =SUM('2.2 Repex'!F12:F182) -> 53200486.12 | F10: =SUM('2.2 Repex'!G12:G182) -> 57028398.1 | G10: =SUM('2.2 Repex'!H12:H182) -> 59334334.36 | H10: =SUM('2.2 Repex'!I12:I182) -> 56774410.65 | I10: =SUM('2.2 Repex'!J12:J182) -> 55212575.63
B11: Connections | C11: =SUM('2.5 Connections'!E123:E136) -> 33175845.07 | D11: =SUM('2.5 Connections'!F123:F136) -> 33752452.65 | E11: =SUM('2.5 Connections'!G123:G136) -> 34405535.85 | F11: =SUM('2.5 Connections'!H123:H136) -> 33058230.33 | G11: =SUM('2.5 Connections'!I123:I136) -> 30622998.11 | H11: =SUM('2.5 Connections'!J123:J136) -> 29693762.55 | I11: =SUM('2.5 Connections'!K123:K136) -> 29489449.84
B12: Augmentation Expenditure | C12: =SUM('2.3 Augex (b)'!D47:D55) -> 7692949.581 | D12: =SUM('2.3 Augex (b)'!E47:E55) -> 7587507.874 | E12: =SUM('2.3 Augex (b)'!F47:F55) -> 10453785.87 | F12: =SUM('2.3 Augex (b)'!G47:G55) -> 10665511.36 | G12: =SUM('2.3 Augex (b)'!H47:H55) -> 9585466.862 | H12: =SUM('2.3 Augex (b)'!I47:I55) -> 9599533.736 | I12: =SUM('2.3 Augex (b)'!J47:J55) -> 9200041.641
B13: Non-network | C13: =SUM('2.6 Non-network'!E32:E50) -> 28653299.09 | D13: =SUM('2.6 Non-network'!F32:F50) -> 27035928.96 | E13: =SUM('2.6 Non-network'!G32:G50) -> 37416821.36 | F13: =SUM('2.6 Non-network'!H32:H50) -> 38983407.58 | G13: =SUM('2.6 Non-network'!I32:I50) -> 20353121.47 | H13: =SUM('2.6 Non-network'!J32:J50) -> 19386394.92 | I13: =SUM('2.6 Non-network'!K32:K50) -> 19824876.34
B14: Export services | C14: =SUM('7.8 Export Services'!C23:C25) -> 224562.3171 | D14: =SUM('7.8 Export Services'!D23:D25) -> 253319.868 | E14: =SUM('7.8 Export Services'!E23:E25) -> 252920.0846 | F14: =SUM('7.8 Export Services'!F23:F25) -> 253232.8769 | G14: =SUM('7.8 Export Services'!G23:G25) -> 253389.3874 | H14: =SUM('7.8 Export Services'!H23:H25) -> 253462.0643 | I14: =SUM('7.8 Export Services'!I23:I25) -> 253594.9266
B15: Public lighting
B16: Metering
B17: Capitalised network overheads | C17: ='2.10 Overheads'!D15 -> 23550126.97 | D17: ='2.10 Overheads'!E15 -> 25586562.71 | E17: ='2.10 Overheads'!F15 -> 20431667.36 | F17: ='2.10 Overheads'!G15 -> 20565139.82 | G17: ='2.10 Overheads'!H15 -> 20555841.74 | H17: ='2.10 Overheads'!I15 -> 20464904.55 | I17: ='2.10 Overheads'!J15 -> 20422810.24
B18: Capitalised corporate overheads | C18: ='2.10 Overheads'!D30 -> 19643636.13 | D18: ='2.10 Overheads'!E30 -> 25586562.71 | E18: ='2.10 Overheads'!F30 -> 20431667.36 | F18: ='2.10 Overheads'!G30 -> 20565139.82 | G18: ='2.10 Overheads'!H30 -> 20555841.74 | H18: ='2.10 Overheads'!I30 -> 20464904.55 | I18: ='2.10 Overheads'!J30 -> 20422810.24
B19: capcons (included in the above)
B20: Total | C20: =SUM(C10:C18) -> 165134164.8 | D20: 171280698.4 | E20: 176592884 | F20: 181119059.9 | G20: 161260993.7 | H20: 156637373 | I20: 154826158.9
B23: 2.1.2 - STANDARD CONTROL SERVICES OPEX BY CATEGORY
C24: =CONCATENATE("EXPENDITURE ($0's, real ", dms_DollarReal, ")") -> EXPENDITURE ($0's, real June 2024)
C25: =CRCP_y4 -> 2022-23 | D25: =CRCP_y5 -> 2023-24
B26: Vegetation management | C26: 16865959.36 | D26: 16525906.52
B27: Maintenance | C27: 11431478.58 | D27: 11200996.18
B28: Emergency response | C28: 14155884.31 | D28: 13870472.22
B29: Non-network | C29: =SUM('2.6 Non-network'!E12:E30) -> 16396406.04 | D29: =SUM('2.6 Non-network'!F12:F30) -> 16214915.32
B30: Export services | C30: =SUM('7.8 Export Services'!C13:C14) -> 124594.6213 | D30: =SUM('7.8 Export Services'!D13:D14) -> 124594.6213
B31: Metering
B32: Network overheads | C32: ='2.10 Overheads'!D12 -> 24421999.46 | D32: ='2.10 Overheads'!E12 -> 24421999.46
B33: Corporate overheads | C33: ='2.10 Overheads'!D27 -> 18889088.62 | D33: ='2.10 Overheads'!E27 -> 18889088.62
B34: Total | C34: =SUM(C26:C33) -> 102285411 | D34: =SUM(D26:D33) -> 101247972.9
B37: 2.1.3 - ALTERNATIVE CONTROL SERVICES CAPEX
C38: =CONCATENATE("EXPENDITURE ($0's, real ", dms_DollarReal, ")") -> EXPENDITURE ($0's, real June 2024)
C39: =CRCP_y4 -> 2022-23 | D39: =CRCP_y5 -> 2023-24 | E39: =FRCP_y1 -> 2024-25 | F39: =FRCP_y2 -> 2025-26 | G39: =FRCP_y3 -> 2026-27 | H39: =FRCP_y4 -> 2027-28 | I39: =FRCP_y5 -> 2028-29
B40: Connections
B41: Metering
B42: Public lighting | C42: ='4.1 Public lighting'!D14+'4.1 Public lighting'!D18 -> 2991989.367 | D42: ='4.1 Public lighting'!E14+'4.1 Public lighting'!E18 -> 2991989.367 | E42: ='4.1 Public lighting'!F14+'4.1 Public lighting'!F18 -> 2991989.367 | F42: ='4.1 Public lighting'!G14+'4.1 Public lighting'!G18 -> 2991989.367 | G42: ='4.1 Public lighting'!H14+'4.1 Public lighting'!H18 -> 2991989.367 | H42: ='4.1 Public lighting'!I14+'4.1 Public lighting'!I18 -> 2991989.367 | I42: ='4.1 Public lighting'!J14+'4.1 Public lighting'!J18 -> 2991989.367
B43: Fee and quoted
B44: Network overheads | C44: ='2.10 Overheads'!D16 -> 718567.5 | D44: ='2.10 Overheads'!E16 -> 718567.5 | E44: ='2.10 Overheads'!F16 -> 718567.5 | F44: ='2.10 Overheads'!G16 -> 458052 | G44: ='2.10 Overheads'!H16 -> 461849.5 | H44: ='2.10 Overheads'!I16 -> 433727 | I44: ='2.10 Overheads'!J16 -> 225522.5
B45: Corporate overheads | C45: ='2.10 Overheads'!D31 -> 718567.5 | D45: ='2.10 Overheads'!E31 -> 718567.5 | E45: ='2.10 Overheads'!F31 -> 718567.5 | F45: ='2.10 Overheads'!G31 -> 458052 | G45: ='2.10 Overheads'!H31 -> 461849.5 | H45: ='2.10 Overheads'!I31 -> 433727 | I45: ='2.10 Overheads'!J31 -> 225522.5
B46: Total | C46: =SUM(C40:C45) -> 4429124.367 | D46: 4429124.367 | E46: 4429124.367 | F46: 3908093.367 | G46: 3915688.367 | H46: 3859443.367 | I46: 3443034.367
B49: 2.1.4 - ALTERNATIVE CONTROL SERVICES OPEX
C50: =CONCATENATE("EXPENDITURE ($0's, real ", dms_DollarReal, ")") -> EXPENDITURE ($0's, real June 2024)
C51: =CRCP_y4 -> 2022-23 | D51: =CRCP_y5 -> 2023-24 | E51: =FRCP_y1 -> 2024-25 | F51: =FRCP_y2 -> 2025-26 | G51: =FRCP_y3 -> 2026-27 | H51: =FRCP_y4 -> 2027-28 | I51: =FRCP_y5 -> 2028-29
B52: Connections
B53: Metering | C53: ='3.2 Operating expenditure'!K71 -> 6180285.472 | D53: ='3.2 Operating expenditure'!L71 -> 6180285.472 | E53: ='3.2 Operating expenditure'!M71 -> 1697949.069 | F53: ='3.2 Operating expenditure'!N71 -> 1745433.36 | G53: ='3.2 Operating expenditure'!O71 -> 1864339.769 | H53: ='3.2 Operating expenditure'!P71 -> 1011389.338 | I53: ='3.2 Operating expenditure'!Q71 -> 700370.3437
B54: Public lighting | C54: ='3.2 Operating expenditure'!K73 -> 4118444.371 | D54: ='3.2 Operating expenditure'!L73 -> 4118444.371 | E54: ='3.2 Operating expenditure'!M73 -> 1184295.103 | F54: ='3.2 Operating expenditure'!N73 -> 1312145.143 | G54: ='3.2 Operating expenditure'!O73 -> 1631770.242 | H54: ='3.2 Operating expenditure'!P73 -> 1631770.242 | I54: ='3.2 Operating expenditure'!Q73 -> 1631770.242
B55: Fee and quoted | C55: 19461708.22 | D55: 19461708.22 | E55: 19461708.22 | F55: 19461708.22 | G55: 19461708.22 | H55: 19461708.22 | I55: 19461708.22
B56: Network overheads | C56: ='2.10 Overheads'!D13 -> 13217557.3 | D56: ='2.10 Overheads'!E13 -> 13217557.3 | E56: ='2.10 Overheads'!F13 -> 12994982.47 | F56: ='2.10 Overheads'!G13 -> 12876792.05 | G56: ='2.10 Overheads'!H13 -> 12812956.35 | H56: ='2.10 Overheads'!I13 -> 12777754.66 | I56: ='2.10 Overheads'!J13 -> 12787485.33
B57: Corporate overheads | C57: ='2.10 Overheads'!D28 -> 7708357.713 | D57: ='2.10 Overheads'!E28 -> 7708357.713 | E57: ='2.10 Overheads'!F28 -> 7578554.118 | F57: ='2.10 Overheads'!G28 -> 7509626.557 | G57: ='2.10 Overheads'!H28 -> 7472398.164 | H57: ='2.10 Overheads'!I28 -> 7451868.862 | I57: ='2.10 Overheads'!J28 -> 7457543.697
B58: Total | C58: =SUM(C52:C57) -> 50686353.08 | D58: 50686353.08 | E58: 42917488.98 | F58: 42905705.33 | G58: 43243172.74 | H58: 42334491.32 | I58: 42038877.83
B61: 2.1.5 - DUAL FUNCTION ASSETS CAPEX
C62: =CONCATENATE("EXPENDITURE ($0's, real ", dms_DollarReal, ")") -> EXPENDITURE ($0's, real June 2024)
C63: =CRCP_y4 -> 2022-23 | D63: =CRCP_y5 -> 2023-24 | E63: =FRCP_y1 -> 2024-25 | F63: =FRCP_y2 -> 2025-26 | G63: =FRCP_y3 -> 2026-27 | H63: =FRCP_y4 -> 2027-28 | I63: =FRCP_y5 -> 2028-29
B64: Replacement expenditure
B65: Connections
B66: Augmentation expenditure
B67: Non-network
B68: Export services
B69: Capitalised network overheads
B70: Capitalised corporate overheads
B71: capcons (included in the above)
B72: Total | C72: =SUM(C64:C70) -> 0 | D72: 0 | E72: 0 | F72: 0 | G72: 0 | H72: 0 | I72: 0
B75: 2.1.6 - DUAL FUNCTION ASSETS OPEX BY CATEGORY
C76: =CONCATENATE("EXPENDITURE ($0's, real ", dms_DollarReal, ")") -> EXPENDITURE ($0's, real June 2024)
C77: =CRCP_y4 -> 2022-23 | D77: =CRCP_y5 -> 2023-24
B78: Vegetation management
B79: Maintenance
B80: Emergency response
B81: Non-network
B82: Export services
B83: Metering
B84: Network overheads
B85: Corporate overheads
B86: Total | C86: =SUM(C78:C85) -> 0 | D86: =SUM(D78:D85) -> 0
B89: 2.1.7 - STANDARD CONTROL SERVICES CAPCONS
C90: =CONCATENATE("EXPENDITURE ($0's, real ", dms_DollarReal, ")") -> EXPENDITURE ($0's, real June 2024)
C91: =CRCP_y4 -> 2022-23 | D91: =CRCP_y5 -> 2023-24 | E91: =FRCP_y1 -> 2024-25 | F91: =FRCP_y2 -> 2025-26 | G91: =FRCP_y3 -> 2026-27 | H91: =FRCP_y4 -> 2027-28 | I91: =FRCP_y5 -> 2028-29
B92: Replacement expenditure
B93: Connections | C93: 11458588.75 | D93: 10723648.52 | E93: 14521041.06 | F93: 14032786.58 | G93: 13089879.83 | H93: 12945464.56 | I93: 12860003.36
B94: Augmentation Expenditure
B95: Non-network
B96: Export services
B97: Capitalised network overheads | C97: 2403470.946 | D97: 2249315.183 | E97: 3025593.128 | F97: 2864318.502 | G97: 2703093.543 | H97: 2757718.54 | I97: 2796928.932
B98: Capitalised corporate overheads | C98: 2403470.946 | D98: 2249315.183 | E98: 3025593.128 | F98: 2864318.502 | G98: 2703093.543 | H98: 2757718.54 | I98: 2796928.932
B99: Total | C99: =SUM(C92:C98) -> 16265530.64 | D99: 15222278.88 | E99: 20572227.32 | F99: 19761423.58 | G99: 18496066.91 | H99: 18460901.64 | I99: 18453861.22
B102: 2.1.8 - STANDARD CONTROL SERVICES CAPITALISED OVERHEADS
C103: =CONCATENATE("EXPENDITURE ($0's, real ", dms_DollarReal, ")") -> EXPENDITURE ($0's, real June 2024)
C104: =CRCP_y4 -> 2022-23 | D104: =CRCP_y5 -> 2023-24 | E104: =FRCP_y1 -> 2024-25 | F104: =FRCP_y2 -> 2025-26 | G104: =FRCP_y3 -> 2026-27 | H104: =FRCP_y4 -> 2027-28 | I104: =FRCP_y5 -> 2028-29
B105: Replacement expenditure | C105: 25035105.1 | D105: 32032738.97 | E105: 19518615.39 | F105: 20961070.13 | G105: 22473364.26 | H105: 22107342.77 | I105: 21798323.89
B106: Connections | C106: 16093996.13 | D106: 20592475.05 | E106: 16890486.29 | F106: 15812464.76 | G106: 14836414.77 | H106: 14894153.08 | I106: 15143131.29
B107: Augmentation Expenditure | C107: 3576443.585 | D107: 4576105.567 | E107: 4454233.034 | F107: 4356744.755 | G107: 3801904.462 | H107: 3928313.238 | I107: 3904165.305
B108: Non-network
B109: Export services
B110: capcons (included in the above) | C110: 4806941.892 | D110: 4498630.367 | E110: 6051186.256 | F110: 5728637.003 | G110: 5406187.087 | H110: 5515437.079 | I110: 5593857.863
B111: Total | C111: =SUM(C105:C109) -> 44705544.81 | D111: 57201319.58 | E111: 40863334.72 | F111: 41130279.64 | G111: 41111683.49 | H111: 40929809.09 | I111: 40845620.48

Sheet 2.2 Repex
B1: =INDEX(dms_Worksheet_List,MATCH(dms_Model,dms_Model_List)) -> REGULATORY REPORTING STATEMENT
B2: =INDEX(dms_TradingNameFull_List,MATCH(dms_TradingName,dms_TradingName_List)) -> TasNetworks (D)
B3: =CONCATENATE("REGULATORY PERIOD FROM ", FRCP_y1," TO ",dms_MultiYear_FinalYear_Result) -> REGULATORY PERIOD FROM 2024-25 TO 2028-29
B4: 2.2 REPEX
B6: There are THREE sub-tables on this worksheet. The table has been sub-grouped for easy navigation. See the Instructions sheet on how to group or ungroup tables.
B8: 2.2.1 - REPLACEMENT EXPENDITURE, VOLUMES AND ASSET FAILURES BY ASSET CATEGORY
B9: EXPENDITURE
D10: =CONCATENATE("EXPENDITURE ($0's, real ", dms_DollarReal, ")") -> EXPENDITURE ($0's, real June 2024)
B11: ASSET GROUP | C11: ASSET CATEGORY | D11: =CRCP_y4 -> 2022-23 | E11: =CRCP_y5 -> 2023-24 | F11: =FRCP_y1 -> 2024-25 | G11: =FRCP_y2 -> 2025-26 | H11: =FRCP_y3 -> 2026-27 | I11: =FRCP_y4 -> 2027-28 | J11: =FRCP_y5 -> 2028-29
B12: POLES BY: HIGHEST OPERATING VOLTAGE ; MATERIAL TYPE | C12: ˂ = 1 kV; Wood | D12: 3862177.235 | E12: 3809241.159 | F12: 3570637.364 | G12: 4858380.213 | H12: 4803109.962 | I12: 4728721.898 | J12: 3607947.947
C13: > 1 kV & < = 11 kV; Wood | D13: 2964357.267 | E13: 2923726.962 | F13: 1533581.481 | G13: 1397365.031 | H13: 1695438.279 | I13: 1540740.741 | J13: 1391483.208
C14: ˃ 11 kV & < = 22 kV; Wood | D14: 12273606.2 | E14: 12105380.74 | F14: 10675581.4 | G14: 11963958.2 | H14: 12788182.24 | I14: 12137618.9 | J14: 10064726.16
C15: > 22 kV & < = 66 kV; Wood | D15: 143722.348 | E15: 141752.4495 | F15: 145647.6062 | G15: 147791.6065 | H15: 116888.2313 | I15: 146327.5369 | J15: 58867.80741
C16: > 66 kV & < = 132 kV; Wood | D16: 0 | E16: 0 | F16: 0 | G16: 0 | H16: 0 | I16: 0 | J16: 0
C17: > 132 kV; Wood | D17: 0 | E17: 0 | F17: 0 | G17: 0 | H17: 0 | I17: 0 | J17: 0
C18: ˂ = 1 kV; Concrete | D18: 0 | E18: 0 | F18: 0 | G18: 0 | H18: 0 | I18: 0 | J18: 0
C19: > 1 kV & < = 11 kV; Concrete | D19: 0 | E19: 0 | F19: 0 | G19: 0 | H19: 0 | I19: 0 | J19: 0
C20: ˃ 11 kV & < = 22 kV; Concrete | D20: 0 | E20: 0 | F20: 0 | G20: 0 | H20: 0 | I20: 0 | J20: 0
C21: > 22 kV & < = 66 kV; Concrete | D21: 0 | E21: 0 | F21: 0 | G21: 0 | H21: 0 | I21: 0 | J21: 0
C22: > 66 kV & < = 132 kV; Concrete | D22: 0 | E22: 0 | F22: 0 | G22: 0 | H22: 0 | I22: 0 | J22: 0
C23: > 132 kV; Concrete | D23: 0 | E23: 0 | F23: 0 | G23: 0 | H23: 0 | I23: 0 | J23: 0
C24: ˂ = 1 kV; Steel | D24: 297852.3972 | E24: 293769.9494 | F24: 414029.5186 | G24: 415456.2412 | H24: 416170.124 | I24: 372402.6843 | J24: 372701.8649
C25: > 1 kV & < = 11 kV; Steel | D25: 2864.608341 | E25: 2825.345223 | F25: 9283.747204 | G25: 9315.738478 | H25: 9331.74581 | I25: 9697.183417 | J25: 10028.47307
C26: ˃ 11 kV & < = 22 kV; Steel | D26: 34375.3001 | E26: 33904.14267 | F26: 129398.9223 | G26: 129844.8238 | H26: 130067.9375 | I26: 135161.4877 | J26: 100951.555
C27: > 22 kV & < = 66 kV; Steel | D27: 2864.608341 | E27: 2825.345223 | F27: 17281.27866 | G27: 17340.82898 | H27: 17370.62591 | I27: 18050.87161 | J27: 18667.55242
C28: > 66 kV & < = 132 kV; Steel | D28: 0 | E28: 0 | F28: 0 | G28: 0 | H28: 0 | I28: 0 | J28: 0
C29: > 132 kV; Steel | D29: 0 | E29: 0 | F29: 0 | G29: 0 | H29: 0 | I29: 0 | J29: 0
C30: Other | D30: 272137.7924 | E30: 268407.7961 | F30: 987606.6215 | G30: 991009.8587 | H30: 992712.7213 | I30: 1031588.037 | J30: 1066830.687
B31: POLE TOP STRUCTURES BY: HIGHEST OPERATING VOLTAGE | C31: ˂ = 1 kV | D31: 1459797.909 | E31: 1439789.512 | F31: 930709.0079 | G31: 951270.4712 | H31: 971166.4449 | I31: 991568.4315 | J31: 1014031.741
C32: > 1 kV & < = 11 kV | D32: 56774.28816 | E32: 55996.12398 | F32: 166636.5292 | G32: 170317.9064 | H32: 173880.1326 | I32: 177532.9566 | J32: 181554.8452
C33: ˃ 11 kV & < = 22 kV | D33: 142585.9853 | E33: 140631.6622 | F33: 548727.1016 | G33: 560849.7222 | H33: 572579.9836 | I33: 584608.58 | J33: 597852.4905
C34: > 22 kV & < = 66 kV | D34: 443.8922746 | E34: 437.8081636 | F34: 5449.333054 | G34: 5569.721124 | H34: 5686.21273 | I34: 5805.667059 | J34: 5937.190505
C35: > 66 kV & < = 132 kV | D35: 0 | E35: 0 | F35: 0 | G35: 0 | H35: 0 | I35: 0 | J35: 0
C36: > 132 kV | D36: 0 | E36: 0 | F36: 0 | G36: 0 | H36: 0 | I36: 0 | J36: 0
C37: Other | D37: 0 | E37: 0 | F37: 0 | G37: 0 | H37: 0 | I37: 0 | J37: 0
B38: STAKING WOODEN POLES BY: HIGHEST OPERATING VOLTAGE | C38: ˂ = 1 Kv | D38: 290328.627 | E38: 286349.3021 | F38: 224616.1904 | G38: 225340.9307 | H38: 225703.5657 | I38: 225871.9582 | J38: 226179.8003
C39: > 1 kV & < = 11 kV | D39: 204391.3534 | E39: 201589.9086 | F39: 561540.476 | G39: 563352.3267 | H39: 564258.9143 | I39: 564679.8955 | J39: 565449.5007
C40: ˃ 11 kV & < = 22 kV | D40: 37162.06425 | E40: 36652.71066 | F40: 786156.6664 | G40: 788693.2574 | H40: 789962.4801 | I40: 790551.8538 | J40: 791629.3009
C41: > 22 kV & < = 66 kV | D41: 365814.07 | E41: 360800.1206 | F41: 112308.0952 | G41: 112670.4653 | H41: 112851.7829 | I41: 112935.9791 | J41: 113089.9001
C42: > 66 kV & < = 132 kV | D42: 1625.840311 | E42: 1603.556092 | F42: 0 | G42: 0 | H42: 0 | I42: 0 | J42: 0
C43: > 132 kV | D43: 0 | E43: 0 | F43: 0 | G43: 0 | H43: 0 | I43: 0 | J43: 0
B44: OVERHEAD CONDUCTORS BY: Highest operating voltage; Number of phases (at HV) | C44: ˂ = 1 kV | D44: 1649043.372 | E44: 1626441.125 | F44: 61871.11472 | G44: 71757.36348 | H44: 78660.10685 | I44: 78709.60907 | J44: 78800.10518
C45: > 1 kV & < = 11 kV | D45: 1293569.603 | E45: 1275839.578 | F45: 1749265.612 | G45: 2028776.9 | H45: 2223936.332 | I45: 2225335.895 | J45: 2227894.468
C46: ˃ 11 kV & < = 22 kV ; SWER | D46: 236368.1886 | E46: 233128.4605 | F46: 1024034.725 | G46: 1187662.971 | H46: 1301910.936 | I46: 1302730.252 | J46: 1304228.061
C47: ˃ 11 kV & < = 22 kV ; Single-Phase | D47: 237369.2549 | E47: 234115.8059 | F47: 512017.3623 | G47: 593831.4856 | H47: 650955.4678 | I47: 651365.1258 | J47: 652114.0306
C48: ˃ 11 kV & < = 22 kV ; Multiple-Phase | D48: 3164902.539 | E48: 3121523.504 | F48: 3421676.593 | G48: 3968418.737 | H48: 4350163.2 | I48: 4352900.836 | J48: 4357905.569
C49: > 22 kV & < = 66 kV | D49: 736.2206829 | E49: 726.1298374 | F49: 549906.6471 | G49: 637775.0155 | H49: 699126.1724 | I49: 699566.1451 | J49: 700370.4689
C50: > 66 kV & < = 132 kV | D50: 0 | E50: 0 | F50: 0 | G50: 0 | H50: 0 | I50: 0 | J50: 0
C51: > 132 kV | D51: 0 | E51: 0 | F51: 0 | G51: 0 | H51: 0 | I51: 0 | J51: 0
C52: Other | D52: 258204.5218 | E52: 254665.4988 | F52: 856200.754 | G52: 858332.1424 | H52: 1031278.339 | I52: 1031872.609 | J52: 1032959.008
B53: UNDERGROUND CABLES BY: Highest operating voltage | C53: ˂ = 1 kV | D53: 648370.3766 | E53: 639483.6319 | F53: 52278.24923 | G53: 52305.2484 | H53: 63497.92554 | I53: 85871.83117 | J53: 85900.29549
C54: > 1 kV & < = 11 kV | D54: 1791238.578 | E54: 1766687.364 | F54: 710184.0837 | G54: 710550.8591 | H54: 862599.9671 | I54: 1166542.656 | J54: 1166929.336
C55: > 11 kV & < = 22 kV | D55: 60838.56583 | E55: 60004.69552 | F55: 369927.8352 | G55: 699578.9619 | H55: 600671.5526 | I55: 139552.905 | J55: 139756.3652
C56: > 22 kV & < = 33 kV | D56: 0 | E56: 0 | F56: 0 | G56: 699578.9619 | H56: 800895.4035 | I56: 232588.175 | J56: 232927.2753
C57: > 33 kV & < = 66 kV | D57: 0 | E57: 0 | F57: 0 | G57: 0 | H57: 0 | I57: 0 | J57: 0
C58: > 66 kV & < = 132 kV | D58: 0 | E58: 0 | F58: 0 | G58: 0 | H58: 0 | I58: 0 | J58: 0
C59: > 132 kV | D59: 0 | E59: 0 | F59: 0 | G59: 0 | H59: 0 | I59: 0 | J59: 0
C60: Other | D60: 479729.0598 | E60: 473153.7599 | F60: 102166.7405 | G60: 381258.3022 | H60: 381813.9282 | I60: 382071.9375 | J60: 382543.6102
B61: SERVICE LINES BY: Connection voltage; Customer type; Connection complexity | C61: ˂ = 11 kV ; Residential ; Simple Type | D61: 2063311.573 | E61: 2035031.25 | F61: 2638759.32 | G61: 2656047.713 | H61: 2664698.23 | I61: 2668715.166 | J61: 2676058.617
C62: ˂ = 11 kV ; Commercial & Industrial ; Simple Type | D62: 353697.4025 | E62: 348849.5275 | F62: 462035.6308 | G62: 465062.7557 | H62: 466577.4246 | I62: 467280.7732 | J62: 468566.5805
C63: ˂ = 11 kV ; Residential ; Complex Type | D63: 0 | E63: 0 | F63: 0 | G63: 0 | H63: 0 | I63: 0 | J63: 0
C64: ˂ = 11 kV ; Commercial & Industrial ; Complex Type | D64: 0 | E64: 0 | F64: 0 | G64: 0 | H64: 0 | I64: 0 | J64: 0
C65: ˂ = 11 kV ; Subdivision ; Complex Type | D65: 0 | E65: 0 | F65: 0 | G65: 0 | H65: 0 | I65: 0 | J65: 0
C66: > 11 kV & < = 22 kV ; Commercial & Industrial | D66: 0 | E66: 0 | F66: 0 | G66: 0 | H66: 0 | I66: 0 | J66: 0
C67: > 11 kV & < = 22 kV ; Subdivision | D67: 0 | E67: 0 | F67: 0 | G67: 0 | H67: 0 | I67: 0 | J67: 0
C68: > 22 kV & < = 33 kV ; Commercial & Industrial | D68: 0 | E68: 0 | F68: 0 | G68: 0 | H68: 0 | I68: 0 | J68: 0
C69: > 22 kV & < = 33 kV ; Subdivision | D69: 0 | E69: 0 | F69: 0 | G69: 0 | H69: 0 | I69: 0 | J69: 0
C70: > 33 kV & < = 66 kV ; Commercial & Industrial | D70: 0 | E70: 0 | F70: 0 | G70: 0 | H70: 0 | I70: 0 | J70: 0
C71: > 33 kV & < = 66 kV ; Subdivision | D71: 0 | E71: 0 | F71: 0 | G71: 0 | H71: 0 | I71: 0 | J71: 0
C72: > 66 kV & < = 132 kV ; Commercial & Industrial | D72: 0 | E72: 0 | F72: 0 | G72: 0 | H72: 0 | I72: 0 | J72: 0
C73: > 66 kV & < = 132 kV ; Subdivision | D73: 0 | E73: 0 | F73: 0 | G73: 0 | H73: 0 | I73: 0 | J73: 0
C74: > 132 kV ; Commercial & Industrial | D74: 0 | E74: 0 | F74: 0 | G74: 0 | H74: 0 | I74: 0 | J74: 0
C75: > 132 kV ; Subdivision | D75: 0 | E75: 0 | F75: 0 | G75: 0 | H75: 0 | I75: 0 | J75: 0
C76: Other | D76: 0 | E76: 0 | F76: 0 | G76: 0 | H76: 0 | I76: 0 | J76: 0
B77: TRANSFORMERS BY: Mounting type; Highest operating voltage; Ampere rating; Number of phases (at LV) | C77: Pole Mounted ; < = 22kV ; < = 60 kVA ; Single Phase | D77: 766937.1815 | E77: 756425.3272 | F77: 1219637.017 | G77: 1226626.386 | H77: 1230123.625 | I77: 1231747.597 | J77: 1234716.414
C78: Pole Mounted ; < = 22kV ; > 60 kVA and < = 600 kVA ; Single Phase | D78: 21407.31409 | E78: 21113.89949 | F78: 0 | G78: 0 | H78: 0 | I78: 0 | J78: 0
C79: Pole Mounted ; < = 22kV ; > 600 kVA ; Single Phase | D79: 0 | E79: 0 | F79: 0 | G79: 0 | H79: 0 | I79: 0 | J79: 0
C80: Pole Mounted ; < = 22kV ; < = 60 kVA ; Multiple Phase | D80: 101246.5269 | E80: 99858.81381 | F80: 323577.1677 | G80: 325431.4902 | H80: 326359.3292 | I80: 326790.1787 | J80: 327577.8242
C81: Pole Mounted ; < = 22kV ; > 60 kVA and < = 600 kVA ; Multiple Phase | D81: 981771.9348 | E81: 968315.4956 | F81: 970731.5031 | G81: 976294.4705 | H81: 979077.9876 | I81: 980370.536 | J81: 982733.4726
C82: Pole Mounted ; < = 22kV ; > 600 kVA ; Multiple Phase | D82: 0 | E82: 0 | F82: 0 | G82: 0 | H82: 0 | I82: 0 | J82: 0
C83: Kiosk Mounted ; < = 22kV ; < = 60 kVA ; Single Phase | D83: 0 | E83: 0 | F83: 0 | G83: 0 | H83: 0 | I83: 0 | J83: 0
C84: Kiosk Mounted ; < = 22kV ; > 60 kVA and < = 600 kVA ; Single Phase | D84: 0 | E84: 0 | F84: 0 | G84: 0 | H84: 0 | I84: 0 | J84: 0
C85: Kiosk Mounted ; < = 22kV ; > 600 kVA ; Single Phase | D85: 0 | E85: 0 | F85: 0 | G85: 0 | H85: 0 | I85: 0 | J85: 0
C86: Kiosk Mounted ; < = 22kV ; < = 60 kVA ; Multiple Phase | D86: 0 | E86: 0 | F86: 0 | G86: 0 | H86: 0 | I86: 0 | J86: 0
C87: Kiosk Mounted ; < = 22kV ; > 60 kVA and < = 600 kVA ; Multiple Phase | D87: 1896094.161 | E87: 1870105.767 | F87: 3683295.468 | G87: 2043050.006 | H87: 2022372.064 | I87: 1684183.65 | J87: 2633908.954
C88: Kiosk Mounted ; < = 22kV ; > 600 kVA ; Multiple Phase | D88: 1273807.17 | E88: 1256348.015 | F88: 566660.8413 | G88: 314315.3855 | H88: 311134.1637 | I88: 259105.1769 | J88: 405216.7621
C89: Ground Outdoor / Indoor Chamber Mounted; ˂ 22 kV ; < = 60 kVA ; Single Phase | D89: 0 | E89: 0 | F89: 0 | G89: 0 | H89: 0 | I89: 0 | J89: 0
C90: Ground Outdoor / Indoor Chamber Mounted; ˂ 22 kV ; > 60 kVA and < = 600 kVA ; Single Phase | D90: 0 | E90: 0 | F90: 0 | G90: 0 | H90: 0 | I90: 0 | J90: 0
C91: Ground Outdoor / Indoor Chamber Mounted; ˂ 22 kV ; > 600 kVA ; Single Phase | D91: 0 | E91: 0 | F91: 0 | G91: 0 | H91: 0 | I91: 0 | J91: 0
C92: Ground Outdoor / Indoor Chamber Mounted; ˂ 22 kV ; < = 60 kVA ; Multiple Phase | D92: 0 | E92: 0 | F92: 0 | G92: 0 | H92: 0 | I92: 0 | J92: 0
C93: Ground Outdoor / Indoor Chamber Mounted; ˂ 22 kV ; > 60 kVA and < = 600 kVA ; Multiple Phase | D93: 80848.41352 | E93: 79740.28267 | F93: 849991.262 | G93: 471473.0783 | H93: 466701.2456 | I93: 388657.7653 | J93: 607825.1432
C94: Ground Outdoor / Indoor Chamber Mounted; ˂ 22 kV ; > 600 kVA ; Multiple Phase | D94: 563600.1121 | E94: 555875.2522 | F94: 566660.8413 | G94: 314315.3855 | H94: 311134.1637 | I94: 259105.1769 | J94: 405216.7621
C95: Ground Outdoor / Indoor Chamber Mounted; > = 22 kV & < = 33 kV ; < = 15 MVA | D95: 0 | E95: 0 | F95: 0 | G95: 0 | H95: 0 | I95: 0 | J95: 0
C96: Ground Outdoor / Indoor Chamber Mounted; > = 22 kV & < = 33 kV ; > 15 MVA and < = 40 MVA | D96: 192983.2561 | E96: 190338.174 | F96: 0 | G96: 0 | H96: 0 | I96: 0 | J96: 0
C97: Ground Outdoor / Indoor Chamber Mounted; > = 22 kV & < = 33 kV ; > 40 MVA | D97: 0 | E97: 0 | F97: 0 | G97: 0 | H97: 0 | I97: 0 | J97: 0
C98: Ground Outdoor / Indoor Chamber Mounted; > 33 kV & < = 66 kV ; < = 15 MVA | D98: 0 | E98: 0 | F98: 0 | G98: 0 | H98: 0 | I98: 0 | J98: 0
C99: Ground Outdoor / Indoor Chamber Mounted; > 33 kV & < = 66 kV ; > 15 MVA and < = 40 MVA | D99: 0 | E99: 0 | F99: 0 | G99: 0 | H99: 0 | I99: 0 | J99: 0
C100: Ground Outdoor / Indoor Chamber Mounted; > 33 kV & < = 66 kV ; > 40 MVA | D100: 0 | E100: 0 | F100: 0 | G100: 0 | H100: 0 | I100: 0 | J100: 0
C101: Ground Outdoor / Indoor Chamber Mounted; > 66 kV & < = 132 kV ; < = 100 MVA | D101: 0 | E101: 0 | F101: 0 | G101: 0 | H101: 0 | I101: 0 | J101: 0
C102: Ground Outdoor / Indoor Chamber Mounted; > 66 kV & < = 132 kV ; > 100 MVA | D102: 0 | E102: 0 | F102: 0 | G102: 0 | H102: 0 | I102: 0 | J102: 0
C103: Ground Outdoor / Indoor Chamber Mounted; > 132 kV ; < = 100 MVA | D103: 0 | E103: 0 | F103: 0 | G103: 0 | H103: 0 | I103: 0 | J103: 0
C104: Ground Outdoor / Indoor Chamber Mounted; > 132 kV ; > 100 MVA | D104: 0 | E104: 0 | F104: 0 | G104: 0 | H104: 0 | I104: 0 | J104: 0
C105: Other | D105: 119732.0655 | E105: 118090.9845 | F105: 0 | G105: 698937.4238 | H105: 1057093.774 | I105: 700777.0101 | J105: 1059626.924
B106: SWITCHGEAR BY: Highest operating voltage; Switch function | C106: ˂ = 11 kV ; FUSE | D106: 1159622.456 | E106: 1143728.348 | F106: 582169.2706 | G106: 593360.1802 | H106: 604406.5448 | I106: 714055.9493 | J106: 732667.0909
C107: ˂ = 11 kV ; Switch | D107: 1901706.21 | E107: 1875640.896 | F107: 1322304.442 | G107: 1328127.061 | H107: 1333225.722 | I107: 1320930.808 | J107: 1328808.463
C108: ˂ = 11 kV ; Circuit Breaker | D108: 2838353.275 | E108: 2799450.015 | F108: 756385.6709 | G108: 759719.6843 | H108: 761888.98 | I108: 759534.2037 | J108: 762189.5977
C109: > 11 kV & < = 22 kV ; Switch | D109: 1785522.66 | E109: 1761049.789 | F109: 1347883.231 | G109: 1326671.746 | H109: 1317207.883 | I109: 1295803.716 | J109: 1303981.44
C110: > 11 kV & < = 22 kV ; Circuit Breaker | D110: 903604.6232 | E110: 891219.5669 | F110: 322164.2672 | G110: 323584.31 | H110: 324508.2692 | I110: 323505.309 | J110: 324636.3101
C111: > 22 kV & < = 33 kV ; Switch | D111: 1392362.932 | E111: 1373278.819 | F111: 0 | G111: 0 | H111: 0 | I111: 0 | J111: 0
C112: > 22 kV & < = 33 kV ; Circuit Breaker | D112: 0 | E112: 0 | F112: 0 | G112: 0 | H112: 0 | I112: 0 | J112: 0
C113: > 33 kV & < = 66 kV ; Switch | D113: 0 | E113: 0 | F113: 0 | G113: 0 | H113: 0 | I113: 0 | J113: 0
C114: > 33 kV & < = 66 kV ; Circuit Breaker | D114: 0 | E114: 0 | F114: 0 | G114: 0 | H114: 0 | I114: 0 | J114: 0
C115: > 66 kV & < = 132 kV ; Switch | D115: 0 | E115: 0 | F115: 0 | G115: 0 | H115: 0 | I115: 0 | J115: 0
C116: > 66 kV & < = 132 kV ; Circuit Breaker | D116: 0 | E116: 0 | F116: 0 | G116: 0 | H116: 0 | I116: 0 | J116: 0
C117: > 132 kV ; Switch | D117: 0 | E117: 0 | F117: 0 | G117: 0 | H117: 0 | I117: 0 | J117: 0
C118: > 132 kV ; Circuit Breaker | D118: 0 | E118: 0 | F118: 0 | G118: 0 | H118: 0 | I118: 0 | J118: 0
C119: Other | D119: 1454031.279 | E119: 1434101.921 | F119: 867799.1683 | G119: 1744584.37 | H119: 1761692.463 | I119: 1715158.173 | J119: 1742869.028
B120: PUBLIC LIGHTING BY: Asset type ; Lighting obligation | C120: Luminaires ; Major Road
C121: Luminaires ; Minor Road
C122: Brackets ; Major Road
C123: Brackets ; Minor Road
C124: Lamps ; Major Road
C125: Lamps ; Minor Road
C126: Poles / Columns ; Major Road
C127: Poles / Columns ; Minor Road
C128: Other
B129: SCADA, NETWORK CONTROL AND PROTECTION SYSTEMS BY: Function | C129: Field Devices | D129: 60755.57651 | E129: 59922.84368 | F129: 605968.8931 | G129: 610522.6042 | H129: 702699.3366 | I129: 605379.4136 | J129: 568522.0481
C130: Local Network Wiring Assets | D130: 0 | E130: 0 | F130: 0 | G130: 0 | H130: 0 | I130: 0 | J130: 0
C131: Communications Network Assets | D131: 0 | E131: 0 | F131: 0 | G131: 0 | H131: 0 | I131: 0 | J131: 0
C132: Master Station Assets | D132: 0 | E132: 0 | F132: 0 | G132: 0 | H132: 0 | I132: 0 | J132: 0
C133: Communications Site Infrastructure | D133: 30756.00562 | E133: 30334.45525 | F133: 0 | G133: 0 | H133: 0 | I133: 0 | J133: 0
C134: Communications Linear Assets | D134: 0 | E134: 0 | F134: 0 | G134: 0 | H134: 0 | I134: 0 | J134: 0
C135: AFLC | D135: 0 | E135: 0 | F135: 0 | G135: 0 | H135: 0 | I135: 0 | J135: 0
C136: Other | D136: 0 | E136: 0 | F136: 5885741.074 | G136: 5651919.762 | H136: 5262562.444 | I136: 5150337.409 | J136: 5097195.579
B137: OTHER: | C137: > 11kV & < = 22kV ; FUSE | D137: 18341.44838 | E137: 18090.05538
B181: ASSET REPLACEMENTS
D182: VOLUMES (0's)
B183: ASSET GROUP | C183: ASSET CATEGORY | D183: =CRCP_y4 -> 2022-23 | E183: =CRCP_y5 -> 2023-24 | F183: =FRCP_y1 -> 2024-25 | G183: =FRCP_y2 -> 2025-26 | H183: =FRCP_y3 -> 2026-27 | I183: =FRCP_y4 -> 2027-28 | J183: =FRCP_y5 -> 2028-29
B184: POLES BY: HIGHEST OPERATING VOLTAGE ; MATERIAL TYPE | C184: Staking of a wooden pole | D184: 750 | E184: 750 | F184: 750 | G184: 750 | H184: 750 | I184: 750 | J184: 750
C185: ˂ = 1 kV; Wood | D185: 440 | E185: 440 | F185: 440 | G185: 590 | H185: 590 | I185: 580 | J185: 440
C186: > 1 kV & < = 11 kV; Wood | D186: 90 | E186: 98 | F186: 98 | G186: 88 | H186: 108 | I186: 98 | J186: 88
C187: ˃ 11 kV & < = 22 kV; Wood | D187: 870 | E187: 875 | F187: 881 | G187: 973 | H187: 1052 | I187: 997 | J187: 822
C188: > 22 kV & < = 66 kV; Wood | D188: 5 | E188: 5 | F188: 5 | G188: 5 | H188: 4 | I188: 5 | J188: 2
C189: > 66 kV & < = 132 kV; Wood | D189: 0 | E189: 0 | F189: 0 | G189: 0 | H189: 0 | I189: 0 | J189: 0
C190: > 132 kV; Wood | D190: 0 | E190: 0 | F190: 0 | G190: 0 | H190: 0 | I190: 0 | J190: 0
C191: ˂ = 1 kV; Concrete | D191: 0 | E191: 0 | F191: 0 | G191: 0 | H191: 0 | I191: 0 | J191: 0
C192: > 1 kV & < = 11 kV; Concrete | D192: 0 | E192: 0 | F192: 0 | G192: 0 | H192: 0 | I192: 0 | J192: 0
C193: ˃ 11 kV & < = 22 kV; Concrete | D193: 0 | E193: 0 | F193: 0 | G193: 0 | H193: 0 | I193: 0 | J193: 0
C194: > 22 kV & < = 66 kV; Concrete | D194: 0 | E194: 0 | F194: 0 | G194: 0 | H194: 0 | I194: 0 | J194: 0
C195: > 66 kV & < = 132 kV; Concrete | D195: 0 | E195: 0 | F195: 0 | G195: 0 | H195: 0 | I195: 0 | J195: 0
C196: > 132 kV; Concrete | D196: 0 | E196: 0 | F196: 0 | G196: 0 | H196: 0 | I196: 0 | J196: 0
C197: ˂ = 1 kV; Steel | D197: 72 | E197: 72 | F197: 72 | G197: 72 | H197: 72 | I197: 62 | J197: 60
C198: > 1 kV & < = 11 kV; Steel | D198: 1 | E198: 1 | F198: 1 | G198: 1 | H198: 1 | I198: 1 | J198: 1
C199: ˃ 11 kV & < = 22 kV; Steel | D199: 18 | E199: 18 | F199: 18 | G199: 18 | H199: 18 | I199: 18 | J199: 13
C200: > 22 kV & < = 66 kV; Steel | D200: 1 | E200: 1 | F200: 1 | G200: 1 | H200: 1 | I200: 1 | J200: 1
C201: > 66 kV & < = 132 kV; Steel | D201: 0 | E201: 0 | F201: 0 | G201: 0 | H201: 0 | I201: 0 | J201: 0
C202: > 132 kV; Steel | D202: 0 | E202: 0 | F202: 0 | G202: 0 | H202: 0 | I202: 0 | J202: 0
C203: Other | D203: 100 | E203: 100 | F203: 100 | G203: 100 | H203: 100 | I203: 100 | J203: 100
B204: POLE TOP STRUCTURES BY: HIGHEST OPERATING VOLTAGE | C204: ˂ = 1 kV | D204: 176 | E204: 176 | F204: 200 | G204: 200 | H204: 200 | I204: 200 | J204: 200
C205: > 1 kV & < = 11 kV | D205: 31 | E205: 31 | F205: 31 | G205: 31 | H205: 31 | I205: 31 | J205: 31
C206: ˃ 11 kV & < = 22 kV | D206: 102 | E206: 102 | F206: 102 | G206: 102 | H206: 102 | I206: 102 | J206: 102
C207: > 22 kV & < = 66 kV | D207: 1 | E207: 1 | F207: 1 | G207: 1 | H207: 1 | I207: 1 | J207: 1
C208: > 66 kV & < = 132 kV | D208: 0 | E208: 0 | F208: 0 | G208: 0 | H208: 0 | I208: 0 | J208: 0
C209: > 132 kV | D209: 0 | E209: 0 | F209: 0 | G209: 0 | H209: 0 | I209: 0 | J209: 0
C210: Other | D210: 0 | E210: 0 | F210: 0 | G210: 0 | H210: 0 | I210: 0 | J210: 0
B211: STAKING WOODEN POLES BY: HIGHEST OPERATING VOLTAGE | C211: ˂ = 1 Kv | D211: 100 | E211: 100 | F211: 100 | G211: 100 | H211: 100 | I211: 100 | J211: 100
C212: > 1 kV & < = 11 kV | D212: 250 | E212: 250 | F212: 250 | G212: 250 | H212: 250 | I212: 250 | J212: 250
C213: ˃ 11 kV & < = 22 kV | D213: 350 | E213: 350 | F213: 350 | G213: 350 | H213: 350 | I213: 350 | J213: 350
C214: > 22 kV & < = 66 kV | D214: 50 | E214: 50 | F214: 50 | G214: 50 | H214: 50 | I214: 50 | J214: 50
C215: > 66 kV & < = 132 kV | D215: 0 | E215: 0
C216: > 132 kV | D216: 0 | E216: 0
B217: OVERHEAD CONDUCTORS BY: Highest operating voltage; Number of phases (at HV) | C217: ˂ = 1 kV | D217: 5 | E217: 5 | F217: 5 | G217: 5 | H217: 5 | I217: 5 | J217: 5
C218: > 1 kV & < = 11 kV | D218: 20 | E218: 20 | F218: 20 | G218: 20 | H218: 20 | I218: 20 | J218: 20
C219: ˃ 11 kV & < = 22 kV ; SWER | D219: 10 | E219: 10 | F219: 10 | G219: 10 | H219: 10 | I219: 10 | J219: 10
C220: ˃ 11 kV & < = 22 kV ; Single-Phase | D220: 5 | E220: 5 | F220: 5 | G220: 5 | H220: 5 | I220: 5 | J220: 5
C221: ˃ 11 kV & < = 22 kV ; Multiple-Phase | D221: 40 | E221: 40 | F221: 40 | G221: 40 | H221: 40 | I221: 40 | J221: 40
C222: > 22 kV & < = 66 kV | D222: 5.37 | E222: 5.37 | F222: 5.37 | G222: 5.37 | H222: 5.37 | I222: 5.37 | J222: 5.37
C223: > 66 kV & < = 132 kV | D223: 0 | E223: 0 | F223: 0 | G223: 0 | H223: 0 | I223: 0 | J223: 0
C224: > 132 kV | D224: 0 | E224: 0 | F224: 0 | G224: 0 | H224: 0 | I224: 0 | J224: 0
C225: Other | D225: 0 | E225: 0 | F225: 0 | G225: 0 | H225: 0 | I225: 0 | J225: 0
B226: UNDERGROUND CABLES BY: Highest operating voltage | C226: ˂ = 1 kV | D226: 2.5 | E226: 2.5 | F226: 2.5 | G226: 2.5 | H226: 2.5 | I226: 2.5 | J226: 2.5
C227: > 1 kV & < = 11 kV | D227: 1.5 | E227: 1.5 | F227: 1.5 | G227: 1.5 | H227: 1.5 | I227: 1.5 | J227: 1.5
C228: > 11 kV & < = 22 kV | D228: 1.5 | E228: 1.5 | F228: 1.5 | G228: 1.5 | H228: 1.5 | I228: 1.5 | J228: 1.5
C229: > 22 kV & < = 33 kV | D229: 0 | E229: 1.5 | F229: 0 | G229: 1.5 | H229: 2 | I229: 2.5 | J229: 2.5
C230: > 33 kV & < = 66 kV | D230: 0 | E230: 0 | F230: 0 | G230: 0 | H230: 0 | I230: 0 | J230: 0
C231: > 66 kV & < = 132 kV | D231: 0 | E231: 0 | F231: 0 | G231: 0 | H231: 0 | I231: 0 | J231: 0
C232: > 132 kV | D232: 0 | E232: 0 | F232: 0 | G232: 0 | H232: 0 | I232: 0 | J232: 0
C233: Other | D233: 0 | E233: 0 | F233: 0 | G233: 0 | H233: 0 | I233: 0
B234: SERVICE LINES BY: Connection voltage; Customer type; Connection complexity | C234: ˂ = 11 kV ; Residential ; Simple Type | D234: 3725.55 | E234: 3737.45 | F234: 1955 | G234: 1955 | H234: 1955 | I234: 1955 | J234: 1955
C235: ˂ = 11 kV ; Commercial & Industrial ; Simple Type | D235: 657.45 | E235: 659.55 | F235: 345 | G235: 345 | H235: 345 | I235: 345 | J235: 345
C236: ˂ = 11 kV ; Residential ; Complex Type | D236: 0 | E236: 0 | F236: 0 | G236: 0 | H236: 0 | I236: 0 | J236: 0
C237: ˂ = 11 kV ; Commercial & Industrial ; Complex Type | D237: 0 | E237: 0 | F237: 0 | G237: 0 | H237: 0 | I237: 0 | J237: 0
C238: ˂ = 11 kV ; Subdivision ; Complex Type | D238: 0 | E238: 0 | F238: 0 | G238: 0 | H238: 0 | I238: 0 | J238: 0
C239: > 11 kV & < = 22 kV ; Commercial & Industrial | D239: 0 | E239: 0 | F239: 0 | G239: 0 | H239: 0 | I239: 0 | J239: 0
C240: > 11 kV & < = 22 kV ; Subdivision | D240: 0 | E240: 0 | F240: 0 | G240: 0 | H240: 0 | I240: 0 | J240: 0
C241: > 22 kV & < = 33 kV ; Commercial & Industrial | D241: 0 | E241: 0 | F241: 0 | G241: 0 | H241: 0 | I241: 0 | J241: 0
C242: > 22 kV & < = 33 kV ; Subdivision | D242: 0 | E242: 0 | F242: 0 | G242: 0 | H242: 0 | I242: 0 | J242: 0
C243: > 33 kV & < = 66 kV ; Commercial & Industrial | D243: 0 | E243: 0 | F243: 0 | G243: 0 | H243: 0 | I243: 0 | J243: 0
C244: > 33 kV & < = 66 kV ; Subdivision | D244: 0 | E244: 0 | F244: 0 | G244: 0 | H244: 0 | I244: 0 | J244: 0
C245: > 66 kV & < = 132 kV ; Commercial & Industrial | D245: 0 | E245: 0 | F245: 0 | G245: 0 | H245: 0 | I245: 0 | J245: 0
... 199 more rows

Sheet 2.3 Augex (b)
B1: =INDEX(dms_Worksheet_List,MATCH(dms_Model,dms_Model_List)) -> REGULATORY REPORTING STATEMENT
B2: =INDEX(dms_TradingNameFull_List,MATCH(dms_TradingName,dms_TradingName_List)) -> TasNetworks (D)
B3: =CONCATENATE("REGULATORY PERIOD FROM ", FRCP_y1," TO ",dms_MultiYear_FinalYear_Result) -> REGULATORY PERIOD FROM 2024-25 TO 2028-29
B4: 2.3 AUGEX PROJECT DATA
B6: There are FOUR tables on this worksheet. These tables have been 'grouped' (and sub-grouped) for easy navigation. See the Instructions sheet on how to group or ungroup tables.
B8: NOTE: DNSP must provide expenditure information on an 'as incurred' basis.
B9: 2.3.3 - AUGEX DATA - HV/LV FEEDERS AND DISTRIBUTION SUBSTATIONS
D10: VOLUMES (0's)
B11: PROJECT TYPE | C11: UNITS | D11: =CRCP_y4 -> 2022-23 | E11: =CRCP_y5 -> 2023-24 | F11: =FRCP_y1 -> 2024-25 | G11: =FRCP_y2 -> 2025-26 | H11: =FRCP_y3 -> 2026-27 | I11: =FRCP_y4 -> 2027-28 | J11: =FRCP_y5 -> 2028-29
B12: DESCRIPTOR METRICS - UNITS ADDED
B13: HV Feeder Augmentations - Overhead Lines | C13: Circuit Line Length in KM | D13: 0 | E13: 0 | F13: 0 | G13: 0 | H13: 0 | I13: 0 | J13: 0
B14: HV Feeder Augmentations - Underground Cables | C14: Circuit Line Length in KM | D14: 0 | E14: 0 | F14: 0 | G14: 0 | H14: 0 | I14: 0 | J14: 0
B15: LV Feeder Augmentations - Overhead Lines | C15: Circuit Line Length in KM | D15: 0 | E15: 0 | F15: 0 | G15: 0 | H15: 0 | I15: 0 | J15: 0
B16: LV Feeder Augmentations - Underground Cables | C16: Circuit Line Length in KM | D16: 0 | E16: 0 | F16: 0 | G16: 0 | H16: 0 | I16: 0 | J16: 0
B17: Distribution Substation Augmentations - Pole Mounted | C17: Number | D17: 0 | E17: 0 | F17: 0 | G17: 2 | H17: 0 | I17: 0 | J17: 0
B18: Distribution Substation Augmentations - Ground Mounted | C18: Number | D18: 0 | E18: 0 | F18: 0 | G18: 0 | H18: 0 | I18: 0 | J18: 0
B19: Distribution Substation Augmentations - Indoor | C19: Number | D19: 0 | E19: 0 | F19: 0 | G19: 0 | H19: 0 | I19: 0 | J19: 0
B20: DESCRIPTOR METRICS - UNITS UPGRADED
B21: HV Feeder Augmentations - Overhead Lines | C21: Circuit Line Length in KM | D21: 8.8 | E21: 2.3 | F21: 4.06 | G21: 6.558 | H21: 4.13 | I21: 4.06 | J21: 4.06
B22: HV Feeder Augmentations - Underground Cables | C22: Circuit Line Length in KM | D22: 1.1 | E22: 0.3 | F22: 0 | G22: 2.032 | H22: 0.765 | I22: 0 | J22: 0
B23: LV Feeder Augmentations - Overhead Lines | C23: Circuit Line Length in KM | D23: 1 | E23: 0.5 | F23: 2.084931507 | G23: 2.084931507 | H23: 2.084931507 | I23: 2.084931507 | J23: 2.084931507
B24: LV Feeder Augmentations - Underground Cables | C24: Circuit Line Length in KM | D24: 2.4 | E24: 4 | F24: 8.117013699 | G24: 8.117013699 | H24: 8.117013699 | I24: 8.117013699 | J24: 8.117013699
B25: Distribution Substation Augmentations - Pole Mounted | C25: Number | D25: 17.2 | E25: 41.7 | F25: 27.14285714 | G25: 30.14285714 | H25: 27.14285714 | I25: 37.14285714 | J25: 37.14285714
B26: Distribution Substation Augmentations - Ground Mounted | C26: Number | D26: 1.6 | E26: 0.8 | F26: 0 | G26: 1 | H26: 3 | I26: 0.5 | J26: 0.5
B27: Distribution Substation Augmentations - Indoor | C27: Number | D27: 0 | E27: 0 | F27: 0 | G27: 0 | H27: 0 | I27: 0 | J27: 0
B29: COST METRICS
D30: =CONCATENATE("TOTAL DIRECT EXPENDITURE ($0's, real ", dms_DollarReal,")") -> TOTAL DIRECT EXPENDITURE ($0's, real June 2024)
B31: PROJECT TYPE | D31: =CRCP_y4 -> 2022-23 | E31: =CRCP_y5 -> 2023-24 | F31: =FRCP_y1 -> 2024-25 | G31: =FRCP_y2 -> 2025-26 | H31: =FRCP_y3 -> 2026-27 | I31: =FRCP_y4 -> 2027-28 | J31: =FRCP_y5 -> 2028-29
B32: HV Feeder Augmentations - Overhead Lines | D32: 1457976.399 | E32: 385268.8691 | F32: 930025.6175 | G32: 901219.9674 | H32: 646011.4717 | I32: 646011.4717 | J32: 646011.4717
B33: HV Feeder Augmentations - Underground Cables | D33: 437557.8791 | E33: 134887.2913 | F33: 272115.2579 | G33: 495619.1897 | H33: 392965.5524 | I33: 0 | J33: 0
B34: HV Feeder Non-Material Projects | D34: 2108863.316 | E34: 713120.1315 | F34: 1732274.6 | G34: 1746951.235 | H34: 1165589.658 | I34: 522893.5283 | J34: 522893.5283
B35: LV Feeder Augmentations - Overhead Lines | D35: 137920.5559 | E35: 66011.20809 | F35: 385035.715 | G35: 380335.1969 | H35: 231485.456 | I35: 231485.456 | J35: 231485.456
B36: LV Feeder Augmentations - Underground Cables | D36: 206015.4133 | E36: 345170.068 | F36: 696578.4175 | G36: 696578.4175 | H36: 696578.4175 | I36: 696578.4175 | J36: 696578.4175
B37: LV Feeder Non-Material Projects | D37: 0 | E37: 0 | F37: 0 | G37: 0 | H37: 0 | I37: 0 | J37: 0
B38: Distribution Substation Augmentations - Pole Mounted | D38: 442849.4169 | E38: 1039350.8 | F38: 519769.3286 | G38: 518214.9245 | H38: 468992.1265 | I38: 1237741.228 | J38: 1237741.228
B39: Distribution Substation Augmentations - Ground Mounted | D39: 292140.9703 | E39: 137191.6321 | F39: 211822.8031 | G39: 317004.659 | H39: 191172.5379 | I39: 88989.89885 | J39: 88989.89885
B40: Distribution Substation Augmentations - Indoor | D40: 0 | E40: 0 | F40: 0 | G40: 0 | H40: 0 | I40: 0 | J40: 0
B44: 2.3.4 - AUGEX - TOTAL EXPENDITURE
D45: =CONCATENATE("TOTAL DIRECT EXPENDITURE ($0's, real ", dms_DollarReal,")") -> TOTAL DIRECT EXPENDITURE ($0's, real June 2024)
D46: =CRCP_y4 -> 2022-23 | E46: =CRCP_y5 -> 2023-24 | F46: =FRCP_y1 -> 2024-25 | G46: =FRCP_y2 -> 2025-26 | H46: =FRCP_y3 -> 2026-27 | I46: =FRCP_y4 -> 2027-28 | J46: =FRCP_y5 -> 2028-29
B47: Subtransmission Substations, Switching Stations, Zone Substations | D47: 440302.7345 | E47: 434267.8227 | F47: 914038.5381 | G47: 914949.2728 | H47: 708424.7938 | I47: 1018709.125 | J47: 913425.8297
B48: Subtransmission Lines | D48: 0 | E48: 0 | F48: 0 | G48: 0 | H48: 0 | I48: 0 | J48: 0
B49: HV Feeders | D49: 4583106.912 | E49: 4520289.573 | F49: 4815491.281 | G49: 4486342.506 | H49: 3998348.476 | I49: 2721220.242 | J49: 2593008.976
B50: HV Feeders - Land Purchases and Easements | D50: 0 | E50: 0 | F50: 0 | G50: 0 | H50: 0 | I50: 0 | J50: 0
B51: Distribution Substations | D51: 1020758.086 | E51: 1006767.292 | F51: 0 | G51: 0 | H51: 0 | I51: 983952.7528 | J51: 984821.0155
B52: Distribution Substations - Land Purchases and Easements | D52: 0 | E52: 0 | F52: 0 | G52: 0 | H52: 0 | I52: 0 | J52: 0
B53: LV Feeders | D53: 1648781.849 | E53: 1626183.186 | F53: 2506701.821 | G53: 2513418.089 | H53: 2516778.678 | I53: 2518339.195 | J53: 2521192.01
B54: LV Feeders - Land Purchases and Easements | D54: 0 | E54: 0 | F54: 0 | G54: 0 | H54: 0 | I54: 0 | J54: 0
B55: Other Assets | D55: 0 | E55: 0 | F55: 2217554.228 | G55: 2750801.489 | H55: 2361914.913 | I55: 2357312.422 | J55: 2187593.81
B59: 2.3.5 - AUGEX - BY DRIVER
D60: =CONCATENATE("TOTAL DIRECT EXPENDITURE ($0's, real ", dms_DollarReal,")") -> TOTAL DIRECT EXPENDITURE ($0's, real June 2024)
D61: =CRCP_y4 -> 2022-23 | E61: =CRCP_y5 -> 2023-24 | F61: =FRCP_y1 -> 2024-25 | G61: =FRCP_y2 -> 2025-26 | H61: =FRCP_y3 -> 2026-27 | I61: =FRCP_y4 -> 2027-28 | J61: =FRCP_y5 -> 2028-29
B62: "Greenfield" driven augex (network expansion capex)
B63: Reinforcement driven augex (augmentation of the existing network) | D63: 7692949.581 | E63: 7587507.874 | F63: 10453785.87 | G63: 10665511.36 | H63: 9585466.862 | I63: 9599533.736 | J63: 9200041.641
B67: 2.3.6 - AUGEX - GREENFIELDS DRIVEN
D68: =CONCATENATE("TOTAL DIRECT EXPENDITURE ($0's, real ", dms_DollarReal,")") -> TOTAL DIRECT EXPENDITURE ($0's, real June 2024)
D69: =CRCP_y4 -> 2022-23 | E69: =CRCP_y5 -> 2023-24 | F69: =FRCP_y1 -> 2024-25 | G69: =FRCP_y2 -> 2025-26 | H69: =FRCP_y3 -> 2026-27 | I69: =FRCP_y4 -> 2027-28 | J69: =FRCP_y5 -> 2028-29
B70: Subtransmission Substations, Switching Stations, Zone Substations | F70: 0 | G70: 0 | H70: 0 | I70: 0 | J70: 0
B71: Subtransmission Lines | F71: 0 | G71: 0 | H71: 0 | I71: 0 | J71: 0
B72: HV Feeders | F72: 0 | G72: 0 | H72: 0 | I72: 0 | J72: 0
B73: HV Feeders - Land Purchases and Easements | F73: 0 | G73: 0 | H73: 0 | I73: 0 | J73: 0
B74: Distribution Substations | F74: 0 | G74: 0 | H74: 0 | I74: 0 | J74: 0
B75: Distribution Substations - Land Purchases and Easements | F75: 0 | G75: 0 | H75: 0 | I75: 0 | J75: 0
B76: LV Feeders | F76: 0 | G76: 0 | H76: 0 | I76: 0 | J76: 0
B77: LV Feeders - Land Purchases and Easements | F77: 0 | G77: 0 | H77: 0 | I77: 0 | J77: 0
B78: Other Assets | F78: 0 | G78: 0 | H78: 0 | I78: 0 | J78: 0

Sheet 2.5 Connections
B1: =INDEX(dms_Worksheet_List,MATCH(dms_Model,dms_Model_List)) -> REGULATORY REPORTING STATEMENT
B2: =INDEX(dms_TradingNameFull_List,MATCH(dms_TradingName,dms_TradingName_List)) -> TasNetworks (D)
B3: =CONCATENATE("REGULATORY PERIOD FROM ", FRCP_y1," TO ",dms_MultiYear_FinalYear_Result) -> REGULATORY PERIOD FROM 2024-25 TO 2028-29
B4: 2.5 CONNECTIONS
B6: There are THREE tables on this worksheet - each has been 'grouped' (and sub-grouped) for easy navigation. See the Instructions sheet on how to group or ungroup tables.
B8: 2.5.1 - DESCRIPTOR METRICS
B9: VOLUMES AND EXPENDITURE - ALL
B10: CONNECTION SUBCATEGORY | C10: DESCRIPTOR METRIC | D10: Unit of Measure | E10: =CONCATENATE("VOLUMES and EXPENDITURE (0's, real ", dms_DollarReal, ")") -> VOLUMES and EXPENDITURE (0's, real June 2024)
E11: =CRCP_y4 -> 2022-23 | F11: =CRCP_y5 -> 2023-24 | G11: =FRCP_y1 -> 2024-25 | H11: =FRCP_y2 -> 2025-26 | I11: =FRCP_y3 -> 2026-27 | J11: =FRCP_y4 -> 2027-28 | K11: =FRCP_y5 -> 2028-29
B12: RESIDENTIAL | C12: Underground connections | D12: 0's | E12: 2250.4 | F12: 2250.4 | G12: 2238.008177 | H12: 2271.400958 | I12: 2257.663715 | J12: 2243.023205 | K12: 2227.479428
C13: Overhead connections | D13: 0's | E13: 241 | F13: 241 | G13: 239.672934 | H13: 243.2490362 | I13: 241.7778863 | J13: 240.2100038 | K13: 238.5453884
C14: Distribution substations installed | D14: MVA added | E14: 14.60878792 | F14: 15.35624389 | G14: 14.9760003 | H14: 14.35234259 | I14: 13.26430048 | J14: 13.10221692 | K14: 13.00147409
C15: Distribution substations installed | D15: 0's | E15: 219.9048617 | F15: 231.1562539 | G15: 225.432479 | H15: 216.0446116 | I15: 199.6664048 | J15: 197.2265745 | K15: 195.7101011
C16: Distribution substations installed | D16: total spend $0s | G16: 915007.3575 | H16: 843903.4271 | I16: 737372.4392 | J16: 725010.0929 | K16: 719145.1514
C17: Augmentation HV | D17: net circuit KM added | E17: 2.184235031 | F17: 2.295991018 | G17: 2.239138843 | H17: 2.14589257 | I17: 1.983213798 | J17: 1.95897985 | K17: 1.943917271
C18: Augmentation HV | D18: total spend $0s | G18: 3758440.065 | H18: 3822223.173 | I18: 3802708.664 | J18: 3780635.135 | K18: 3760316.478
C19: Augmentation LV | D19: net circuit KM added | E19: 15.5290687 | F19: 16.32361067 | G19: 15.91941363 | H19: 15.25646859 | I19: 14.09988526 | J19: 13.92759124 | K19: 13.82050211
C20: Augmentation LV | D20: total spend $0s | G20: 1379430.407 | H20: 1399325.763 | I20: 1388277.223 | J20: 1379852.07 | K20: 1371598.799
C21: Mean days to connect residential customer with LV single phase connection | D21: 0's | E21: 8.137437437 | F21: 8.137437437 | G21: 8.137437437 | H21: 8.137437437 | I21: 8.137437437 | J21: 8.137437437 | K21: 8.137437437
C22: Volume of GSL breaches for residential customers | D22: 0's | E22: 251 | F22: 251 | G22: 251 | H22: 251 | I22: 251 | J22: 251 | K22: 251
C23: Volume of customer complaints relating to connection services | D23: 0's | E23: 87 | F23: 87 | G23: 87 | H23: 87 | I23: 87 | J23: 87 | K23: 87
C24: GSL payments | D24: $0's | E24: 27203 | F24: 27203 | G24: 27203 | H24: 27203 | I24: 27203 | J24: 27203 | K24: 27203
B25: COMMERCIAL/INDUSTRIAL | C25: Underground connections | D25: 0's | E25: 295.9032028 | F25: 296.0539866 | G25: 316.1982405 | H25: 370.4530205 | I25: 323.4552493 | J25: 317.9260997 | K25: 315.1615249
C26: Overhead connections | D26: 0's | E26: 46.60525666 | F26: 46.62900536 | G26: 49.80175953 | H26: 58.34697947 | I26: 50.94475073 | J26: 50.07390029 | K26: 49.63847507
C27: Distribution substations installed | D27: MVA added | E27: 50.14999953 | F27: 52.71591512 | G27: 51.41059014 | H27: 49.26965729 | I27: 45.53455541 | J27: 44.97814438 | K27: 44.63230782
C28: Distribution substations installed | D28: 0's | E28: 283.8511432 | F28: 298.3743352 | G28: 290.9861399 | H28: 278.8683684 | I28: 257.7275319 | J28: 254.5782217 | K28: 252.620772
C29: Distribution substations installed | D29: total spend $0s | G29: 3141096.907 | H29: 2897006.699 | I29: 2531300.179 | J29: 2488861.911 | K29: 2468728.357
C30: Augmentation HV | D30: net circuit KM added | E30: 50.31447045 | F30: 52.88880116 | G30: 51.57919527 | H30: 49.43124105 | I30: 45.68388961 | J30: 45.12565378 | K30: 44.77868303
C31: Augmentation HV | D31: total spend $0s | G31: 12210559.78 | H31: 11269466.61 | I31: 9850245.037 | J31: 9686650.48 | K31: 9611092.674
C32: Augmentation LV | D32: net circuit KM added | E32: 12.36289466 | F32: 12.99543991 | G32: 12.67365337 | H32: 12.14587415 | I32: 11.22510303 | J32: 11.08793751 | K32: 11.00268246
C33: Augmentation LV | D33: total spend $0s | G33: 3000287.253 | H33: 2769048.891 | I33: 2420328.4 | J33: 2380131.172 | K33: 2361565.674
B34: SUBDIVISION | C34: Underground connections | D34: 0's | E34: 1394.43038 | F34: 1394.43038 | G34: 821.45519 | H34: 833.3316506 | I34: 828.0532236 | J34: 822.7747967 | K34: 817.4963698
C35: Overhead connections | D35: 0's | E35: 135.5696203 | F35: 135.5696203 | G35: 79.86369903 | H35: 81.01835492 | I35: 80.50517452 | J35: 79.99199413 | K35: 79.47881373
C36: Distribution substations installed | D36: MVA added | E36: 7.444455503 | F36: 7.825349712 | G36: 7.631582338 | H36: 7.313774172 | I36: 6.75932153 | J36: 6.676725773 | K36: 6.625388488
C37: Distribution substations installed | D37: 0's | E37: 37.94860458 | F37: 39.89023802 | G37: 38.90249601 | H37: 37.28244785 | I37: 34.45608881 | J37: 34.03505148 | K37: 33.77335627
C38: Distribution substations installed | D38: total spend $0s | G38: 466276.2985 | H38: 430042.6254 | I38: 375755.7671 | J38: 369456.0702 | K38: 366467.3694
C39: Augmentation HV | D39: net circuit KM added | E39: 18.64591066 | F39: 19.59992528 | G39: 19.11460179 | H39: 18.31859694 | I39: 16.92987557 | J39: 16.72300039 | K39: 16.59441739
C40: Augmentation HV | D40: total spend $0s | G40: 174434.0633 | H40: 177420.0622 | I40: 176527.1427 | J40: 175508.1566 | K40: 174575.7162
C41: Augmentation LV | D41: net circuit KM added | E41: 52.62361812 | F41: 55.31609595 | G41: 53.9463866 | H41: 51.69985352 | I41: 47.78051999 | J41: 47.19666432 | K41: 46.83376958
C42: Augmentation LV | D42: total spend $0s | G42: 492298.3758 | H42: 500725.6426 | I42: 498205.5912 | J42: 495329.7471 | K42: 492698.1571
C43: Cost per lot | D43: $0's | E43: 8161.254328 | F43: 8161.254328 | G43: 8161.254328 | H43: 8161.254328 | I43: 8161.254328 | J43: 8161.254328 | K43: 8161.254328
B44: EMBEDDED GENERATION | C44: Underground connections | D44: 0's | E44: 1035.513171 | F44: 1040.205829 | G44: 1462.545037 | H44: 1462.545037 | I44: 1462.545037 | J44: 1462.545037 | K44: 1462.545037
C45: Overhead connections | D45: 0's | E45: 950.4868293 | F45: 954.7941714 | G45: 1342.454963 | H45: 1342.454963 | I45: 1342.454963 | J45: 1342.454963 | K45: 1342.454963
C46: Distribution substations installed | D46: MVA added | E46: 0 | F46: 0 | G46: 0 | H46: 0 | I46: 0 | J46: 0 | K46: 0
C47: Distribution substations installed | D47: 0's | E47: 0 | F47: 0 | G47: 0 | H47: 0 | I47: 0 | J47: 0 | K47: 0
C48: Distribution substations installed | D48: total spend $0's
C49: Augmentation HV | D49: net circuit KM added | E49: 0 | F49: 0 | G49: 0 | H49: 0 | I49: 0 | J49: 0 | K49: 0
C50: Augmentation HV | D50: total spend $0s
C51: Augmentation LV | D51: net circuit KM added | E51: 0 | F51: 0 | G51: 0 | H51: 0 | I51: 0 | J51: 0 | K51: 0
C52: Augmentation LV | D52: total spend $0s
B54: VOLUMES AND EXPENDITURE - STANDARD CONTROL SERVICES
B55: CONNECTION SUBCATEGORY | C55: DESCRIPTOR METRIC | D55: Unit of Measure | E55: =CONCATENATE("VOLUMES and EXPENDITURE (0's, real ", dms_DollarReal, ")") -> VOLUMES and EXPENDITURE (0's, real June 2024)
E56: =CRCP_y4 -> 2022-23 | F56: =CRCP_y5 -> 2023-24 | G56: =FRCP_y1 -> 2024-25 | H56: =FRCP_y2 -> 2025-26 | I56: =FRCP_y3 -> 2026-27 | J56: =FRCP_y4 -> 2027-28 | K56: =FRCP_y5 -> 2028-29
B57: RESIDENTIAL | C57: Underground connections | D57: 0's | E57: 2250.4 | F57: 2250.4 | G57: 2238.008177 | H57: 2271.400958 | I57: 2257.663715 | J57: 2243.023205 | K57: 2227.479428
C58: Overhead connections | D58: 0's | E58: 241 | F58: 241 | G58: 239.672934 | H58: 243.2490362 | I58: 241.7778863 | J58: 240.2100038 | K58: 238.5453884
C59: Distribution substations installed | D59: MVA added | E59: 14.60878792 | F59: 15.35624389 | G59: 14.9760003 | H59: 14.35234259 | I59: 13.26430048 | J59: 13.10221692 | K59: 13.00147409
C60: Distribution substations installed | D60: 0's | E60: 219.9048617 | F60: 231.1562539 | G60: 225.432479 | H60: 216.0446116 | I60: 199.6664048 | J60: 197.2265745 | K60: 195.7101011
C61: Distribution substations installed | D61: total spend $0s | G61: =G16 -> 915007.3575 | H61: =H16 -> 843903.4271 | I61: 737372.4392 | J61: 725010.0929 | K61: 719145.1514
C62: Augmentation HV | D62: net circuit KM added | E62: 2.184235031 | F62: 2.295991018 | G62: 2.239138843 | H62: 2.14589257 | I62: 1.983213798 | J62: 1.95897985 | K62: 1.943917271
C63: Augmentation HV | D63: total spend $0s | G63: =G18 -> 3758440.065 | H63: 3822223.173 | I63: 3802708.664 | J63: 3780635.135 | K63: 3760316.478
C64: Augmentation LV | D64: net circuit KM added | E64: 15.5290687 | F64: 16.32361067 | G64: 15.91941363 | H64: 15.25646859 | I64: 14.09988526 | J64: 13.92759124 | K64: 13.82050211
C65: Augmentation LV | D65: total spend $0s | G65: =G20 -> 1379430.407 | H65: 1399325.763 | I65: 1388277.223 | J65: 1379852.07 | K65: 1371598.799
C66: Mean days to connect residential customer with LV single phase connection | D66: 0's | E66: 8.137437437 | F66: 8.137437437 | G66: 8.137437437 | H66: 8.137437437 | I66: 8.137437437 | J66: 8.137437437 | K66: 8.137437437
C67: Volume of GSL breaches for residential customers | D67: 0's | E67: 251 | F67: 251 | G67: 251 | H67: 251 | I67: 251 | J67: 251 | K67: 251
C68: Volume of customer complaints relating to connection services | D68: 0's | E68: 87 | F68: 87 | G68: 87 | H68: 87 | I68: 87 | J68: 87 | K68: 87
C69: GSL payments | D69: $0's | E69: 27203 | F69: 27203 | G69: 27203 | H69: 27203 | I69: 27203 | J69: 27203 | K69: 27203
B70: COMMERCIAL/INDUSTRIAL | C70: Underground connections | D70: 0's | E70: 295.9032028 | F70: 296.0539866 | G70: 316.1982405 | H70: 370.4530205 | I70: 323.4552493 | J70: 317.9260997 | K70: 315.1615249
C71: Overhead connections | D71: 0's | E71: 46.60525666 | F71: 46.62900536 | G71: 49.80175953 | H71: 58.34697947 | I71: 50.94475073 | J71: 50.07390029 | K71: 49.63847507
C72: Distribution substations installed | D72: MVA added | E72: 50.14999953 | F72: 52.71591512 | G72: 51.41059014 | H72: 49.26965729 | I72: 45.53455541 | J72: 44.97814438 | K72: 44.63230782
C73: Distribution substations installed | D73: 0's | E73: 283.8511432 | F73: 298.3743352 | G73: 290.9861399 | H73: 278.8683684 | I73: 257.7275319 | J73: 254.5782217 | K73: 252.620772
C74: Distribution substations installed | D74: total spend $0s | G74: =G29 -> 3141096.907 | H74: =H29 -> 2897006.699 | I74: 2531300.179 | J74: 2488861.911 | K74: 2468728.357
C75: Augmentation HV | D75: net circuit KM added | E75: 50.31447045 | F75: 52.88880116 | G75: 51.57919527 | H75: 49.43124105 | I75: 45.68388961 | J75: 45.12565378 | K75: 44.77868303
C76: Augmentation HV | D76: total spend $0s | G76: =G31 -> 12210559.78 | H76: =H31 -> 11269466.61 | I76: 9850245.037 | J76: 9686650.48 | K76: 9611092.674
C77: Augmentation LV | D77: net circuit KM added | E77: 12.36289466 | F77: 12.99543991 | G77: 12.67365337 | H77: 12.14587415 | I77: 11.22510303 | J77: 11.08793751 | K77: 11.00268246
C78: Augmentation LV | D78: total spend $0s | G78: =G33 -> 3000287.253 | H78: =H33 -> 2769048.891 | I78: 2420328.4 | J78: 2380131.172 | K78: 2361565.674
B79: SUBDIVISION | C79: Underground connections | D79: 0's | E79: 1394.43038 | F79: 1394.43038 | G79: 821.45519 | H79: 833.3316506 | I79: 828.0532236 | J79: 822.7747967 | K79: 817.4963698
C80: Overhead connections | D80: 0's | E80: 135.5696203 | F80: 135.5696203 | G80: 79.86369903 | H80: 81.01835492 | I80: 80.50517452 | J80: 79.99199413 | K80: 79.47881373
C81: Distribution substations installed | D81: MVA added | E81: 7.444455503 | F81: 7.825349712 | G81: 7.631582338 | H81: 7.313774172 | I81: 6.75932153 | J81: 6.676725773 | K81: 6.625388488
C82: Distribution substations installed | D82: 0's | E82: 37.94860458 | F82: 39.89023802 | G82: 38.90249601 | H82: 37.28244785 | I82: 34.45608881 | J82: 34.03505148 | K82: 33.77335627
C83: Distribution substations installed | D83: total spend $0s | G83: =G38 -> 466276.2985 | H83: =H38 -> 430042.6254 | I83: 375755.7671 | J83: 369456.0702 | K83: 366467.3694
C84: Augmentation HV | D84: net circuit KM added | E84: 18.64591066 | F84: 19.59992528 | G84: 19.11460179 | H84: 18.31859694 | I84: 16.92987557 | J84: 16.72300039 | K84: 16.59441739
C85: Augmentation HV | D85: total spend $0s | G85: =G40 -> 174434.0633 | H85: =H40 -> 177420.0622 | I85: 176527.1427 | J85: 175508.1566 | K85: 174575.7162
C86: Augmentation LV | D86: net circuit KM added | E86: 52.62361812 | F86: 55.31609595 | G86: 53.9463866 | H86: 51.69985352 | I86: 47.78051999 | J86: 47.19666432 | K86: 46.83376958
C87: Augmentation LV | D87: total spend $0s | G87: =G42 -> 492298.3758 | H87: =H42 -> 500725.6426 | I87: 498205.5912 | J87: 495329.7471 | K87: 492698.1571
C88: Cost per lot | D88: $0's | E88: 8161.254328 | F88: 8161.254328 | G88: 8161.254328 | H88: 8161.254328 | I88: 8161.254328 | J88: 8161.254328 | K88: 8161.254328
B89: EMBEDDED GENERATION | C89: Underground connections | D89: 0's | E89: 1035.513171 | F89: 1040.205829 | G89: 1462.545037 | H89: 1462.545037 | I89: 1462.545037 | J89: 1462.545037 | K89: 1462.545037
C90: Overhead connections | D90: 0's | E90: 950.4868293 | F90: 954.7941714 | G90: 1342.454963 | H90: 1342.454963 | I90: 1342.454963 | J90: 1342.454963 | K90: 1342.454963
C91: Distribution substations installed | D91: MVA added | E91: 0 | F91: 0 | G91: 0 | H91: 0 | I91: 0 | J91: 0 | K91: 0
C92: Distribution substations installed | D92: 0's | E92: 0 | F92: 0 | G92: 0 | H92: 0 | I92: 0 | J92: 0 | K92: 0
C93: Distribution substations installed | D93: total spend $0s | G93: =G48 -> 0 | H93: =H48 -> 0 | I93: 0 | J93: 0 | K93: 0
C94: Augmentation HV | D94: net circuit KM added | E94: 0 | F94: 0 | G94: 0 | H94: 0 | I94: 0 | J94: 0 | K94: 0
C95: Augmentation HV | D95: total spend $0s
C96: Augmentation LV | D96: net circuit KM added | E96: 0 | F96: 0 | G96: 0 | H96: 0 | I96: 0 | J96: 0 | K96: 0
C97: Augmentation LV | D97: total spend $0s
B101: 2.5.2 - COST METRICS BY CONNECTION CLASSIFICATION
B102: EXPENDITURE - ALL
B103: CONNECTION SUBCATEGORY | C103: CONNECTION CLASSICIATION | E103: =CONCATENATE("EXPENDITURE ($0's, real ", dms_DollarReal, ")") -> EXPENDITURE ($0's, real June 2024)
E104: =CRCP_y4 -> 2022-23 | F104: =CRCP_y5 -> 2023-24 | G104: =FRCP_y1 -> 2024-25 | H104: =FRCP_y2 -> 2025-26 | I104: =FRCP_y3 -> 2026-27 | J104: =FRCP_y4 -> 2027-28 | K104: =FRCP_y5 -> 2028-29
B105: RESIDENTIAL | C105: Simple connection LV | E105: 1107243.923 | F105: 1126488.202 | G105: 1352359.837 | H105: 1324240.096 | I105: 1327669.068 | J105: 1296309.808 | K105: 1288688.485
C106: Complex connection LV | E106: 1164309.502 | F106: 1184545.601 | G106: 1937849.959 | H106: 1970415.048 | I106: 1960483.008 | J106: 1945700.697 | K106: 1935025.049
C107: Complex connection HV | E107: 4388118.353 | F107: 4464385.357 | G107: 1823277.729 | H107: 1854746.415 | I107: 1845538.284 | J107: 1834946.007 | K107: 1825302.921
B108: COMMERCIAL/INDUSTRIAL | C108: Simple connection LV | E108: 29229.92761 | F108: 29737.95379 | G108: 47529.04769 | H108: 98309.23704 | I108: 86579.06976 | J108: 83632.89087 | K108: 83000.27533
C109: Complex connection HV (customer connected at LV, minor HV works) | E109: 0 | F109: 0 | G109: 0 | H109: 0 | I109: 0 | J109: 0 | K109: 0
C110: Complex connection HV (customer connected at LV, upstream asset works) | E110: 15924460.56 | F110: 16201233.15 | G110: 20791745.56 | H110: 19224602.23 | I110: 16865274.45 | J110: 16061858.65 | K110: 15935694.01
C111: Complex connection HV (customer connected at HV) | E111: 10427.415 | F111: 10608.64706 | G111: 14230.35354 | H111: 13157.76425 | I111: 11542.98553 | J111: 10993.10909 | K111: 10906.75909
C112: Complex connection sub-transmission | E112: 0 | F112: 0 | G112: 0 | H112: 0 | I112: 0 | J112: 0 | K112: 0
B113: SUBDIVISION | C113: Complex connection LV | E113: 3946893.854 | F113: 4015492.225 | G113: 3744583.544 | H113: 3803826.979 | I113: 3782271.141 | J113: 3759332.05 | K113: 3737341.537
C114: Complex connection HV (no upstream asset works) | E114: 0 | F114: 0 | G114: 0 | H114: 0 | I114: 0 | J114: 0 | K114: 0
C115: Complex connection HV (with upstream asset works) | E115: 5960969.645 | F115: 6064573.345 | G115: 4682497.48 | H115: 4756579.745 | I115: 4729624.771 | J115: 4700940.076 | K115: 4673441.552
B116: EMBEDDED GENERATION | C116: Simple connection LV | E116: 644191.8894 | F116: 655388.1657 | G116: 11462.34748 | H116: 12352.81379 | I116: 14015.33266 | J116: 49.26060775 | K116: 49.24821295
C117: Complex connection HV (small capacity) | E117: 0 | F117: 0 | G117: 0 | H117: 0 | I117: 0 | J117: 0 | K117: 0
C118: Complex connection HV (large capacity) | E118: 0 | F118: 0 | G118: 0 | H118: 0 | I118: 0 | J118: 0 | K118: 0
B120: EXPENDITURE - STANDARD CONTROL SERVICES
E121: =CONCATENATE("EXPENDITURE ($0's, real ", dms_DollarReal, ")") -> EXPENDITURE ($0's, real June 2024)
E122: =CRCP_y4 -> 2022-23 | F122: =CRCP_y5 -> 2023-24 | G122: =FRCP_y1 -> 2024-25 | H122: =FRCP_y2 -> 2025-26 | I122: =FRCP_y3 -> 2026-27 | J122: =FRCP_y4 -> 2027-28 | K122: =FRCP_y5 -> 2028-29
B123: RESIDENTIAL | C123: Simple connection LV | E123: 1107243.923 | F123: 1126488.202 | G123: 1352359.837 | H123: 1324240.096 | I123: 1327669.068 | J123: 1296309.808 | K123: 1288688.485
C124: Complex connection LV | E124: 1164309.502 | F124: 1184545.601 | G124: 1937849.959 | H124: 1970415.048 | I124: 1960483.008 | J124: 1945700.697 | K124: 1935025.049
C125: Complex connection HV | E125: 4388118.353 | F125: 4464385.357 | G125: 1823277.729 | H125: 1854746.415 | I125: 1845538.284 | J125: 1834946.007 | K125: 1825302.921
B126: COMMERCIAL/INDUSTRIAL | C126: Simple connection LV | E126: 29229.92761 | F126: 29737.95379 | G126: 47529.04769 | H126: 98309.23704 | I126: 86579.06976 | J126: 83632.89087 | K126: 83000.27533
C127: Complex connection HV (customer connected at LV, minor HV works) | E127: 0 | F127: 0 | G127: 0 | H127: 0 | I127: 0 | J127: 0 | K127: 0
C128: Complex connection HV (customer connected at LV, upstream asset works) | E128: 15924460.56 | F128: 16201233.15 | G128: 20791745.56 | H128: 19224602.23 | I128: 16865274.45 | J128: 16061858.65 | K128: 15935694.01
C129: Complex connection HV (customer connected at HV) | E129: 10427.415 | F129: 10608.64706 | G129: 14230.35354 | H129: 13157.76425 | I129: 11542.98553 | J129: 10993.10909 | K129: 10906.75909
C130: Complex connection sub-transmission | E130: 0 | F130: 0 | G130: 0 | H130: 0 | I130: 0 | J130: 0 | K130: 0
B131: SUBDIVISION | C131: Complex connection LV | E131: 3946893.854 | F131: 4015492.225 | G131: 3744583.544 | H131: 3803826.979 | I131: 3782271.141 | J131: 3759332.05 | K131: 3737341.537
C132: Complex connection HV (no upstream asset works) | E132: 0 | F132: 0 | G132: 0 | H132: 0 | I132: 0 | J132: 0 | K132: 0
C133: Complex connection HV (with upstream asset works) | E133: 5960969.645 | F133: 6064573.345 | G133: 4682497.48 | H133: 4756579.745 | I133: 4729624.771 | J133: 4700940.076 | K133: 4673441.552
B134: EMBEDDED GENERATION | C134: Simple connection LV | E134: 644191.8894 | F134: 655388.1657 | G134: 11462.34748 | H134: 12352.81379 | I134: 14015.33266 | J134: 49.26060775 | K134: 49.24821295
C135: Complex connection HV (small capacity) | E135: 0 | F135: 0 | G135: 0 | H135: 0 | I135: 0 | J135: 0 | K135: 0
C136: Complex connection HV (large capacity) | E136: 0 | F136: 0 | G136: 0 | H136: 0 | I136: 0 | J136: 0 | K136: 0
B138: EXPENDITURE - STANDARD CONTROL SERVICES - CAPITAL CONTRIBUTIONS
E139: =CONCATENATE("EXPENDITURE ($0's, real ", dms_DollarReal, ")") -> EXPENDITURE ($0's, real June 2024)
E140: =CRCP_y4 -> 2022-23 | F140: =CRCP_y5 -> 2023-24 | G140: =FRCP_y1 -> 2024-25 | H140: =FRCP_y2 -> 2025-26 | I140: =FRCP_y3 -> 2026-27 | J140: =FRCP_y4 -> 2027-28 | K140: =FRCP_y5 -> 2028-29
B141: RESIDENTIAL | C141: Simple connection LV | E141: 110552.016 | F141: 103461.3414 | G141: 131654.0459 | H141: 129533.7857 | I141: 130596.1483 | J141: 129843.9765 | K141: 129119.0493
C142: Complex connection LV | E142: 163599.7468 | F142: 153106.654 | G142: 188652.2953 | H142: 192740.9699 | I142: 192842.8821 | J142: 194889.7663 | K142: 193878.1928
C143: Complex connection HV | E143: 154109.6617 | F143: 144225.2516 | G143: 177498.5349 | H143: 181426.5595 | I143: 181536.346 | J143: 183796.0993 | K143: 182884.6773
B144: COMMERCIAL/INDUSTRIAL | C144: Simple connection LV | E144: 6702.446981 | F144: 6272.560017 | G144: 4627.016607 | H144: 9616.358602 | I144: 8516.348918 | J144: 8377.030743 | K144: 8316.142158
C145: Complex connection HV (customer connected at LV, minor HV works) | E145: 0 | F145: 0 | G145: 0 | H145: 0 | I145: 0 | J145: 0 | K145: 0
C146: Complex connection HV (customer connected at LV, upstream asset works) | E146: 6334472.047 | F146: 5928186.557 | G146: 8606695.789 | H146: 7996082.065 | I146: 7054033.201 | J146: 6840886.035 | K146: 6789173.529
C147: Complex connection HV (customer connected at HV) | E147: 4335.459786 | F147: 4057.388561 | G147: 5890.622487 | H147: 5472.704273 | I147: 4827.944152 | J147: 4682.061281 | K147: 4646.668041
C148: Complex connection sub-transmission | E148: 0 | F148: 0 | G148: 0 | H148: 0 | I148: 0 | J148: 0 | K148: 0
B149: SUBDIVISION | C149: Complex connection LV | E149: 2081423.943 | F149: 1947923.891 | G149: 2401676.847 | H149: 2451354.835 | I149: 2451107.12 | J149: 2480805.916 | K149: 2467029.034
C150: Complex connection HV (no upstream asset works) | E150: 0 | F150: 0 | G150: 0 | H150: 0 | I150: 0 | J150: 0 | K150: 0
C151: Complex connection HV (with upstream asset works) | E151: 2602762.697 | F151: 2435824.599 | G151: 3003230.039 | H151: 3065350.98 | I151: 3065041.219 | J151: 3102178.737 | K151: 3084951.129
B152: EMBEDDED GENERATION | C152: Simple connection LV | E152: 630.7282145 | F152: 590.2740583 | G152: 1115.874917 | H152: 1208.32071 | I152: 1378.61799 | J152: 4.934154747 | K152: 4.934382907
C153: Complex connection HV (small capacity) | E153: 0 | F153: 0 | G153: 0 | H153: 0 | I153: 0 | J153: 0 | K153: 0
C154: Complex connection HV (large capacity) | E154: 0 | F154: 0 | G154: 0 | H154: 0 | I154: 0 | J154: 0 | K154: 0
B158: 2.5.3 - VOLUMES BY CONNECTION CLASSIFICATION
B159: NEW CONNECTIONS - ALL
E160: VOLUMES (0's)
E161: =CRCP_y4 -> 2022-23 | F161: =CRCP_y5 -> 2023-24 | G161: =FRCP_y1 -> 2024-25 | H161: =FRCP_y2 -> 2025-26 | I161: =FRCP_y3 -> 2026-27 | J161: =FRCP_y4 -> 2027-28 | K161: =FRCP_y5 -> 2028-29
B162: RESIDENTIAL | C162: Simple connection LV | E162: 2075.4 | F162: 2075.4 | G162: 2134 | H162: 2166 | I162: 2153 | J162: 2139 | K162: 2124
C163: Complex connection LV | E163: 257.7549592 | F163: 257.7549592 | G163: 212.9459392 | H163: 216.0246757 | I163: 214.6563484 | J163: 213.2880211 | K163: 211.9196938
C164: Complex connection HV | E164: 158.2450408 | F164: 158.2450408 | G164: 130.7351717 | H164: 132.6253188 | I164: 131.7852534 | J164: 130.9451881 | K164: 130.1051227
B165: COMMERCIAL/INDUSTRIAL | C165: Simple connection LV | E165: 100.5084595 | F165: 72.68299199 | G165: 75 | H165: 160.8 | I165: 140.4 | J165: 138 | K165: 136.8
C166: Complex connection HV (customer connected at LV, minor HV works) | E166: 0 | F166: 0 | G166: 0 | H166: 0 | I166: 0 | J166: 0 | K166: 0
C167: Complex connection HV (customer connected at LV, upstream asset works) | E167: 240.4915405 | F167: 268.317008 | G167: 289.1861086 | H167: 266.3294746 | I167: 232.5414069 | J167: 228.5663402 | K167: 226.5788068
C168: Complex connection HV (customer connected at HV) | E168: 1.508459484 | F168: 1.682991986 | G168: 1.813891362 | H168: 1.670525378 | I168: 1.458593054 | J168: 1.43365984 | K168: 1.421193232
C169: Complex connection sub-transmission | E169: 0 | F169: 0 | G169: 0 | H169: 0 | I169: 0 | J169: 0 | K169: 0
B170: SUBDIVISION | C170: Complex connection LV | E170: 957.4448147 | F170: 957.4448147 | G170: 564.0281677 | H170: 572.1827918 | I170: 568.5585145 | J170: 564.9342371 | K170: 561.3099597
C171: Complex connection HV (no upstream asset works) | E171: 0 | F171: 0 | G171: 0 | H171: 0 | I171: 0 | J171: 0 | K171: 0
C172: Complex connection HV (with upstream asset works) | E172: 572.5551853 | F172: 572.5551853 | G172: 337.2907213 | H172: 342.1672136 | I172: 339.9998837 | J172: 337.8325538 | K172: 335.6652238
B173: EMBEDDED GENERATION | C173: Simple connection LV | E173: 1986 | F173: 1995 | G173: 2805 | H173: 2805 | I173: 2805 | J173: 2805 | K173: 2805
C174: Complex connection HV (small capacity) | E174: 0 | F174: 0 | G174: 0 | H174: 0 | I174: 0 | J174: 0 | K174: 0
C175: Complex connection HV (large capacity) | E175: 0 | F175: 0 | G175: 0 | H175: 0 | I175: 0 | J175: 0 | K175: 0
B177: NEW CONNECTIONS - STANDARD CONTROL SERVICES
E178: VOLUMES (0's)
E179: =CRCP_y4 -> 2022-23 | F179: =CRCP_y5 -> 2023-24 | G179: =FRCP_y1 -> 2024-25 | H179: =FRCP_y2 -> 2025-26 | I179: =FRCP_y3 -> 2026-27 | J179: =FRCP_y4 -> 2027-28 | K179: =FRCP_y5 -> 2028-29
B180: RESIDENTIAL | C180: Simple connection LV | E180: 2075.4 | F180: 2075.4 | G180: 2134 | H180: 2166 | I180: 2153 | J180: 2139 | K180: 2124
C181: Complex connection LV | E181: 257.7549592 | F181: 257.7549592 | G181: 212.9459392 | H181: 216.0246757 | I181: 214.6563484 | J181: 213.2880211 | K181: 211.9196938
C182: Complex connection HV | E182: 158.2450408 | F182: 158.2450408 | G182: 130.7351717 | H182: 132.6253188 | I182: 131.7852534 | J182: 130.9451881 | K182: 130.1051227
B183: COMMERCIAL/INDUSTRIAL | C183: Simple connection LV | E183: 100.5084595 | F183: 72.68299199 | G183: 75 | H183: 160.8 | I183: 140.4 | J183: 138 | K183: 136.8
C184: Complex connection HV (customer connected at LV, minor HV works) | E184: 0 | F184: 0 | G184: 0 | H184: 0 | I184: 0 | J184: 0 | K184: 0
C185: Complex connection HV (customer connected at LV, upstream asset works) | E185: 240.4915405 | F185: 268.317008 | G185: 289.1861086 | H185: 266.3294746 | I185: 232.5414069 | J185: 228.5663402 | K185: 226.5788068
C186: Complex connection HV (customer connected at HV) | E186: 1.508459484 | F186: 1.682991986 | G186: 1.813891362 | H186: 1.670525378 | I186: 1.458593054 | J186: 1.43365984 | K186: 1.421193232
C187: Complex connection sub-transmission | E187: 0 | F187: 0 | G187: 0 | H187: 0 | I187: 0 | J187: 0 | K187: 0
B188: SUBDIVISION | C188: Complex connection LV | E188: 957.4448147 | F188: 957.4448147 | G188: 564.0281677 | H188: 572.1827918 | I188: 568.5585145 | J188: 564.9342371 | K188: 561.3099597
C189: Complex connection HV (no upstream asset works) | E189: 0 | F189: 0 | G189: 0 | H189: 0 | I189: 0 | J189: 0 | K189: 0
C190: Complex connection HV (with upstream asset works) | E190: 572.5551853 | F190: 572.5551853 | G190: 337.2907213 | H190: 342.1672136 | I190: 339.9998837 | J190: 337.8325538 | K190: 335.6652238
B191: EMBEDDED GENERATION | C191: Simple connection LV | E191: 1986 | F191: 1995 | G191: 2805 | H191: 2805 | I191: 2805 | J191: 2805 | K191: 2805
C192: Complex connection HV (small capacity) | E192: 0 | F192: 0 | G192: 0 | H192: 0 | I192: 0 | J192: 0 | K192: 0
C193: Complex connection HV (large capacity) | E193: 0 | F193: 0 | G193: 0 | H193: 0 | I193: 0 | J193: 0 | K193: 0
B195: EXISTING CONNECTIONS
E196: VOLUMES (0's)
E197: =CRCP_y4 -> 2022-23 | F197: =CRCP_y5 -> 2023-24 | G197: =FRCP_y1 -> 2024-25 | H197: =FRCP_y2 -> 2025-26 | I197: =FRCP_y3 -> 2026-27 | J197: =FRCP_y4 -> 2027-28 | K197: =FRCP_y5 -> 2028-29
B198: RESIDENTIAL | C198: Simple connection LV | E198: 0 | F198: 0 | G198: 0 | H198: 0 | I198: 0 | J198: 0 | K198: 0
C199: Complex connection LV | E199: 0 | F199: 0 | G199: 0 | H199: 0 | I199: 0 | J199: 0 | K199: 0
C200: Complex connection HV | E200: 0 | F200: 0 | G200: 0 | H200: 0 | I200: 0 | J200: 0 | K200: 0
B201: COMMERCIAL/INDUSTRIAL | C201: Simple connection LV | E201: 0 | F201: 0 | G201: 0 | H201: 0 | I201: 0 | J201: 0 | K201: 0
C202: Complex connection HV (customer connected at LV, minor HV works) | E202: 0 | F202: 0 | G202: 0 | H202: 0 | I202: 0 | J202: 0 | K202: 0
C203: Complex connection HV (customer connected at LV, upstream asset works) | E203: 0 | F203: 0 | G203: 0 | H203: 0 | I203: 0 | J203: 0 | K203: 0
C204: Complex connection HV (customer connected at HV) | E204: 0 | F204: 0 | G204: 0 | H204: 0 | I204: 0 | J204: 0 | K204: 0
C205: Complex connection sub-transmission | E205: 0 | F205: 0 | G205: 0 | H205: 0 | I205: 0 | J205: 0 | K205: 0
B206: SUBDIVISION | C206: Complex connection LV | E206: 0 | F206: 0 | G206: 0 | H206: 0 | I206: 0 | J206: 0 | K206: 0
C207: Complex connection HV (no upstream asset works) | E207: 0 | F207: 0 | G207: 0 | H207: 0 | I207: 0 | J207: 0 | K207: 0
C208: Complex connection HV (with upstream asset works) | E208: 0 | F208: 0 | G208: 0 | H208: 0 | I208: 0 | J208: 0 | K208: 0
B209: EMBEDDED GENERATION | C209: Simple connection LV | E209: 0 | F209: 0 | G209: 0 | H209: 0 | I209: 0 | J209: 0 | K209: 0
C210: Complex connection HV (small capacity) | E210: 0 | F210: 0 | G210: 0 | H210: 0 | I210: 0 | J210: 0 | K210: 0
C211: Complex connection HV (large capacity) | E211: 0 | F211: 0 | G211: 0 | H211: 0 | I211: 0 | J211: 0 | K211: 0

Sheet 2.6 Non-network
B1: =INDEX(dms_Worksheet_List,MATCH(dms_Model,dms_Model_List)) -> REGULATORY REPORTING STATEMENT
B2: =INDEX(dms_TradingNameFull_List,MATCH(dms_TradingName,dms_TradingName_List)) -> TasNetworks (D)
B3: =CONCATENATE("REGULATORY PERIOD FROM ", FRCP_y1," TO ",dms_MultiYear_FinalYear_Result) -> REGULATORY PERIOD FROM 2024-25 TO 2028-29
B4: 2.6 NON-NETWORK EXPENDITURE
B6: There are THREE tables on this worksheet - each has been 'grouped' (and sub-grouped) for easy navigation. See the Instructions sheet on how to group or ungroup tables.
B8: 2.6.1 - NON-NETWORK EXPENDITURE
E9: =CONCATENATE("EXPENDITURE ($0's, real ", dms_DollarReal, ")") -> EXPENDITURE ($0's, real June 2024)
B10: SERVICE SUBCATEGORY | C10: ASSET CATEGORY | E10: =CRCP_y4 -> 2022-23 | F10: =CRCP_y5 -> 2023-24 | G10: =FRCP_y1 -> 2024-25 | H10: =FRCP_y2 -> 2025-26 | I10: =FRCP_y3 -> 2026-27 | J10: =FRCP_y4 -> 2027-28 | K10: =FRCP_y5 -> 2028-29
B11: OPEX
B12: IT & COMMUNICATIONS | C12: Total IT and communications | E12: 12211288.02 | F12: 12076122.1 | G12: 12294438.23 | H12: 12704141.82 | I12: 12909916.77 | J12: 12960634.39 | K12: 13008453.75
B13: MOTOR VEHICLES | C13: Car | E13: 36759.65812 | F13: 36352.76794 | G13: 35760.14043 | H13: 36041.81922 | I13: 36192.31674 | J13: 36272.70286 | K13: 36400.33015
C14: Light commercial vehicle | E14: 809114.2236 | F14: 800158.1927 | G14: 787113.9107 | H14: 793313.9226 | I14: 796626.5126 | J14: 798395.8858 | K14: 801205.0812
C15: Elevated work platform (LCV) | E15: 0 | F15: 0 | G15: 0 | H15: 0 | I15: 0 | J15: 0 | K15: 0
C16: Elevated work platform (HCV) | E16: 110479.8468 | F16: 109256.9528 | G16: 107475.8319 | H16: 108322.4075 | I16: 108774.7224 | J16: 109016.3201 | K16: 109399.8994
C17: Heavy commercial vehicle | E17: 80549.85195 | F17: 79658.25106 | G17: 78359.65198 | H17: 78976.88256 | I17: 79306.66126 | J17: 79482.8079 | K17: 79762.47209
B18: BUILDINGS AND PROPERTY | C18: Total buildings and property expenditure | E18: 3148214.435 | F18: 3113367.061 | G18: 3062612.55 | H18: 3086736.42 | I18: 3099625.508 | J18: 3106510.031 | K18: 3117440.441
B19: OTHER | C19: Other expenditure | E19: 0 | F19: 0 | G19: 0 | H19: 0 | I19: 0 | J19: 0 | K19: 0
B20: OTHER - DNSP nominated | C20: Office furniture and equipment | E20: 0 | F20: 0 | G20: 0 | H20: 0 | I20: 0 | J20: 0 | K20: 0
C21: Plant and equipment
C22: Crane borer plant HCV
C23: Other fleet assets
C24: EWP Hired
C25: Car Hired
C26: LCV Hired
C27: Other Hire
B31: CAPEX
B32: IT & COMMUNICATIONS | C32: Total IT and communications | E32: 21073144.5 | F32: 19872878.71 | G32: 29809270.4 | H32: 32380546.07 | I32: 13442209.48 | J32: 12618073.68 | K32: 12449441.69
B33: MOTOR VEHICLES | C33: Car | E33: 590724.7266 | F33: 483800.3213 | G33: 463528.6023 | H33: 807008.6987 | I33: 448277.5658 | J33: 746307.8806 | K33: 926488.5314
C34: Light commercial vehicle | E34: 2874860.336 | F34: 1079246.871 | G34: 2163133.477 | H34: 2958862.808 | I34: 3576861.589 | J34: 2756922.234 | K34: 2628353.424
C35: Elevated work platform (LCV)
C36: Elevated work platform (HCV) | E36: 236385.9435 | F36: 2158436.487 | G36: 1751108.053 | H36: 691721.7417 | I36: 274455.6525 | J36: 456923.1922 | K36: 630264.307
C37: Heavy commercial vehicle | E37: 236289.8907 | F37: 0 | G37: 772547.6704 | H37: 0 | I37: 365940.8701 | J37: 609230.9229 | K37: 794133.0269
B38: BUILDINGS AND PROPERTY | C38: Total buildings and property expenditure | E38: 3641893.698 | F38: 3441566.569 | G38: 2457233.154 | H38: 2145268.266 | I38: 2245376.314 | J38: 2198937.007 | K38: 2396195.366
B39: OTHER | C39: Other expenditure
B40: OTHER - DNSP nominated
B54: 2.6.2 - ANNUAL DESCRIPTOR METRICS
B55: IT & COMMUNICATIONS
E56: VOLUMES (0's)
E57: =CRCP_y4 -> 2022-23 | F57: =CRCP_y5 -> 2023-24 | G57: =FRCP_y1 -> 2024-25 | H57: =FRCP_y2 -> 2025-26 | I57: =FRCP_y3 -> 2026-27 | J57: =FRCP_y4 -> 2027-28 | K57: =FRCP_y5 -> 2028-29
B58: Employee numbers | E58: 660.8 | F58: 559.91 | G58: 559.91 | H58: 559.91 | I58: 559.91 | J58: 559.91 | K58: 559.91
B59: User numbers | E59: 752 | F59: 637 | G59: 637 | H59: 637 | I59: 637 | J59: 637 | K59: 637
B60: Number of devices | E60: 1879 | F60: 1592 | G60: 1592 | H60: 1592 | I60: 1592 | J60: 1592 | K60: 1592
B62: MOTOR VEHICLES
E63: VOLUMES (0's or %)
B64: ASSET CATEGORY | C64: DESCRIPTOR METRIC | D64: UNITS | E64: =CRCP_y4 -> 2022-23 | F64: =CRCP_y5 -> 2023-24 | G64: =FRCP_y1 -> 2024-25 | H64: =FRCP_y2 -> 2025-26 | I64: =FRCP_y3 -> 2026-27 | J64: =FRCP_y4 -> 2027-28 | K64: =FRCP_y5 -> 2028-29
B65: CAR | C65: Average kilometres travelled | D65: 0's | E65: 12193 | F65: 12193 | G65: 12193 | H65: 12193 | I65: 12193 | J65: 12193 | K65: 12193
C66: Number purchased | D66: 0's | E66: 4.304616618 | F66: 7.759820921 | G66: 3.879910461 | H66: 3.387273574 | I66: 3.545312032 | J66: 3.471974811 | K66: 3.783407912
C67: Number leased | D67: 0's
C68: Number in fleet | D68: 0's | E68: 22 | F68: 22 | G68: 22 | H68: 19 | I68: 20 | J68: 19 | K68: 21
C69: Proportion of total fleet expenditure allocated as regulatory expenditure | D69: % | E69: 0.7759820921 | F69: 0.7759820921 | G69: 0.7759820921 | H69: 0.6774547147 | I69: 0.7090624064 | J69: 0.6943949622 | K69: 0.7566815824
B70: LIGHT COMMERCIAL VEHICLE | C70: Average kilometres travelled | D70: 0's | E70: 15631 | F70: 15631 | G70: 15631 | H70: 15631 | I70: 15631 | J70: 15631 | K70: 15631
C71: Number purchased | D71: 0's | E71: 18.41915472 | F71: 20.17553439 | G71: 19.3995523 | H71: 16.93636787 | I71: 17.72656016 | J71: 17.35987405 | K71: 18.91703956
C72: Number leased | D72: 0's
C73: Number in fleet | D73: 0's | E73: 371 | F73: 371 | G73: 371 | H73: 288 | I73: 251 | J73: 263 | K73: 258
C74: Proportion of total fleet expenditure allocated as regulatory expenditure | D74: % | E74: 0.7759820921 | F74: 0.7759820921 | G74: 0.7759820921 | H74: 0.6774547147 | I74: 0.7090624064 | J74: 0.6943949622 | K74: 0.7566815824
B75: ELEVATED WORK PLATFORM (LCV) | C75: Average kilometres travelled | D75: 0's
C76: Number purchased | D76: 0's
C77: Number leased | D77: 0's
C78: Number in fleet | D78: 0's
C79: Proportion of total fleet expenditure allocated as regulatory expenditure | D79: %
B80: ELEVATED WORK PLATFORM (HCV) | C80: Average kilometres travelled | D80: 0's | E80: 11675 | F80: 11675 | G80: 11675 | H80: 11675 | I80: 11675 | J80: 11675 | K80: 11675
C81: Number purchased | D81: 0's | E81: 3.103928368 | F81: 12.41571347 | G81: 5.431874645 | H81: 2.327946276 | I81: 0.7759820921 | J81: 1.551964184 | K81: 3.879910461
C82: Number leased | D82: 0's
C83: Number in fleet | D83: 0's | E83: 43 | F83: 43 | G83: 43 | H83: 37 | I83: 39 | J83: 38 | K83: 42
C84: Proportion of total fleet expenditure allocated as regulatory expenditure | D84: % | E84: 0.7759820921 | F84: 0.7759820921 | G84: 0.7759820921 | H84: 0.6774547147 | I84: 0.7090624064 | J84: 0.6943949622 | K84: 0.7566815824
B85: HEAVY COMMERCIAL VEHICLE | C85: Average kilometres travelled | D85: 0's | E85: 9711 | F85: 9711 | G85: 9711 | H85: 9711 | I85: 9711 | J85: 9711 | K85: 9711
C86: Number purchased | D86: 0's | E86: 4.655892553 | F86: 0 | G86: 2.327946276 | H86: 2.032364144 | I86: 2.127187219 | J86: 2.083184887 | K86: 2.270044747
C87: Number leased | D87: 0's
C88: Number in fleet | D88: 0's | E88: 27 | F88: 27 | G88: 27 | H88: 24 | I88: 25 | J88: 24 | K88: 26
C89: Proportion of total fleet expenditure allocated as regulatory expenditure | D89: % | E89: 0.7759820921 | F89: 0.7759820921 | G89: 0.7759820921 | H89: 0.6774547147 | I89: 0.7090624064 | J89: 0.6943949622 | K89: 0.7566815824
B92: Table 2.6.4 intentionally omitted
B94: 2.6.5 - INFORMATION & COMMUNICATIONS TECHNOLOGY - CAPEX
E95: =CONCATENATE("EXPENDITURE ($0's, real ", dms_DollarReal, ")") -> EXPENDITURE ($0's, real June 2024)
E96: =CRCP_y4 -> 2022-23 | F96: =CRCP_y5 -> 2023-24 | G96: =FRCP_y1 -> 2024-25 | H96: =FRCP_y2 -> 2025-26 | I96: =FRCP_y3 -> 2026-27 | J96: =FRCP_y4 -> 2027-28 | K96: =FRCP_y5 -> 2028-29
B97: RECURRENT
B98: Client Device | E98: 2445016.53 | F98: 2427525 | G98: 557721.5126 | H98: 478288.6934 | I98: 2094320.384 | J98: 445467.5226 | K98: 518469.462
B99: Hardware and Software | E99: 8062685.662 | F99: 7312246 | G99: 9435050.618 | H99: 12708784.6 | I99: 8483317.37 | J99: 9385341.121 | K99: 9289163.942
B100: Software | E100: 2813283.713 | F100: 4843987 | G100: 858386.1453 | H100: 858386.1453 | I100: 858386.1453 | J100: 858386.1453 | K100: 858386.1453
B108: NON-RECURRENT
B109: Maintaining existing services, functionalities, capability and/or market benefits | E109: 4424321.15 | F109: 2217711.784 | G109: 12084389.2 | H109: 14217436.43 | I109: 1605525.335 | J109: 1605459.152 | K109: 1600466.699
B110: Complying with new/ altered regulatory obligations / requirements | E110: 757475.2595 | F110: 445021.0198 | G110: 364528.7473 | H110: 432034.1774 | I110: 400660.2463 | J110: 323419.7424 | K110: 182955.4381
B111: New or expanded ICT capability, functions and services | E111: 2570362.181 | F111: 2626387.905 | G111: 6509194.179 | H111: 3685616.018 | I111: 0 | J111: 0 | K111: 0

Sheet 2.10 Overheads
B1: =INDEX(dms_Worksheet_List,MATCH(dms_Model,dms_Model_List)) -> REGULATORY REPORTING STATEMENT
B2: =INDEX(dms_TradingNameFull_List,MATCH(dms_TradingName,dms_TradingName_List)) -> TasNetworks (D)
B3: =CONCATENATE("REGULATORY PERIOD FROM ", FRCP_y1," TO ",dms_MultiYear_FinalYear_Result) -> REGULATORY PERIOD FROM 2024-25 TO 2028-29
B4: 2.10 OVERHEADS
B6: There are TWO tables on this worksheet. Each table has been 'grouped' (and sub-grouped) for easy navigation. See the Instructions sheet on how to group or ungroup data.
B8: 2.10.1 - NETWORK OVERHEADS EXPENDITURE
D9: =CONCATENATE("EXPENDITURE ($0's, real ", dms_DollarReal, ")") -> EXPENDITURE ($0's, real June 2024)
D10: =CRCP_y4 -> 2022-23 | E10: =CRCP_y5 -> 2023-24 | F10: =FRCP_y1 -> 2024-25 | G10: =FRCP_y2 -> 2025-26 | H10: =FRCP_y3 -> 2026-27 | I10: =FRCP_y4 -> 2027-28 | J10: =FRCP_y5 -> 2028-29
B11: OPEX
B12: Standard Control Services | C12: Total | D12: 24421999.46 | E12: 24421999.46 | F12: 25403670.29 | G12: 25538452.77 | H12: 25727828.29 | I12: 25779695.05 | J12: 25821575.81
B13: Alternative Control Services | C13: Total | D13: 13217557.3 | E13: 13217557.3 | F13: 12994982.47 | G13: 12876792.05 | H13: 12812956.35 | I13: 12777754.66 | J13: 12787485.33
B14: CAPEX
B15: Standard Control Services | C15: Total | D15: 23550126.97 | E15: 25586562.71 | F15: 20431667.36 | G15: 20565139.82 | H15: 20555841.74 | I15: 20464904.55 | J15: 20422810.24
B16: Alternative Control Services | C16: Total | D16: 718567.5 | E16: 718567.5 | F16: 718567.5 | G16: 458052 | H16: 461849.5 | I16: 433727 | J16: 225522.5
B17: OTHER DISTRIBUTION SERVICES
B18: Negotiated Services | C18: Total
B19: Unregulated Distribution Services | C19: Total
B23: 2.10.2 - CORPORATE OVERHEADS EXPENDITURE
D24: =CONCATENATE("EXPENDITURE ($0's, real ", dms_DollarReal, ")") -> EXPENDITURE ($0's, real June 2024)
D25: =CRCP_y4 -> 2022-23 | E25: =CRCP_y5 -> 2023-24 | F25: =FRCP_y1 -> 2024-25 | G25: =FRCP_y2 -> 2025-26 | H25: =FRCP_y3 -> 2026-27 | I25: =FRCP_y4 -> 2027-28 | J25: =FRCP_y5 -> 2028-29
B26: OPEX
B27: Standard Control Services | C27: Total | D27: 18889088.62 | E27: 18889088.62 | F27: 20379112.61 | G27: 20879501.93 | H27: 21251380.07 | I27: 21341996.31 | J27: 21385226.29
B28: Alternative Control Services | C28: Total | D28: 7708357.713 | E28: 7708357.713 | F28: 7578554.118 | G28: 7509626.557 | H28: 7472398.164 | I28: 7451868.862 | J28: 7457543.697
B29: CAPEX
B30: Standard Control Services | C30: Total | D30: 19643636.13 | E30: 25586562.71 | F30: 20431667.36 | G30: 20565139.82 | H30: 20555841.74 | I30: 20464904.55 | J30: 20422810.24
B31: Alternative Control Services | C31: Total | D31: 718567.5 | E31: 718567.5 | F31: 718567.5 | G31: 458052 | H31: 461849.5 | I31: 433727 | J31: 225522.5
B32: OTHER DISTRIBUTION SERVICES
B33: Negotiated Services | C33: Total
B34: Unregulated Distribution Services | C34: Total

Sheet 2.11 Labour
B1: =INDEX(dms_Worksheet_List,MATCH(dms_Model,dms_Model_List)) -> REGULATORY REPORTING STATEMENT
B2: =INDEX(dms_TradingNameFull_List,MATCH(dms_TradingName,dms_TradingName_List)) -> TasNetworks (D)
B3: =CONCATENATE("REGULATORY PERIOD FROM ", FRCP_y1," TO ",dms_MultiYear_FinalYear_Result) -> REGULATORY PERIOD FROM 2024-25 TO 2028-29
B4: 2.11 LABOUR
B6: Table numbering on this worksheet starts at 2.11.3.
B8: 2.11.3 - LABOUR / NON-LABOUR EXPENDITURE SPLIT - STANDARD CONTROL SERVICES
C9: =CONCATENATE("EXPENDITURE ($0's, real ", dms_DollarReal, ")") -> EXPENDITURE ($0's, real June 2024)
C10: =CRCP_y4 -> 2022-23 | D10: =CRCP_y5 -> 2023-24 | E10: =FRCP_y1 -> 2024-25 | F10: =FRCP_y2 -> 2025-26 | G10: =FRCP_y3 -> 2026-27 | H10: =FRCP_y4 -> 2027-28 | I10: =FRCP_y5 -> 2028-29
B11: OPEX
B12: In-house labour expenditure | C12: 45860867.16 | D12: 45353236.31 | E12: 46136882.42 | F12: 45220072.4 | G12: 45391518.4 | H12: 45479489.23 | I12: 45473189.11
B13: Labour expenditure outsourced to related parties | C13: 0 | D13: 0 | E13: 0 | F13: 0 | G13: 0 | H13: 0 | I13: 0
B14: Labour expenditure outsourced to unrelated parties | C14: 1393864.285 | D14: 1378435.695 | E14: 1402253.307 | F14: 1374388.401 | G14: 1379599.215 | H14: 1382272.941 | I14: 1382081.46
B15: Controllable non-labour expenditure | C15: 46470506.62 | D15: 45956127.71 | E15: 46750191.02 | F15: 45821193.63 | G15: 45994918.7 | H15: 46084058.94 | I15: 46077675.08
B16: Uncontrollable non-labour expenditure | C16: 0 | D16: 0 | E16: 0 | F16: 0 | G16: 0 | H16: 0 | I16: 0
B17: Total | C17: =SUM(C12:C16) -> 93725238.07 | D17: 92687799.71 | E17: 94289326.75 | F17: 92415654.43 | G17: 92766036.31 | H17: 92945821.11 | I17: 92932945.65
B18: CAPEX
B19: In-house labour expenditure | C19: 51123848.21 | D19: 52665380.7 | E19: 53664151.94 | F19: 55039594.62 | G19: 49005001.05 | H19: 47599946.23 | I19: 47049543.13
B20: Labour expenditure outsourced to related parties | C20: 0 | D20: 0 | E20: 0 | F20: 0 | G20: 0 | H20: 0 | I20: 0
B21: Labour expenditure outsourced to unrelated parties | C21: 1553823.784 | D21: 1600676.083 | E21: 1631032.063 | F21: 1672836.341 | G21: 1489424.971 | H21: 1446720.682 | I21: 1429992.101
B22: Controllable non-labour expenditure | C22: 115555822.3 | D22: 119040165.9 | E22: 121297700 | F22: 124406628.9 | G22: 110766567.7 | H22: 107590706.1 | I22: 106346623.6
B23: Uncontrollable non-labour expenditure | C23: 0 | D23: 0 | E23: 0 | F23: 0 | G23: 0 | H23: 0 | I23: 0
B24: Total | C24: =SUM(C19:C23) -> 168233494.3 | D24: 173306222.7 | E24: 176592884 | F24: 181119059.9 | G24: 161260993.7 | H24: 156637373 | I24: 154826158.9

Sheet 2.14 Forecast price changes
B1: =INDEX(dms_Worksheet_List,MATCH(dms_Model,dms_Model_List)) -> REGULATORY REPORTING STATEMENT
B2: =INDEX(dms_TradingNameFull_List,MATCH(dms_TradingName,dms_TradingName_List)) -> TasNetworks (D)
B3: =CONCATENATE("REGULATORY PERIOD FROM ", FRCP_y1," TO ",dms_MultiYear_FinalYear_Result) -> REGULATORY PERIOD FROM 2024-25 TO 2028-29
B4: 2.14 FORECAST PRICE CHANGES
B6: There is ONE table on this worksheet.
B8: Instructions
B9: =CONCATENATE(dms_TradingName, " must provide all forecast price changes used to forecast opex and capex, including forecast changes in CPI. Forecast price changes must be expressed in real terms, except for CPI. "&"If the same escalators are not used for capex and opex, report capex and opex escalators separately. Add additional rows as required. If price changes for a given year were not used to forecast either opex or capex enter '0' for that year.") -> TasNetworks (D) must provide all forecast price changes used to forecast opex and capex, including forecast changes in CPI. Forecast price changes must be expressed in real terms, except for CPI. If the same escalators are not used for capex and opex, report capex and opex escalators separately. Add additional rows as required. If price changes for a given year were not used to forecast either opex or capex enter '0' for that year.
B11: 2.14.2 - FORECAST CAPEX AND OPEX PRICE CHANGES
C12: Price changes (% YoY real) Current regulatory period | E12: Price changes (%YoY real) Forthcoming regulatory period
C13: Forecast
B14: DESCRIPTION | C14: =CRCP_y4 -> 2022-23 | D14: =CRCP_y5 -> 2023-24 | E14: =FRCP_y1 -> 2024-25 | F14: =FRCP_y2 -> 2025-26 | G14: =FRCP_y3 -> 2026-27 | H14: =FRCP_y4 -> 2027-28 | I14: =FRCP_y5 -> 2028-29
B15: OPEX
B16: Forecast output change | C16: 0.003052692364 | D16: 0.003433051163 | E16: 0.00573511961 | F16: 0.005693352435 | G16: 0.00563878779 | H16: 0.005603605854 | I16: 0.005546620543
B17: Forecast price change | C17: 0.002542107624 | D17: 0.002825792128 | E17: 0.007787914721 | F17: 0.007207215214 | G17: 0.003562866514 | H17: 0.001644548038 | I17: 0.00299810634
B18: Forecast productivity change | C18: 0.005 | D18: 0.005 | E18: -0.03 | F18: -0.005 | G18: -0.005 | H18: -0.005 | I18: -0.005
B19: CAPEX
B20: Real Cost Escalation - Network overheads | C20: -0.01011159958 | D20: -0.01218801302 | E20: -0.009059534178 | F20: -0.006126240612 | G20: -0.004658521606 | H20: -0.003976974568 | I20: -0.002731023229
B21: Real Cost Escalation - Corporate overheads | C21: -0.01011159958 | D21: -0.01218801302 | E21: -0.009059534178 | F21: -0.006126240612 | G21: -0.004658521606 | H21: -0.003976974568 | I21: -0.002731023229

Sheet 2.16 Opex Summary
B1: =INDEX(dms_Worksheet_List,MATCH(dms_Model,dms_Model_List)) -> REGULATORY REPORTING STATEMENT
B2: =INDEX(dms_TradingNameFull_List,MATCH(dms_TradingName,dms_TradingName_List)) -> TasNetworks (D)
B3: =CONCATENATE("REGULATORY PERIOD FROM ", FRCP_y1," TO ",dms_MultiYear_FinalYear_Result) -> REGULATORY PERIOD FROM 2024-25 TO 2028-29
B4: 2.16 OPEX SUMMARY
B6: There are FOUR tables on this worksheet. Each table has been 'grouped' (and 'sub-grouped') for easy navigation. See the Instructions sheet on how to group or ungroup data.
B8: Instructions | J8: IMPORTANT!
B9: =CONCATENATE("Complete the tables below in accordance with the regulatory information notice. ",dms_TradingName,"'s total forecast opex must reconcile to Table 2.16.1 (and if ",dms_TradingName," owns any dual function assets Table 2.16.3). If ",dms_TradingName," did not forecast its total opex using a Base Year approach, total forecast opex must reconcile to Table 2.16.2 (and if ",dms_TradingName," owns any dual function assets Table 2.16.4).") -> Complete the tables below in accordance with the regulatory information notice. TasNetworks (D)'s total forecast opex must reconcile to Table 2.16.1 (and if TasNetworks (D) owns any dual function assets Table 2.16.3). If TasNetworks (D) did not forecast its total opex using a Base Year approach, total forecast opex must reconcile to Table 2.16.2 (and if TasNetworks (D) owns any dual function assets Table 2.16.4). | J9: =CONCATENATE("Has ",dms_TradingName," used a base-step-trend model to derive its opex forecast? ") -> Has TasNetworks (D) used a base-step-trend model to derive its opex forecast? | L9: Yes
B10: =CONCATENATE("If ",dms_TradingName," does not own any dual function assets,Table 2.16.3 and 2.16.4 may be left blank.") -> If TasNetworks (D) does not own any dual function assets,Table 2.16.3 and 2.16.4 may be left blank. | J10: Yes / No
B11: The total step changes in Table 2.16.1 and Table 2.16.3 must "&"reconcile (in each year) to the total step changes for each year in Table 2.17.1 and Table 2.17.3 of worksheet '2.17 Step Changes', respectively.") | J11: Please nominate the base year. | L11: 2021-22
B14: 2.16.1 - STANDARD CONTROL SERVICES - OPEX BY DRIVER
C15: =CONCATENATE("EXPENDITURE ($0's, real ", dms_DollarReal, ")") -> EXPENDITURE ($0's, real June 2024)
C16: =CRCP_y1 -> 2019-20 | D16: =CRCP_y2 -> 2020-21 | E16: =CRCP_y3 -> 2021-22 | F16: =CRCP_y4 -> 2022-23 | G16: =CRCP_y5 -> 2023-24 | H16: =FRCP_y1 -> 2024-25 | I16: =FRCP_y2 -> 2025-26 | J16: =FRCP_y3 -> 2026-27 | K16: =FRCP_y4 -> 2027-28 | L16: =FRCP_y5 -> 2028-29
B17: Base year total opex, excluding category specific | E17: 94829145.73 | F17: 93725238.07 | G17: 92687799.71 | H17: 94289326.75 | I17: 92415654.43 | J17: 92766036.31 | K17: 92945821.11 | L17: 92932945.65
B18: Increment from base year to final year | H18: -2091195.149
B19: Price growth | H19: 1086343.071 | I19: 1005299.035 | J19: 496939.7794 | K19: 229369.4543 | L19: 418130.1066
B20: Output growth | H20: 748624.5808 | I20: 743172.57 | J20: 736050.0622 | K20: 731457.6449 | L20: 724019.1594
B21: Productivity growth | H21: -1775908.188 | I21: -1176408.739 | J21: -614744.8232 | K21: -316796.506 | L21: -162187.8175
B22: Step changes | H22: 3201024.612 | I22: 4223480.945 | J22: 4993910.443 | K22: 5251741.796 | L22: 5304967.246
B23: Category specific | E23: 9462637.234 | F23: 8560173.229 | G23: 8560173.229 | H23: 10528901.22 | I23: 10528150.07 | J23: 10422988.64 | K23: 10227688.84 | L23: 10227688.84
B24: Total opex | C24: =SUM(C17:C23) -> 0 | D24: 0 | E24: 104291783 | F24: 102285411.3 | G24: 101247972.9 | H24: 105987116.9 | I24: 107739348.3 | J24: 108801180.4 | K24: 109069282.3 | L24: 109445563.2
B27: 2.16.2 - STANDARD CONTROL SERVICES - OPEX BY CATEGORY
C28: =CONCATENATE("EXPENDITURE ($0's, real ", dms_DollarReal, ")") -> EXPENDITURE ($0's, real June 2024)
C29: =CRCP_y1 -> 2019-20 | D29: =CRCP_y2 -> 2020-21 | E29: =CRCP_y3 -> 2021-22 | F29: =CRCP_y4 -> 2022-23 | G29: =CRCP_y5 -> 2023-24 | H29: =FRCP_y1 -> 2024-25 | I29: =FRCP_y2 -> 2025-26 | J29: =FRCP_y3 -> 2026-27 | K29: =FRCP_y4 -> 2027-28 | L29: =FRCP_y5 -> 2028-29
B30: Vegetation management
B31: Maintenance
B32: Emergency response
B33: Non-network
B34: Metering
B35: Network overheads
B36: Corporate overheads
B37: Total opex | C37: =SUM(C30:C36) -> 0 | D37: 0 | E37: 0 | F37: 0 | G37: 0 | H37: 0 | I37: 0 | J37: 0 | K37: 0 | L37: 0
B40: 2.16.3 - DUAL FUNCTION ASSETS - OPEX BY DRIVER
C41: =CONCATENATE("EXPENDITURE ($0's, real ", dms_DollarReal, ")") -> EXPENDITURE ($0's, real June 2024)
C42: 2017 | D42: 2018 | E42: 2019 | F42: 2020 | G42: 2021 | H42: =FRCP_y1 -> 2024-25 | I42: =FRCP_y2 -> 2025-26 | J42: =FRCP_y3 -> 2026-27 | K42: =FRCP_y4 -> 2027-28 | L42: =FRCP_y5 -> 2028-29
B43: Base year total opex, excluding category specific
B44: Increment from base year to final year
B45: Price growth
B46: Output growth
B47: Productivity growth
B48: Step changes
B49: Category specific
B50: Total opex | C50: =SUM(C43:C49) -> 0 | D50: 0 | E50: 0 | F50: 0 | G50: 0 | H50: 0 | I50: 0 | J50: 0 | K50: 0 | L50: 0
B53: 2.16.4 - DUAL FUNCTION ASSETS - OPEX BY CATEGORY
C54: =CONCATENATE("EXPENDITURE ($0's, real ", dms_DollarReal, ")") -> EXPENDITURE ($0's, real June 2024)
C55: =CRCP_y1 -> 2019-20 | D55: =CRCP_y2 -> 2020-21 | E55: =CRCP_y3 -> 2021-22 | F55: =CRCP_y4 -> 2022-23 | G55: =CRCP_y5 -> 2023-24 | H55: =FRCP_y1 -> 2024-25 | I55: =FRCP_y2 -> 2025-26 | J55: =FRCP_y3 -> 2026-27 | K55: =FRCP_y4 -> 2027-28 | L55: =FRCP_y5 -> 2028-29
B56: Vegetation management
B57: Maintenance
B58: Emergency response
B59: Non-network
B60: Metering
B61: Network overheads
B62: Corporate overheads
B63: Total opex | C63: =SUM(C56:C62) -> 0 | D63: 0 | E63: 0 | F63: 0 | G63: 0 | H63: 0 | I63: 0 | J63: 0 | K63: 0 | L63: 0

Sheet 2.17 Step Changes
B1: =INDEX(dms_Worksheet_List,MATCH(dms_Model,dms_Model_List)) -> REGULATORY REPORTING STATEMENT
B2: =INDEX(dms_TradingNameFull_List,MATCH(dms_TradingName,dms_TradingName_List)) -> TasNetworks (D)
B3: =CONCATENATE("REGULATORY PERIOD FROM ", FRCP_y1," TO ",dms_MultiYear_FinalYear_Result) -> REGULATORY PERIOD FROM 2024-25 TO 2028-29
B4: 2.17 STEP CHANGES
B6: There are FIVE tables on this worksheet. Each table has been 'grouped' (and 'sub-grouped') for easy navigation. See the Instructions sheet on how to group or ungroup data.
B8: 2.17.1 - STEP CHANGES FOR STANDARD CONTROL SERVICES - FORECAST OPEX
E9: =CONCATENATE("EXPENDITURE ($0's, real ", dms_DollarReal, ")") -> EXPENDITURE ($0's, real June 2024)
B10: STEP CHANGE | C10: DESCRIPTION | E10: =CRCP_y4 -> 2022-23 | F10: =CRCP_y5 -> 2023-24 | G10: =FRCP_y1 -> 2024-25 | H10: =FRCP_y2 -> 2025-26 | I10: =FRCP_y3 -> 2026-27 | J10: =FRCP_y4 -> 2027-28 | K10: =FRCP_y5 -> 2028-29
B11: Insurance | C11: forecast increases of insurance premiums that are not captured in the base opex or the forecast rate of change | G11: 2785841.978 | H11: 3492166.347 | I11: 4106815.06 | J11: 4340632.469 | K11: 4388435.414
B12: Cybersecurity | C12: opex associated with meeting new cyber security / security of critical infrastructure obligations | G12: 415182.6341 | H12: 731314.5984 | I12: 887095.3826 | J12: 911109.3274 | K12: 916531.8311
B21: Total | E21: =SUM(E11:E20) -> 0 | F21: 0 | G21: 3201024.612 | H21: 4223480.945 | I21: 4993910.443 | J21: 5251741.796 | K21: 5304967.246
B22: Check | G22: =IF(ROUND(G$21,0)-ROUND('2.16 Opex Summary'!H$22,0)=0,"OK","Error") -> OK | H22: =IF(ROUND(H$21,0)-ROUND('2.16 Opex Summary'!I$22,0)=0,"OK","Error") -> OK | I22: =IF(ROUND(I$21,0)-ROUND('2.16 Opex Summary'!J$22,0)=0,"OK","Error") -> OK | J22: =IF(ROUND(J$21,0)-ROUND('2.16 Opex Summary'!K$22,0)=0,"OK","Error") -> OK | K22: =IF(ROUND(K$21,0)-ROUND('2.16 Opex Summary'!L$22,0)=0,"OK","Error") -> OK
B24: 2.17.2 - STEP CHANGES FOR STANDARD CONTROL SERVICES - FORECAST CAPEX
E25: =CONCATENATE("EXPENDITURE ($0's, real ", dms_DollarReal, ")") -> EXPENDITURE ($0's, real June 2024)
B26: STEP CHANGE | C26: DESCRIPTION | E26: =CRCP_y4 -> 2022-23 | F26: =CRCP_y5 -> 2023-24 | G26: =FRCP_y1 -> 2024-25 | H26: =FRCP_y2 -> 2025-26 | I26: =FRCP_y3 -> 2026-27 | J26: =FRCP_y4 -> 2027-28 | K26: =FRCP_y5 -> 2028-29
B37: Total | E37: =SUM(E27:E36) -> 0 | F37: 0 | G37: 0 | H37: 0 | I37: 0 | J37: 0 | K37: 0
B39: 2.17.3 - STEP CHANGES FOR DUAL FUNCTION ASSETS - FORECAST OPEX
E40: =CONCATENATE("EXPENDITURE ($0's, real ", dms_DollarReal, ")") -> EXPENDITURE ($0's, real June 2024)
B41: STEP CHANGE | C41: DESCRIPTION | E41: =CRCP_y4 -> 2022-23 | F41: =CRCP_y5 -> 2023-24 | G41: =FRCP_y1 -> 2024-25 | H41: =FRCP_y2 -> 2025-26 | I41: =FRCP_y3 -> 2026-27 | J41: =FRCP_y4 -> 2027-28 | K41: =FRCP_y5 -> 2028-29
B52: Total | E52: =SUM(E42:E51) -> 0 | F52: 0 | G52: 0 | H52: 0 | I52: 0 | J52: 0 | K52: 0
B53: Check | G53: =IF(ROUND(G$21,0)-ROUND('2.16 Opex Summary'!H$48,0)=0,"OK","Error") -> Error | H53: =IF(ROUND(H$21,0)-ROUND('2.16 Opex Summary'!I$48,0)=0,"OK","Error") -> Error | I53: =IF(ROUND(I$21,0)-ROUND('2.16 Opex Summary'!J$48,0)=0,"OK","Error") -> Error | J53: =IF(ROUND(J$21,0)-ROUND('2.16 Opex Summary'!K$48,0)=0,"OK","Error") -> Error | K53: =IF(ROUND(K$21,0)-ROUND('2.16 Opex Summary'!L$48,0)=0,"OK","Error") -> Error
B55: 2.17.4 - STEP CHANGES FOR DUAL FUNCTION ASSETS - FORECAST CAPEX
E56: =CONCATENATE("EXPENDITURE ($0's, real ", dms_DollarReal, ")") -> EXPENDITURE ($0's, real June 2024)
B57: STEP CHANGE | C57: DESCRIPTION | E57: =CRCP_y4 -> 2022-23 | F57: =CRCP_y5 -> 2023-24 | G57: =FRCP_y1 -> 2024-25 | H57: =FRCP_y2 -> 2025-26 | I57: =FRCP_y3 -> 2026-27 | J57: =FRCP_y4 -> 2027-28 | K57: =FRCP_y5 -> 2028-29
B68: Total | E68: =SUM(E58:E67) -> 0 | F68: 0 | G68: 0 | H68: 0 | I68: 0 | J68: 0 | K68: 0
B71: 2.17.5 - FORECAST CATEGORY SPECIFIC OPEX
D72: EXPENDITURE ($0's, real June 2024)
B73: CATEGORY | C73: DESCRIPTION | D73: =CRCP_y3 -> 2021-22 | E73: =CRCP_y4 -> 2022-23 | F73: =CRCP_y5 -> 2023-24 | G73: =FRCP_y1 -> 2024-25 | H73: =FRCP_y2 -> 2025-26 | I73: =FRCP_y3 -> 2026-27 | J73: =FRCP_y4 -> 2027-28 | K73: =FRCP_y5 -> 2028-29
B84: Total | D84: =SUM(D74:D83) -> 0 | E84: =SUM(E74:E83) -> 0 | F84: =SUM(F74:F83) -> 0 | G84: 0 | H84: 0 | I84: 0 | J84: 0 | K84: 0

Sheet 3.1 Revenue
B1: =INDEX(dms_Worksheet_List,MATCH(dms_Model,dms_Model_List)) -> REGULATORY REPORTING STATEMENT
B2: =INDEX(dms_TradingNameFull_List,MATCH(dms_TradingName,dms_TradingName_List)) -> TasNetworks (D)
B3: =CONCATENATE("REGULATORY PERIOD FROM ", FRCP_y1," TO ",dms_MultiYear_FinalYear_Result) -> REGULATORY PERIOD FROM 2024-25 TO 2028-29
B4: 3.1 REVENUE
B6: There are THREE tables on this worksheet. Each table has been 'grouped' (and 'sub-grouped') for easy navigation. See the Instructions sheet on how to group or ungroup data.
B8: 3.1.1 - REVENUE GROUPING BY CHARGEABLE QUANTITY
C9: Standard control services | K9: Alternative control services
C10: =CONCATENATE("REVENUE Forecast ($0's, real ", dms_DollarReal,")") -> REVENUE Forecast ($0's, real June 2024) | K10: =CONCATENATE("REVENUE Forecast ($0's, real ", dms_DollarReal,")") -> REVENUE Forecast ($0's, real June 2024)
C11: =CRCP_y4 -> 2022-23 | D11: =CRCP_y5 -> 2023-24 | E11: =FRCP_y1 -> 2024-25 | F11: =FRCP_y2 -> 2025-26 | G11: =FRCP_y3 -> 2026-27 | H11: =FRCP_y4 -> 2027-28 | I11: =FRCP_y5 -> 2028-29 | K11: =CRCP_y4 -> 2022-23 | L11: =CRCP_y5 -> 2023-24 | M11: =FRCP_y1 -> 2024-25 | N11: =FRCP_y2 -> 2025-26 | O11: =FRCP_y3 -> 2026-27 | P11: =FRCP_y4 -> 2027-28 | Q11: =FRCP_y5 -> 2028-29
A12: DREV0101 | B12: Revenue from Fixed Customer Charges | C12: 77509902.58 | D12: 76637844.78 | E12: 81096013.56 | F12: 82467778.78 | G12: 83859573.74 | H12: 85465904.8 | I12: 86643573.67 | K12: 0 | L12: 0 | M12: 0 | N12: 0 | O12: 0 | P12: 0 | Q12: 0
A13: DREV0102 | B13: Revenue from Energy Delivery charges where time of use is not a determinant | C13: 112444294.6 | D13: 102162494.4 | E13: 104715415.4 | F13: 102259480.7 | G13: 100133851.9 | H13: 98022280.34 | I13: 96363016.19 | K13: 0 | L13: 0 | M13: 0 | N13: 0 | O13: 0 | P13: 0 | Q13: 0
A14: DREV0103 | B14: Revenue from On–Peak Energy Delivery charges | C14: 42132377.28 | D14: 48085427.17 | E14: 46076536.66 | F14: 50314308.36 | G14: 54502071.09 | H14: 58626368.01 | I14: 62975906.73 | K14: 0 | L14: 0 | M14: 0 | N14: 0 | O14: 0 | P14: 0 | Q14: 0
A15: DREV0104 | B15: Revenue from Shoulder period Energy Delivery Charges | C15: 6880604.902 | D15: 7231683.762 | E15: 13918765.82 | F15: 14372144.84 | G15: 14799893.98 | H15: 15217084.72 | I15: 15654307.43 | K15: 0 | L15: 0 | M15: 0 | N15: 0 | O15: 0 | P15: 0 | Q15: 0
A16: DREV0105 | B16: Revenue from Off–Peak Energy Delivery charges | C16: 10366688.94 | D16: 13068184.35 | E16: 17990645.17 | F16: 20163122.29 | G16: 22342755.49 | H16: 24449139.63 | I16: 26580452.71 | K16: 0 | L16: 0 | M16: 0 | N16: 0 | O16: 0 | P16: 0 | Q16: 0
A17: DREV0106 | B17: Revenue from controlled load customer charges | C17: 367442.1588 | D17: 358912.2112 | E17: 368984.4698 | F17: 365852.5288 | G17: 363142.4243 | H17: 360461.1527 | I17: 358820.6921 | K17: 0 | L17: 0 | M17: 0 | N17: 0 | O17: 0 | P17: 0 | Q17: 0
A18: DREV0107 | B18: Revenue from unmetered supplies | C18: 1825063.709 | D18: 1782882.684 | E18: 1832200.565 | F18: 1815072.183 | G18: 1810413.035 | H18: 1811747.627 | I18: 1800711.976 | K18: 0 | L18: 0 | M18: 0 | N18: 0 | O18: 0 | P18: 0
A19: DREV0108 | B19: Revenue from Contracted Maximum Demand charges | C19: 7117250.225 | D19: 7088071.425 | E19: 7519442.362 | F19: 7709852.471 | G19: 7919565.724 | H19: 8149627.963 | I19: 8343576.504 | K19: 0 | L19: 0 | M19: 0 | N19: 0 | O19: 0 | P19: 0 | Q19: 0
A20: DREV0109 | B20: Revenue from Measured Maximum Demand charges | C20: 19187795.46 | D20: 19544443.43 | E20: 21874393.52 | F20: 22821028.66 | G20: 23683330.59 | H20: 24668149.97 | I20: 25435386.51 | K20: 0 | L20: 0 | M20: 0 | N20: 0 | O20: 0 | P20: 0 | Q20: 0
A21: DREV0110 | B21: Revenue from metering charges | C21: 0 | D21: 0 | E21: 0 | F21: 0 | G21: 0 | H21: 0 | I21: 0 | K21: 12197337.38 | L21: 12999789.91 | M21: 8959858.493 | N21: 8442794.799 | O21: 8445335.577 | P21: 7470568.848 | Q21: 7030822.49
A22: DREV0111 | B22: Revenue from connection charges | C22: 0 | D22: 0 | E22: 0 | F22: 0 | G22: 0 | H22: 0 | I22: 0 | K22: 2001756.761 | L22: 2001756.761 | M22: 2042491.744 | N22: 2042491.744 | O22: 2042491.744 | P22: 2042491.744 | Q22: 2042491.744
A23: DREV0112 | B23: Revenue from public lighting charges | C23: 0 | D23: 0 | E23: 0 | F23: 0 | G23: 0 | H23: 0 | I23: 0 | K23: 5364913.53 | L23: 5072234.47 | M23: 5074115.804 | N23: 5035911.553 | O23: 4996363.836 | P23: 5048326.02 | Q23: 5100828.611
A24: DREV0113 | B24: Revenue from other Sources | C24: 0 | D24: 0 | E24: 0 | F24: 0 | G24: 0 | H24: 0 | I24: 0 | K24: 10961212.17 | L24: 10961212.17 | M24: 11041191.45 | N24: 11041191.45 | O24: 11041191.45 | P24: 11041191.45 | Q24: 11041191.45
A25: DREV01 | B25: Total revenue by chargeable quantity | C25: =SUM(C12:C24) -> 277831419.8 | D25: 275959944.2 | E25: 295392397.5 | F25: 302288640.8 | G25: 309414598 | H25: 316770764.2 | I25: 324155752.4 | K25: =SUM(K12:K24) -> 30525219.84 | L25: 31034993.31 | M25: 27117657.49 | N25: 26562389.55 | O25: 26525382.61 | P25: 25602578.06 | Q25: 25215334.3
B28: 3.1.2 - REVENUE GROUPING BY CUSTOMER TYPE OR CLASS
C29: Standard control services | K29: Alternative control services
C30: =CONCATENATE("REVENUE Forecast ($0's, real ", dms_DollarReal,")") -> REVENUE Forecast ($0's, real June 2024) | K30: =CONCATENATE("REVENUE Forecast ($0's, real ", dms_DollarReal,")") -> REVENUE Forecast ($0's, real June 2024)
C31: =CRCP_y4 -> 2022-23 | D31: =CRCP_y5 -> 2023-24 | E31: =FRCP_y1 -> 2024-25 | F31: =FRCP_y2 -> 2025-26 | G31: =FRCP_y3 -> 2026-27 | H31: =FRCP_y4 -> 2027-28 | I31: =FRCP_y5 -> 2028-29 | K31: =CRCP_y4 -> 2022-23 | L31: =CRCP_y5 -> 2023-24 | M31: =FRCP_y1 -> 2024-25 | N31: =FRCP_y2 -> 2025-26 | O31: =FRCP_y3 -> 2026-27 | P31: =FRCP_y4 -> 2027-28 | Q31: =FRCP_y5 -> 2028-29
A32: DREV0201 | B32: Revenue from residential Customers | C32: 175720740.1 | D32: 173522469.2 | E32: 186554904.6 | F32: 191308123.4 | G32: 196370120.2 | H32: 201433215.7 | I32: 206743710.9 | K32: 11123211.82 | L32: 11308970.29 | M32: 9881515.999 | N32: 9679179.602 | O32: 9665694.49 | P32: 9329429.904 | Q32: 9188320.537
A33: DREV0202 | B33: Revenue from Non residential customers not on demand tariffs | C33: 64514716.38 | D33: 64928409.02 | E33: 67918422.19 | F33: 68747154.74 | G33: 69537617.09 | H33: 70370198.05 | I33: 71294611.07 | K33: 1369643.903 | L33: 1392517.059 | M33: 1216749.115 | N33: 1191834.656 | O33: 1190174.182 | P33: 1148768.629 | Q33: 1131393.289
A34: DREV0203 | B34: Revenue from Non-residential low voltage demand tariff customers | C34: 24320829.3 | D34: 24520066.63 | E34: 27212048.74 | F34: 28249044.21 | G34: 29278247.77 | H34: 30460269.98 | I34: 31468440.6 | K34: 3699.242102 | L34: 3761.019724 | M34: 3286.291821 | N34: 3219.000887 | O34: 3214.516148 | P34: 3102.684769 | Q34: 3055.756084
A35: DREV0204 | B35: Revenue from Non-residential high voltage demand tariff customers | C35: 11048267.1 | D35: 10811906.25 | E35: 11461217.57 | F35: 11752373.44 | G35: 11998253.27 | H35: 12271136.3 | I35: 12422126.3 | K35: 0 | L35: 0 | M35: 0 | N35: 0 | O35: 0 | P35: 0 | Q35: 0
A36: DREV0205 | B36: Revenue from unmetered supplies | C36: 2226866.879 | D36: 2177093.145 | E36: 2245804.411 | F36: 2231944.991 | G36: 2230359.609 | H36: 2235944.181 | I36: 2226863.562 | K36: 6387790.237 | L36: 6494466.816 | M36: 5674714.504 | N36: 5558517.629 | O36: 5550773.457 | P36: 5357664.876 | Q36: 5276629.196
A37: DREV0206 | B37: Revenue from Other Customers | C37: 0 | D37: 0 | E37: 0 | F37: 0 | G37: 0 | H37: 0 | I37: 0 | K37: 11640874.64 | L37: 11835278.13 | M37: 10341391.58 | N37: 10129638.66 | O37: 10115525.96 | P37: 9763611.969 | Q37: 9615935.517
A38: DREV02 | B38: Total revenue by customer class | C38: =SUM(C32:C37) -> 277831419.8 | D38: 275959944.2 | E38: 295392397.5 | F38: 302288640.8 | G38: 309414598 | H38: 316770764.2 | I38: 324155752.4 | K38: =SUM(K32:K37) -> 30525219.84 | L38: 31034993.31 | M38: 27117657.49 | N38: 26562389.55 | O38: 26525382.61 | P38: 25602578.06 | Q38: 25215334.3
B41: 3.1.3 - REVENUE (penalties) ALLOWED (deducted) THROUGH INCENTIVE SCHEMES
C42: Standard control services | K42: Alternative control services
C43: =CONCATENATE("REVENUE Forecast ($0's, real ", dms_DollarReal,")") -> REVENUE Forecast ($0's, real June 2024) | K43: =CONCATENATE("REVENUE Forecast ($0's, real ", dms_DollarReal,")") -> REVENUE Forecast ($0's, real June 2024)
C44: =CRCP_y4 -> 2022-23 | D44: =CRCP_y5 -> 2023-24 | E44: =FRCP_y1 -> 2024-25 | F44: =FRCP_y2 -> 2025-26 | G44: =FRCP_y3 -> 2026-27 | H44: =FRCP_y4 -> 2027-28 | I44: =FRCP_y5 -> 2028-29 | K44: =CRCP_y4 -> 2022-23 | L44: =CRCP_y5 -> 2023-24 | M44: =FRCP_y1 -> 2024-25 | N44: =FRCP_y2 -> 2025-26 | O44: =FRCP_y3 -> 2026-27 | P44: =FRCP_y4 -> 2027-28 | Q44: =FRCP_y5 -> 2028-29
A45: DREV0301 | B45: EBSS | C45: 5083079.018 | D45: 0 | E45: -3512058.287 | F45: -3186325.348 | G45: 3820687.224 | H45: 0 | I45: -29104.56626
A46: DREV0302 | B46: STPIS | C46: -1993470.112 | D46: -9954342.414
A47: DREV0303 | B47: F-Factor
A48: DREV0304 | B48: S-Factor True up
A49: DREV0305 | B49: Other | C49: -2887789.651 | D49: -2887789.651 | E49: 2092172.33 | F49: 2092172.33 | G49: 2092172.33 | H49: 2092172.33 | I49: 2092172.33
A50: DREV03 | B50: Total revenue of incentive schemes | C50: =SUM(C45:C49) -> 201819.2547 | D50: -12842132.06 | E50: -1419885.957 | F50: -1094153.018 | G50: 5912859.555 | H50: 2092172.33 | I50: 2063067.764 | K50: =SUM(K45:K49) -> 0 | L50: 0 | M50: 0 | N50: 0 | O50: 0 | P50: 0 | Q50: 0

Sheet 3.2 Operating expenditure
B1: =INDEX(dms_Worksheet_List,MATCH(dms_Model,dms_Model_List)) -> REGULATORY REPORTING STATEMENT
B2: =INDEX(dms_TradingNameFull_List,MATCH(dms_TradingName,dms_TradingName_List)) -> TasNetworks (D)
B3: =CONCATENATE("REGULATORY PERIOD FROM ", FRCP_y1," TO ",dms_MultiYear_FinalYear_Result) -> REGULATORY PERIOD FROM 2024-25 TO 2028-29
B4: 3.2 OPERATING EXPENDITURE
B6: There are TWO tables on this worksheet. Both ROWS and COLUMNS have been grouped for ease of navigation. see the Instructions sheet on how to group or ungroup tables.
B8: 3.2.1 - OPEX CATEGORIES
B9: CURRENT OPEX CATEGORIES AND COST ALLOCATIONS
C10: Standard control services | K10: Alternative control services
C11: =CONCATENATE("EXPENDITURE ($0's, real ", dms_DollarReal, ")") -> EXPENDITURE ($0's, real June 2024) | K11: =CONCATENATE("EXPENDITURE ($0's, real ", dms_DollarReal, ")") -> EXPENDITURE ($0's, real June 2024)
C12: =CRCP_y4 -> 2022-23 | D12: =CRCP_y5 -> 2023-24 | E12: =FRCP_y1 -> 2024-25 | F12: =FRCP_y2 -> 2025-26 | G12: =FRCP_y3 -> 2026-27 | H12: =FRCP_y4 -> 2027-28 | I12: =FRCP_y5 -> 2028-29 | K12: =CRCP_y4 -> 2022-23 | L12: =CRCP_y5 -> 2023-24 | M12: =FRCP_y1 -> 2024-25 | N12: =FRCP_y2 -> 2025-26 | O12: =FRCP_y3 -> 2026-27 | P12: =FRCP_y4 -> 2027-28 | Q12: =FRCP_y5 -> 2028-29
A13: DOPEX0101 | B13: Routine NW Maint OH Network and Structures | C13: 9557732.901 | D13: 9451938.998 | E13: 9311009.635 | F13: 9388450.485 | G13: 9430747.489 | H13: 9452708.145 | I13: 9486110.788
A14: DOPEX0102 | B14: Routine NW Maint Underground Systems | C14: 130536.5299 | D14: 129091.6298 | E14: 127166.8606 | F14: 128224.5235 | G14: 128802.2028 | H14: 129102.1346 | I14: 129558.3375
A15: DOPEX0103 | B15: Routine NW Maint Ground Mounted Substations | C15: 989165.9404 | D15: 978216.9291 | E15: 963631.6161 | F15: 971646.2627 | G15: 976023.7397 | H15: 978296.531 | I15: 981753.497
A16: DOPEX0104 | B16: Routine NW Maint Zone Substations | C16: 3075961.471 | D16: 3041913.86 | E16: 2996558.618 | F16: 3021481.376 | G16: 3035093.805 | H16: 3042161.394 | I16: 3052911.354
A17: DOPEX0105 | B17: Other network asset maintenance - routine costs | C17: 0 | D17: 0 | E17: 0 | F17: 0 | G17: 0 | H17: 0 | I17: 0
A18: DOPEX0106 | B18: Routine Non-NW Maint Vegetation Mgt | C18: 30152276.47 | D18: 29818522.95 | E18: 29373925.77 | F18: 29618232.44 | G18: 29751669 | H18: 29820949.42 | I18: 29926326.47
A19: DOPEX0107 | B19: Routine Connection asset repair | C19: 0 | D19: 0 | E19: 0 | F19: 0 | G19: 0 | H19: 0 | I19: 0
A20: DOPEX0108 | B20: Other non network asset maintenance - routine costs | C20: 0 | D20: 0 | E20: 0 | F20: 0 | G20: 0 | H20: 0 | I20: 0
A21: DOPEX0109 | B21: Routine NW Maint Other | C21: 1983643.972 | D21: 1961687.15 | E21: 1932438.197 | F21: 1948510.531 | G21: 1957288.993 | H21: 1961846.781 | I21: 1968779.278
A22: DOPEX0110 | C22: 0 | D22: 0 | E22: 0 | F22: 0 | G22: 0 | H22: 0 | I22: 0
A23: DOPEX0111 | B23: Non-routine NW Maint OH Network and Structures | C23: 2842549.938 | D23: 2811085.944 | E23: 2769172.369 | F23: 2792203.928 | G23: 2804783.412 | H23: 2811314.695 | I23: 2821248.921
A24: DOPEX0112 | B24: Non-routine NW Maint Underground Systems | C24: 1087969.76 | D24: 1075927.096 | E24: 1059884.915 | F24: 1068700.112 | G24: 1073514.838 | H24: 1076014.649 | I24: 1079816.918
A25: DOPEX0113 | B25: Non-routine NW Maint Ground Mounted Substations | C25: 821937.092 | D25: 812839.1256 | E25: 800719.6123 | F25: 807379.299 | G25: 811016.7178 | H25: 812905.27 | I25: 815777.7997
A26: DOPEX0114 | B26: Non-routine NW Maint Zone Substations | C26: 171097.9692 | D26: 169204.0972 | E26: 166681.2471 | F26: 168067.5562 | G26: 168824.737 | H26: 169217.8661 | I26: 169815.8243
A27: DOPEX0115 | B27: Non-routine NW Maint Decommissioned Assets | C27: 389094.0733 | D27: 384787.2171 | E27: 379050.0009 | F27: 382202.608 | G27: 383924.5135 | H27: 384818.529 | I27: 386178.3463
A28: DOPEX0116 | B28: Non-routine Non-NW Maint Connection Asset Repair | C28: 139937.145 | D28: 138388.1901 | E28: 136324.8083 | F28: 137458.639 | G28: 138077.92 | H28: 138399.4514 | I28: 138888.5078
A29: DOPEX0117 | B29: Non-routine NW Maint Other | C29: 1813446.677 | D29: 1793373.757 | E29: 1766634.374 | F29: 1781327.697 | G29: 1789352.964 | H29: 1793519.692 | I29: 1799857.379
A30: DOPEX0118 | B30: Non-routine Non-NW Maint Emg & Unsch Pwr Sys | C30: 33491076.66 | D30: 33120366.18 | E30: 32626538.19 | F30: 32897897.25 | G30: 33046109.41 | H30: 33123061.34 | I30: 33240106.93
A31: DOPEX0119 | B31: Non-routine Non-NW Maint Ele Safety & Inst Inspect | C31: 288450.0452 | D31: 285257.211 | E31: 281003.9973 | F31: 283341.1432 | G31: 284617.6565 | H31: 285280.4237 | I31: 286288.5073
A32: DOPEX0120 | B32: Non-routine Non-NW Maint Vegetation Mgt | C32: 195009.5857 | D32: 192851.0377 | E32: 189975.6093 | F32: 191555.6606 | G32: 192418.6604 | H32: 192866.7309 | I32: 193548.2561
A33: DOPEX0121 | C33: 0 | D33: 0 | E33: 0 | F33: 0 | G33: 0 | H33: 0 | I33: 0
A34: DOPEX0122 | B34: SCADA & Network Control Opex | C34: 435760.2186 | D34: 430936.8181 | E34: 424511.5067 | F34: 428042.2228 | G34: 429970.6458 | H34: 430971.8853 | I34: 432494.7929
A35: DOPEX0123 | B35: Network Management | C35: 3293991.386 | D35: 3257530.417 | E35: 3208960.31 | F35: 3235649.64 | G35: 3250226.943 | H35: 3257795.497 | I35: 3269307.434
A36: DOPEX0124 | B36: Customer Service | C36: 0 | D36: 0 | E36: 0 | F36: 0 | G36: 0 | H36: 0 | I36: 0
A37: DOPEX0125 | B37: Operating Costs Other | C37: 776012.4981 | D37: 767422.8679 | E37: 755980.5156 | F37: 762268.1016 | G37: 765702.2846 | H37: 767485.3166 | I37: 770197.3477
A38: DOPEX0126 | B38: System Operations | C38: 34050.06154 | D38: 33673.1637 | E38: 33171.09344 | F38: 33446.98163 | G38: 33597.66754 | H38: 33675.90384 | I38: 33794.90299
A39: DOPEX0127 | B39: Public Lighting | C39: 0 | D39: 0 | E39: 0 | F39: 0 | G39: 0 | H39: 0 | I39: 0 | K39: 4118444.371 | L39: 4118444.371 | M39: 1184295.103 | N39: 1312145.143 | O39: 1631770.242 | P39: 1631770.242 | Q39: 1631770.242
A40: DOPEX0128 | B40: Connection services | C40: 0 | D40: 0 | E40: 0 | F40: 0 | G40: 0 | H40: 0 | I40: 0
A41: DOPEX0129 | B41: Metering services | C41: 0 | D41: 0 | E41: 0 | F41: 0 | G41: 0 | H41: 0 | I41: 0 | K41: 6180285.472 | L41: 6180285.472 | M41: 1697949.069 | N41: 1745433.36 | O41: 1864339.769 | P41: 1011389.338 | Q41: 700370.3437
A42: DOPEX0130 | B42: Ancillary network services | C42: 0 | D42: 0 | E42: 0 | F42: 0 | G42: 0 | H42: 0 | I42: 0 | K42: 19461708.22 | L42: 19461708.22 | M42: 19461708.22 | N42: 19461708.22 | O42: 19461708.22 | P42: 19461708.22 | Q42: 19461708.22
A43: DOPEX0131 | B43: Routine Non-NW Maint Connection Asset Repair | C43: 1951036.912 | D43: 1929441.015 | E43: 1900672.855 | F43: 1916480.993 | G43: 1925115.155 | H43: 1929598.023 | I43: 1936416.563
A44: DOPEX0132 | C44: 0 | D44: 0 | E44: 0 | F44: 0 | G44: 0 | H44: 0 | I44: 0
A45: DOPEX0133 | B45: Unclassified Distribution | C45: 0 | D45: 0 | E45: 0 | F45: 0 | G45: 0 | H45: 0 | I45: 0
A46: DOPEX0134 | B46: Transmission | C46: 0 | D46: 0 | E46: 0 | F46: 0 | G46: 0 | H46: 0 | I46: 0
A47: DOPEX0135 | C47: 0 | D47: 0 | E47: 0 | F47: 0 | G47: 0 | H47: 0 | I47: 0
A48: DOPEX0136 | B48: GSL Payments | C48: 2013399.767 | D48: 2013399.767 | E48: 3967224.15 | F48: 3967224.15 | G48: 3967224.15 | H48: 3967224.15 | I48: 3967224.15
A49: DOPEX0137 | B49: NEM Fees | C49: 1448308.522 | D49: 1448308.522 | E49: 1470757.716 | F49: 1470006.563 | G49: 1364845.133 | H49: 1169545.334 | I49: 1169545.334
A50: DOPEX0138 | B50: Electrical Safety Levy | C50: 5098464.94 | D50: 5098464.94 | E50: 5090919.356 | F50: 5090919.356 | G50: 5090919.356 | H50: 5090919.356 | I50: 5090919.356
A51: DOPEX0139 | B51: Regulatory Obligations or Requirements Opex | C51: 64464.70883 | D51: 63751.1533 | E51: 62800.61718 | F51: 63322.93789 | G51: 63608.22145 | H51: 63756.34102 | I51: 63981.63416
A52: DOPEX0140 | B52: Other Non Network Costs | C52: 0 | D52: 0 | E52: 0 | F52: 0 | G52: 0 | H52: 0 | I52: 0
A53: DOPEX0141 | B53: Feed In Tarriff | C53: 0 | D53: 0 | E53: 0 | F53: 0 | G53: 0 | H53: 0 | I53: 0
A54: DOPEX0142 | B54: Demand Management Incentive Scheme | C54: 40036.0534 | D54: 39592.89701 | E54: 39002.56293 | F54: 39326.9522 | G54: 39504.12864 | H54: 39596.11887 | I54: 39736.03803
A55: DOPEX0143 | B55: Insurance Cost | C55: 0 | D55: 0 | E55: 2673552.762 | F55: 3351407.243 | G55: 3941281.248 | H55: 4165674.154 | I55: 4211550.302
A56: DOPEX0144 | B56: Cybersecurity | C56: 0 | D56: 0 | E56: 398447.8255 | F56: 701837.4265 | G56: 851339.1387 | H56: 874385.1511 | I56: 879589.0893
A57: DOPEX0145
A58: DOPEX0146
A59: DOPEX0147
A60: DOPEX0148
A61: DOPEX0149
A62: DOPEX01 | B62: Total opex | C62: =SUM(C13:C61) -> 102285411.3 | D62: 101247972.9 | E62: 104906717.1 | F62: 106646612.1 | G62: 107695600.1 | H62: 107963090.3 | I62: 108341724.1 | K62: =SUM(K13:K61) -> 29760438.06 | L62: 29760438.06 | M62: 22343952.39 | N62: 22519286.72 | O62: 22957818.23 | P62: 22104867.8 | Q62: 21793848.8
B65: 3.2.2 - OPEX CONSISTENCY
B66: OPEX CONSISTENCY - CURRENT COST ALLOCATION APPROACH
C67: Standard control services | K67: Alternative control services
C68: =CONCATENATE("EXPENDITURE ($0's, real ", dms_DollarReal, ")") -> EXPENDITURE ($0's, real June 2024) | K68: =CONCATENATE("EXPENDITURE ($0's, real ", dms_DollarReal, ")") -> EXPENDITURE ($0's, real June 2024)
C69: =CRCP_y4 -> 2022-23 | D69: =CRCP_y5 -> 2023-24 | E69: =FRCP_y1 -> 2024-25 | F69: =FRCP_y2 -> 2025-26 | G69: =FRCP_y3 -> 2026-27 | H69: =FRCP_y4 -> 2027-28 | I69: =FRCP_y5 -> 2028-29 | K69: =CRCP_y4 -> 2022-23 | L69: =CRCP_y5 -> 2023-24 | M69: =FRCP_y1 -> 2024-25 | N69: =FRCP_y2 -> 2025-26 | O69: =FRCP_y3 -> 2026-27 | P69: =FRCP_y4 -> 2027-28 | Q69: =FRCP_y5 -> 2028-29
A70: DOPEX0201 | B70: Opex for network services | C70: 102285411.3 | D70: 101247972.9 | E70: 104906717.1 | F70: 106646612.1 | G70: 107695600.1 | H70: 107963090.3 | I70: 108341724.1 | K70: 19461708.22 | L70: 19461708.22 | M70: 19461708.22 | N70: 19461708.22 | O70: 19461708.22 | P70: 19461708.22 | Q70: 19461708.22
A71: DOPEX0202 | B71: Opex for metering | K71: 6180285.472 | L71: 6180285.472 | M71: 1697949.069 | N71: 1745433.36 | O71: 1864339.769 | P71: 1011389.338 | Q71: 700370.3437
A72: DOPEX0203 | B72: Opex for connection services
A73: DOPEX0204 | B73: Opex for public lighting | K73: 4118444.371 | L73: 4118444.371 | M73: 1184295.103 | N73: 1312145.143 | O73: 1631770.242 | P73: 1631770.242 | Q73: 1631770.242
A74: DOPEX0205 | B74: Opex for amounts payable for easement levy or similar direct charges on DNSP
A75: DOPEX0207 | B75: Opex for transmission connection point planning

Sheet 3.3 Assets (RAB)
B1: =INDEX(dms_Worksheet_List,MATCH(dms_Model,dms_Model_List)) -> REGULATORY REPORTING STATEMENT
B2: =INDEX(dms_TradingNameFull_List,MATCH(dms_TradingName,dms_TradingName_List)) -> TasNetworks (D)
B3: =CONCATENATE("REGULATORY PERIOD FROM ", FRCP_y1," TO ",dms_MultiYear_FinalYear_Result) -> REGULATORY PERIOD FROM 2024-25 TO 2028-29
B4: 3.3 ASSETS
B6: There are FOUR tables on this worksheet. Both ROWS and COLUMNS in each have been grouped (and sub-grouped) for ease of navigation. see the Instructions sheet on how to group or ungroup tables.
B8: 3.3.1 - REGULATORY ASSET BASE VALUES
C9: Network services | K9: Standard control services | S9: Alternative control services
C10: =CONCATENATE(" VALUE Forecast ($0's, real ", dms_DollarReal, ")") -> VALUE Forecast ($0's, real June 2024) | K10: =CONCATENATE(" VALUE Forecast ($0's, real ", dms_DollarReal, ")") -> VALUE Forecast ($0's, real June 2024) | S10: =CONCATENATE(" VALUE Forecast ($0's, real ", dms_DollarReal, ")") -> VALUE Forecast ($0's, real June 2024)
C11: =CRCP_y4 -> 2022-23 | D11: =CRCP_y5 -> 2023-24 | E11: =FRCP_y1 -> 2024-25 | F11: =FRCP_y2 -> 2025-26 | G11: =FRCP_y3 -> 2026-27 | H11: =FRCP_y4 -> 2027-28 | I11: =FRCP_y5 -> 2028-29 | K11: =CRCP_y4 -> 2022-23 | L11: =CRCP_y5 -> 2023-24 | M11: =FRCP_y1 -> 2024-25 | N11: =FRCP_y2 -> 2025-26 | O11: =FRCP_y3 -> 2026-27 | P11: =FRCP_y4 -> 2027-28 | Q11: =FRCP_y5 -> 2028-29 | S11: =CRCP_y4 -> 2022-23 | T11: =CRCP_y5 -> 2023-24 | U11: =FRCP_y1 -> 2024-25 | V11: =FRCP_y2 -> 2025-26 | W11: =FRCP_y3 -> 2026-27 | X11: =FRCP_y4 -> 2027-28 | Y11: =FRCP_y5 -> 2028-29
B12: For total asset base:
A13: DRAB0101 | B13: Opening value | C13: 2042.021461 | D13: 2078.823632 | E13: 2114.747844 | F13: 2141.012545 | G13: 2168.977541 | H13: 2171.394787 | I13: 2168.558879 | K13: 2149.490465 | L13: 2186.650476 | M13: 2223.044895 | N13: 2248.430711 | O13: 2275.349607 | P13: 2276.608387 | Q13: 2271.76696 | S13: 37.88463758 | T13: 32.82482059 | U13: 28.00700205 | V13: 21.89679745 | W13: 16.45748128 | X13: 11.0181651 | Y13: 5.578848926
A14: DRAB0102 | B14: Inflation addition | C14: 0 | D14: 0 | E14: 0 | F14: 0 | G14: 0 | H14: 0 | I14: 0 | K14: 0 | L14: 0 | M14: 0 | N14: 0 | O14: 0 | P14: 0 | Q14: 0 | S14: 0 | T14: 0 | U14: 0 | V14: 0 | W14: 0 | X14: 0 | Y14: 0
A15: DRAB0103 | B15: Straight line depreciation | C15: -119.0256484 | D15: -126.9495472 | E15: -125.8228737 | F15: -129.3664659 | G15: -135.4389117 | H15: -136.4297075 | I15: -132.3794107 | K15: -124.9968053 | L15: -133.1793399 | M15: -131.9274573 | N15: -135.6357593 | O15: -141.8728064 | P15: -142.9494737 | Q15: -138.8864882 | S15: -5.059816988 | T15: -4.81781854 | U15: -6.110204601 | V15: -5.439316174 | W15: -5.439316174 | X15: -5.439316174 | Y15: -5.439316174
A16: DRAB0105 | B16: Actual additions (recognised in RAB) | C16: 156.6992054 | D16: 163.7760994 | E16: 152.8463878 | F16: 158.0305505 | G16: 138.7877805 | H16: 134.8953817 | I16: 135.2728872 | K16: 163.0282025 | L16: 170.4761 | M16: 158.072085 | N16: 163.2537442 | O16: 144.0632091 | P16: 139.409629 | Q16: 139.919453 | S16: 0 | T16: 0 | U16: 0 | V16: 0 | W16: 0 | X16: 0 | Y16: 0
A17: DRAB0106 | B17: Disposals | C17: -0.8713857763 | D17: -0.9023408146 | E17: -0.7588125703 | F17: -0.6990890242 | G17: -0.9316225215 | H17: -1.301582575 | I17: -2.050580842 | K17: -0.8713857763 | L17: -0.9023408146 | M17: -0.7588125703 | N17: -0.6990890242 | O17: -0.9316225215 | P17: -1.301582575 | Q17: -2.050580842 | S17: 0 | T17: 0 | U17: 0 | V17: 0 | W17: 0 | X17: 0 | Y17: 0
A18: DRAB0107 | B18: Closing value | C18: =SUM(C13+C14+C15+C16+C17) -> 2078.823632 | D18: 2114.747844 | E18: 2141.012545 | F18: 2168.977541 | G18: 2171.394787 | H18: 2168.558879 | I18: 2169.401774 | K18: =SUM(K13+K14+K15+K16+K17) -> 2186.650476 | L18: 2223.044895 | M18: 2248.430711 | N18: 2275.349607 | O18: 2276.608387 | P18: 2271.76696 | Q18: 2270.749344 | S18: =SUM(S13+S14+S15+S16+S17) -> 32.82482059 | T18: 28.00700205 | U18: 21.89679745 | V18: 16.45748128 | W18: 11.0181651 | X18: 5.578848926 | Y18: 0.1395327521
B21: 3.3.2 - ASSET VALUE ROLL FORWARD
C22: Network services | K22: Standard control services | S22: Alternative control services
C23: =CONCATENATE(" VALUE Forecast ($0's, real ", dms_DollarReal, ")") -> VALUE Forecast ($0's, real June 2024) | K23: =CONCATENATE(" VALUE Forecast ($0's, real ", dms_DollarReal, ")") -> VALUE Forecast ($0's, real June 2024) | S23: =CONCATENATE(" VALUE Forecast ($0's, real ", dms_DollarReal, ")") -> VALUE Forecast ($0's, real June 2024)
C24: =CRCP_y4 -> 2022-23 | D24: =CRCP_y5 -> 2023-24 | E24: =FRCP_y1 -> 2024-25 | F24: =FRCP_y2 -> 2025-26 | G24: =FRCP_y3 -> 2026-27 | H24: =FRCP_y4 -> 2027-28 | I24: =FRCP_y5 -> 2028-29 | K24: =CRCP_y4 -> 2022-23 | L24: =CRCP_y5 -> 2023-24 | M24: =FRCP_y1 -> 2024-25 | N24: =FRCP_y2 -> 2025-26 | O24: =FRCP_y3 -> 2026-27 | P24: =FRCP_y4 -> 2027-28 | Q24: =FRCP_y5 -> 2028-29 | S24: =CRCP_y4 -> 2022-23 | T24: =CRCP_y5 -> 2023-24 | U24: =FRCP_y1 -> 2024-25 | V24: =FRCP_y2 -> 2025-26 | W24: =FRCP_y3 -> 2026-27 | X24: =FRCP_y4 -> 2027-28 | Y24: =FRCP_y5 -> 2028-29
B25: For overhead network assets less than 33kV:
A26: DRAB0201 | B26: Opening value | C26: 967.9780854 | D26: 988.651131 | E26: 1009.968725 | F26: 1013.602075 | G26: 1021.486979 | H26: 1029.49897 | I26: 1034.338417 | K26: 967.9780854 | L26: 988.651131 | M26: 1009.968725 | N26: 1013.602075 | O26: 1021.486979 | P26: 1029.49897 | Q26: 1034.338417 | T26: =S31 -> 0 | U26: 0 | V26: 0 | W26: 0 | X26: 0 | Y26: 0
A27: DRAB0202 | B27: Inflation addition | C27: 0 | D27: 0 | E27: 0 | F27: 0 | G27: 0 | H27: 0 | I27: 0 | K27: 0 | L27: 0 | M27: 0 | N27: 0 | O27: 0 | P27: 0 | Q27: 0
A28: DRAB0203 | B28: Straight line depreciation | C28: -53.69333402 | D28: -57.40811421 | E28: -51.49277905 | F28: -53.07579449 | G28: -54.82364185 | H28: -56.62008621 | I28: -58.37718586 | K28: -53.69333402 | L28: -57.40811421 | M28: -51.49277905 | N28: -53.07579449 | O28: -54.82364185 | P28: -56.62008621 | Q28: -58.37718586
A29: DRAB0205 | B29: Actual additions (recognised in RAB) | C29: 74.36637967 | D29: 78.72570854 | E29: 55.12612856 | F29: 60.96069851 | G29: 62.83563285 | H29: 61.45953363 | I29: 58.16187811 | K29: 74.36637967 | L29: 78.72570854 | M29: 55.12612856 | N29: 60.96069851 | O29: 62.83563285 | P29: 61.45953363 | Q29: 58.16187811
A30: DRAB0206 | B30: Disposals | C30: 0 | D30: 0 | E30: 0 | F30: 0 | G30: 0 | H30: 0 | I30: 0 | K30: 0 | L30: 0 | M30: 0 | N30: 0 | O30: 0 | P30: 0 | Q30: 0
A31: DRAB0207 | B31: Closing value | C31: =SUM(C26+C27+C28+C29+C30) -> 988.651131 | D31: 1009.968725 | E31: 1013.602075 | F31: 1021.486979 | G31: 1029.49897 | H31: 1034.338417 | I31: 1034.12311 | K31: =SUM(K26+K27+K28+K29+K30) -> 988.651131 | L31: 1009.968725 | M31: 1013.602075 | N31: 1021.486979 | O31: 1029.49897 | P31: 1034.338417 | Q31: 1034.12311 | S31: =SUM(S26+S27+S28+S29+S30) -> 0 | T31: 0 | U31: 0 | V31: 0 | W31: 0 | X31: 0 | Y31: 0
B32: For underground network assets less than 33kV:
A33: DRAB0301 | B33: Opening value | C33: 455.295622 | D33: 463.0139994 | E33: 471.13484 | F33: 473.9695981 | G33: 478.035025 | H33: 481.1900802 | I33: 482.4275607 | K33: 455.295622 | L33: 463.0139994 | M33: 471.13484 | N33: 473.9695981 | O33: 478.035025 | P33: 481.1900802 | Q33: 482.4275607 | T33: =S38 -> 0 | U33: 0 | V33: 0 | W33: 0 | X33: 0 | Y33: 0
A34: DRAB0302 | B34: Inflation addition | C34: 0 | D34: 0 | E34: 0 | F34: 0 | G34: 0 | H34: 0 | I34: 0 | K34: 0 | L34: 0 | M34: 0 | N34: 0 | O34: 0 | P34: 0 | Q34: 0
A35: DRAB0303 | B35: Straight line depreciation | C35: -13.43820471 | D35: -14.27593231 | E35: -13.23176833 | F35: -13.50430582 | G35: -13.8017423 | H35: -14.08802427 | I35: -14.34737088 | K35: -13.43820471 | L35: -14.27593231 | M35: -13.23176833 | N35: -13.50430582 | O35: -13.8017423 | P35: -14.08802427 | Q35: -14.34737088
A36: DRAB0305 | B36: Actual additions (recognised in RAB) | C36: 21.15658212 | D36: 22.39677291 | E36: 16.06652648 | F36: 17.5697327 | G36: 16.9567975 | H36: 15.32550475 | I36: 15.77525592 | K36: 21.15658212 | L36: 22.39677291 | M36: 16.06652648 | N36: 17.5697327 | O36: 16.9567975 | P36: 15.32550475 | Q36: 15.77525592
A37: DRAB0306 | B37: Disposals | C37: 0 | D37: 0 | E37: 0 | F37: 0 | G37: 0 | H37: 0 | I37: 0 | K37: 0 | L37: 0 | M37: 0 | N37: 0 | O37: 0 | P37: 0 | Q37: 0
A38: DRAB0307 | B38: Closing value | C38: =SUM(C33+C34+C35+C36+C37) -> 463.0139994 | D38: 471.13484 | E38: 473.9695981 | F38: 478.035025 | G38: 481.1900802 | H38: 482.4275607 | I38: 483.8554457 | K38: =SUM(K33+K34+K35+K36+K37) -> 463.0139994 | L38: 471.13484 | M38: 473.9695981 | N38: 478.035025 | O38: 481.1900802 | P38: 482.4275607 | Q38: 483.8554457 | S38: =SUM(S33+S34+S35+S36+S37) -> 0 | T38: 0 | U38: 0 | V38: 0 | W38: 0 | X38: 0 | Y38: 0
B39: For distribution substations and transformers:
A40: DRAB0401 | B40: Opening value | C40: 318.9987917 | D40: 328.0632524 | E40: 337.406586 | F40: 346.8870154 | G40: 355.0139028 | H40: 361.5835362 | I40: 368.8985659 | K40: 318.9987917 | L40: 328.0632524 | M40: 337.406586 | N40: 346.8870154 | O40: 355.0139028 | P40: 361.5835362 | Q40: 368.8985659 | T40: =S45 -> 0 | U40: 0 | V40: 0 | W40: 0 | X40: 0 | Y40: 0
A41: DRAB0402 | B41: Inflation addition | C41: 0 | D41: 0 | E41: 0 | F41: 0 | G41: 0 | H41: 0 | I41: 0 | K41: 0 | L41: 0 | M41: 0 | N41: 0 | O41: 0 | P41: 0 | Q41: 0
A42: DRAB0403 | B42: Straight line depreciation | C42: -16.74922381 | D42: -17.98353918 | E42: -15.78031094 | F42: -16.41136846 | G42: -17.02515469 | H42: -17.61465405 | I42: -18.23687293 | K42: -16.74922381 | L42: -17.98353918 | M42: -15.78031094 | N42: -16.41136846 | O42: -17.02515469 | P42: -17.61465405 | Q42: -18.23687293
A43: DRAB0405 | B43: Actual additions (recognised in RAB) | C43: 25.81368445 | D43: 27.32687281 | E43: 25.26074033 | F43: 24.53825585 | G43: 23.59478813 | H43: 24.92968368 | I43: 25.22843916 | K43: 25.81368445 | L43: 27.32687281 | M43: 25.26074033 | N43: 24.53825585 | O43: 23.59478813 | P43: 24.92968368 | Q43: 25.22843916
A44: DRAB0406 | B44: Disposals | C44: 0 | D44: 0 | E44: 0 | F44: 0 | G44: 0 | H44: 0 | I44: 0 | K44: 0 | L44: 0 | M44: 0 | N44: 0 | O44: 0 | P44: 0 | Q44: 0
A45: DRAB0407 | B45: Closing value | C45: =SUM(C40+C41+C42+C43+C44) -> 328.0632524 | D45: 337.406586 | E45: 346.8870154 | F45: 355.0139028 | G45: 361.5835362 | H45: 368.8985659 | I45: 375.8901321 | K45: =SUM(K40+K41+K42+K43+K44) -> 328.0632524 | L45: 337.406586 | M45: 346.8870154 | N45: 355.0139028 | O45: 361.5835362 | P45: 368.8985659 | Q45: 375.8901321 | S45: =SUM(S40+S41+S42+S43+S44) -> 0 | T45: 0 | U45: 0 | V45: 0 | W45: 0 | X45: 0 | Y45: 0
B46: For overhead network assets 33kV and above:
A47: DRAB0501 | B47: Opening value | C47: 14.26225117 | D47: 14.23460356 | E47: 14.21190853 | F47: 14.64849559 | G47: 15.09514522 | H47: 15.33209025 | I47: 15.83216589 | K47: 14.26225117 | L47: 14.23460356 | M47: 14.21190853 | N47: 14.64849559 | O47: 15.09514522 | P47: 15.33209025 | Q47: 15.83216589 | T47: =S52 -> 0 | U47: 0 | V47: 0 | W47: 0 | X47: 0 | Y47: 0
A48: DRAB0502 | B48: Inflation addition | C48: 0 | D48: 0 | E48: 0 | F48: 0 | G48: 0 | H48: 0 | I48: 0 | K48: 0 | L48: 0 | M48: 0 | N48: 0 | O48: 0 | P48: 0 | Q48: 0
A49: DRAB0503 | B49: Straight line depreciation | C49: -0.5620316783 | D49: -0.5884044898 | E49: -0.5242182998 | F49: -0.5434525837 | G49: -0.5632808324 | H49: -0.5793390681 | I49: -0.6008853586 | K49: -0.5620316783 | L49: -0.5884044898 | M49: -0.5242182998 | N49: -0.5434525837 | O49: -0.5632808324 | P49: -0.5793390681 | Q49: -0.6008853586
A50: DRAB0505 | B50: Actual additions (recognised in RAB) | C50: 0.5343840695 | D50: 0.5657094602 | E50: 0.9608053644 | F50: 0.9901022115 | G50: 0.8002258669 | H50: 1.079414706 | I50: 0.9426365518 | K50: 0.5343840695 | L50: 0.5657094602 | M50: 0.9608053644 | N50: 0.9901022115 | O50: 0.8002258669 | P50: 1.079414706 | Q50: 0.9426365518
A51: DRAB0506 | B51: Disposals | C51: 0 | D51: 0 | E51: 0 | F51: 0 | G51: 0 | H51: 0 | I51: 0 | K51: 0 | L51: 0 | M51: 0 | N51: 0 | O51: 0 | P51: 0 | Q51: 0
A52: DRAB0507 | B52: Closing value | C52: =SUM(C47+C48+C49+C50+C51) -> 14.23460356 | D52: 14.21190853 | E52: 14.64849559 | F52: 15.09514522 | G52: 15.33209025 | H52: 15.83216589 | I52: 16.17391709 | K52: =SUM(K47+K48+K49+K50+K51) -> 14.23460356 | L52: 14.21190853 | M52: 14.64849559 | N52: 15.09514522 | O52: 15.33209025 | P52: 15.83216589 | Q52: 16.17391709 | S52: =SUM(S47+S48+S49+S50+S51) -> 0 | T52: 0 | U52: 0 | V52: 0 | W52: 0 | X52: 0 | Y52: 0
B53: For underground network assets 33kV and above:
A54: DRAB0601 | B54: Opening value | C54: 10.85315324 | D54: 10.63532063 | E54: 10.41223041 | F54: 10.08160397 | G54: 9.83984013 | H54: 9.598537174 | I54: 9.266305877 | K54: 10.85315324 | L54: 10.63532063 | M54: 10.41223041 | N54: 10.08160397 | O54: 9.83984013 | P54: 9.598537174 | Q54: 9.266305877 | T54: =S59 -> 0 | U54: 0 | V54: 0 | W54: 0 | X54: 0 | Y54: 0
A55: DRAB0602 | B55: Inflation addition | C55: 0 | D55: 0 | E55: 0 | F55: 0 | G55: 0 | H55: 0 | I55: 0 | K55: 0 | L55: 0 | M55: 0 | N55: 0 | O55: 0 | P55: 0 | Q55: 0
A56: DRAB0603 | B56: Straight line depreciation | C56: -0.3561933924 | D56: -0.3695616607 | E56: -0.3505916879 | F56: -0.3511217164 | G56: -0.3531150951 | H56: -0.3551193657 | I56: -0.3556566344 | K56: -0.3561933924 | L56: -0.3695616607 | M56: -0.3505916879 | N56: -0.3511217164 | O56: -0.3531150951 | P56: -0.3551193657 | Q56: -0.3556566344
A57: DRAB0605 | B57: Actual additions (recognised in RAB) | C57: 0.138360786 | D57: 0.1464714426 | E57: 0.01996524861 | F57: 0.1093578741 | G57: 0.11181214 | H57: 0.02288806799 | I57: 0.03304112181 | K57: 0.138360786 | L57: 0.1464714426 | M57: 0.01996524861 | N57: 0.1093578741 | O57: 0.11181214 | P57: 0.02288806799 | Q57: 0.03304112181
A58: DRAB0606 | B58: Disposals | C58: 0 | D58: 0 | E58: 0 | F58: 0 | G58: 0 | H58: 0 | I58: 0 | K58: 0 | L58: 0 | M58: 0 | N58: 0 | O58: 0 | P58: 0 | Q58: 0
A59: DRAB0607 | B59: Closing value | C59: =SUM(C54+C55+C56+C57+C58) -> 10.63532063 | D59: 10.41223041 | E59: 10.08160397 | F59: 9.83984013 | G59: 9.598537174 | H59: 9.266305877 | I59: 8.943690364 | K59: =SUM(K54+K55+K56+K57+K58) -> 10.63532063 | L59: 10.41223041 | M59: 10.08160397 | N59: 9.83984013 | O59: 9.598537174 | P59: 9.266305877 | Q59: 8.943690364 | S59: =SUM(S54+S55+S56+S57+S58) -> 0 | T59: 0 | U59: 0 | V59: 0 | W59: 0 | X59: 0 | Y59: 0
B60: Zone substations and transformers
A61: DRAB0701 | B61: Opening value | C61: 56.61109937 | D61: 57.07952928 | E61: 57.46343945 | F61: 60.54507883 | G61: 59.8551647 | H61: 59.1331058 | I61: 57.60120118 | K61: 56.61109937 | L61: 57.07952928 | M61: 57.46343945 | N61: 60.54507883 | O61: 59.8551647 | P61: 59.1331058 | Q61: 57.60120118 | T61: =S66 -> 0 | U61: 0 | V61: 0 | W61: 0 | X61: 0 | Y61: 0
A62: DRAB0702 | B62: Inflation addition | C62: 0 | D62: 0 | E62: 0 | F62: 0 | G62: 0 | H62: 0 | I62: 0 | K62: 0 | L62: 0 | M62: 0 | N62: 0 | O62: 0 | P62: 0 | Q62: 0
A63: DRAB0703 | B63: Straight line depreciation | C63: -2.597433622 | D63: -2.861673118 | E63: -2.19910928 | F63: -2.330649911 | G63: -2.372804673 | H63: -2.414961139 | I63: -2.438174317 | K63: -2.597433622 | L63: -2.861673118 | M63: -2.19910928 | N63: -2.330649911 | O63: -2.372804673 | P63: -2.414961139 | Q63: -2.438174317
A64: DRAB0705 | B64: Actual additions (recognised in RAB) | C64: 3.065863532 | D64: 3.245583285 | E64: 5.280748661 | F64: 1.640735775 | G64: 1.650745782 | H64: 0.8830565141 | I64: 3.004647461 | K64: 3.065863532 | L64: 3.245583285 | M64: 5.280748661 | N64: 1.640735775 | O64: 1.650745782 | P64: 0.8830565141 | Q64: 3.004647461
A65: DRAB0706 | B65: Disposals | C65: 0 | D65: 0 | E65: 0 | F65: 0 | G65: 0 | H65: 0 | I65: 0 | K65: 0 | L65: 0 | M65: 0 | N65: 0 | O65: 0 | P65: 0 | Q65: 0
A66: DRAB0707 | B66: Closing value | C66: =SUM(C61+C62+C63+C64+C65) -> 57.07952928 | D66: 57.46343945 | E66: 60.54507883 | F66: 59.8551647 | G66: 59.1331058 | H66: 57.60120118 | I66: 58.16767432 | K66: =SUM(K61+K62+K63+K64+K65) -> 57.07952928 | L66: 57.46343945 | M66: 60.54507883 | N66: 59.8551647 | O66: 59.1331058 | P66: 57.60120118 | Q66: 58.16767432 | S66: =SUM(S61+S62+S63+S64+S65) -> 0 | T66: 0 | U66: 0 | V66: 0 | W66: 0 | X66: 0 | Y66: 0
B67: For easements:
A68: DRAB0801 | B68: Opening value | C68: 3.440645138 | D68: 3.440645138 | E68: 3.440645138 | F68: 3.980124843 | G68: 4.473169066 | H68: 4.909568494 | I68: 5.409785858 | K68: 3.440645138 | L68: 3.440645138 | M68: 3.440645138 | N68: 3.980124843 | O68: 4.473169066 | P68: 4.909568494 | Q68: 5.409785858 | T68: =S72 -> 0 | U68: 0 | V68: 0 | W68: 0 | X68: 0 | Y68: 0
A69: DRAB0802 | B69: Inflation addition | C69: 0 | D69: 0 | E69: 0 | F69: 0 | G69: 0 | H69: 0 | I69: 0 | K69: 0 | L69: 0 | M69: 0 | N69: 0 | O69: 0 | P69: 0 | Q69: 0
A70: DRAB0803 | B70: Actual additions (recognised in RAB) | C70: 0 | D70: 0 | E70: 0.5394797053 | F70: 0.4930442235 | G70: 0.4363994274 | H70: 0.5002173644 | I70: 0.5049907102 | K70: 0 | L70: 0 | M70: 0.5394797053 | N70: 0.4930442235 | O70: 0.4363994274 | P70: 0.5002173644 | Q70: 0.5049907102
A71: DRAB0804 | B71: Disposals | C71: 0 | D71: 0 | E71: 0 | F71: 0 | G71: 0 | H71: 0 | I71: 0 | K71: 0 | L71: 0 | M71: 0 | N71: 0 | O71: 0 | P71: 0 | Q71: 0
A72: DRAB0805 | B72: Closing value | C72: =SUM(C68+C69+C70+C71) -> 3.440645138 | D72: 3.440645138 | E72: 3.980124843 | F72: 4.473169066 | G72: 4.909568494 | H72: 5.409785858 | I72: 5.914776568 | K72: =SUM(K68+K69+K70+K71) -> 3.440645138 | L72: 3.440645138 | M72: 3.980124843 | N72: 4.473169066 | O72: 4.909568494 | P72: 5.409785858 | Q72: 5.914776568 | S72: =SUM(S68+S69+S70+S71) -> 0 | T72: 0 | U72: 0 | V72: 0 | W72: 0 | X72: 0 | Y72: 0
B73: For meters:
A74: DRAB0901 | B74: Opening value | S74: 35.82420369 | T74: 31.15055285 | U74: 26.38967333 | V74: 20.33897276 | W74: 15.0610381 | X74: 9.78310343 | Y74: 4.505168764
A75: DRAB0902 | B75: Inflation addition | S75: 0 | T75: 0 | U75: 0 | V75: 0 | W75: 0 | X75: 0 | Y75: 0
A76: DRAB0903 | B76: Straight line depreciation | S76: -4.673650842 | T76: -4.760879518 | U76: -6.050700569 | V76: -5.277934666 | W76: -5.277934666 | X76: -5.277934666 | Y76: -5.277934666
A77: DRAB0905 | B77: Actual additions (recognised in RAB) | S77: 0 | T77: 0 | U77: 0 | V77: 0 | W77: 0 | X77: 0 | Y77: 0
A78: DRAB0906 | B78: Disposals | S78: 0 | T78: 0 | U78: 0 | V78: 0 | W78: 0 | X78: 0 | Y78: 0
A79: DRAB0907 | B79: Closing value | C79: =SUM(C74+C75+C76+C77+C78) -> 0 | D79: 0 | E79: 0 | F79: 0 | G79: 0 | H79: 0 | I79: 0 | K79: =SUM(K74+K75+K76+K77+K78) -> 0 | L79: 0 | M79: 0 | N79: 0 | O79: 0 | P79: 0 | Q79: 0 | S79: =SUM(S74+S75+S76+S77+S78) -> 31.15055285 | T79: 26.38967333 | U79: 20.33897276 | V79: 15.0610381 | W79: 9.78310343 | X79: 4.505168764 | Y79: -0.7727659025
B80: For “other” asset items with long lives:
A81: DRAB1001 | B81: Opening value | C81: 68.96241131 | D81: 70.14438259 | E81: 71.16763112 | F81: 68.43695438 | G81: 66.27938005 | H81: 64.47231113 | I81: 62.08482512 | K81: 176.4314151 | L81: 177.9712266 | M81: 179.4646829 | N81: 175.8551198 | O81: 172.6514459 | P81: 169.685911 | Q81: 165.2929061 | T81: =S86 -> 0 | U81: 0 | V81: 0 | W81: 0 | X81: 0 | Y81: 0
A82: DRAB1002 | B82: Inflation addition | C82: 0 | D82: 0 | E82: 0 | F82: 0 | G82: 0 | H82: 0 | I82: 0 | K82: 0 | L82: 0 | M82: 0 | N82: 0 | O82: 0 | P82: 0 | Q82: 0
A83: DRAB1003 | B83: Straight line depreciation | C83: -3.486401096 | D83: -3.652838463 | E83: -6.548489779 | F83: -6.644454543 | G83: -6.756836262 | H83: -6.880288886 | I83: -4.225603961 | K83: -9.457558011 | L83: -9.882631238 | M83: -12.65307331 | N83: -12.91374792 | O83: -13.19073092 | P83: -13.40005507 | Q83: -10.73268149
A84: DRAB1005 | B84: Actual additions (recognised in RAB) | C84: 4.668372383 | D84: 4.676086993 | E84: 3.817813032 | F84: 4.486880211 | G84: 4.949767346 | H84: 4.492802877 | I84: 5.143964998 | K84: 10.99736954 | L84: 11.37608755 | M84: 9.043510189 | N84: 9.71007397 | O84: 10.225196 | P84: 9.007050221 | Q84: 9.790530829
A85: DRAB1006 | B85: Disposals | C85: 0 | D85: 0 | E85: 0 | F85: 0 | G85: 0 | H85: 0 | I85: 0 | K85: 0 | L85: 0 | M85: 0 | N85: 0 | O85: 0 | P85: 0 | Q85: 0
A86: DRAB1007 | B86: Closing value | C86: =SUM(C81+C82+C83+C84+C85) -> 70.14438259 | D86: 71.16763112 | E86: 68.43695438 | F86: 66.27938005 | G86: 64.47231113 | H86: 62.08482512 | I86: 63.00318616 | K86: =SUM(K81+K82+K83+K84+K85) -> 177.9712266 | L86: 179.4646829 | M86: 175.8551198 | N86: 172.6514459 | O86: 169.685911 | P86: 165.2929061 | Q86: 164.3507554 | S86: =SUM(S81+S82+S83+S84+S85) -> 0 | T86: 0 | U86: 0 | V86: 0 | W86: 0 | X86: 0 | Y86: 0
B87: For “other” asset items with short lives:
A88: DRAB1101 | B88: Opening value | C88: 145.6194018 | D88: 143.5607683 | E88: 139.5418377 | F88: 148.8615992 | G88: 158.4058907 | H88: 145.1835436 | I88: 132.2070066 | K88: 145.6194018 | L88: 143.5607683 | M88: 139.5418377 | N88: 148.8615992 | O88: 158.4058907 | P88: 145.1835436 | Q88: 132.2070066 | S88: 2.060433886 | T88: 1.674267741 | U88: 1.617328718 | V88: 1.557824686 | W88: 1.396443178 | X88: 1.23506167 | Y88: 1.073680162
A89: DRAB1102 | B89: Inflation addition | C89: 0 | D89: 0 | E89: 0 | F89: 0 | G89: 0 | H89: 0 | I89: 0 | K89: 0 | L89: 0 | M89: 0 | N89: 0 | O89: 0 | P89: 0 | Q89: 0 | S89: 0 | T89: 0 | U89: 0 | V89: 0 | W89: 0 | X89: 0 | Y89: 0
A90: DRAB1103 | B90: Straight line depreciation | C90: -28.14282605 | D90: -29.80948374 | E90: -35.69560635 | F90: -36.9983626 | G90: -40.17873544 | H90: -38.37745186 | I90: -34.30265148 | K90: -28.14282605 | L90: -29.80948374 | M90: -35.69560635 | N90: -36.9983626 | O90: -40.17873544 | P90: -38.37745186 | Q90: -34.30265148 | S90: -0.3861661452 | T90: -0.05693902214 | U90: -0.05950403233 | V90: -0.1613815079 | W90: -0.1613815079 | X90: -0.1613815079 | Y90: -0.1613815079
A91: DRAB1105 | B91: Actual additions (recognised in RAB) | C91: 26.95557835 | D91: 26.69289396 | E91: 45.77418046 | F91: 47.2417431 | G91: 27.88801084 | H91: 26.70249747 | I91: 26.98302389 | K91: 26.95557835 | L91: 26.69289396 | M91: 45.77418046 | N91: 47.2417431 | O91: 27.88801084 | P91: 26.70249747 | Q91: 26.98302389 | S91: 0 | T91: 0 | U91: 0 | V91: 0 | W91: 0 | X91: 0 | Y91: 0
A92: DRAB1106 | B92: Disposals | C92: -0.8713857763 | D92: -0.9023408146 | E92: -0.7588125703 | F92: -0.6990890242 | G92: -0.9316225215 | H92: -1.301582575 | I92: -2.050580842 | K92: -0.8713857763 | L92: -0.9023408146 | M92: -0.7588125703 | N92: -0.6990890242 | O92: -0.9316225215 | P92: -1.301582575 | Q92: -2.050580842 | S92: 0 | T92: 0 | U92: 0 | V92: 0 | W92: 0 | X92: 0 | Y92: 0
A93: DRAB1107 | B93: Closing value | C93: =SUM(C88+C89+C90+C91+C92) -> 143.5607683 | D93: 139.5418377 | E93: 148.8615992 | F93: 158.4058907 | G93: 145.1835436 | H93: 132.2070066 | I93: 122.8367982 | K93: =SUM(K88+K89+K90+K91+K92) -> 143.5607683 | L93: 139.5418377 | M93: 148.8615992 | N93: 158.4058907 | O93: 145.1835436 | P93: 132.2070066 | Q93: 122.8367982 | S93: =SUM(S88+S89+S90+S91+S92) -> 1.674267741 | T93: 1.617328718 | U93: 1.557824686 | V93: 1.396443178 | W93: 1.23506167 | X93: 1.073680162 | Y93: 0.9122986545
B97: 3.3.3 - TOTAL DISAGGREGATED RAB ASSET VALUES
C98: Network services | K98: Standard control services | S98: Alternative control services
C99: =CONCATENATE(" VALUE Forecast ($0's, real ", dms_DollarReal, ")") -> VALUE Forecast ($0's, real June 2024) | K99: =CONCATENATE(" VALUE Forecast ($0's, real ", dms_DollarReal, ")") -> VALUE Forecast ($0's, real June 2024) | S99: =CONCATENATE(" VALUE Forecast ($0's, real ", dms_DollarReal, ")") -> VALUE Forecast ($0's, real June 2024)
C100: =CRCP_y4 -> 2022-23 | D100: =CRCP_y5 -> 2023-24 | E100: =FRCP_y1 -> 2024-25 | F100: =FRCP_y2 -> 2025-26 | G100: =FRCP_y3 -> 2026-27 | H100: =FRCP_y4 -> 2027-28 | I100: =FRCP_y5 -> 2028-29 | K100: =CRCP_y4 -> 2022-23 | L100: =CRCP_y5 -> 2023-24 | M100: =FRCP_y1 -> 2024-25 | N100: =FRCP_y2 -> 2025-26 | O100: =FRCP_y3 -> 2026-27 | P100: =FRCP_y4 -> 2027-28 | Q100: =FRCP_y5 -> 2028-29 | S100: =CRCP_y4 -> 2022-23 | T100: =CRCP_y5 -> 2023-24 | U100: =FRCP_y1 -> 2024-25 | V100: =FRCP_y2 -> 2025-26 | W100: =FRCP_y3 -> 2026-27 | X100: =FRCP_y4 -> 2027-28 | Y100: =FRCP_y5 -> 2028-29
A101: DRAB1201 | B101: Overhead network assets less than 33kV (wires and poles) | C101: 978.3146082 | D101: 999.3099282 | E101: 1011.7854 | F101: 1017.544527 | G101: 1025.492974 | H101: 1031.918694 | I101: 1034.230763 | K101: 978.3146082 | L101: 999.3099282 | M101: 1011.7854 | N101: 1017.544527 | O101: 1025.492974 | P101: 1031.918694 | Q101: 1034.230763 | S101: 0 | T101: 0 | U101: 0 | V101: 0 | W101: 0 | X101: 0 | Y101: 0
A102: DRAB1202 | B102: Underground network assets less than 33kV (cables) | C102: 459.1548107 | D102: 467.0744197 | E102: 472.552219 | F102: 476.0023116 | G102: 479.6125526 | H102: 481.8088204 | I102: 483.1415032 | K102: 459.1548107 | L102: 467.0744197 | M102: 472.552219 | N102: 476.0023116 | O102: 479.6125526 | P102: 481.8088204 | Q102: 483.1415032 | S102: 0 | T102: 0 | U102: 0 | V102: 0 | W102: 0 | X102: 0 | Y102: 0
A103: DRAB1203 | B103: Distribution substations including transformers | C103: 323.5310221 | D103: 332.7349192 | E103: 342.1468007 | F103: 350.9504591 | G103: 358.2987195 | H103: 365.241051 | I103: 372.394349 | K103: 323.5310221 | L103: 332.7349192 | M103: 342.1468007 | N103: 350.9504591 | O103: 358.2987195 | P103: 365.241051 | Q103: 372.394349 | S103: 0 | T103: 0 | U103: 0 | V103: 0 | W103: 0 | X103: 0 | Y103: 0
A104: DRAB1204 | B104: Overhead network assets 33kV and above (wires and towers / poles etc) | C104: 14.24842736 | D104: 14.22325604 | E104: 14.43020206 | F104: 14.87182041 | G104: 15.21361774 | H104: 15.58212807 | I104: 16.00304149 | K104: 14.24842736 | L104: 14.22325604 | M104: 14.43020206 | N104: 14.87182041 | O104: 15.21361774 | P104: 15.58212807 | Q104: 16.00304149 | S104: 0 | T104: 0 | U104: 0 | V104: 0 | W104: 0 | X104: 0 | Y104: 0
A105: DRAB1205 | B105: Underground network assets 33kV and above(cables, ducts etc) | C105: 10.74423693 | D105: 10.52377552 | E105: 10.24691719 | F105: 9.960722051 | G105: 9.719188652 | H105: 9.432421526 | I105: 9.10499812 | K105: 10.74423693 | L105: 10.52377552 | M105: 10.24691719 | N105: 9.960722051 | O105: 9.719188652 | P105: 9.432421526 | Q105: 9.10499812 | S105: 0 | T105: 0 | U105: 0 | V105: 0 | W105: 0 | X105: 0 | Y105: 0
A106: DRAB1206 | B106: Zone substations and transformers | C106: 56.84531433 | D106: 57.27148437 | E106: 59.00425914 | F106: 60.20012176 | G106: 59.49413525 | H106: 58.36715349 | I106: 57.88443775 | K106: 56.84531433 | L106: 57.27148437 | M106: 59.00425914 | N106: 60.20012176 | O106: 59.49413525 | P106: 58.36715349 | Q106: 57.88443775 | S106: 0 | T106: 0 | U106: 0 | V106: 0 | W106: 0 | X106: 0 | Y106: 0
A107: DRAB1207 | B107: Easements | C107: 3.440645138 | D107: 3.440645138 | E107: 3.71038499 | F107: 4.226646955 | G107: 4.69136878 | H107: 5.159677176 | I107: 5.662281213 | K107: 3.440645138 | L107: 3.440645138 | M107: 3.71038499 | N107: 4.226646955 | O107: 4.69136878 | P107: 5.159677176 | Q107: 5.662281213 | S107: 0 | T107: 0 | U107: 0 | V107: 0 | W107: 0 | X107: 0 | Y107: 0
A108: DRAB1208 | B108: Meters | C108: 0 | D108: 0 | E108: 0 | F108: 0 | G108: 0 | H108: 0 | I108: 0 | K108: 0 | L108: 0 | M108: 0 | N108: 0 | O108: 0 | P108: 0 | Q108: 0 | S108: 33.48737827 | T108: 28.77011309 | U108: 23.36432305 | V108: 17.70000543 | W108: 12.42207076 | X108: 7.144136097 | Y108: 1.866201431
A109: DRAB1209 | B109: “Other” assets with long lives | C109: 69.55339695 | D109: 70.65600686 | E109: 69.80229275 | F109: 67.35816721 | G109: 65.37584559 | H109: 63.27856813 | I109: 62.54400564 | K109: 177.2013209 | L109: 178.7179548 | M109: 177.6599014 | N109: 174.2532828 | O109: 171.1686784 | P109: 167.4894085 | Q109: 164.8218308 | S109: 0 | T109: 0 | U109: 0 | V109: 0 | W109: 0 | X109: 0 | Y109: 0
A110: DRAB1210 | B110: “Other” assets with short lives | C110: 144.590085 | D110: 141.551303 | E110: 144.2017185 | F110: 153.633745 | G110: 151.7947172 | H110: 138.6952751 | I110: 127.5219024 | K110: 144.590085 | L110: 141.551303 | M110: 144.2017185 | N110: 153.633745 | O110: 151.7947172 | P110: 138.6952751 | Q110: 127.5219024 | S110: 1.867350813 | T110: 1.645798229 | U110: 1.587576702 | V110: 1.477133932 | W110: 1.315752424 | X110: 1.154370916 | Y110: 0.9929894085
A111: DRAB13 | B111: Value of Capital Contributions or Contributed Assets (included in the above) | C111: 0 | D111: 0 | E111: 0 | F111: 0 | G111: 0 | H111: 0 | I111: 0 | K111: 0 | L111: 0 | M111: 0 | N111: 0 | O111: 0 | P111: 0 | Q111: 0 | S111: 0 | T111: 0 | U111: 0 | V111: 0 | W111: 0 | X111: 0 | Y111: 0
B114: 3.3.4 - ASSET LIVES
C115: Network services | K115: Standard control services | S115: Alternative control services
C116: Forecast ( years ) | K116: Forecast ( years ) | S116: Forecast ( years )
C117: =CRCP_y4 -> 2022-23 | D117: =CRCP_y5 -> 2023-24 | E117: =FRCP_y1 -> 2024-25 | F117: =FRCP_y2 -> 2025-26 | G117: =FRCP_y3 -> 2026-27 | H117: =FRCP_y4 -> 2027-28 | I117: =FRCP_y5 -> 2028-29 | K117: =CRCP_y4 -> 2022-23 | L117: =CRCP_y5 -> 2023-24 | M117: =FRCP_y1 -> 2024-25 | N117: =FRCP_y2 -> 2025-26 | O117: =FRCP_y3 -> 2026-27 | P117: =FRCP_y4 -> 2027-28 | Q117: =FRCP_y5 -> 2028-29 | S117: =CRCP_y4 -> 2022-23 | T117: =CRCP_y5 -> 2023-24 | U117: =FRCP_y1 -> 2024-25 | V117: =FRCP_y2 -> 2025-26 | W117: =FRCP_y3 -> 2026-27 | X117: =FRCP_y4 -> 2027-28 | Y117: =FRCP_y5 -> 2028-29
B118: Estimated service life of new assets
A119: DRAB1401 | B119: Overhead network assets less than 33kV (wires and poles) | C119: 35 | D119: 35 | E119: 35 | F119: 35 | G119: 35 | H119: 35 | I119: 35 | K119: 35 | L119: 35 | M119: 35 | N119: 35 | O119: 35 | P119: 35 | Q119: 35 | S119: 0 | T119: 0 | U119: 0 | V119: 0 | W119: 0 | X119: 0 | Y119: 0
A120: DRAB1402 | B120: Underground network assets less than 33kV (cables) | C120: 60 | D120: 60 | E120: 60 | F120: 60 | G120: 60 | H120: 60 | I120: 60 | K120: 60 | L120: 60 | M120: 60 | N120: 60 | O120: 60 | P120: 60 | Q120: 60 | S120: 0 | T120: 0 | U120: 0 | V120: 0 | W120: 0 | X120: 0 | Y120: 0
A121: DRAB1403 | B121: Distribution substations including transformers | C121: 40 | D121: 40 | E121: 40 | F121: 40 | G121: 40 | H121: 40 | I121: 40 | K121: 40 | L121: 40 | M121: 40 | N121: 40 | O121: 40 | P121: 40 | Q121: 40 | S121: 0 | T121: 0 | U121: 0 | V121: 0 | W121: 0 | X121: 0 | Y121: 0
A122: DRAB1404 | B122: Overhead network assets 33kV and above (wires and towers / poles etc) | C122: 50 | D122: 50 | E122: 50 | F122: 50 | G122: 50 | H122: 50 | I122: 50 | K122: 50 | L122: 50 | M122: 50 | N122: 50 | O122: 50 | P122: 50 | Q122: 50 | S122: 0 | T122: 0 | U122: 0 | V122: 0 | W122: 0 | X122: 0 | Y122: 0
A123: DRAB1405 | B123: Underground network assets 33kV and above(cables, ducts etc) | C123: 60 | D123: 60 | E123: 60 | F123: 60 | G123: 60 | H123: 60 | I123: 60 | K123: 60 | L123: 60 | M123: 60 | N123: 60 | O123: 60 | P123: 60 | Q123: 60 | S123: 0 | T123: 0 | U123: 0 | V123: 0 | W123: 0 | X123: 0 | Y123: 0
A124: DRAB1406 | B124: Zone substations and transformers | C124: 40 | D124: 40 | E124: 40 | F124: 40 | G124: 40 | H124: 40 | I124: 40 | K124: 40 | L124: 40 | M124: 40 | N124: 40 | O124: 40 | P124: 40 | Q124: 40 | S124: 0 | T124: 0 | U124: 0 | V124: 0 | W124: 0 | X124: 0 | Y124: 0
A125: DRAB1407 | B125: Meters | C125: 0 | D125: 0 | E125: 0 | F125: 0 | G125: 0 | H125: 0 | I125: 0 | K125: 0 | L125: 0 | M125: 0 | N125: 0 | O125: 0 | P125: 0 | Q125: 0 | S125: 0 | T125: 0 | U125: 0 | V125: 0 | W125: 0 | X125: 0 | Y125: 0
A126: DRAB1408 | B126: “Other” assets with long lives | C126: 40 | D126: 40 | E126: 40 | F126: 40 | G126: 40 | H126: 40 | I126: 40 | K126: 34.25155245 | L126: 34.11716856 | M126: 36.04701726 | N126: 36.32640168 | O126: 36.47887468 | P126: 37.6472355 | Q126: 37.77336552 | S126: 0 | T126: 0 | U126: 0 | V126: 0 | W126: 0 | X126: 0 | Y126: 0
A127: DRAB1409 | B127: “Other” assets with short lives | C127: 5.705128759 | D127: 5.74303548 | E127: 5.768635334 | F127: 5.494763139 | G127: 5.776016059 | H127: 5.842713476 | I127: 5.878677765 | K127: 5.705128759 | L127: 5.74303548 | M127: 5.768635334 | N127: 5.494763139 | O127: 5.776016059 | P127: 5.842713476 | Q127: 5.878677765 | S127: 0 | T127: 0 | U127: 0 | V127: 0 | W127: 0 | X127: 0 | Y127: 0
B128: Estimated residual service life
A129: DRAB1501 | B129: Overhead network assets less than 33kV (wires and poles) | C129: 33.57608112 | D129: 33.1263926 | E129: 32.30684711 | F129: 31.55434764 | G129: 30.85258633 | H129: 30.18905561 | I129: 29.55076427 | K129: 33.57608112 | L129: 33.1263926 | M129: 32.30684711 | N129: 31.55434764 | O129: 30.85258633 | P129: 30.18905561 | Q129: 29.55076427 | S129: 0 | T129: 0 | U129: 0 | V129: 0 | W129: 0 | X129: 0 | Y129: 0
A130: DRAB1502 | B130: Underground network assets less than 33kV (cables) | C130: 58.43012199 | D130: 58.13260763 | E130: 57.25441155 | F130: 56.43271809 | G130: 55.64365316 | H130: 54.87358372 | I130: 54.14128091 | K130: 58.43012199 | L130: 58.13260763 | M130: 57.25441155 | N130: 56.43271809 | O130: 55.64365316 | P130: 54.87358372 | Q130: 54.14128091 | S130: 0 | T130: 0 | U130: 0 | V130: 0 | W130: 0 | X130: 0 | Y130: 0
A131: DRAB1503 | B131: Distribution substations including transformers | C131: 38.56031737 | D131: 38.14960721 | E131: 37.36173006 | F131: 36.61926948 | G131: 35.91251819 | H131: 35.26396525 | I131: 34.65735052 | K131: 38.56031737 | L131: 38.14960721 | M131: 37.36173006 | N131: 36.61926948 | O131: 35.91251819 | P131: 35.26396525 | Q131: 34.65735052 | S131: 0 | T131: 0 | U131: 0 | V131: 0 | W131: 0 | X131: 0 | Y131: 0
A132: DRAB1504 | B132: Overhead network assets 33kV and above (wires and towers / poles etc) | C132: 48.57813979 | D132: 48.11010144 | E132: 47.29310298 | F132: 46.52779198 | G132: 45.75293781 | H132: 45.09804669 | I132: 44.4296987 | K132: 48.57813979 | L132: 48.11010144 | M132: 47.29310298 | N132: 46.52779198 | O132: 45.75293781 | P132: 45.09804669 | Q132: 44.4296987 | S132: 0 | T132: 0 | U132: 0 | V132: 0 | W132: 0 | X132: 0 | Y132: 0
A133: DRAB1505 | B133: Underground network assets 33kV and above (cables, ducts etc) | C133: 59.06959385 | D133: 58.48685373 | E133: 57.49166341 | F133: 56.52931091 | G133: 55.5795415 | H133: 54.59243604 | I133: 53.61520248 | K133: 59.06959385 | L133: 58.48685373 | M133: 57.49166341 | N133: 56.52931091 | O133: 55.5795415 | P133: 54.59243604 | Q133: 53.61520248 | S133: 0 | T133: 0 | U133: 0 | V133: 0 | W133: 0 | X133: 0 | Y133: 0
A134: DRAB1506 | B134: Zone substations and transformers | C134: 38.3660342 | D134: 37.95319456 | E134: 37.20535713 | F134: 36.30543506 | G134: 35.432164 | H134: 34.51587571 | I134: 33.83886598 | K134: 38.3660342 | L134: 37.95319456 | M134: 37.20535713 | N134: 36.30543506 | O134: 35.432164 | P134: 34.51587571 | Q134: 33.83886598 | S134: 0 | T134: 0 | U134: 0 | V134: 0 | W134: 0 | X134: 0 | Y134: 0
A135: DRAB1507 | B135: Meters | C135: 0 | D135: 0 | E135: 0 | F135: 0 | G135: 0 | H135: 0 | I135: 0 | K135: 0 | L135: 0 | M135: 0 | N135: 0 | O135: 0 | P135: 0 | Q135: 0 | S135: 6.528300616 | T135: 5.576601883 | U135: 4.642247661 | V135: 3.781400186 | W135: 2.830164284 | X135: 1.931544349 | Y135: 1.560037936
A136: DRAB1508 | B136: “Other” assets with long lives | C136: 38.58506801 | D136: 38.10734603 | E136: 37.25464914 | F136: 36.48305769 | G136: 35.79671537 | H136: 35.13843272 | I136: 34.59090931 | K136: 34.76963476 | L136: 34.13508895 | M136: 33.00340423 | N136: 32.17693547 | O136: 31.42000808 | P136: 30.730104 | Q136: 30.12982498 | S136: 0 | T136: 0 | U136: 0 | V136: 0 | W136: 0 | X136: 0 | Y136: 0
A137: DRAB1509 | B137: “Other” assets with short lives | C137: 4.374589871 | D137: 4.710742125 | E137: 4.296308733 | F137: 3.911397938 | G137: 3.344756426 | H137: 2.883690375 | I137: 2.523747541 | K137: 4.374589871 | L137: 4.710742125 | M137: 4.296308733 | N137: 3.911397938 | O137: 3.344756426 | P137: 2.883690375 | Q137: 2.523747541 | S137: 14.47457847 | T137: 13.47457847 | U137: 12.47457847 | V137: 11.47457847 | W137: 10.47457847 | X137: 9.474578469 | Y137: 8.474578469

Sheet 3.4 Operational data
B1: =INDEX(dms_Worksheet_List,MATCH(dms_Model,dms_Model_List)) -> REGULATORY REPORTING STATEMENT
B2: =INDEX(dms_TradingNameFull_List,MATCH(dms_TradingName,dms_TradingName_List)) -> TasNetworks (D)
B3: =CONCATENATE("REGULATORY PERIOD FROM ", FRCP_y1," TO ",dms_MultiYear_FinalYear_Result) -> REGULATORY PERIOD FROM 2024-25 TO 2028-29
B4: 3.4 OPERATIONAL DATA
B6: There are TWO tables on this worksheet. Each table has been grouped for ease of navigation. See the Instructions sheet on how to group or ungroup tables.
B8: 3.4.1 - ENERGY DELIVERY
D9: Standard control services
D10: Forecast
C11: Units | D11: =CRCP_y4 -> 2022-23 | E11: =CRCP_y5 -> 2023-24 | F11: =FRCP_y1 -> 2024-25 | G11: =FRCP_y2 -> 2025-26 | H11: =FRCP_y3 -> 2026-27 | I11: =FRCP_y4 -> 2027-28 | J11: =FRCP_y5 -> 2028-29
A12: DOPED01 | B12: TOTAL ENERGY DELIVERED
B13: 3.4.1.1 - Energy grouping - delivery by chargeable quantity
A14: DOPED0201 | B14: Energy Delivery where time of use is not a determinant | C14: GWh | D14: 2481.86468 | E14: 2336.023594 | F14: 2256.906022 | G14: 2185.252385 | H14: 2119.5121 | I14: 2058.201695 | J14: 1999.303165
A15: DOPED0202 | B15: Energy Delivery at On-peak times | C15: GWh | D15: 685.5066227 | E15: 747.3013541 | F15: 633.5623228 | G15: 665.3076665 | H15: 694.4635435 | I15: 722.6923428 | J15: 749.2366266
A16: DOPED0203 | B16: Energy Delivery at Shoulder times | C16: GWh | D16: 308.2233488 | E16: 314.7984471 | F16: 383.0727291 | G16: 387.7052295 | H16: 391.5848448 | I16: 395.4100567 | J16: 398.5467763
A17: DOPED0204 | B17: Energy Delivery at Off-peak times | C17: GWh | D17: 1092.717283 | E17: 1219.697035 | F17: 1380.43991 | G17: 1450.94567 | H17: 1515.608673 | I17: 1578.269677 | J17: 1637.199623
A18: DOPED0205 | B18: Controlled load energy deliveries | C18: GWh | D18: 33.91304096 | E18: 34.06160448 | F18: 34.15116739 | G18: 34.21793278 | H18: 34.24981751 | I18: 34.24961101 | J18: 34.20264469
A19: DOPED0206 | B19: Energy Delivery to unmetered supplies | C19: GWh | D19: 23.18060344 | E19: 22.67571058 | F19: 22.24369049 | G19: 21.86182603 | H19: 21.51935472 | I19: 21.2120448 | J19: 20.93395118
B20: 3.4.1.2 - Energy - received from TNSP and other DNSPs by time of receipt
A21: DOPED0301 | B21: Energy into DNSP network at On-peak times | C21: GWh | D21: 1314.131075 | E21: 1316.030839 | F21: 1314.215046 | G21: 1311.493862 | H21: 1308.417081 | I21: 1306.410853 | J21: 1303.915235
A22: DOPED0302 | B22: Energy into DNSP network at Shoulder times | C22: GWh | D22: 807.9805422 | E22: 809.148593 | F22: 808.0321705 | G22: 806.3590778 | H22: 804.4673494 | I22: 803.2338393 | J22: 801.6994332
A23: DOPED0303 | B23: Energy into DNSP network at Off-peak times | C23: GWh | D23: 2397.978233 | E23: 2401.444852 | F23: 2398.131459 | G23: 2393.165943 | H23: 2387.551546 | I23: 2383.890653 | J23: 2379.336741
A24: DOPED0304 | B24: Energy received from TNSP and other DNSPs not included in the above categories | C24: GWh | D24: 0 | E24: 0 | F24: 0 | G24: 0 | H24: 0 | I24: 0 | J24: 0
B25: 3.4.1.3 - Energy - received into DNSP system from embedded generation by time of receipt
A26: DOPED0401 | B26: Energy into DNSP network at On-peak times from non-residential embedded generation | C26: GWh | D26: 33.15097588 | E26: 38.93631062 | F26: 44.25718122 | G26: 49.85651568 | H26: 54.94100924 | I26: 59.74693755 | J26: 64.27869926
A27: DOPED0402 | B27: Energy into DNSP network at Shoulder times from non-residential embedded generation | C27: GWh | D27: 28.78065226 | E27: 33.80330099 | F27: 38.42271634 | G27: 43.28388539 | H27: 47.69808548 | I27: 51.87044384 | J27: 55.80477925
A28: DOPED0403 | B28: Energy into DNSP network at Off-peak times from non-residential embedded generation | C28: GWh | D28: 74.77306668 | E28: 87.82207078 | F28: 99.82346145 | G28: 112.4529361 | H28: 123.9211709 | I28: 134.761093 | J28: 144.9826238
A29: DOPED0404 | B29: Energy received from embedded generation not included in above categories from non-residential embedded generation | C29: GWh | D29: 2.474843334 | E29: 1.75293986 | F29: 1.031036386 | G29: 0.3091329122 | H29: 0.09889088682 | I29: 0.03955635473 | J29: 0.01582254189
A30: DOPED0405 | B30: Energy into DNSP network at On-peak times from residential embedded generation | C30: GWh | D30: 19.98700614 | E30: 25.47463297 | F30: 31.10522211 | G30: 36.9130721 | H30: 41.35930961 | I30: 45.22940651 | J30: 48.82506544
A31: DOPED0406 | B31: Energy into DNSP network at Shoulder times from residential embedded generation | C31: GWh | D31: 61.34375363 | E31: 78.1862775 | F31: 95.46757869 | G31: 113.2929256 | H31: 126.9392365 | I31: 138.8172671 | J31: 149.8529977
A32: DOPED0407 | B32: Energy into DNSP network at Off-peak times from residential embedded generation | C32: GWh | D32: 34.41456607 | E32: 43.86341972 | F32: 53.5584326 | G32: 63.55866154 | H32: 71.21440215 | I32: 77.8781168 | J32: 84.06929124
A33: DOPED0408 | B33: Energy received from embedded generation not included in above categories from residential embedded generation | C33: GWh | D33: 35.41416462 | E33: 25.08397195 | F33: 14.75377928 | G33: 4.423586614 | H33: 1.415094886 | I33: 0.5660379544 | J33: 0.2264151818
B34: 3.4.1.4 - Energy grouping - customer type or class
A35: DOPED0501 | B35: Residential customers energy deliveries | C35: GWh | D35: 2177.279053 | E35: 2200.225709 | F35: 2222.574419 | G35: 2244.799762 | H35: 2266.951139 | I35: 2288.638952 | J35: 2310.303927
A36: DOPED0502 | B36: Non residential customers not on demand tariffs energy deliveries | C36: GWh | D36: 896.6658035 | E36: 914.9211237 | F36: 921.9746836 | G36: 927.6393058 | H36: 930.9241014 | I36: 933.8579725 | J36: 936.2637789
A37: DOPED0503 | B37: Non-residential low voltage demand tariff customers energy deliveries | C37: GWh | D37: 631.8995936 | E37: 631.6087583 | F37: 632.9013177 | G37: 633.2419012 | H37: 632.8022835 | I37: 633.0142043 | J37: 633.3529796
A38: DOPED0504 | B38: Non-residential high voltage demand tariff customers energy deliveries | C38: GWh | D38: 896.3805246 | E38: 905.1264437 | F38: 910.6817316 | G38: 917.7479153 | H38: 924.7414559 | I38: 933.3122538 | J38: 938.56815
A39: DOPED0505 | B39: Other Customer Class Energy Deliveries | C39: GWh | D39: 23.18060344 | E39: 22.67571058 | F39: 22.24369049 | G39: 21.86182603 | H39: 21.51935472 | I39: 21.2120448 | J39: 20.93395118
B43: 3.4.3 - SYSTEM DEMAND
D44: Standard control services
D45: Forecast
C46: Units | D46: =CRCP_y4 -> 2022-23 | E46: =CRCP_y5 -> 2023-24 | F46: =FRCP_y1 -> 2024-25 | G46: =FRCP_y2 -> 2025-26 | H46: =FRCP_y3 -> 2026-27 | I46: =FRCP_y4 -> 2027-28 | J46: =FRCP_y5 -> 2028-29
B47: 3.4.3.1 - Annual system maximum demand characteristics at the zone substation level – MW measure
A48: DOPSD0102 | B48: Non–coincident Summated Weather Adjusted System Annual Maximum Demand 10% POE | C48: MW | D48: 284.5839701 | E48: 296.8345441 | F48: 308.2800786 | G48: 316.1319904 | H48: 325.5870662 | I48: 331.671003 | J48: 332.0667149
A49: DOPSD0103 | B49: Non–coincident Summated Weather Adjusted System Annual Maximum Demand 50% POE | C49: MW | D49: 282.2158864 | E49: 283.6630458 | F49: 285.1192979 | G49: 286.5847097 | H49: 288.0593488 | I49: 289.5432833 | J49: 291.0365821
A50: DOPSD0105 | B50: Coincident Weather Adjusted System Annual Maximum Demand 10% POE | C50: MW | D50: 250.5014658 | E50: 258.8311445 | F50: 271.3814236 | G50: 278.2609221 | H50: 286.6003572 | I50: 291.9740456 | J50: 292.3100144
A51: DOPSD0106 | B51: Coincident Weather Adjusted System Annual Maximum Demand 50% POE | C51: MW | D51: 249.4225903 | E51: 250.7133166 | F51: 252.0122316 | G51: 253.3193962 | H51: 254.6348719 | I51: 255.9587207 | J51: 257.2910051
B52: 3.4.3.2 - Annual system maximum demand characteristics at the transmission connection point – MW measure
A53: DOPSD0108 | B53: Non–coincident Summated Weather Adjusted System Annual Maximum Demand 10% POE | C53: MW | D53: 1117.654039 | E53: 1121.56847 | F53: 1123.447021 | G53: 1125.083254 | H53: 1126.557236 | I53: 1127.889805 | J53: 1129.605951
A54: DOPSD0109 | B54: Non–coincident Summated Weather Adjusted System Annual Maximum Demand 50% POE | C54: MW | D54: 1086.201334 | E54: 1090.089076 | F54: 1091.849631 | G54: 1093.341041 | H54: 1094.69951 | I54: 1095.943778 | J54: 1097.54611
A55: DOPSD0111 | B55: Coincident Weather Adjusted System Annual Maximum Demand 10% POE | C55: MW | D55: 1554.137425 | E55: 1603.397181 | F55: 1642.622772 | G55: 1677.746643 | H55: 1714.124487 | I55: 1737.224721 | J55: 1736.160244
A56: DOPSD0112 | B56: Coincident Weather Adjusted System Annual Maximum Demand 50% POE | C56: MW | D56: 1513.229365 | E56: 1561.516501 | F56: 1603.383248 | G56: 1639.734303 | H56: 1677.40912 | I56: 1700.993262 | J56: 1702.694837
B57: 3.4.3.3 - Annual system maximum demand characteristics at the zone substation level – MVA measure
A58: DOPSD0202 | B58: Non–coincident Summated Weather Adjusted System Annual Maximum Demand 10% POE | C58: MVA | D58: 289.6951129 | E58: 302.1732696 | F58: 312.7902317 | G58: 320.7663073 | H58: 330.3551362 | I58: 336.5229664 | J58: 336.9279951
A59: DOPSD0203 | B59: Non–coincident Summated Weather Adjusted System Annual Maximum Demand 50% POE | C59: MVA | D59: 286.520787 | E59: 287.9811161 | F59: 289.4506068 | G59: 290.9293267 | H59: 292.4173437 | I59: 293.9147265 | J59: 295.4215442
A60: DOPSD0205 | B60: Coincident Weather Adjusted System Annual Maximum Demand 10% POE | C60: MVA | D60: 254.416888 | E60: 262.6666656 | F60: 274.9057152 | G60: 281.8745542 | H60: 290.3222893 | I60: 295.765763 | J60: 296.1060948
A61: DOPSD0206 | B61: Coincident Weather Adjusted System Annual Maximum Demand 50% POE | C61: MVA | D61: 252.7790063 | E61: 254.0811914 | F61: 255.3916256 | G61: 256.7103703 | H61: 258.0374872 | I61: 259.3730386 | J61: 260.7170875
B62: 3.4.3.4 - Annual system maximum demand characteristics at the transmission connection point – MVA measure
A63: DOPSD0208 | B63: Non–coincident Summated Weather Adjusted System Annual Maximum Demand 10% POE | C63: MVA | D63: 1130.743807 | E63: 1134.662575 | F63: 1136.528387 | G63: 1138.149854 | H63: 1139.606262 | I63: 1140.922968 | J63: 1142.624225
A64: DOPSD0209 | B64: Non–coincident Summated Weather Adjusted System Annual Maximum Demand 50% POE | C64: MVA | D64: 1099.056191 | E64: 1102.948303 | F64: 1104.696177 | G64: 1106.171892 | H64: 1107.512277 | I64: 1108.739924 | J64: 1110.326922
A65: DOPSD0211 | B65: Coincident Weather Adjusted System Annual Maximum Demand 10% POE | C65: MVA | D65: 1541.840179 | E65: 1591.725992 | F65: 1631.454684 | G65: 1667.031794 | H65: 1703.879055 | I65: 1727.283136 | J65: 1726.222986
A66: DOPSD0212 | B66: Coincident Weather Adjusted System Annual Maximum Demand 50% POE | C66: MVA | D66: 1500.424339 | E66: 1549.325461 | F66: 1591.728092 | G66: 1628.547619 | H66: 1666.707952 | I66: 1690.601946 | J66: 1692.342183
B67: 3.4.3.5 - Power factor conversion between MVA and MW
A68: DOPSD0301 | B68: Average overall network power factor conversion between MVA and MW | C68: Factor | D68: 0.9934257411 | E68: 0.9934257411 | F68: 0.9934257411 | G68: 0.9934257411 | H68: 0.9934257411 | I68: 0.9934257411 | J68: 0.9934257411
A69: DOPSD0302 | B69: Average power factor conversion for low voltage distribution lines | C69: Factor | D69: 0.9934257411 | E69: 0.9934257411 | F69: 0.9934257411 | G69: 0.9934257411 | H69: 0.9934257411 | I69: 0.9934257411 | J69: 0.9934257411
A70: DOPSD0303 | B70: Average power factor conversion for 3.3 kV lines | C70: Factor | D70: 0 | E70: 0 | F70: 0 | G70: 0 | H70: 0 | I70: 0 | J70: 0
A71: DOPSD0304 | B71: Average power factor conversion for 6.6 kV lines | C71: Factor | D71: 0.786286667 | E71: 0.786286667 | F71: 0.786286667 | G71: 0.786286667 | H71: 0.786286667 | I71: 0.786286667 | J71: 0.786286667
A72: DOPSD0305 | B72: Average power factor conversion for 7.6 kV lines | C72: Factor | D72: 0 | E72: 0 | F72: 0 | G72: 0 | H72: 0 | I72: 0 | J72: 0
A73: DOPSD0306 | B73: Average power factor conversion for 11 kV lines | C73: Factor | D73: 0.994882068 | E73: 0.994882068 | F73: 0.994882068 | G73: 0.994882068 | H73: 0.994882068 | I73: 0.994882068 | J73: 0.994882068
A74: DOPSD0307 | B74: Average power factor conversion for SWER lines | C74: Factor | D74: 0.9933776838 | E74: 0.9933776838 | F74: 0.9933776838 | G74: 0.9933776838 | H74: 0.9933776838 | I74: 0.9933776838 | J74: 0.9933776838
A75: DOPSD0308 | B75: Average power factor conversion for 22 kV lines | C75: Factor | D75: 0.9933776838 | E75: 0.9933776838 | F75: 0.9933776838 | G75: 0.9933776838 | H75: 0.9933776838 | I75: 0.9933776838 | J75: 0.9933776838
A76: DOPSD0309 | B76: Average power factor conversion for 33 kV lines | C76: Factor | D76: 0.9957684398 | E76: 0.9957684398 | F76: 0.9957684398 | G76: 0.9957684398 | H76: 0.9957684398 | I76: 0.9957684398 | J76: 0.9957684398
A77: DOPSD0310 | B77: Average power factor conversion for 44 kV lines | C77: Factor | D77: 0.9029111612 | E77: 0.9029111612 | F77: 0.9029111612 | G77: 0.9029111612 | H77: 0.9029111612 | I77: 0.9029111612 | J77: 0.9029111612
A78: DOPSD0311 | B78: Average power factor conversion for 66 kV lines | C78: Factor | D78: 0 | E78: 0 | F78: 0 | G78: 0 | H78: 0 | I78: 0 | J78: 0
A79: DOPSD0312 | B79: Average power factor conversion for 110 kV lines | C79: Factor | D79: 0 | E79: 0 | F79: 0 | G79: 0 | H79: 0 | I79: 0 | J79: 0
A80: DOPSD0313 | B80: Average power factor conversion for 132 kV lines | C80: Factor | D80: 0 | E80: 0 | F80: 0 | G80: 0 | H80: 0 | I80: 0 | J80: 0
A81: DOPSD0314 | B81: Average power factor conversion for 220 kV lines | C81: Factor | D81: 0 | E81: 0 | F81: 0 | G81: 0 | H81: 0 | I81: 0 | J81: 0
B82: 3.4.3.6 - Demand supplied (for customers charged on this basis) – MW measure
A83: DOPSD0401 | B83: Summated Chargeable Contracted Maximum Demand | C83: MW | D83: 3.716073672 | E83: 3.616029155 | F83: 3.510576787 | G83: 3.426304815 | H83: 3.351138189 | I83: 3.292444403 | J83: 3.221997498
A84: DOPSD0402 | B84: Summated Chargeable Measured Maximum Demand | C84: MW | D84: 34.46443157 | E84: 35.36039807 | F84: 35.86799677 | G84: 36.64937542 | H84: 37.15652748 | I84: 37.77731346 | J84: 37.76411625
B85: 3.4.3.7 - Demand supplied (for customers charged on this basis) – MVA measure
A86: DOPSD0403 | B86: Summated Chargeable Contracted Maximum Demand | C86: MVA | D86: 177.8095219 | E86: 177.5406795 | F86: 177.9958897 | G86: 178.5749054 | H86: 179.1479687 | I86: 179.8502752 | J86: 180.2809527
A87: DOPSD0404 | B87: Summated Chargeable Measured Maximum Demand | C87: MVA | D87: 108.2667232 | E87: 107.8875355 | F87: 108.8187162 | G87: 109.0919575 | H87: 109.3750801 | I87: 109.6107791 | J87: 110.63264

Sheet 3.5 Physical assets
B1: =INDEX(dms_Worksheet_List,MATCH(dms_Model,dms_Model_List)) -> REGULATORY REPORTING STATEMENT
B2: =INDEX(dms_TradingNameFull_List,MATCH(dms_TradingName,dms_TradingName_List)) -> TasNetworks (D)
B3: =CONCATENATE("REGULATORY PERIOD FROM ", FRCP_y1," TO ",dms_MultiYear_FinalYear_Result) -> REGULATORY PERIOD FROM 2024-25 TO 2028-29
B4: 3.5 PHYSICAL ASSETS DATA
B6: There are THREE tables on this worksheet. Each table has been grouped (and sub-grouped) for ease of navigation. See the Instructions sheet on how to group or ungroup tables.
B8: 3.5.1 - NETWORK CAPACITIES VARIABLES
D9: Forecast
C10: Units | D10: 2022-23 | E10: 2023-24 | F10: 2024-25 | G10: 2025-26 | H10: 2026-27 | I10: 2027-28 | J10: 2028-29
B11: CIRCUIT LENGTH
B12: 3.5.1.1 - Overhead network length of circuit at each voltage
A13: DPA0101 | B13: Overhead low voltage distribution | C13: km | D13: 4538.759705 | E13: 4536.349536 | F13: 4533.940646 | G13: 4531.533035 | H13: 4529.126704 | I13: 4526.721649 | J13: 4524.317872
A14: DPA0102 | B14: Overhead 2.2 kV | C14: km | D14: 0 | E14: 0 | F14: 0 | G14: 0 | H14: 0 | I14: 0 | J14: 0
A15: DPA0103 | B15: Overhead 7.6 kV | C15: km | D15: 6.079472925 | E15: 6.079472925 | F15: 6.079472925 | G15: 6.079472925 | H15: 6.079472925 | I15: 6.079472925 | J15: 6.079472925
A16: DPA0104 | B16: Overhead 11 kV | C16: km | D16: 0 | E16: 0 | F16: 0 | G16: 0 | H16: 0 | I16: 0 | J16: 0
A17: DPA0105 | B17: Overhead SWER | C17: km | D17: 2758.816458 | E17: 2764.175166 | F17: 2769.544283 | G17: 2774.923829 | H17: 2780.313824 | I17: 2785.714288 | J17: 2791.125242
A18: DPA0106 | B18: Overhead 22 kV | C18: km | D18: 441.8917865 | E18: 440.1952968 | F18: 438.5053203 | G18: 436.8218318 | H18: 435.1448065 | I18: 433.4742195 | J18: 431.8100462
A19: DPA0107 | B19: Overhead 33 kV | C19: km | D19: 12059.95245 | E19: 12124.01213 | F19: 12188.41209 | G19: 12253.15412 | H19: 12318.24005 | I19: 12383.67169 | J19: 12449.4509
A20: DPA0108 | B20: Overhead 44 kV | C20: km | D20: 83.65840477 | E20: 83.61218858 | F20: 83.56599792 | G20: 83.51983277 | H20: 83.47369313 | I20: 83.42757898 | J20: 83.3814903
A21: DPA0109 | B21: Overhead 66 kV | C21: km | D21: 46.13517411 | E21: 46.13542139 | F21: 46.13566868 | G21: 46.13591597 | H21: 46.13616325 | I21: 46.13641054 | J21: 46.13665783
A22: DPA0110 | B22: Overhead 132 kV | C22: km | D22: 0 | E22: 0 | F22: 0 | G22: 0 | H22: 0 | I22: 0 | J22: 0
A23: DPA0111 | B23: Overhead 6.6kv | C23: km | D23: 0 | E23: 0 | F23: 0 | G23: 0 | H23: 0 | I23: 0 | J23: 0
A24: DPA0112 | B24: Overhead 110kV | C24: km | D24: 0 | E24: 0 | F24: 0 | G24: 0 | H24: 0 | I24: 0 | J24: 0
A25: DPA0113 | B25: Overhead 220kV | C25: km | D25: 0 | E25: 0 | F25: 0 | G25: 0 | H25: 0 | I25: 0 | J25: 0
A26: DPA0114 | B26: Other | C26: km | D26: 0 | E26: 0 | F26: 0 | G26: 0 | H26: 0 | I26: 0 | J26: 0
A27: DPA01 | B27: Total overhead circuit km | D27: =SUM(D13:D26) -> 19935.29345 | E27: 20000.55921 | F27: 20066.18347 | G27: 20132.16804 | H27: 20198.51471 | I27: 20265.22531 | J27: 20332.30168
B28: 3.5.1.2 - Underground network circuit length at each voltage
A29: DPA0201 | B29: Underground low voltage distribution | C29: km | D29: 1440.238757 | E29: 1466.598749 | F29: 1493.441195 | G29: 1520.774925 | H29: 1548.608931 | I29: 1576.952369 | J29: 1605.814564
A30: DPA0202 | B30: Underground 5 kV | C30: km | D30: 0 | E30: 0 | F30: 0 | G30: 0 | H30: 0 | I30: 0 | J30: 0
A31: DPA0203 | B31: Underground 6.6 Kv | C31: km | D31: 0.104875 | E31: 0.104875 | F31: 0.104875 | G31: 0.104875 | H31: 0.104875 | I31: 0.104875 | J31: 0.104875
A32: DPA0204 | B32: Underground 7.6 kV | C32: km | D32: 0 | E32: 0 | F32: 0 | G32: 0 | H32: 0 | I32: 0 | J32: 0
A33: DPA0205 | B33: Underground 11 kV | C33: km | D33: 647.5060116 | E33: 653.1209869 | F33: 658.7846537 | G33: 664.497434 | H33: 670.2597538 | I33: 676.0720427 | J33: 681.9347339
A34: DPA0206 | B34: Underground SWER | C34: km | D34: 5.918468 | E34: 5.918468 | F34: 5.918468 | G34: 5.918468 | H34: 5.918468 | I34: 5.918468 | J34: 5.918468
A35: DPA0207 | B35: Underground 22 kV | C35: km | D35: 552.3050784 | E35: 559.164696 | F35: 566.1095099 | G35: 573.1405783 | H35: 580.2589723 | I35: 587.4657767 | J35: 594.7620894
A36: DPA0208 | B36: Underground 33 kV | C36: km | D36: 67.54298232 | E36: 68.20694399 | F36: 68.87743254 | G36: 69.55451214 | H36: 70.23824757 | I36: 70.92870426 | J36: 71.62594828
A37: DPA0209 | B37: Underground 66 kV | C37: km | D37: 0 | E37: 0 | F37: 0 | G37: 0 | H37: 0 | I37: 0 | J37: 0
A38: DPA0210 | B38: Underground 110 kV | C38: km | D38: 0 | E38: 0 | F38: 0 | G38: 0 | H38: 0 | I38: 0 | J38: 0
A39: DPA0211 | B39: Underground 132 kV | C39: km | D39: 0 | E39: 0 | F39: 0 | G39: 0 | H39: 0 | I39: 0 | J39: 0
A40: DPA0212 | B40: Other | C40: km | D40: 0 | E40: 0 | F40: 0 | G40: 0 | H40: 0 | I40: 0 | J40: 0
A41: DPA02 | B41: Total underground circuit km | D41: =SUM(D29:D40) -> 2713.616173 | E41: 2753.114719 | F41: 2793.236134 | G41: 2833.990792 | H41: 2875.389248 | I41: 2917.442236 | J41: 2960.160679
B43: CIRCUIT CAPACITY MVA
B44: 3.5.1.3 - Estimated overhead network weighted average MVA capacity by voltage class
A45: DPA0301 | B45: Overhead low voltage distribution | C45: MVA | D45: 0.05482442136 | E45: 0.05482442136 | F45: 0.05482442136 | G45: 0.05482442136 | H45: 0.05482442136 | I45: 0.05482442136 | J45: 0.05482442136
A46: DPA0302 | B46: Overhead 6.6 kV | C46: MVA | D46: 7.822606992 | E46: 7.822606992 | F46: 7.822606992 | G46: 7.822606992 | H46: 7.822606992 | I46: 7.822606992 | J46: 7.822606992
A47: DPA0303 | B47: Overhead 7.6 kV | C47: MVA | D47: 0 | E47: 0 | F47: 0 | G47: 0 | H47: 0 | I47: 0 | J47: 0
A48: DPA0304 | B48: Overhead 11 kV | C48: MVA | D48: 4.32826411 | E48: 4.32181476 | F48: 4.31537502 | G48: 4.308944875 | H48: 4.302524311 | I48: 4.296113315 | J48: 4.289711871
A49: DPA0305 | B49: Overhead SWER | C49: MVA | D49: 0.6863519333 | E49: 0.6936486399 | F49: 0.7010229189 | G49: 0.7084755949 | H49: 0.7160075013 | I49: 0.7236194806 | J49: 0.7313123838
A50: DPA0306 | B50: Overhead 22 kV | C50: MVA | D50: 7.543900456 | E50: 7.551330999 | F50: 7.558768861 | G50: 7.566214049 | H50: 7.57366657 | I50: 7.581126432 | J50: 7.588593642
A51: DPA0307 | B51: Overhead 33 kV | C51: MVA | D51: 23.1752244 | E51: 23.17547458 | F51: 23.17572476 | G51: 23.17597495 | H51: 23.17622514 | I51: 23.17647533 | J51: 23.17672552
A52: DPA0308 | B52: Overhead 44 kV | C52: MVA | D52: 29.75788011 | E52: 29.75788011 | F52: 29.75788011 | G52: 29.75788011 | H52: 29.75788011 | I52: 29.75788011 | J52: 29.75788011
A53: DPA0309 | B53: Overhead 66 kV | C53: MVA | D53: 0 | E53: 0 | F53: 0 | G53: 0 | H53: 0 | I53: 0 | J53: 0
A54: DPA0310 | B54: Overhead 110 kV | C54: MVA | D54: 0 | E54: 0 | F54: 0 | G54: 0 | H54: 0 | I54: 0 | J54: 0
A55: DPA0311 | B55: Overhead 132 kV | C55: MVA | D55: 0 | E55: 0 | F55: 0 | G55: 0 | H55: 0 | I55: 0 | J55: 0
A56: DPA0312 | B56: Overhead 220 kV | C56: MVA | D56: 0 | E56: 0 | F56: 0 | G56: 0 | H56: 0 | I56: 0 | J56: 0
A57: DPA0313 | B57: Other | C57: MVA | D57: 0 | E57: 0 | F57: 0 | G57: 0 | H57: 0 | I57: 0 | J57: 0
B58: 3.5.1.4 - Estimated underground network weighted average MVA capacity by voltage class
A59: DPA0401 | B59: Underground low voltage distribution | C59: MVA | D59: 0.5717723254 | E59: 0.5725556321 | F59: 0.5733400118 | G59: 0.5741254661 | H59: 0.5749119965 | I59: 0.5756996044 | J59: 0.5764882912
A60: DPA0402 | B60: Underground 5 kV | C60: MVA | D60: 0 | E60: 0 | F60: 0 | G60: 0 | H60: 0 | I60: 0 | J60: 0
A61: DPA0403 | B61: Underground 6.6 kV | C61: MVA | D61: 4.744127899 | E61: 4.744131842 | F61: 4.744135784 | G61: 4.744139727 | H61: 4.744143669 | I61: 4.744147611 | J61: 4.744151554
A62: DPA0404 | B62: Underground 7.6 kV | C62: MVA | D62: 0 | E62: 0 | F62: 0 | G62: 0 | H62: 0 | I62: 0 | J62: 0
A63: DPA0405 | B63: Underground 11 kV | C63: MVA | D63: 5.945808099 | E63: 5.94669405 | F63: 5.947580133 | G63: 5.948466349 | H63: 5.949352696 | I63: 5.950239175 | J63: 5.951125787
A64: DPA0406 | B64: Underground SWER | C64: MVA | D64: 0.2492993119 | E64: 0.2492993119 | F64: 0.2492993119 | G64: 0.2492993119 | H64: 0.2492993119 | I64: 0.2492993119 | J64: 0.2492993119
A65: DPA0407 | B65: Underground 12.7 kV | C65: MVA | D65: 0 | E65: 0 | F65: 0 | G65: 0 | H65: 0 | I65: 0 | J65: 0
A66: DPA0408 | B66: Underground 22 kV | C66: MVA | D66: 11.22972483 | E66: 11.22684737 | F66: 11.22397065 | G66: 11.22109466 | H66: 11.21821941 | I66: 11.2153449 | J66: 11.21247113
A67: DPA0409 | B67: Underground 33 kV | C67: MVA | D67: 25.59534133 | E67: 25.62953776 | F67: 25.66377988 | G67: 25.69806775 | H67: 25.73240143 | I67: 25.76678098 | J67: 25.80120646
A68: DPA0410 | B68: Underground 66 kV | C68: MVA | D68: 0 | E68: 0 | F68: 0 | G68: 0 | H68: 0 | I68: 0 | J68: 0
A69: DPA0411 | B69: Underground 110 kV | C69: MVA | D69: 0 | E69: 0 | F69: 0 | G69: 0 | H69: 0 | I69: 0 | J69: 0
A70: DPA0412 | B70: Underground 132 kV | C70: MVA | D70: 0 | E70: 0 | F70: 0 | G70: 0 | H70: 0 | I70: 0 | J70: 0
A71: DPA0413 | B71: Other | C71: MVA | D71: 0 | E71: 0 | F71: 0 | G71: 0 | H71: 0 | I71: 0 | J71: 0
B75: 3.5.2 - TRANSFORMER CAPACITIES VARIABLES
D76: VOLUMES
C77: Units | D77: =CRCP_y4 -> 2022-23 | E77: =CRCP_y5 -> 2023-24 | F77: =FRCP_y1 -> 2024-25 | G77: =FRCP_y2 -> 2025-26 | H77: =FRCP_y3 -> 2026-27 | I77: =FRCP_y4 -> 2027-28 | J77: =FRCP_y5 -> 2028-29
B78: Distribution transformer total installed capacity
A79: DPA0501 | B79: Distribution transformer capacity owned by utility | C79: MVA | D79: 4178.069032 | E79: 4367.923177 | F79: 4566.404417 | G79: 4773.904772 | H79: 4990.834077 | I79: 5217.620789 | J79: 5454.712834
A80: DPA0502 | B80: Distribution transformer capacity owned by High Voltage Customers | C80: MVA | D80: 116.4820582 | E80: 118.4984269 | F80: 120.5497 | G80: 122.6364819 | H80: 124.759387 | I80: 126.9190409 | J80: 129.1160795
A81: DPA0503 | B81: Cold spare capacity included in DPA0501 | C81: MVA | D81: 106.5393507 | E81: 111.7496282 | F81: 117.214713 | G81: 122.9470662 | H81: 128.9597586 | I81: 135.2665 | J81: 141.8816709
B82: Zone substation transformer capacity
A83: DPA0601 | B83: Total installed capacity for first step transformation where there are two steps to reach distribution voltage | C83: MVA | D83: 2473.467 | E83: 2473.467 | F83: 2473.467 | G83: 2473.467 | H83: 2473.467 | I83: 2473.467 | J83: 2473.467
A84: DPA0602 | B84: Total installed capacity for second step transformation where there are two steps to reach distribution voltage | C84: MVA | D84: 0 | E84: 0 | F84: 0 | G84: 0 | H84: 0 | I84: 0 | J84: 0
A85: DPA0603 | B85: Total zone substation transformer capacity where there is only a single step transformation to reach distribution voltage | C85: MVA | D85: 693.1359961 | E85: 706.5257487 | F85: 720.1741598 | G85: 734.0862259 | H85: 748.2670404 | I85: 762.7217948 | J85: 777.4557809
A86: DPA0604 | B86: Total zone substation transformer capacity | C86: MVA | D86: 680.3597884 | E86: 680.7197671 | F86: 681.0799363 | G86: 681.440296 | H86: 681.8008464 | I86: 682.1615876 | J86: 682.5225197
A87: DPA0605 | B87: Cold spare capacity of zone substation transformers included in DPA0604 | C87: MVA | D87: 0 | E87: 0 | F87: 0 | G87: 0 | H87: 0 | I87: 0 | J87: 0
B91: 3.5.3 - PUBLIC LIGHTING
D92: VOLUMES
C93: Units | D93: =CRCP_y4 -> 2022-23 | E93: =CRCP_y5 -> 2023-24 | F93: =FRCP_y1 -> 2024-25 | G93: =FRCP_y2 -> 2025-26 | H93: =FRCP_y3 -> 2026-27 | I93: =FRCP_y4 -> 2027-28 | J93: =FRCP_y5 -> 2028-29
A94: DPA0701 | B94: Public lighting luminaires | C94: 0's | D94: 50537 | E94: 50537 | F94: 50537 | G94: 50537 | H94: 50537 | I94: 50537 | J94: 50537
A95: DPA0702 | B95: Public lighting poles | C95: 0's | D95: 1589 | E95: 1589 | F95: 1589 | G95: 1589 | H95: 1589 | I95: 1589 | J95: 1589

Sheet 3.6 Quality of service
B1: =INDEX(dms_Worksheet_List,MATCH(dms_Model,dms_Model_List)) -> REGULATORY REPORTING STATEMENT
B2: =INDEX(dms_TradingNameFull_List,MATCH(dms_TradingName,dms_TradingName_List)) -> TasNetworks (D)
B3: =CONCATENATE("REGULATORY PERIOD FROM ", FRCP_y1," TO ",dms_MultiYear_FinalYear_Result) -> REGULATORY PERIOD FROM 2024-25 TO 2028-29
B4: 3.6 QUALITY OF SERVICE DATA
B6: 3.6.2 - ENERGY NOT SUPPLIED
D7: FORECAST
C8: Units | D8: 2022-23 | E8: 2023-24 | F8: 2024-25 | G8: 2025-26 | H8: 2026-27 | I8: 2027-28 | J8: 2028-29
A9: DQS0201 | B9: Energy Not Supplied (planned) | C9: GWh | D9: 0.561 | E9: 0.561 | F9: 0.561 | G9: 0.561 | H9: 0.561 | I9: 0.561 | J9: 0.561
A10: DQS0202 | B10: Energy Not Supplied (unplanned) | C10: GWh | D10: 1.8165 | E10: 1.856 | F10: 1.8955 | G10: 1.935 | H10: 1.9745 | I10: 2.014 | J10: 2.0535
A11: DQS02 | B11: Total | D11: =SUM(D9:D10) -> 2.3775 | E11: 2.417 | F11: 2.4565 | G11: 2.496 | H11: 2.5355 | I11: 2.575 | J11: 2.6145
B13: 3.6.3 - SYSTEM LOSSES
D14: FORECAST
C15: Units | D15: 2022-23 | E15: 2023-24 | F15: 2024-25 | G15: 2025-26 | H15: 2026-27 | I15: 2027-28 | J15: 2028-29
A16: DQS03 | B16: System losses | C16: % | D16: 0.03846295315 | E16: 0.03846295315 | F16: 0.03846295315 | G16: 0.03846295315 | H16: 0.03846295315 | I16: 0.03846295315 | J16: 0.03846295315
B18: 3.6.4 - CAPACITY UTILISATION
D19: FORECAST
C20: Units | D20: 2022-23 | E20: 2023-24 | F20: 2024-25 | G20: 2025-26 | H20: 2026-27 | I20: 2027-28 | J20: 2028-29
A21: DQS04 | B21: Overall utilisation | C21: % | D21: 0.4182845238 | E21: 0.4360598274 | F21: 0.4526342095 | G21: 0.4639173707 | H21: 0.4775398386 | I21: 0.486205921 | J21: 0.4865285837

Sheet 3.7 Operating Environment
B1: =INDEX(dms_Worksheet_List,MATCH(dms_Model,dms_Model_List)) -> REGULATORY REPORTING STATEMENT
B2: =INDEX(dms_TradingNameFull_List,MATCH(dms_TradingName,dms_TradingName_List)) -> TasNetworks (D)
B3: =CONCATENATE("REGULATORY PERIOD FROM ", FRCP_y1," TO ",dms_MultiYear_FinalYear_Result) -> REGULATORY PERIOD FROM 2024-25 TO 2028-29
B4: 3.7 OPERATING ENVIRONMENT FACTORS
B6: There are THREE tables on this worksheet. Each table has been grouped (and sub-grouped) for ease of navigation. See the Instructions sheet on how to group or ungroup tables.
A8: DOEF01 | B8: 3.7.1 - DENSITY FACTORS
D9: Forecast
C10: Units | D10: 2022-23 | E10: 2023-24 | F10: 2024-25 | G10: 2025-26 | H10: 2026-27 | I10: 2027-28 | J10: 2028-29
A11: DOEF0101 | B11: Customer density | C11: Customer / km | D11: 17.27899408
A12: DOEF0102 | B12: Energy density | C12: MWh/customer | D12: 8.411344383
A13: DOEF0103 | B13: Demand density | C13: kVA / customer | D13: 0.9443918023
A15: DOEF02 | B15: 3.7.2 - TERRAIN FACTORS
D16: Forecast
C17: Units | D17: 2022-23 | E17: 2023-24 | F17: 2024-25 | G17: 2025-26 | H17: 2026-27 | I17: 2027-28 | J17: 2028-29
A18: DOEF0201 | B18: Rural proportion | C18: % | D18: 0.7508750236
A19: DOEF0202 | B19: Urban and CBD vegetation maintenance spans | C19: 0's | D19: 9374
A20: DOEF0203 | B20: Rural vegetation maintenance spans | C20: 0's | D20: 30233
A21: DOEF0204 | B21: Total vegetation maintenance spans | C21: 0's | D21: 39607
A22: DOEF0205 | B22: Total number of spans | C22: 0's | D22: 381704
A23: DOEF0206 | B23: Average urban and CBD vegetation maintenance span cycle | C23: Years | D23: 1
A24: DOEF0207 | B24: Average rural vegetation maintenance span cycle | C24: Years | D24: 2
A25: DOEF0208 | B25: Average number of trees per urban and CBD vegetation maintenance span | C25: Trees | D25: 1.722883134
A26: DOEF0209 | B26: Average number of trees per rural vegetation maintenance span | C26: Trees | D26: 9.503480469
A27: DOEF0210 | B27: Average number of defects per urban and CBD vegetation maintenance span | C27: Defects | D27: 1.549267006
A28: DOEF0211 | B28: Average number of defects per rural vegetation maintenance span | C28: Defects | D28: 4.584909973
A29: DOEF0212 | B29: Tropical proportion | C29: Spans | D29: 0
A30: DOEF0213 | B30: Standard vehicle access | C30: km | D30: 2171 | E30: 2171 | F30: 2171 | G30: 2171 | H30: 2171 | I30: 2171 | J30: 2171
A31: DOEF0214 | B31: Bushfire risk | C31: Spans | D31: 12593
A33: DOEF03 | B33: 3.7.3 - SERVICE AREA FACTORS
D34: Forecast
C35: Units | D35: 2022-23 | E35: 2023-24 | F35: 2024-25 | G35: 2025-26 | H35: 2026-27 | I35: 2027-28 | J35: 2028-29
A36: DOEF0301 | B36: Route Line length | C36: km | D36: 17439.7305 | E36: 17462.49067 | F36: 17485.28054 | G36: 17508.10015 | H36: 17530.94954 | I36: 17553.82875 | J36: 17576.73783

Sheet 4.1 Public lighting
B1: =INDEX(dms_Worksheet_List,MATCH(dms_Model,dms_Model_List)) -> REGULATORY REPORTING STATEMENT
B2: =INDEX(dms_TradingNameFull_List,MATCH(dms_TradingName,dms_TradingName_List)) -> TasNetworks (D)
B3: =CONCATENATE("REGULATORY PERIOD FROM ", FRCP_y1," TO ",dms_MultiYear_FinalYear_Result) -> REGULATORY PERIOD FROM 2024-25 TO 2028-29
B4: 4.1 PUBLIC LIGHTING
B6: There are TWO tables on this worksheet. Each table has been grouped (and sub-grouped) for ease of navigation. See the Instructions sheet on how to group or ungroup tables.
B8: 4.1.2 - DESCRIPTOR METRICS ANNUALLY
D9: VOLUMES & EXPENDITURE
C10: Units | D10: =CRCP_y4 -> 2022-23 | E10: =CRCP_y5 -> 2023-24 | F10: =FRCP_y1 -> 2024-25 | G10: =FRCP_y2 -> 2025-26 | H10: =FRCP_y3 -> 2026-27 | I10: =FRCP_y4 -> 2027-28 | J10: =FRCP_y5 -> 2028-29
B11: LIGHT INSTALLATION
B12: Number of lights installed | C12: 0's | D12: 410 | E12: 410 | F12: 410 | G12: 410 | H12: 410 | I12: 410 | J12: 410
B13: Number of poles installed | C13: 0's | D13: 0 | E13: 0 | F13: 0 | G13: 0 | H13: 0 | I13: 0 | J13: 0
B14: Total expenditure | C14: $0's | D14: 0 | E14: 0 | F14: 0 | G14: 0 | H14: 0 | I14: 0 | J14: 0
B15: LIGHT REPLACEMENT
B16: Number of lights replaced | C16: 0's | D16: 1570 | E16: 1570 | F16: 6705 | G16: 3762 | H16: 3797 | I16: 3312 | J16: 1935
B17: Number of poles replaced | C17: 0's | D17: 35 | E17: 55 | F17: 40 | G17: 40 | H17: 40 | I17: 40 | J17: 40
B18: Total expenditure | C18: $0's | D18: 2991989.367 | E18: 2991989.367 | F18: 2991989.367 | G18: 2991989.367 | H18: 2991989.367 | I18: 2991989.367 | J18: 2991989.367
B19: LIGHT MAINTENANCE
B20: Number of lights maintained | C20: 0's | D20: 6523 | E20: 6625 | F20: 400 | G20: 1000 | H20: 2500 | I20: 2500 | J20: 2500
B21: Number of poles maintained | C21: 0's | D21: 0 | E21: 0 | F21: 0 | G21: 0 | H21: 0 | I21: 0 | J21: 0
B22: Total expenditure | C22: $0's | D22: 1126455.004 | E22: 1126455.004 | F22: 1126455.004 | G22: 1126455.004 | H22: 1126455.004 | I22: 1126455.004 | J22: 1126455.004
B23: QUALITY OF SUPPLY
B24: Mean days to rectify/replace public lighting assets | C24: days | D24: 0 | E24: 0 | F24: 0 | G24: 0 | H24: 0 | I24: 0 | J24: 0
B25: GSO breaches | C25: 0's | D25: 0 | E25: 0 | F25: 0 | G25: 0 | H25: 0 | I25: 0 | J25: 0
B26: GSL payments | C26: $0's | D26: 0 | E26: 0 | F26: 0 | G26: 0 | H26: 0 | I26: 0 | J26: 0
B27: Customer complaints | C27: 0's | D27: 0 | E27: 0 | F27: 0 | G27: 0 | H27: 0 | I27: 0 | J27: 0
B31: 4.1.3 - COST METRICS
D32: =CONCATENATE("AVERAGE UNIT COST ($0's, real ",dms_DollarReal, ")") -> AVERAGE UNIT COST ($0's, real June 2024)
D33: =CRCP_y4 -> 2022-23 | E33: =CRCP_y5 -> 2023-24 | F33: =FRCP_y1 -> 2024-25 | G33: =FRCP_y2 -> 2025-26 | H33: =FRCP_y3 -> 2026-27 | I33: =FRCP_y4 -> 2027-28 | J33: =FRCP_y5 -> 2028-29
B34: LIGHT INSTALLATION
B95: LIGHT REPLACEMENT
B96: LED 18 | D96: 1060.922876 | E96: 1060.922876 | F96: 1059.103408 | G96: 1060.922876 | H96: 1061.833275 | I96: 1062.256027 | J96: 1063.028868
B97: LED 14 | D97: 995.4857596 | E97: 995.4857596 | F97: 995.4857596 | G97: 997.3052281 | H97: 998.2156274 | I97: 998.6383786 | J97: 999.4112195
B156: LIGHT MAINTENANCE
B157: 50W Mercury Vapour | D157: 475.2908922 | E157: 475.2908922 | F157: 475.2908922 | G157: 477.1103607 | H157: 0 | I157: 0 | J157: 0
B158: 80W Mercury Vapour | D158: 475.2908922 | E158: 475.2908922 | F158: 475.2908922 | G158: 477.1103607 | H158: 0 | I158: 0 | J158: 0
B159: 125W Mercury Vapour | D159: 496.6410316 | E159: 496.6410316 | F159: 496.6410316 | G159: 498.7204242 | H159: 0 | I159: 0 | J159: 0
B160: 250W Mercury Vapour | D160: 496.6410316 | E160: 496.6410316 | F160: 496.6410316 | G160: 498.7204242 | H160: 0 | I160: 0 | J160: 0
B161: 400W Mercury Vapour | D161: 649.11958 | E161: 649.11958 | F161: 649.11958 | G161: 651.1989726 | H161: 0 | I161: 0 | J161: 0
B162: 70W Sodium Vapour | D162: 473.6515761 | E162: 473.6515761 | F162: 473.6515761 | G162: 475.4710446 | H162: 0 | I162: 0 | J162: 0
B163: 100W Sodium Vapour | D163: 521.8399781 | E163: 521.8399781 | F163: 521.8399781 | G163: 523.9193707 | H163: 0 | I163: 0 | J163: 0
B164: 150W Sodium Vapour | D164: 575.4168151 | E164: 575.4168151 | F164: 575.4168151 | G164: 577.4962077 | H164: 0 | I164: 0 | J164: 0
B165: 250W Sodium Vapour | D165: 612.0651291 | E165: 612.0651291 | F165: 612.0651291 | G165: 614.1445217 | H165: 0 | I165: 0 | J165: 0
B166: 400W Sodium Vapour | D166: 639.5162892 | E166: 639.5162892 | F166: 639.5162892 | G166: 641.5956817 | H166: 0 | I166: 0 | J166: 0
B167: 250W Sodium Vapour - Flood Light | D167: 675.3154079 | E167: 675.3154079 | F167: 675.3154079 | G167: 677.3948005 | H167: 0 | I167: 0 | J167: 0
B168: 400W Sodium Vapour - Flood Light | D168: 639.5162892 | E168: 639.5162892 | F168: 639.5162892 | G168: 641.5956817 | H168: 0 | I168: 0 | J168: 0
B169: 1x20W Fluorescent | D169: 574.6910442 | E169: 574.6910442 | F169: 574.6910442 | G169: 576.5105127 | H169: 0 | I169: 0 | J169: 0
B170: 1x40W Fluorescent | D170: 574.6910442 | E170: 574.6910442 | F170: 574.6910442 | G170: 576.5105127 | H170: 0 | I170: 0 | J170: 0
B171: 2x20W Fluorescent | D171: 574.6910442 | E171: 574.6910442 | F171: 574.6910442 | G171: 576.5105127 | H171: 0 | I171: 0 | J171: 0
B172: 2x24W Fluorescent | D172: 574.6910442 | E172: 574.6910442 | F172: 574.6910442 | G172: 576.5105127 | H172: 0 | I172: 0 | J172: 0
B173: 2x40W Fluorescent | D173: 574.6910442 | E173: 574.6910442 | F173: 574.6910442 | G173: 576.5105127 | H173: 0 | I173: 0 | J173: 0
B174: 4x40W Fluorescent | D174: 574.6910442 | E174: 574.6910442 | F174: 574.6910442 | G174: 576.5105127 | H174: 0 | I174: 0 | J174: 0
B175: 32W Compact Fluorescent | D175: 0 | E175: 0 | F175: 0 | G175: 0 | H175: 0 | I175: 0 | J175: 0
B176: 42W Compact Fluorescent | D176: 574.6910442 | E176: 574.6910442 | F176: 574.6910442 | G176: 576.5105127 | H176: 0 | I176: 0 | J176: 0
B177: 60W Incandescent | D177: 473.6515761 | E177: 473.6515761 | F177: 473.6515761 | G177: 475.4710446 | H177: 0 | I177: 0 | J177: 0
B178: 100W Incandescent | D178: 495.0017155 | E178: 495.0017155 | F178: 495.0017155 | G178: 497.0811081 | H178: 0 | I178: 0 | J178: 0
B180: 150W Metal Halide | D180: 570.1333437 | E180: 570.1333437 | F180: 570.1333437 | G180: 572.2127363 | H180: 0 | I180: 0 | J180: 0
B181: 250W Metal Halide | D181: 566.9045556 | E181: 566.9045556 | F181: 566.9045556 | G181: 568.9839482 | H181: 0 | I181: 0 | J181: 0
B182: 400W Metal Halide | D182: 1071.80837 | E182: 1071.80837 | F182: 1071.80837 | G182: 1073.887763 | H182: 0 | I182: 0 | J182: 0
B184: LED 18 | D184: 639.5824851 | E184: 639.5824851 | F184: 639.5824851 | G184: 641.4019536 | H184: 642.3123529 | I184: 642.7351041 | J184: 643.507945
B185: LED 20 | D185: 1475.041095 | E185: 1475.041095 | F185: 1475.041095 | G185: 1476.860564 | H185: 1477.770963 | I185: 1478.193714 | J185: 1478.966555
B186: LED 200 | D186: 1375.081845 | E186: 1375.081845 | F186: 1375.081845 | G186: 1377.161237 | H186: 1378.201694 | I186: 1378.684838 | J186: 1379.568085
B187: LED 240 | D187: 1375.081845 | E187: 1375.081845 | F187: 1375.081845 | G187: 1377.161237 | H187: 1378.201694 | I187: 1378.684838 | J187: 1379.568085
B188: LED 25 | D188: 1268.930328 | E188: 1268.930328 | F188: 1268.930328 | G188: 1270.749796 | H188: 1271.660195 | I188: 1272.082947 | J188: 1272.855788
B189: LED 265 | D189: 1162.070443 | E189: 1162.070443 | F189: 1162.070443 | G189: 1164.149835 | H189: 1165.190292 | I189: 1165.673436 | J189: 1166.556682
B191: LED 75 | D191: 1105.796225 | E191: 1105.796225 | F191: 1105.796225 | G191: 1107.615693 | H191: 1108.526093 | I191: 1108.948844 | J191: 1109.721685
B192: LED 155 | D192: 496.6410316 | E192: 496.6410316 | F192: 496.6410316 | G192: 498.7204242 | H192: 499.7608806 | I192: 500.2440248 | J192: 501.1272715
B193: LED 14 | D193: 575.9648371 | E193: 575.9648371 | F193: 575.9648371 | G193: 577.7843056 | H193: 578.6947049 | I193: 579.1174561 | J193: 579.890297
B194: LED 17 | D194: 932.2170201 | E194: 932.2170201 | F194: 932.2170201 | G194: 934.0364886 | H194: 934.9468879 | I194: 935.3696391 | J194: 936.14248
B195: LED 175 | D195: 1103.265516 | E195: 1103.265516 | F195: 1103.265516 | G195: 1105.344909 | H195: 1106.385365 | I195: 1106.86851 | J195: 1107.751756
B196: LED 14 New Tech | D196: 614.2151764 | E196: 614.2151764 | F196: 614.2151764 | G196: 616.0346449 | H196: 616.9450443 | I196: 617.3677954 | J196: 618.1406363
B197: LED 75 New Tech | D197: 1105.796225 | E197: 1105.796225 | F197: 1105.796225 | G197: 1107.615693 | H197: 1108.526093 | I197: 1108.948844 | J197: 1109.721685

Sheet 5.4 MD & utilisation-Spatial
B1: =INDEX(dms_Worksheet_List,MATCH(dms_Model,dms_Model_List)) -> REGULATORY REPORTING STATEMENT
B2: =INDEX(dms_TradingNameFull_List,MATCH(dms_TradingName,dms_TradingName_List)) -> TasNetworks (D)
B3: =CONCATENATE("REGULATORY PERIOD FROM ", FRCP_y1," TO ",dms_MultiYear_FinalYear_Result) -> REGULATORY PERIOD FROM 2024-25 TO 2028-29
B4: 5.4 MAXIMUM DEMAND AND UTILISATION AT SPATIAL LEVEL
B6: There are two tables on this worksheet. The tables have been sub-grouped for ease of navigation. See the Instructions sheet on how to group or ungroup tables.
B8: 5.4.1 - NON-COINCIDENT & COINCIDENT MAXIMUM DEMAND
B9: SUBTRANSMISSION SUBSTATION
F10: DEMAND
B11: SUBSTATION | C11: FORECASTING ELEMENTS | D11: UNIT | E11: MAX DEMAND | F11: =CRCP_y4 -> 2022-23 | G11: =CRCP_y5 -> 2023-24 | H11: =FRCP_y1 -> 2024-25 | I11: =FRCP_y2 -> 2025-26 | J11: =FRCP_y3 -> 2026-27 | K11: =FRCP_y4 -> 2027-28 | L11: =FRCP_y5 -> 2028-29
B12: Bellerive | C12: Substation Rating | D12: MVA | E12: Non-Coincident | F12: 58.5 | G12: 58.5 | H12: 58.5 | I12: 58.5 | J12: 58.5 | K12: 58.5 | L12: 58.5
E13: Coincident | F13: 58.5 | G13: 58.5 | H13: 58.5 | I13: 58.5 | J13: 58.5 | K13: 58.5 | L13: 58.5
C14: Raw Adjusted MD | D14: MW | E14: Non-Coincident
E15: Coincident
C16: Raw Adjusted MD | D16: MVA | E16: Non-Coincident
E17: Coincident
C18: Date MD occurred | E18: Non-Coincident
E19: Coincident
C20: Half hour time period MD occurred | E20: Non-Coincident
E21: Coincident
C22: Winter/Summer Peaking | E22: Non-Coincident | F22: Winter | G22: Winter | H22: Winter | I22: Winter | J22: Winter | K22: Winter | L22: Winter
E23: Coincident | F23: Winter | G23: Winter | H23: Winter | I23: Winter | J23: Winter | K23: Winter | L23: Winter
C24: Adjustments - Embedded generation | D24: MW | E24: Non-Coincident
E25: Coincident
C26: Weather Corrected 10% POE | D26: MW | E26: Non-Coincident | F26: 10.8611612 | G26: 11.65510003 | H26: 11.71840038 | I26: 12.01546094 | J26: 12.37556237 | K26: 12.60760122 | L26: 12.62210853
E27: Coincident | F27: 9.951128825 | G27: 10.67854529 | H27: 10.73654185 | I27: 11.00871237 | J27: 11.33864171 | K27: 11.55123854 | L27: 11.56453032
C28: Weather Corrected MD 10% POE | D28: MVA | E28: Non-Coincident | F28: 10.86556735 | G28: 11.65982826 | H28: 11.72315429 | I28: 12.02033536 | J28: 12.38058288 | K28: 12.61271585 | L28: 12.62722906
E29: Coincident | F29: 9.955165787 | G29: 10.68287735 | H29: 10.74089744 | I29: 11.01317837 | J29: 11.34324156 | K29: 11.55592463 | L29: 11.56922181
C30: Weather Corrected MD 50% POE | D30: MW | E30: Non-Coincident | F30: 12.76738523 | G30: 12.82026289 | H30: 12.87335956 | I30: 12.92667613 | J30: 12.98021352 | K30: 13.03397265 | L30: 13.08795442
E31: Coincident | F31: 11.6976346 | G31: 11.74608177 | H31: 11.79472959 | I31: 11.84357888 | J31: 11.89263049 | K31: 11.94188526 | L31: 11.99134402
C32: Weather Corrected MD 50% POE | D32: MVA | E32: Non-Coincident | F32: 12.77256468 | G32: 12.8254638 | H32: 12.87858201 | I32: 12.93192021 | J32: 12.98547932 | K32: 13.03926025 | L32: 13.09326392
E33: Coincident | F33: 11.70238009 | G33: 11.75084691 | H33: 11.79951446 | I33: 11.84838357 | J33: 11.89745508 | K33: 11.94672983 | L33: 11.99620865
B34: Cambridge | C34: Substation Rating | D34: MVA | E34: Non-Coincident | F34: 52 | G34: 52 | H34: 52 | I34: 52 | J34: 52 | K34: 52 | L34: 52
E35: Coincident | F35: 52 | G35: 52 | H35: 52 | I35: 52 | J35: 52 | K35: 52 | L35: 52
C36: Raw Adjusted MD | D36: MW | E36: Non-Coincident
E37: Coincident
C38: Raw Adjusted MD | D38: MVA | E38: Non-Coincident
E39: Coincident
C40: Date MD occurred | E40: Non-Coincident
E41: Coincident
C42: Half hour time period MD occurred | E42: Non-Coincident
E43: Coincident
C44: Winter/Summer Peaking | E44: Non-Coincident | F44: Winter | G44: Winter | H44: Winter | I44: Winter | J44: Winter | K44: Winter | L44: Winter
E45: Coincident | F45: Winter | G45: Winter | H45: Winter | I45: Winter | J45: Winter | K45: Winter | L45: Winter
C46: Adjustments - Embedded generation | D46: MW | E46: Non-Coincident
E47: Coincident
C48: Weather Corrected 10% POE | D48: MW | E48: Non-Coincident | F48: 17.44399922 | G48: 17.92496667 | H48: 18.02231947 | I48: 18.4791839 | J48: 19.03300207 | K48: 19.38986633 | L48: 19.41217786
E49: Coincident | F49: 15.96347039 | G49: 16.40361656 | H49: 16.49270672 | I49: 16.91079558 | J49: 17.4176094 | K49: 17.74418543 | L49: 17.76460331
C50: Weather Corrected MD 10% POE | D50: MVA | E50: Non-Coincident | F50: 17.62542495 | G50: 18.11139468 | H50: 18.20976 | I50: 18.67137603 | J50: 19.23095417 | K50: 19.59152998 | L50: 19.61407357
E51: Coincident | F51: 16.12832075 | G51: 16.5730122 | H51: 16.66302236 | I51: 17.08542871 | J51: 17.59747627 | K51: 17.92742476 | L51: 17.94805349
C52: Weather Corrected MD 50% POE | D52: MW | E52: Non-Coincident | F52: 16.21871873 | G52: 16.32765642 | H52: 16.43746323 | I52: 16.54814696 | J52: 16.65971545 | K52: 16.77217664 | L52: 16.88553854
E53: Coincident | F53: 14.84732002 | G53: 14.94749643 | H53: 15.04847484 | I53: 15.15026245 | J53: 15.25286654 | K53: 15.35629442 | L53: 15.4605535
C54: Weather Corrected MD 50% POE | D54: MVA | E54: Non-Coincident | F54: 16.38355215 | G54: 16.49325971 | H54: 16.60384047 | I54: 16.71530223 | J54: 16.82765287 | K54: 16.94090034 | L54: 17.05505269
E55: Coincident | F55: 14.99711098 | G55: 15.09798853 | H55: 15.1996718 | I55: 15.30216802 | J55: 15.40548445 | K55: 15.50962847 | L55: 15.61460751
B56: Claremont | C56: Substation Rating | D56: MVA | E56: Non-Coincident | F56: 58.5 | G56: 58.5 | H56: 58.5 | I56: 58.5 | J56: 58.5 | K56: 58.5 | L56: 58.5
E57: Coincident | F57: 58.5 | G57: 58.5 | H57: 58.5 | I57: 58.5 | J57: 58.5 | K57: 58.5 | L57: 58.5
C58: Raw Adjusted MD | D58: MW | E58: Non-Coincident
E59: Coincident
C60: Raw Adjusted MD | D60: MVA | E60: Non-Coincident
E61: Coincident
C62: Date MD occurred | E62: Non-Coincident
E63: Coincident
C64: Half hour time period MD occurred | E64: Non-Coincident
E65: Coincident
C66: Winter/Summer Peaking | E66: Non-Coincident | F66: Winter | G66: Winter | H66: Winter | I66: Winter | J66: Winter | K66: Winter | L66: Winter
E67: Coincident | F67: Winter | G67: Winter | H67: Winter | I67: Winter | J67: Winter | K67: Winter | L67: Winter
C68: Adjustments - Embedded generation | D68: MW | E68: Non-Coincident
E69: Coincident
C70: Weather Corrected 10% POE | D70: MW | E70: Non-Coincident | F70: 23.81827696 | G70: 24.47499654 | H70: 24.6079234 | I70: 25.23173238 | J70: 25.98792335 | K70: 26.47519072 | L70: 26.5056552
E71: Coincident | F71: 21.64955794 | G71: 22.24648141 | H71: 22.36730491 | I71: 22.93431439 | J71: 23.62165211 | K71: 24.06455246 | L71: 24.09224306
C72: Weather Corrected MD 10% POE | D72: MVA | E72: Non-Coincident | F72: 23.89345274 | G72: 24.55224507 | H72: 24.68559148 | I72: 25.31136935 | J72: 26.06994702 | K72: 26.55875231 | L72: 26.58931294
E73: Coincident | F73: 21.71788876 | G73: 22.31669626 | H73: 22.43790111 | I73: 23.00670019 | J73: 23.6962073 | K73: 24.14050554 | L73: 24.16828354
C74: Weather Corrected MD 50% POE | D74: MW | E74: Non-Coincident | F74: 24.30814163 | G74: 24.40915206 | H74: 24.51058223 | I74: 24.61243388 | J74: 24.71470877 | K74: 24.81740866 | L74: 24.9205353
E75: Coincident | F75: 22.09481909 | G75: 22.18663225 | H75: 22.27882692 | I75: 22.37140471 | J75: 22.46436719 | K75: 22.55771597 | L75: 22.65145266
C76: Weather Corrected MD 50% POE | D76: MVA | E76: Non-Coincident | F76: 24.38486353 | G76: 24.48619277 | H76: 24.58794308 | I76: 24.6901162 | J76: 24.79271389 | K76: 24.89573792 | L76: 24.99919006
E77: Coincident | F77: 22.16455526 | G77: 22.2566582 | H77: 22.34914386 | I77: 22.44201384 | J77: 22.53526973 | K77: 22.62891314 | L77: 22.72294568
B78: Derwent Park | C78: Substation Rating | D78: MVA | E78: Non-Coincident | F78: 58.5 | G78: 58.5 | H78: 58.5 | I78: 64 | J78: 64 | K78: 64 | L78: 64
E79: Coincident | F79: 58.5 | G79: 58.5 | H79: 58.5 | I79: 64 | J79: 64 | K79: 64 | L79: 64
C80: Raw Adjusted MD | D80: MW | E80: Non-Coincident
E81: Coincident
C82: Raw Adjusted MD | D82: MVA | E82: Non-Coincident
E83: Coincident
C84: Date MD occurred | E84: Non-Coincident
E85: Coincident
C86: Half hour time period MD occurred | E86: Non-Coincident
E87: Coincident
C88: Winter/Summer Peaking | E88: Non-Coincident | F88: Winter | G88: Winter | H88: Winter | I88: Winter | J88: Winter | K88: Winter | L88: Winter
E89: Coincident | F89: Winter | G89: Winter | H89: Winter | I89: Winter | J89: Winter | K89: Winter | L89: Winter
C90: Adjustments - Embedded generation | D90: MW | E90: Non-Coincident
E91: Coincident
C92: Weather Corrected 10% POE | D92: MW | E92: Non-Coincident | F92: 21.58605616 | G92: 22.18122875 | H92: 22.30169786 | I92: 22.86704421 | J92: 23.55236585 | K92: 23.9939671 | L92: 24.02157648
E93: Coincident | F93: 18.48818823 | G93: 18.99794614 | H93: 19.10112643 | I93: 19.58533854 | J93: 20.17230799 | K93: 20.55053395 | L93: 20.57418105
C94: Weather Corrected MD 10% POE | D94: MVA | E94: Non-Coincident | F94: 22.0281284 | G94: 22.63548985 | H94: 22.75842611 | I94: 23.33535048 | J94: 24.03470719 | K94: 24.48535222 | L94: 24.51352703
E95: Coincident | F95: 18.8668176 | G95: 19.38701511 | H95: 19.49230849 | I95: 19.98643702 | J95: 20.58542733 | K95: 20.97139919 | L95: 20.99553056
C96: Weather Corrected MD 50% POE | D96: MW | E96: Non-Coincident | F96: 21.04464397 | G96: 21.15043824 | H96: 21.25676436 | I96: 21.363625 | J96: 21.47102283 | K96: 21.57896058 | L96: 21.68744094
E97: Coincident | F97: 18.02447543 | G97: 18.11508691 | H97: 18.2061539 | I97: 18.29767871 | J97: 18.38966362 | K97: 18.48211095 | L97: 18.57502302
C98: Weather Corrected MD 50% POE | D98: MVA | E98: Non-Coincident | F98: 21.47562834 | G98: 21.58358923 | H98: 21.69209286 | I98: 21.80114195 | J98: 21.91073925 | K98: 22.0208875 | L98: 22.13158949
E99: Coincident | F99: 18.39360818 | G99: 18.48607534 | H99: 18.57900734 | I99: 18.67240653 | J99: 18.76627525 | K99: 18.86061586 | L99: 18.95543073
B100: East Hobart | C100: Substation Rating | D100: MVA | E100: Non-Coincident | F100: 117 | G100: 117 | H100: 117 | I100: 117 | J100: 117 | K100: 117 | L100: 117
E101: Coincident | F101: 117 | G101: 117 | H101: 117 | I101: 117 | J101: 117 | K101: 117 | L101: 117
C102: Raw Adjusted MD | D102: MW | E102: Non-Coincident
E103: Coincident
C104: Raw Adjusted MD | D104: MVA | E104: Non-Coincident
E105: Coincident
C106: Date MD occurred | E106: Non-Coincident
E107: Coincident
C108: Half hour time period MD occurred | E108: Non-Coincident
E109: Coincident
C110: Winter/Summer Peaking | E110: Non-Coincident | F110: Winter | G110: Winter | H110: Winter | I110: Winter | J110: Winter | K110: Winter | L110: Winter
E111: Coincident | F111: Winter | G111: Winter | H111: Winter | I111: Winter | J111: Winter | K111: Winter | L111: Winter
C112: Adjustments - Embedded generation | D112: MW | E112: Non-Coincident
E113: Coincident
C114: Weather Corrected 10% POE | D114: MW | E114: Non-Coincident | F114: 31.54020994 | G114: 35.30419568 | H114: 41.35305094 | I114: 42.40134763 | J114: 43.67210921 | K114: 44.49095085 | L114: 44.54214571
E115: Coincident | F115: 27.210047 | G115: 27.96028475 | H115: 35.67568072 | I115: 36.58005651 | J115: 37.67635493 | K115: 38.3827776 | L115: 38.4269439
C116: Weather Corrected MD 10% POE | D116: MVA | E116: Non-Coincident | F116: 32.50182793 | G116: 36.69037878 | H116: 42.61384906 | I116: 43.6941069 | J116: 45.00361226 | K116: 45.84741927 | L116: 45.90017498
E117: Coincident | F117: 28.03964422 | G117: 28.8127557 | H117: 36.76338357 | I117: 37.69533255 | J117: 38.82505561 | K117: 39.55301615 | L117: 39.59852902
C118: Weather Corrected MD 50% POE | D118: MW | E118: Non-Coincident | F118: 27.93318543 | G118: 28.07360934 | H118: 28.21473918 | I118: 28.35657849 | J118: 28.49913086 | K118: 28.64239985 | L118: 28.78638907
E119: Coincident | F119: 24.09823174 | G119: 24.21937682 | H119: 24.34113091 | I119: 24.46349707 | J119: 24.58647839 | K119: 24.71007795 | L119: 24.83429886
C120: Weather Corrected MD 50% POE | D120: MVA | E120: Non-Coincident | F120: 28.78483016 | G120: 28.9295354 | H120: 29.0749681 | I120: 29.2211319 | J120: 29.36803049 | K120: 29.51566756 | L120: 29.66404682
E121: Coincident | F121: 24.83295397 | G121: 24.95779259 | H121: 25.0832588 | I121: 25.20935574 | J121: 25.33608658 | K121: 25.46345452 | L121: 25.59146276
B122: Geilston Bay | C122: Substation Rating | D122: MVA | E122: Non-Coincident | F122: 58.5 | G122: 58.5 | H122: 58.5 | I122: 58.5 | J122: 58.5 | K122: 58.5 | L122: 58.5
E123: Coincident | F123: 58.5 | G123: 58.5 | H123: 58.5 | I123: 58.5 | J123: 58.5 | K123: 58.5 | L123: 58.5
C124: Raw Adjusted MD | D124: MW | E124: Non-Coincident
E125: Coincident
C126: Raw Adjusted MD | D126: MVA | E126: Non-Coincident
E127: Coincident
C128: Date MD occurred | E128: Non-Coincident
E129: Coincident
C130: Half hour time period MD occurred | E130: Non-Coincident
E131: Coincident
C132: Winter/Summer Peaking | E132: Non-Coincident | F132: Winter | G132: Winter | H132: Winter | I132: Winter | J132: Winter | K132: Winter | L132: Winter
E133: Coincident | F133: Winter | G133: Winter | H133: Winter | I133: Winter | J133: Winter | K133: Winter | L133: Winter
C134: Adjustments - Embedded generation | D134: MW | E134: Non-Coincident
E135: Coincident
C136: Weather Corrected 10% POE | D136: MW | E136: Non-Coincident | F136: 20.0361742 | G136: 20.58861332 | H136: 20.70043273 | I136: 21.22518712 | J136: 21.86130257 | K136: 22.27119679 | L136: 22.29682381
E137: Coincident | F137: 17.84150743 | G137: 18.33343501 | H137: 18.43300626 | I137: 18.90028156 | J137: 19.46671997 | K137: 19.83171633 | L137: 19.85453629
C138: Weather Corrected MD 10% POE | D138: MVA | E138: Non-Coincident | F138: 20.13811899 | G138: 20.69336893 | H138: 20.80575729 | I138: 21.33318165 | J138: 21.97253368 | K138: 22.38451345 | L138: 22.41027087
E139: Coincident | F139: 17.93228568 | G139: 18.4267162 | H139: 18.52679407 | I139: 18.99644689 | J139: 19.56576735 | K139: 19.93262083 | L139: 19.9555569
C140: Weather Corrected MD 50% POE | D140: MW | E140: Non-Coincident | F140: 21.23753613 | G140: 21.32549395 | H140: 21.41381606 | I140: 21.50250396 | J140: 21.59155918 | K140: 21.68098323 | L140: 21.77077764
E141: Coincident | F141: 18.91127792 | G141: 18.98960126 | H141: 19.06824899 | I141: 19.14722244 | J141: 19.22652298 | K141: 19.30615194 | L141: 19.3861107
C142: Weather Corrected MD 50% POE | D142: MVA | E142: Non-Coincident | F142: 21.34559349 | G142: 21.43399884 | H142: 21.52277034 | I142: 21.61190949 | J142: 21.70141782 | K142: 21.79129686 | L142: 21.88154815
E143: Coincident | F143: 19.00749919 | G143: 19.08622105 | H143: 19.16526894 | I143: 19.24464421 | J143: 19.32434823 | K143: 19.40438235 | L143: 19.48474794
B144: Gretna | C144: Substation Rating | D144: MVA | E144: Non-Coincident
E145: Coincident
C146: Raw Adjusted MD | D146: MW | E146: Non-Coincident
E147: Coincident
C148: Raw Adjusted MD | D148: MVA | E148: Non-Coincident
E149: Coincident
C150: Date MD occurred | E150: Non-Coincident
E151: Coincident
C152: Half hour time period MD occurred | E152: Non-Coincident
E153: Coincident
C154: Winter/Summer Peaking | E154: Non-Coincident | F154: Summer | G154: Summer | H154: Summer | I154: Summer | J154: Summer | K154: Summer | L154: Summer
E155: Coincident | F155: Winter | G155: Winter | H155: Winter | I155: Winter | J155: Winter | K155: Winter | L155: Winter
C156: Adjustments - Embedded generation | D156: MW | E156: Non-Coincident
E157: Coincident
C158: Weather Corrected 10% POE | D158: MW | E158: Non-Coincident | F158: 1.203930787 | G158: 1.201713683 | H158: 1.248926623 | I158: 1.317622087 | J158: 1.337761843 | K158: 1.342101395 | L158: 1.357710385
E159: Coincident | F159: 0 | G159: 0 | H159: 0 | I159: 0 | J159: 0 | K159: 0 | L159: 0
C160: Weather Corrected MD 10% POE | D160: MVA | E160: Non-Coincident | F160: 1.523539129 | G160: 1.520733449 | H160: 1.58048004 | I160: 1.667412137 | J160: 1.692898408 | K160: 1.698389984 | L160: 1.718142703
E161: Coincident | F161: 0 | G161: 0 | H161: 0 | I161: 0 | J161: 0 | K161: 0 | L161: 0
C162: Weather Corrected MD 50% POE | D162: MW | E162: Non-Coincident | F162: 1.058570833 | G162: 1.058570833 | H162: 1.058570833 | I162: 1.058570833 | J162: 1.058570833 | K162: 1.058570833 | L162: 1.058570833
E163: Coincident | F163: 0 | G163: 0 | H163: 0 | I163: 0 | J163: 0 | K163: 0 | L163: 0
C164: Weather Corrected MD 50% POE | D164: MVA | E164: Non-Coincident | F164: 1.339590366 | G164: 1.339590366 | H164: 1.339590366 | I164: 1.339590366 | J164: 1.339590366 | K164: 1.339590366 | L164: 1.339590366
E165: Coincident | F165: 0 | G165: 0 | H165: 0 | I165: 0 | J165: 0 | K165: 0 | L165: 0
B166: Howrah | C166: Substation Rating | D166: MVA | E166: Non-Coincident | F166: 65 | G166: 65 | H166: 65 | I166: 65 | J166: 65 | K166: 65 | L166: 65
E167: Coincident | F167: 65 | G167: 65 | H167: 65 | I167: 65 | J167: 65 | K167: 65 | L167: 65
C168: Raw Adjusted MD | D168: MW | E168: Non-Coincident
E169: Coincident
C170: Raw Adjusted MD | D170: MVA | E170: Non-Coincident
E171: Coincident
C172: Date MD occurred | E172: Non-Coincident
E173: Coincident
C174: Half hour time period MD occurred | E174: Non-Coincident
E175: Coincident
C176: Winter/Summer Peaking | E176: Non-Coincident | F176: Winter | G176: Winter | H176: Winter | I176: Winter | J176: Winter | K176: Winter | L176: Winter
E177: Coincident | F177: Winter | G177: Winter | H177: Winter | I177: Winter | J177: Winter | K177: Winter | L177: Winter
C178: Adjustments - Embedded generation | D178: MW | E178: Non-Coincident
E179: Coincident
C180: Weather Corrected 10% POE | D180: MW | E180: Non-Coincident | F180: 23.81827696 | G180: 24.47499654 | H180: 24.6079234 | I180: 25.23173238 | J180: 25.98792335 | K180: 26.47519072 | L180: 26.5056552
E181: Coincident | F181: 21.70391668 | G181: 22.30233893 | H181: 22.42346581 | I181: 22.99189896 | J181: 23.68096248 | K181: 24.12497489 | L181: 24.15273501
C182: Weather Corrected MD 10% POE | D182: MVA | E182: Non-Coincident | F182: 23.89345274 | G182: 24.55224507 | H182: 24.68559148 | I182: 25.31136935 | J182: 26.06994702 | K182: 26.55875231 | L182: 26.58931294
E183: Coincident | F183: 21.77241907 | G183: 22.37273008 | H183: 22.49423926 | I183: 23.06446651 | J183: 23.75570487 | K183: 24.20111868 | L183: 24.22896642
C184: Weather Corrected MD 50% POE | D184: MW | E184: Non-Coincident | F184: 24.59227183 | G184: 24.83836655 | H184: 25.08692393 | I184: 25.33796863 | J184: 25.59152553 | K184: 25.84761977 | L184: 26.10627674
E185: Coincident | F185: 22.40920364 | G185: 22.63345241 | H185: 22.85994523 | I185: 23.08870456 | J185: 23.31975309 | K185: 23.55311372 | L185: 23.78880958
C186: Weather Corrected MD 50% POE | D186: MVA | E186: Non-Coincident | F186: 24.66989051 | G186: 24.91676196 | H186: 25.16610385 | I186: 25.41794089 | J186: 25.67229808 | K186: 25.92920061 | L186: 26.18867396
E187: Coincident | F187: 22.47993207 | G187: 22.70488862 | H187: 22.9320963 | I187: 23.16157765 | J187: 23.39335542 | K187: 23.62745259 | L187: 23.86389236
B188: New Town | C188: Substation Rating | D188: MVA | E188: Non-Coincident | F188: 58.5 | G188: 58.5 | H188: 58.5 | I188: 58.5 | J188: 58.5 | K188: 58.5 | L188: 58.5
E189: Coincident | F189: 58.5 | G189: 58.5 | H189: 58.5 | I189: 58.5 | J189: 58.5 | K189: 58.5 | L189: 58.5
C190: Raw Adjusted MD | D190: MW | E190: Non-Coincident
E191: Coincident
C192: Raw Adjusted MD | D192: MVA | E192: Non-Coincident
E193: Coincident
C194: Date MD occurred | E194: Non-Coincident
E195: Coincident
C196: Half hour time period MD occurred | E196: Non-Coincident
E197: Coincident
C198: Winter/Summer Peaking | E198: Non-Coincident | F198: Winter | G198: Winter | H198: Winter | I198: Winter | J198: Winter | K198: Winter | L198: Winter
E199: Coincident | F199: Winter | G199: Winter | H199: Winter | I199: Winter | J199: Winter | K199: Winter | L199: Winter
C200: Adjustments - Embedded generation | D200: MW | E200: Non-Coincident
E201: Coincident
C202: Weather Corrected 10% POE | D202: MW | E202: Non-Coincident | F202: 23.15298849 | G202: 23.79136468 | H202: 24.5966029 | I202: 25.22012492 | J202: 25.97596801 | K202: 26.46301122 | L202: 26.49346168
... 11370 more rows

Sheet 6.2 Reliability & Cust serv
B1: =INDEX(dms_Worksheet_List,MATCH(dms_Model,dms_Model_List)) -> REGULATORY REPORTING STATEMENT
B2: =INDEX(dms_TradingNameFull_List,MATCH(dms_TradingName,dms_TradingName_List)) -> TasNetworks (D)
B3: =CONCATENATE("REGULATORY PERIOD FROM ", FRCP_y1," TO ",dms_MultiYear_FinalYear_Result) -> REGULATORY PERIOD FROM 2024-25 TO 2028-29
B4: 6.2 RELIABILITY AND CUSTOMER SERVICE PERFORMANCE
B6: There are FIVE tables on this worksheet. Each table has been grouped for ease of navigation. See the Instructions sheet on how to group or ungroup tables.
B8: 6.2.1 - UNPLANNED MINUTES OFF SUPPLY (SAIDI)
E9: Proposed target
B10: SAIDI | E10: =FRCP_y1 -> 2024-25 | F10: =FRCP_y2 -> 2025-26 | G10: =FRCP_y3 -> 2026-27 | H10: =FRCP_y4 -> 2027-28 | I10: =FRCP_y5 -> 2028-29
B11: Total sustained minutes off supply after removing excluded events
B12: =INDEX(dms_FeederName_1,MATCH(dms_TradingName,dms_TradingName_List)) -> Critical Infrastructure | E12: 6.260216653 | F12: 6.260216653 | G12: 6.260216653 | H12: 6.260216653 | I12: 6.260216653
B13: =INDEX(dms_FeederName_2,MATCH(dms_TradingName,dms_TradingName_List)) -> Urban | E13: 98.01449753 | F13: 98.01449753 | G13: 98.01449753 | H13: 98.01449753 | I13: 98.01449753
B14: =INDEX(dms_FeederName_3,MATCH(dms_TradingName,dms_TradingName_List)) -> High density commercial | E14: 36.77764347 | F14: 36.77764347 | G14: 36.77764347 | H14: 36.77764347 | I14: 36.77764347
B15: =INDEX(dms_FeederName_4,MATCH(dms_TradingName,dms_TradingName_List)) -> High density rural | E15: 241.2734501 | F15: 241.2734501 | G15: 241.2734501 | H15: 241.2734501 | I15: 241.2734501
B16: =IF(ISBLANK(INDEX(dms_FeederName_5,MATCH(dms_TradingName,dms_TradingName_List))),"",INDEX(dms_FeederName_5,MATCH(dms_TradingName,dms_TradingName_List))) -> Low density rural | E16: 375.7899681 | F16: 375.7899681 | G16: 375.7899681 | H16: 375.7899681 | I16: 375.7899681
B17: Total | E17: =SUM(E12:E16) -> 758.1157759 | F17: =SUM(F12:F16) -> 758.1157759 | G17: =SUM(G12:G16) -> 758.1157759 | H17: =SUM(H12:H16) -> 758.1157759 | I17: =SUM(I12:I16) -> 758.1157759
B20: 6.2.2 - UNPLANNED INTERRUPTIONS TO SUPPLY (SAIFI)
E21: Proposed target
B22: SAIFI | E22: =FRCP_y1 -> 2024-25 | F22: =FRCP_y2 -> 2025-26 | G22: =FRCP_y3 -> 2026-27 | H22: =FRCP_y4 -> 2027-28 | I22: =FRCP_y5 -> 2028-29
B23: Total sustained interruptions after removing excluded events
B24: =INDEX(dms_FeederName_1,MATCH(dms_TradingName,dms_TradingName_List)) -> Critical Infrastructure | E24: 0.0778466588 | F24: 0.0778466588 | G24: 0.0778466588 | H24: 0.0778466588 | I24: 0.0778466588
B25: =INDEX(dms_FeederName_2,MATCH(dms_TradingName,dms_TradingName_List)) -> Urban | E25: 1.079823987 | F25: 1.079823987 | G25: 1.079823987 | H25: 1.079823987 | I25: 1.079823987
B26: =INDEX(dms_FeederName_3,MATCH(dms_TradingName,dms_TradingName_List)) -> High density commercial | E26: 0.364524072 | F26: 0.364524072 | G26: 0.364524072 | H26: 0.364524072 | I26: 0.364524072
B27: =INDEX(dms_FeederName_4,MATCH(dms_TradingName,dms_TradingName_List)) -> High density rural | E27: 2.183433788 | F27: 2.183433788 | G27: 2.183433788 | H27: 2.183433788 | I27: 2.183433788
B28: =IF(ISBLANK(INDEX(dms_FeederName_5,MATCH(dms_TradingName,dms_TradingName_List))),"",INDEX(dms_FeederName_5,MATCH(dms_TradingName,dms_TradingName_List))) -> Low density rural | E28: 2.832104495 | F28: 2.832104495 | G28: 2.832104495 | H28: 2.832104495 | I28: 2.832104495
B29: Total | E29: =SUM(E24:E28) -> 6.537733 | F29: =SUM(F24:F28) -> 6.537733 | G29: =SUM(G24:G28) -> 6.537733 | H29: =SUM(H24:H28) -> 6.537733 | I29: =SUM(I24:I28) -> 6.537733
B32: 6.2.3 - UNPLANNED MOMENTARY INTERRUPTIONS TO SUPPLY (MAIFI)
E33: Proposed target
B34: MAIFI | E34: =FRCP_y1 -> 2024-25 | F34: =FRCP_y2 -> 2025-26 | G34: =FRCP_y3 -> 2026-27 | H34: =FRCP_y4 -> 2027-28 | I34: =FRCP_y5 -> 2028-29
B35: Total momentary interruptions after removing excluded events
B36: =INDEX(dms_FeederName_1,MATCH(dms_TradingName,dms_TradingName_List)) -> Critical Infrastructure
B37: =INDEX(dms_FeederName_2,MATCH(dms_TradingName,dms_TradingName_List)) -> Urban
B38: =INDEX(dms_FeederName_3,MATCH(dms_TradingName,dms_TradingName_List)) -> High density commercial
B39: =INDEX(dms_FeederName_4,MATCH(dms_TradingName,dms_TradingName_List)) -> High density rural
B40: =IF(ISBLANK(INDEX(dms_FeederName_5,MATCH(dms_TradingName,dms_TradingName_List))),"",INDEX(dms_FeederName_5,MATCH(dms_TradingName,dms_TradingName_List))) -> Low density rural
B41: Total | E41: =SUM(E36:E40) -> 0 | F41: =SUM(F36:F40) -> 0 | G41: =SUM(G36:G40) -> 0 | H41: =SUM(H36:H40) -> 0 | I41: =SUM(I36:I40) -> 0
B44: 6.2.3(B) - UNPLANNED MOMENTARY INTERRUPTIONS TO SUPPLY (MAIFIe)
E45: Proposed target
B46: MAIFIe | E46: =FRCP_y1 -> 2024-25 | F46: =FRCP_y2 -> 2025-26 | G46: =FRCP_y3 -> 2026-27 | H46: =FRCP_y4 -> 2027-28 | I46: =FRCP_y5 -> 2028-29
B47: Total momentary interruptions after removing excluded events
B48: =INDEX(dms_FeederName_1,MATCH(dms_TradingName,dms_TradingName_List)) -> Critical Infrastructure
B49: =INDEX(dms_FeederName_2,MATCH(dms_TradingName,dms_TradingName_List)) -> Urban
B50: =INDEX(dms_FeederName_3,MATCH(dms_TradingName,dms_TradingName_List)) -> High density commercial
B51: =INDEX(dms_FeederName_4,MATCH(dms_TradingName,dms_TradingName_List)) -> High density rural
B52: =IF(ISBLANK(INDEX(dms_FeederName_5,MATCH(dms_TradingName,dms_TradingName_List))),"",INDEX(dms_FeederName_5,MATCH(dms_TradingName,dms_TradingName_List))) -> Low density rural
B53: Total | E53: =SUM(E48:E52) -> 0 | F53: =SUM(F48:F52) -> 0 | G53: =SUM(G48:G52) -> 0 | H53: =SUM(H48:H52) -> 0 | I53: =SUM(I48:I52) -> 0
B56: The number of distribution customers is calculated as the average of the number of customers at the beginning of the reporting period and the number of customers at the end of the reporting period.
B58: 6.2.4 - DISTRIBUTION CUSTOMER NUMBERS
C59: Forecast
B60: Average customer numbers | C60: =CRCP_y4 -> 2022-23 | D60: =CRCP_y5 -> 2023-24 | E60: =FRCP_y1 -> 2024-25 | F60: =FRCP_y2 -> 2025-26 | G60: =FRCP_y3 -> 2026-27 | H60: =FRCP_y4 -> 2027-28 | I60: =FRCP_y5 -> 2028-29
B61: =INDEX(dms_FeederName_1,MATCH(dms_TradingName,dms_TradingName_List)) -> Critical Infrastructure | C61: 1863.5 | D61: 1887.5 | E61: 1911.5 | F61: 1935.5 | G61: 1959.5 | H61: 1983.5 | I61: 2007.5
B62: =INDEX(dms_FeederName_2,MATCH(dms_TradingName,dms_TradingName_List)) -> Urban | C62: 201311 | D62: 203268 | E62: 205225 | F62: 207182 | G62: 209139 | H62: 211096 | I62: 213053
B63: =INDEX(dms_FeederName_3,MATCH(dms_TradingName,dms_TradingName_List)) -> High density commercial | C63: 4582 | D63: 4596 | E63: 4610 | F63: 4624 | G63: 4638 | H63: 4652 | I63: 4666
B64: =INDEX(dms_FeederName_4,MATCH(dms_TradingName,dms_TradingName_List)) -> High density rural | C64: 47369 | D64: 48091 | E64: 48813 | F64: 49535 | G64: 50257 | H64: 50979 | I64: 51701
B65: =IF(ISBLANK(INDEX(dms_FeederName_5,MATCH(dms_TradingName,dms_TradingName_List))),"",INDEX(dms_FeederName_5,MATCH(dms_TradingName,dms_TradingName_List))) -> Low density rural | C65: 46215.5 | D65: 46588.5 | E65: 46961.5 | F65: 47334.5 | G65: 47707.5 | H65: 48080.5 | I65: 48453.5
B66: Total | C66: =SUM(C61:C65) -> 301341 | D66: 304431 | E66: 307521 | F66: 310611 | G66: 313701 | H66: 316791 | I66: 319881
B68: The AER's definition of calls answered within 30 seconds is as follows: Calls to the fault line answered in 30 seconds where the time to answer a call is measured from when the call enters the telephone system of the call centre (including that time when it may be ringing unanswered by any response) and the caller speaks with a human operator, but excluding the time that the caller is connected to an automated interactive service that provides substantive information. This measure does not apply to: - calls to payment lines and automated interactive services; - calls abandoned by the customer within 30 seconds of the call being queued for response by a human operator. Where the time in which a telephone call is abandoned is not measured, then an estimate of the number of calls abandoned within 30 seconds will be determined by taking 20 per cent of all calls abandoned. Note: Being placed in a queuing system (automated or otherwise) does not constitute a response. 'Calls answered within 30 seconds' and 'Calls received' should be calculated excluding calls abandoned within 30 seconds of being queued for a human operator; and calls to payment lines and automated interactive services.
B70: 6.2.5 - CUSTOMER SERVICE
E71: Proposed target
E72: =FRCP_y1 -> 2024-25 | F72: =FRCP_y2 -> 2025-26 | G72: =FRCP_y3 -> 2026-27 | H72: =FRCP_y4 -> 2027-28 | I72: =FRCP_y5 -> 2028-29
B73: Number of calls received | E73: 32848 | F73: 32848 | G73: 32848 | H73: 32848 | I73: 32848
B74: Number of calls answered within 30 seconds | E74: 27493 | F74: 27493 | G74: 27493 | H74: 27493 | I74: 27493
B75: Percentage of calls answered within 30 seconds | E75: =IFERROR((E74/E73),"") -> 0.836976376 | F75: =IFERROR((F74/F73),"") -> 0.836976376 | G75: =IFERROR((G74/G73),"") -> 0.836976376 | H75: =IFERROR((H74/H73),"") -> 0.836976376 | I75: =IFERROR((I74/I73),"") -> 0.836976376

Sheet 7.1 Policies and Procedures
B1: =INDEX(dms_Worksheet_List,MATCH(dms_Model,dms_Model_List)) -> REGULATORY REPORTING STATEMENT
B2: =INDEX(dms_TradingNameFull_List,MATCH(dms_TradingName,dms_TradingName_List)) -> TasNetworks (D)
B3: =CONCATENATE("REGULATORY PERIOD FROM ", FRCP_y1," TO ",dms_MultiYear_FinalYear_Result) -> REGULATORY PERIOD FROM 2024-25 TO 2028-29
B4: 7.1 PLANS, POLICIES, PROCEDURES AND STRATEGIES
B6: 7.1.1 - PLANS, POLICIES, PROCEDURES AND STRATEGIES
C7: Brief description | D7: Relevance to regulatory proposal | E7: Expenditure impact
C8: Description of the plan, policy, procedure or strategy. | D8: Identify the element of the proposal/supporting documents that the policy, plan, procedure or strategy is relevant to e.g. replacement capex, capacity utilisation thresholds, opex | E8: Is this policy, plan or procedure identified in the response to section 4 'Step Changes' of the notice (yes or no)?
B9: Corporate
B10: TasNetworks towards 2030 | C10: Represents TasNetworks' view of internal and external business environments, corporate objectives and strategic directions up to 2023 | D10: Strategic overview of the future network conditions that set the tone and priorities of almost all aspects of our Regulatory Proposal | E10: No
B11: Environment and sustainability policy | C11: Provides TasNetworks' policy commitments for the environment, including the operation, construction and maintenance of our assets in a way which recognises and mitigates the risks to people and the environment. | D11: Capex and Opex | E11: No
B13: Governance framework
B14: Gated investment framework | C14: The Gated Investment Framework is TasNetworks’ governing document for the assessment and management of business investments. The Framework ensures that TasNetworks’ investment expenditure program is managed to ensure the most effective and efficient use of capital and operating expenditure | D14: Capex and Opex | E14: No
B15: Procurement Policy | C15: Ensures TasNetworks' procurment process reflects best practice and encourages competition, innovation and transparency in our procurement activities. | D15: Capex and Opex | E15: No
B16: Information management policy | C16: This policy details TasNetworks’ commitment to the management of business information as a valued asset in line with our legislative, regulatory and contractual obligations and business requirements. | D16: This document is relevant to all elements of TasNetworks' combined proposal. | E16: No
B17: Privacy policy | C17: The fundamental objective of the Privacy Policy is to ensure that TasNetworks complies with its obligations under The Privacy Act 1988 (Cth) and the Personal Information Protection Act 2004 (TAS). | D17: This document is relevant to all elements of TasNetworks' combined proposal. | E17: No
B18: Risk management policy | C18: This policy outlines how TasNetworks will manage the opportunities and challenges arising from owning and operating the network as well as responding to changes in the external environment as the economy, electricity industry and stakeholder expectations change. | D18: This document is relevant to all elements of TasNetworks' combined proposal. | E18: No
B31: Accounting policies, procedures and methodologies (including a capitalisation policy, depreciation policy and an approved expenditure allocation methodology)
B32: Capitalisation policy | C32: The purpose of this policy is to ensure that capital expenditure is accounted for in a logical and cost-effective manner which is compliant with relevant Australian Accounting Standards. | D32: Capex | E32: No
B33: Cost Allocation Method | C33: This AER approved document describes the principles and policies for allocating costs within the categories of distribution services that TasNetworks provides. | D33: Capex and Opex | E33: No
B35: Asset management plan or equivalent documentation
B36: Asset Management Policies
B37: Asset Management Policy | C37: This policy aims to outline TasNetworks’ position and communicate TasNetworks’ commitments with regard to asset management. | D37: Capex and Opex | E37: No
B39: Asset Management Strategies
B40: End to end works management process | C40: This document outlines the steps, roles and responsibilities of the process to ensure works are delivered in an efficient and effective manner. | D40: Capex and Opex | E40: No
B41: End to end consultation requirements procedure | C41: This procedure sets out TasNetworks’ requirements for consultation in relation to activities within the business. It describes how to identify key internal stakeholders and subject matter experts and when they should be consulted in relation to a range of activities. | D41: Capex and Opex | E41: No
B42: Strategic Asset Management Plan | C42: Defines TasNetworks' asset strategy for the specific asset class | D42: Capex and Opex | E42: No
B44: Asset Management Plans
B45: Asset Management Information System (AMIS) Asset Management Plan | C45: Defines TasNetworks' asset strategy for the specific asset class | D45: Capex and Opex | E45: No
B46: Conductors and Hardware Asset Management Plan | C46: Defines TasNetworks' asset strategy for the specific asset class | D46: Capex and Opex | E46: No
B47: Connection Assets Asset Management Plan | C47: Defines TasNetworks' asset strategy for the specific asset class | D47: Capex and Opex | E47: No
B48: Customer Development Management Plan | C48: Defines TasNetworks' asset strategy for the specific asset class | D48: Capex and Opex | E48: No
B49: EHV Disconnector and Earth Switch Asset Management Plan | C49: Defines TasNetworks' asset strategy for the specific asset class | D49: Capex and Opex | E49: No
B50: Facilities Asset Management Plan | C50: Defines TasNetworks' asset strategy for the specific asset class | D50: Capex and Opex | E50: No
B51: Ground Mounted Substations Distribution Asset Management Plan | C51: Defines TasNetworks' asset strategy for the specific asset class | D51: Capex and Opex | E51: No
B52: High Voltage Switchgear Asset Management Plan | C52: Defines TasNetworks' asset strategy for the specific asset class | D52: Capex and Opex | E52: No
B53: IT Infrastructure Asset Management Plan | C53: Defines TasNetworks' asset strategy for the specific asset class | D53: Capex and Opex | E53: No
B54: IT Software Asset Management Plan | C54: Defines TasNetworks' asset strategy for the specific asset class | D54: Capex and Opex | E54: No
B55: Network Operations Asset Management Plan | C55: Defines TasNetworks' asset strategy for the specific asset class | D55: Capex and Opex | E55: No
B56: Overhead Line Structures Distribution Asset Management Plan | C56: Defines TasNetworks' asset strategy for the specific asset class | D56: Capex and Opex | E56: No
B57: Pole Mounted Transformers Asset Management Plan | C57: Defines TasNetworks' asset strategy for the specific asset class | D57: Capex and Opex | E57: No
B58: Power Transformer Asset Management Plan | C58: Defines TasNetworks' asset strategy for the specific asset class | D58: Capex and Opex | E58: No
B59: SCADA Systems Asset Management Plan Transmission | C59: Defines TasNetworks' asset strategy for the specific asset class | D59: Capex and Opex | E59: No
B60: Telecommunications Network Management Systems (TNMS) Asset Management Plan | C60: Defines TasNetworks' asset strategy for the specific asset class | D60: Capex and Opex | E60: No
B61: Tool of Trade Fleet Management Plan | C61: Defines TasNetworks' asset strategy for the specific asset class | D61: Capex and Opex | E61: No
B69: Capital expenditure policies and procedures (including capex approval policies and procedures and replacement policy)
B70: Gated investment framework | C70: The Gated Investment Framework is TasNetworks’ governing document for the assessment and management of business investments. The Framework ensures that TasNetworks’ investment expenditure program is managed to ensure the most effective and efficient use of capital and operating expenditure | D70: Capex and Opex | E70: No
B72: Internal standards for network planning, design, maintenance and operation
B73: Management System Procedure - Design | C73: This procedure details the method by which TasNetworks manages the design process for Design and Construction contracts | D73: Capex and Opex | E73: No
B74: Traffic Management Procedure | C74: This procedure details the method by which TasNetworks manages traffic management | D74: Capex and Opex | E74: No
B75: Hazardous Substances Management | C75: This procedure details how to manage hazardous substances by providing guidance on the procurement, use, storage, transport and disposal procedures for hazardous chemicals, dangerous goods and associated wastes | D75: Capex and Opex | E75: No
B76: Environmental Considerations: Distribution - Design, Construction and Decommissioning | C76: This procedure describes how the environmental and heritage impacts and risks associated with design, construction and decommissioning of distribution lines, wayleaves, and access tracks are considered in the design and planning stage and controls put in place for these activities. | D76: Capex and Opex | E76: No
B77: Confined Spaces Procedure | C77: This procedure defines a systematic approach to dealing with the hazards and risks associated with TasNetworks confined spaces. | D77: Capex and Opex | E77: No
B78: Distribution Network Operation Manual | C78: This document provides standard references for operating on the Low and High Voltage Distribution Network. | D78: Capex and Opex | E78: No
B79: Power system safety rules (PSSR) | C79: The PSSR are designed to provide broad, high level safe access principles for working on apparatus | D79: Capex and Opex | E79: No
B80: Distribution switchgear manual | C80: This document provides a common set of basic operating instructions when operating switchgear and apparatus on TasNetworks' distribution network | D80: Capex and Opex | E80: No
B81: Work practice suite - Overhead | C81: The suite of work practices provide for the design, maintenance and safe operation of overhead assets | D81: Capex and Opex | E81: No
B82: Work practice suite - Ground services | C82: The suite of work practices provide for the design, maintenance and safe operation of underground assets | D82: Capex and Opex | E82: No
B83: Work practice suite - Customer connections | C83: The suite of work practices provide for the design, maintenance and safe operation of connection assets | D83: Capex and Opex | E83: No
B152: Procurement and contracting out policies
B153: Procurement Policy | C153: Ensures TasNetworks' procurment process reflects best practice and encourages competition, innovation and transparency in our procurement activities. | D153: Capex and Opex | E153: No
B154: Contract Management Guideline | C154: This guideline covers the end-to-end Contract Management process and aims to act as a guide to support Contract Owners to carry out their responsibilities. It is ‘principles’ based, acknowledging that different contract types will require varying degrees and types of management. | D154: This document is relevant to all elements of TasNetworks' combined proposal. | E154: No
B155: Information technology policies or strategies
B156: Cyber Security Policy | C156: This Policy describes the security requirements needed to protect TasNetworks’ critical assets – people, property and information – from human and technology threats and vulnerabilities. | D156: Capex and Opex | E156: No
B157: Tools of trade technology policy | C157: This Tool of Trade Technology Standard governs the life cycle of our Tool of Trade technology, from procurement to disposal and replacement and defines the requirements that Team Members and Leaders must adhere to when utilising these services. | D157: Capex and Opex | E157: No
B158: Secure Software Development Standard | C158: The purpose of this document is to define the minimum requirements for secure software development activities either in house or in engaging a vendor to perform the development work. | D158: Opex | E158: No
B159: Information Security Classification Standard | C159: The purpose of this standard is to define the requirements for assigning security classification, labelling and the handling of all business information in order to safeguard the confidentiality, integrity, sensitivity and availability of information stored, accessed and transmitted. | D159: Opex | E159: No
B192: Demand management policies or strategies
B193: Network demand management plan | C193: This document sets out a framework to avoid (or defer) necessary network augmentation required to manage emerging issues on the network, which is typically a network capacity constraint issue | D193: Capex and Opex | E193: No
B194: Annual planning report | C194: The Annual Planning Report presents TasNetworks’ network development and asset replacement plans to ensure the future adequacy of the electricity network in Tasmania | D194: Capex and Opex | E194: No
B196: Self insurance guidelines or policy
B199: Land and easement acquisition polices
B200: Strategic Easement and Land Acquisition Expenditure Estimation Methodology | C200: This document supports the Investment Evaluation Summary for the Strategic Easement and Land Acquisition | D200: Capex | E200: No
B204: Asset security plans and policies
B205: System Spares Policy | C205: This policy exists to define the minimum holding requirement for spare assets and spare parts which are specifically held to replace or repair in-service assets that may either fail or suffer damage, under the responsibility of Networks | D205: capex | E205: No
B215: Disaster recovery policy
B216: Emergency risk management framework | C216: This framework provides TasNetworks with a whole-of-business prevention, preparedness, response, and recovery treatment of all incidents using a risk management approach. | D216: This document is relevant to all elements of TasNetworks' combined proposal. | E216: No

Sheet 7.2 Contingent projects
B1: =INDEX(dms_Worksheet_List,MATCH(dms_Model,dms_Model_List)) -> REGULATORY REPORTING STATEMENT
B2: =INDEX(dms_TradingNameFull_List,MATCH(dms_TradingName,dms_TradingName_List)) -> TasNetworks (D)
B3: =CONCATENATE("REGULATORY PERIOD FROM ", FRCP_y1," TO ",dms_MultiYear_FinalYear_Result) -> REGULATORY PERIOD FROM 2024-25 TO 2028-29
B4: 7.2 CONTINGENT PROJECTS
B6: 7.2.1 - PROPOSED CONTINGENT PROJECTS FOR THE FORTHCOMING REGULATORY CONTROL PERIOD
B7: Proposed contingent project name | C7: Proposed contingent capital expenditure ($0's, nominal) | D7: Proposed trigger events | E7: =CONCATENATE("Proposed annual revenue requirement for ", FRCP_y1, " ($0's, nominal)") -> Proposed annual revenue requirement for 2024-25 ($0's, nominal) | F7: =CONCATENATE("5% of the annual revenue requirement for ",FRCP_y1,"") -> 5% of the annual revenue requirement for 2024-25
F8: =+E8*0.05 -> 0
E9: =+$E$8 -> 0 | F9: 0
E10: 0 | F10: 0
E11: 0 | F11: 0
E12: 0 | F12: 0
E13: 0 | F13: 0
E14: 0 | F14: 0
E15: 0 | F15: 0
E16: 0 | F16: 0
E17: 0 | F17: 0
E18: 0 | F18: 0
E19: 0 | F19: 0
E20: 0 | F20: 0
E21: 0 | F21: 0
E22: 0 | F22: 0
E23: 0 | F23: 0
E24: 0 | F24: 0
E25: 0 | F25: 0
E26: 0 | F26: 0
E27: 0 | F27: 0
E28: 0 | F28: 0
E29: 0 | F29: 0
E30: 0 | F30: 0
E31: 0 | F31: 0
E32: 0 | F32: 0
E33: 0 | F33: 0
E34: 0 | F34: 0
E35: 0 | F35: 0
E36: 0 | F36: 0
E37: 0 | F37: 0
E38: 0 | F38: 0
E39: 0 | F39: 0
E40: 0 | F40: 0
E41: 0 | F41: 0
E42: 0 | F42: 0
E43: 0 | F43: 0
E44: 0 | F44: 0
E45: 0 | F45: 0

Sheet 7.3 Obligations
B1: =INDEX(dms_Worksheet_List,MATCH(dms_Model,dms_Model_List)) -> REGULATORY REPORTING STATEMENT
B2: =INDEX(dms_TradingNameFull_List,MATCH(dms_TradingName,dms_TradingName_List)) -> TasNetworks (D)
B3: =CONCATENATE("REGULATORY PERIOD FROM ", FRCP_y1," TO ",dms_MultiYear_FinalYear_Result) -> REGULATORY PERIOD FROM 2024-25 TO 2028-29
B4: 7.3 OBLIGATIONS, REQUIREMENTS & STANDARDS
B6: 7.3.1 - OBLIGATIONS OR REQUIREMENTS
C7: Brief description | D7: Relevance to regulatory proposal | E7: Expenditure impact
C8: Description of relevant obligations or requirements within the instrument (e.g. safety obligations, reliability targets) | D8: Identify what element of the proposal/supporting documents the obligation or requirement is relevant to e.g. replacement capex, capacity utilisation thresholds, opex | E8: Is the obligation or requirement identified in the response to section 4 'Step Changes' of the notice (yes or no)?
B9: LEGISLATION
B10: Commonwealth Government | C10: A New Tax System (Goods and Services Tax) Act 1999 (Cth) A New Tax System (Goods and Services Tax) Regulations 1999 (Cth) | D10: Capex and Opex | E10: No
B11: Commonwealth Government | C11: Competition and Consumer Act 2010 (Cth) Competition and Consumer Regulations 2010 (Cth) | D11: Opex | E11: No
B12: Commonwealth Government | C12: Corporations Act 2001 (Cth) | D12: Opex | E12: No
B13: Commonwealth Government | C13: Corporations Regulations 2001 (Cth) | D13: Opex | E13: No
B14: Commonwealth Government | C14: Environment Protection and Biodiversity Conservation Act 1999 (Cth) Environment Protection and Biodiversity Conservation Regulations 2000 (Cth) | D14: Capex and Opex | E14: No
B15: Commonwealth Government | C15: Fair Work Act 2009 (Cth) Fair Work Regulations 2009 (Cth) | D15: Opex | E15: No
B16: Commonwealth Government | C16: Fringe Benefits Tax Act 1986 (Cth) Fringe Benefits Tax Assessment Act 1986 (Cth) Fringe Benefits Tax Regulations 1992 (Cth) | D16: Opex | E16: No
B17: Commonwealth Government | C17: Fuel Tax Act 2006 (Cth) | D17: Opex | E17: No
B18: Commonwealth Government | C18: National Harmonisation of Work Health and Safety Regulations 2011 (Cth) | D18: Capex and Opex | E18: No
B19: Commonwealth Government | C19: Independent Contractors Act 2006 (Cth) Independent Contractors Regulations 2007 (Cth) | D19: Capex and Opex | E19: No
B20: Commonwealth Government | C20: Income Tax Act 1986 (Cth) | D20: Opex | E20: No
B21: Commonwealth Government | C21: Income Tax Assessment Act 1936 (Cth) Income Tax Assessment Act 1997 (Cth) Income Tax Assessment Regulations 1997 (Cth) Income Tax Regulations 1936 (Cth) | D21: Opex | E21: No
B22: Commonwealth Government | C22: National Greenhouse and Energy Reporting Act 2007 (Cth) National Greenhouse and Energy Reporting Regulations 2008 (Cth) | D22: Opex | E22: No
B23: Commonwealth Government | C23: Native Title Act 1993 (Cth) Native Title (Indigenous Land Use Agreements) Regulations 1999 (Cth) | D23: Opex | E23: No
B24: Commonwealth Government | C24: Privacy Act 1988 (Cth) Privacy Regulation 2013 (Cth) | D24: Opex | E24: No
B25: Commonwealth Government | C25: Superannuation Guarantee (Administration) Act 1992 (Cth) Superannuation Guarantee (Administration) Regulations 1993 (Cth) | D25: Capex and Opex | E25: No
B26: Commonwealth Government | C26: Superannuation Industry (Supervision) Act 1993 (Cth) Superannuation Industry (Supervision) Regulations 1994 (Cth) | D26: Opex | E26: No
B27: Commonwealth Government | C27: Telecommunications (Interception and Access) Act 1979 (Cth) Telecommunications (Interception and Access) Regulations 1987 (Cth) | D27: Opex | E27: No
B28: Commonwealth Government | C28: Telecommunications Act 1997 (Cth) Telecommunications Regulations 2001 (Cth) | D28: Opex | E28: No
B29: Commonwealth Government | C29: Workplace Relations Acts and Regulations (Cth) | D29: Opex | E29: No
B30: Commonwealth Government | C30: Security of Critical Infrastructure Act 2018 | D30: Opex | E30: Yes
B31: South Australian and Victorian Governments | C31: National Electricity Law | D31: Capex and Opex | E31: No
B32: Tasmanian Government | C32: Aboriginal Heritage Act 1975 | D32: Capex and Opex | E32: No
B33: Tasmanian Government | C33: Aboriginal Lands Act 1995 | D33: Capex and Opex | E33: No
B34: Tasmanian Government | C34: Access to Neighbouring Land Act 1992 | D34: Capex and Opex | E34: No
B35: Tasmanian Government | C35: Anti-Discrimination Act 1998 | D35: Opex | E35: No
B36: Tasmanian Government | C36: Biosecurity Act 2019 | D36: Opex | E36: No
B37: Tasmanian Government | C37: Climate Change (State Action) Act 2008 | D37: Capex and Opex | E37: No
B38: Tasmanian Government | C38: COVID-19 Disease Emergency (Miscellaneous Provisions) Act 2020 | D38: Opex | E38: No
B39: Tasmanian Government | C39: Economic Regulator Act 2009 | D39: Capex and Opex | E39: No
B40: Tasmanian Government | C40: Electricity - National Scheme (Tasmania) Act 1999 | D40: Opex | E40: No
B41: Tasmanian Government | C41: Electricity Companies Act 1997 | D41: Opex | E41: No
B42: Tasmanian Government | C42: Electricity Industry Safety and Administration Act 1997 | D42: Opex | E42: No
B43: Tasmanian Government | C43: Electricity Reform Act 2012 | D43: Opex | E43: No
B44: Tasmanian Government | C44: Electricity Supply Industry Act 1995 | D44: Opex | E44: No
B45: Tasmanian Government | C45: Electricity Wayleaves and Easements Act 2000 | D45: Opex | E45: No
B46: Tasmanian Government | C46: Energy Ombudsman Act 1998 | D46: Opex | E46: No
B47: Tasmanian Government | C47: Government Business Enterprises Act 1995 | D47: Opex | E47: No
B48: Tasmanian Government | C48: Industrial Relations Act 1984 | D48: Opex | E48: No
B49: Tasmanian Government | C49: Long Service Leave (State Employees) Act 1994 | D49: Opex | E49: No
B50: Tasmanian Government | C50: Major Infrastructure Development Approvals Act 1999 | D50: Capex and Opex | E50: No
B51: Tasmanian Government | C51: National Electricity (Tasmania) Law | D51: Capex and Opex | E51: No
B52: Tasmanian Government | C52: National Energy Retail Law (Tasmania) Act 2012 | D52: Opex | E52: No
B53: Tasmanian Government | C53: National Taxation Reform (Commonwealth-State Relations) Act 1999 | D53: Opex | E53: No
B54: Tasmanian Government | C54: Occupational Licensing Act 2005 | D54: Opex | E54: No
B55: Tasmanian Government | C55: Payroll Tax Act 2008 | D55: Opex | E55: No
B56: Tasmanian Government | C56: Payroll Tax Rebate (Apprentices, Trainees and Youth Employees) Act 2017 | D56: Opex | E56: No
B57: Tasmanian Government | C57: Personal Information Protection Act 2004 | D57: Opex | E57: No
B58: Tasmanian Government | C58: Public Interest Disclosures Act 2002 | D58: Opex | E58: No
B59: Tasmanian Government | C59: Registration to Work with Vulnerable People Act 2013 | D59: Opex | E59: No
B60: Tasmanian Government | C60: Right to Information Act 2009 | D60: Opex | E60: No
B61: Tasmanian Government | C61: Roads and Jetties Act 1935 | D61: Capex and Opex | E61: No
B62: Tasmanian Government | C62: State Service Act 2000 | D62: Opex | E62: No
B63: Tasmanian Government | C63: Trades Unions Act 1889 | D63: Opex | E63: No
B64: Tasmanian Government | C64: Work Health and Safety Act 2012 | D64: Opex | E64: No
B65: Tasmanian Government | C65: Workers Rehabilitation and Compensation Act 1988 | D65: Opex | E65: No
B221: LICENCES
B222: ESI act 1995 | C222: Electrical transmission license | D222: Capex and Opex | E222: No
B223: ACMA | C223: Carrier licences for telecommunications and radio communications permits us to operate our radio and operational telecommunications | D223: Opex | E223: No
B226: RULES
B227: AEMC | C227: National Electricity Rules | D227: Capex and Opex | E227: No
B228: Standards Australia | C228: AS/NZ 3000:2007 Electrical installations | D228: Capex and Opex | E228: No
B229: Standards Australia | C229: AS/NZ 7000:2016 Overhead line design | D229: Capex and Opex | E229: No
B231: ORDERS
B235: CODES
B236: Building Code of Australia | C236: Building Code of Australia published by the Australian Building Codes Board as in force from time to time | D236: Capex and Opex | E236: No
B237: The Tasmanian Electricity Code | C237: This code regulates matters that are not covered by national legislation such as the supply and retailing of electricity of the Bass Strait Islands, licensing and fees, distribution system operations, distribution power-line vegetation management, and administrative procedures. | D237: Capex and Opex | E237: No
B251: GUIDELINES
B252: AER | C252: Annual compliance reporting guideline | D252: Opex | E252: No
B253: AER | C253: Better Resets Handbook - Towards consumer-centric network proposals | D253: Capex and Opex | E253: No
B254: AER | C254: Capex assessment outline for electricity distribution determinations | D254: Capex and Opex | E254: No
B255: AER | C255: Confidentiality guideline | D255: Capex and Opex | E255: No
B256: AER | C256: Consumer engagement guideline for network service providers | D256: Capex and Opex | E256: No
B257: AER | C257: Cost allocation guideline (distribution) | D257: Capex and Opex | E257: No
B258: AER | C258: Distribution Reliability Measures Guideline | D258: Capex and Opex | E258: No
B259: AER | C259: Distribution Service Classification Guidelines and Asset Exemption Guidelines | D259: Capex | E259: No
B260: AER | C260: Expenditure Forecast Assessment Guideline | D260: Capex | E260: No
B261: AER | C261: Expenditure incentives guideline | D261: Capex and Opex | E261: No
B262: AER | C262: Export tariff guidelines | D262: Opex | E262: No
B263: AER | C263: Guideline on control mechanism for direct control services 2008 | D263: Capex and Opex | E263: No
B264: AER | C264: Guideline on control mechanisms for alternative control services 2008 | D264: Capex and opex | E264: No
B265: AER | C265: National electricity connection charge guideline | D265: Capex and opex | E265: No
B266: AER | C266: Rate of Return Guideline 2013 | D266: Capex and opex | E266: No
B267: AER | C267: Regulatory investment test for distribution (RIT-D) and application guidelines | D267: Capex and opex | E267: No
B268: AER | C268: Repex model outline for electricity distribution determinations | D268: Capex | E268: No
B269: AER | C269: Ring-fencing guideline (electricity distribution) | D269: Capex and Opex | E269: No
B270: AER | C270: Ring-fencing guideline (Electricity transmission) | D270: Capex and Opex | E270: No
B271: AER | C271: Shared asset guideline | D271: Capex and Opex | E271: No
B290: DEFAULT AGREEMENTS
B294: OTHER
B295: AEMO | C295: B2B Procedures | D295: Capex and Opex | E295: No
B296: AEMO | C296: Metering procedures | D296: Capex and Opex | E296: No
B297: AEMO | C297: Metrology procedures and unmetered loads | D297: Capex and Opex | E297: No
B298: AEMO | C298: National Metrology Procedures | D298: Capex and Opex | E298: No
B299: AEMO | C299: Market Settlement and Transfer Solutions (MSATS) | D299: Capex and Opex | E299: No

Sheet 7.4 Shared Assets
B1: =INDEX(dms_Worksheet_List,MATCH(dms_Model,dms_Model_List)) -> REGULATORY REPORTING STATEMENT
B2: =INDEX(dms_TradingNameFull_List,MATCH(dms_TradingName,dms_TradingName_List)) -> TasNetworks (D)
B3: =CONCATENATE("REGULATORY PERIOD FROM ", FRCP_y1," TO ",dms_MultiYear_FinalYear_Result) -> REGULATORY PERIOD FROM 2024-25 TO 2028-29
B4: 7.4 SHARED ASSETS
B6: 7.4.1 - TOTAL UNREGULATED REVENUE EARNED WITH SHARED ASSETS
B7: Name of shared asset unregulated service | C7: Description of shared assets used to provide the service | D7: =CONCATENATE("Shared asset unregulated revenue ($0's, real ", dms_DollarReal,")") -> Shared asset unregulated revenue ($0's, real June 2024)
D8: =CRCP_y4 -> 2022-23 | E8: =CRCP_y5 -> 2023-24 | F8: =FRCP_y1 -> 2024-25 | G8: =FRCP_y2 -> 2025-26 | H8: =FRCP_y3 -> 2026-27 | I8: =FRCP_y4 -> 2027-28 | J8: =FRCP_y5 -> 2028-29 | K8: =CONCATENATE("Total ",FRCP_y1," to ", FRCP_y5) -> Total 2024-25 to 2028-29
B9: Pole Access | C9: Distribution Network Poles | D9: 1027015.822 | E9: 1027015.822 | F9: 1027015.822 | G9: 1027015.822 | H9: 1027015.822 | I9: 1027015.822 | J9: 1027015.822 | K9: =SUM(F9:J9) -> 5135079.109
B10: IT Services including data centre | C10: IT Assets | D10: 3149433.265 | E10: 3149433.265 | F10: 3149433.265 | G10: 3149433.265 | H10: 3149433.265 | I10: 3149433.265 | J10: 3149433.265 | K10: 15747166.32
B11: Office Space | C11: Office Space | D11: 16197.71711 | E11: 16197.71711 | K11: 0
K12: 0
K13: 0
K14: 0
K15: 0
K16: 0
K17: 0
K18: 0
K19: 0
K20: 0
K21: 0
K22: 0
K23: 0
B25: 7.4.2 - SHARED ASSET UNREGULATED SERVICES - APPORTIONMENT METHODOLOGY
B26: Name of shared asset unregulated service for which revenues were apportioned | C26: Apportionment methodology
B27: Pole Access | C27: Contract provision of unregulated assets on Distribution Poles.
B28: IT Services including data centre | C28: Shared assets appotioned based on historic unrgulated usage of shared IT Assets.
B29: Office Space | C29: Based on set office space requirement

Sheet 7.7 TSS-LRMC
B1: =INDEX(dms_Worksheet_List,MATCH(dms_Model,dms_Model_List)) -> REGULATORY REPORTING STATEMENT
B2: =INDEX(dms_TradingNameFull_List,MATCH(dms_TradingName,dms_TradingName_List)) -> TasNetworks (D)
B3: =CONCATENATE("REGULATORY PERIOD FROM ", FRCP_y1," TO ",dms_MultiYear_FinalYear_Result) -> REGULATORY PERIOD FROM 2024-25 TO 2028-29
B4: 7.7 - TARIFF STRUCTURE STATEMENT - INPUTS TO LRMC CALCULATION
D6: ="Is "&dms_TradingName&" using the 'Average Incremental Cost' approach?" -> Is TasNetworks (D) using the 'Average Incremental Cost' approach?
F7: YES
B9: 7.7.1 - INPUTS TO LRMC CALCULATION - STANDARD CONTROL SERVICES - CAPEX
B10: 7.7.1.1 - SERIES A
C11: =CONCATENATE("Forecast ($0's, real ", dms_DollarReal) -> Forecast ($0's, real June 2024
C12: =CRCP_y4 -> 2022-23 | D12: =IF(dms_RPT="financial",(VALUE(LEFT(C12,4)+1)&"-"&MID(C12,3,2)+2),VALUE(LEFT(C12,4)+1)) -> 2023-24 | E12: 2024-25 | F12: 2025-26 | G12: 2026-27 | H12: 2027-28 | I12: 2028-29 | J12: 2029-30 | K12: 2030-31 | L12: 2031-32 | M12: 2032-33 | N12: 2033-34 | O12: 2034-35 | P12: 2035-36 | Q12: 2036-37 | R12: 2037-38 | S12: 2038-39 | T12: 2039-40 | U12: 2040-41 | V12: 2041-42
B13: Replacement expenditure | E13: 220579.6158 | F13: 213433.3295 | G13: 206518.5669 | H13: 199827.8272 | I13: 193353.8524 | J13: 187089.62 | K13: 181028.3347 | L13: 175163.4215 | M13: 169488.5183 | N13: 163997.4693
B14: Connections | E14: 719932.2705 | F14: 706156.089 | G14: 678450.3005 | H14: 652222.3844 | I14: 626914.0519 | J14: 618735.5073 | K14: 610663.6577 | L14: 602697.1112 | M14: 594834.494 | N14: 587074.4503
B15: Augmentation Expenditure | E15: 904827.5994 | F15: 981535.5109 | G15: 790158.871 | H15: 716560.0012 | I15: 668748.0497 | J15: 532395.4934 | K15: 483557.5648 | L15: 499241.2024 | M15: 452732.7467 | N15: 467416.6165
B16: Non-network | E16: 0 | F16: 0 | G16: 0 | H16: 0 | I16: 0 | J16: 0 | K16: 0 | L16: 0 | M16: 0 | N16: 0
B17: Export services | E17: 574195.8344 | F17: 591554.033 | G17: 521232.7471 | H17: 488088.7538 | I17: 463322.2043 | J17: 416400.7283 | K17: 396806.6522 | L17: 397382.9759 | M17: 378699.07 | N17: 379144.8929
B18: Capitalised network overheads | E18: 0 | F18: 0 | G18: 0 | H18: 0 | I18: 0 | J18: 0 | K18: 0 | L18: 0 | M18: 0 | N18: 0
B19: Capitalised corporate overheads
B20: Total capex | C20: =SUM(C13:C19) -> 0 | D20: =SUM(D13:D19) -> 0 | E20: 2419535.32 | F20: 2492678.962 | G20: 2196360.485 | H20: 2056698.967 | I20: 1952338.158 | J20: 1754621.349 | K20: 1672056.209 | L20: 1674484.711 | M20: 1595754.829 | N20: 1597633.429 | O20: 0 | P20: 0 | Q20: 0 | R20: 0 | S20: 0 | T20: 0 | U20: 0 | V20: 0
B22: 7.7.1.2 - SERIES B
C23: =CONCATENATE("Forecast ($0's, real ", dms_DollarReal) -> Forecast ($0's, real June 2024
C24: =CRCP_y4 -> 2022-23 | D24: =IF(dms_RPT="financial",(VALUE(LEFT(C24,4)+1)&"-"&MID(C24,3,2)+2),VALUE(LEFT(C24,4)+1)) -> 2023-24 | E24: =IF(dms_RPT="financial",(VALUE(LEFT(D24,4)+1)&"-"&MID(D24,3,2)+2),VALUE(LEFT(D24,4)+1)) -> 2024-25 | F24: =IF(dms_RPT="financial",(VALUE(LEFT(E24,4)+1)&"-"&MID(E24,3,2)+2),VALUE(LEFT(E24,4)+1)) -> 2025-26 | G24: =IF(dms_RPT="financial",(VALUE(LEFT(F24,4)+1)&"-"&MID(F24,3,2)+2),VALUE(LEFT(F24,4)+1)) -> 2026-27 | H24: =IF(dms_RPT="financial",(VALUE(LEFT(G24,4)+1)&"-"&MID(G24,3,2)+2),VALUE(LEFT(G24,4)+1)) -> 2027-28 | I24: =IF(dms_RPT="financial",(VALUE(LEFT(H24,4)+1)&"-"&MID(H24,3,2)+2),VALUE(LEFT(H24,4)+1)) -> 2028-29 | J24: =IF(dms_RPT="financial",(VALUE(LEFT(I24,4)+1)&"-"&MID(I24,3,2)+2),VALUE(LEFT(I24,4)+1)) -> 2029-30 | K24: =IF(dms_RPT="financial",(VALUE(LEFT(J24,4)+1)&"-"&MID(J24,3,2)+2),VALUE(LEFT(J24,4)+1)) -> 2030-31 | L24: =IF(dms_RPT="financial",(VALUE(LEFT(K24,4)+1)&"-"&MID(K24,3,2)+2),VALUE(LEFT(K24,4)+1)) -> 2031-32 | M24: =IF(dms_RPT="financial",(VALUE(LEFT(L24,4)+1)&"-"&MID(L24,3,2)+2),VALUE(LEFT(L24,4)+1)) -> 2032-33 | N24: =IF(dms_RPT="financial",(VALUE(LEFT(M24,4)+1)&"-"&MID(M24,3,2)+2),VALUE(LEFT(M24,4)+1)) -> 2033-34 | O24: =IF(dms_RPT="financial",(VALUE(LEFT(N24,4)+1)&"-"&MID(N24,3,2)+2),VALUE(LEFT(N24,4)+1)) -> 2034-35 | P24: =IF(dms_RPT="financial",(VALUE(LEFT(O24,4)+1)&"-"&MID(O24,3,2)+2),VALUE(LEFT(O24,4)+1)) -> 2035-36 | Q24: =IF(dms_RPT="financial",(VALUE(LEFT(P24,4)+1)&"-"&MID(P24,3,2)+2),VALUE(LEFT(P24,4)+1)) -> 2036-37 | R24: =IF(dms_RPT="financial",(VALUE(LEFT(Q24,4)+1)&"-"&MID(Q24,3,2)+2),VALUE(LEFT(Q24,4)+1)) -> 2037-38 | S24: =IF(dms_RPT="financial",(VALUE(LEFT(R24,4)+1)&"-"&MID(R24,3,2)+2),VALUE(LEFT(R24,4)+1)) -> 2038-39 | T24: =IF(dms_RPT="financial",(VALUE(LEFT(S24,4)+1)&"-"&MID(S24,3,2)+2),VALUE(LEFT(S24,4)+1)) -> 2039-40 | U24: =IF(dms_RPT="financial",(VALUE(LEFT(T24,4)+1)&"-"&MID(T24,3,2)+2),VALUE(LEFT(T24,4)+1)) -> 2040-41 | V24: =IF(dms_RPT="financial",(VALUE(LEFT(U24,4)+1)&"-"&MID(U24,3,2)+2),VALUE(LEFT(U24,4)+1)) -> 2041-42
B25: Replacement expenditure
B26: Connections
B27: Augmentation Expenditure
B28: Non-network
B29: Export services
B30: Capitalised network overheads
B31: Capitalised corporate overheads
B32: Total capex | C32: =SUM(C25:C31) -> 0 | D32: =SUM(D25:D31) -> 0 | E32: 0 | F32: 0 | G32: 0 | H32: 0 | I32: 0 | J32: 0 | K32: 0 | L32: 0 | M32: 0 | N32: 0 | O32: 0 | P32: 0 | Q32: 0 | R32: 0 | S32: 0 | T32: 0 | U32: 0 | V32: 0
B34: 7.7.1.3 - SERIES C
C35: =CONCATENATE("Forecast ($0's, real ", dms_DollarReal) -> Forecast ($0's, real June 2024
C36: =CRCP_y4 -> 2022-23 | D36: =IF(dms_RPT="financial",(VALUE(LEFT(C36,4)+1)&"-"&MID(C36,3,2)+2),VALUE(LEFT(C36,4)+1)) -> 2023-24 | E36: =IF(dms_RPT="financial",(VALUE(LEFT(D36,4)+1)&"-"&MID(D36,3,2)+2),VALUE(LEFT(D36,4)+1)) -> 2024-25 | F36: =IF(dms_RPT="financial",(VALUE(LEFT(E36,4)+1)&"-"&MID(E36,3,2)+2),VALUE(LEFT(E36,4)+1)) -> 2025-26 | G36: =IF(dms_RPT="financial",(VALUE(LEFT(F36,4)+1)&"-"&MID(F36,3,2)+2),VALUE(LEFT(F36,4)+1)) -> 2026-27 | H36: =IF(dms_RPT="financial",(VALUE(LEFT(G36,4)+1)&"-"&MID(G36,3,2)+2),VALUE(LEFT(G36,4)+1)) -> 2027-28 | I36: =IF(dms_RPT="financial",(VALUE(LEFT(H36,4)+1)&"-"&MID(H36,3,2)+2),VALUE(LEFT(H36,4)+1)) -> 2028-29 | J36: =IF(dms_RPT="financial",(VALUE(LEFT(I36,4)+1)&"-"&MID(I36,3,2)+2),VALUE(LEFT(I36,4)+1)) -> 2029-30 | K36: =IF(dms_RPT="financial",(VALUE(LEFT(J36,4)+1)&"-"&MID(J36,3,2)+2),VALUE(LEFT(J36,4)+1)) -> 2030-31 | L36: =IF(dms_RPT="financial",(VALUE(LEFT(K36,4)+1)&"-"&MID(K36,3,2)+2),VALUE(LEFT(K36,4)+1)) -> 2031-32 | M36: =IF(dms_RPT="financial",(VALUE(LEFT(L36,4)+1)&"-"&MID(L36,3,2)+2),VALUE(LEFT(L36,4)+1)) -> 2032-33 | N36: =IF(dms_RPT="financial",(VALUE(LEFT(M36,4)+1)&"-"&MID(M36,3,2)+2),VALUE(LEFT(M36,4)+1)) -> 2033-34 | O36: =IF(dms_RPT="financial",(VALUE(LEFT(N36,4)+1)&"-"&MID(N36,3,2)+2),VALUE(LEFT(N36,4)+1)) -> 2034-35 | P36: =IF(dms_RPT="financial",(VALUE(LEFT(O36,4)+1)&"-"&MID(O36,3,2)+2),VALUE(LEFT(O36,4)+1)) -> 2035-36 | Q36: =IF(dms_RPT="financial",(VALUE(LEFT(P36,4)+1)&"-"&MID(P36,3,2)+2),VALUE(LEFT(P36,4)+1)) -> 2036-37 | R36: =IF(dms_RPT="financial",(VALUE(LEFT(Q36,4)+1)&"-"&MID(Q36,3,2)+2),VALUE(LEFT(Q36,4)+1)) -> 2037-38 | S36: =IF(dms_RPT="financial",(VALUE(LEFT(R36,4)+1)&"-"&MID(R36,3,2)+2),VALUE(LEFT(R36,4)+1)) -> 2038-39 | T36: =IF(dms_RPT="financial",(VALUE(LEFT(S36,4)+1)&"-"&MID(S36,3,2)+2),VALUE(LEFT(S36,4)+1)) -> 2039-40 | U36: =IF(dms_RPT="financial",(VALUE(LEFT(T36,4)+1)&"-"&MID(T36,3,2)+2),VALUE(LEFT(T36,4)+1)) -> 2040-41 | V36: =IF(dms_RPT="financial",(VALUE(LEFT(U36,4)+1)&"-"&MID(U36,3,2)+2),VALUE(LEFT(U36,4)+1)) -> 2041-42
B37: Replacement expenditure
B38: Connections
B39: Augmentation Expenditure
B40: Non-network
B41: Capitalised network overheads
B42: Capitalised corporate overheads
B43: Total capex | C43: =SUM(C36:C42) -> 0 | D43: 0 | E43: 0 | F43: 0 | G43: 0 | H43: 0 | I43: 0 | J43: 0 | K43: 0 | L43: 0 | M43: 0 | N43: 0 | O43: 0 | P43: 0 | Q43: 0 | R43: 0 | S43: 0 | T43: 0 | U43: 0 | V43: 0
B47: 7.7.2 - INPUTS TO LRMC CALCULATION - STANDARD CONTROL SERVICES - OPEX
B48: 7.7.2.1 - SERIES A
C49: =CONCATENATE("Forecast ($0's, real ", dms_DollarReal) -> Forecast ($0's, real June 2024
C50: =CRCP_y4 -> 2022-23 | D50: =IF(dms_RPT="financial",(VALUE(LEFT(C50,4)+1)&"-"&MID(C50,3,2)+2),VALUE(LEFT(C50,4)+1)) -> 2023-24 | E50: =IF(dms_RPT="financial",(VALUE(LEFT(D50,4)+1)&"-"&MID(D50,3,2)+2),VALUE(LEFT(D50,4)+1)) -> 2024-25 | F50: =IF(dms_RPT="financial",(VALUE(LEFT(E50,4)+1)&"-"&MID(E50,3,2)+2),VALUE(LEFT(E50,4)+1)) -> 2025-26 | G50: =IF(dms_RPT="financial",(VALUE(LEFT(F50,4)+1)&"-"&MID(F50,3,2)+2),VALUE(LEFT(F50,4)+1)) -> 2026-27 | H50: =IF(dms_RPT="financial",(VALUE(LEFT(G50,4)+1)&"-"&MID(G50,3,2)+2),VALUE(LEFT(G50,4)+1)) -> 2027-28 | I50: =IF(dms_RPT="financial",(VALUE(LEFT(H50,4)+1)&"-"&MID(H50,3,2)+2),VALUE(LEFT(H50,4)+1)) -> 2028-29 | J50: =IF(dms_RPT="financial",(VALUE(LEFT(I50,4)+1)&"-"&MID(I50,3,2)+2),VALUE(LEFT(I50,4)+1)) -> 2029-30 | K50: =IF(dms_RPT="financial",(VALUE(LEFT(J50,4)+1)&"-"&MID(J50,3,2)+2),VALUE(LEFT(J50,4)+1)) -> 2030-31 | L50: =IF(dms_RPT="financial",(VALUE(LEFT(K50,4)+1)&"-"&MID(K50,3,2)+2),VALUE(LEFT(K50,4)+1)) -> 2031-32 | M50: =IF(dms_RPT="financial",(VALUE(LEFT(L50,4)+1)&"-"&MID(L50,3,2)+2),VALUE(LEFT(L50,4)+1)) -> 2032-33 | N50: =IF(dms_RPT="financial",(VALUE(LEFT(M50,4)+1)&"-"&MID(M50,3,2)+2),VALUE(LEFT(M50,4)+1)) -> 2033-34 | O50: =IF(dms_RPT="financial",(VALUE(LEFT(N50,4)+1)&"-"&MID(N50,3,2)+2),VALUE(LEFT(N50,4)+1)) -> 2034-35 | P50: =IF(dms_RPT="financial",(VALUE(LEFT(O50,4)+1)&"-"&MID(O50,3,2)+2),VALUE(LEFT(O50,4)+1)) -> 2035-36 | Q50: =IF(dms_RPT="financial",(VALUE(LEFT(P50,4)+1)&"-"&MID(P50,3,2)+2),VALUE(LEFT(P50,4)+1)) -> 2036-37 | R50: =IF(dms_RPT="financial",(VALUE(LEFT(Q50,4)+1)&"-"&MID(Q50,3,2)+2),VALUE(LEFT(Q50,4)+1)) -> 2037-38 | S50: =IF(dms_RPT="financial",(VALUE(LEFT(R50,4)+1)&"-"&MID(R50,3,2)+2),VALUE(LEFT(R50,4)+1)) -> 2038-39 | T50: =IF(dms_RPT="financial",(VALUE(LEFT(S50,4)+1)&"-"&MID(S50,3,2)+2),VALUE(LEFT(S50,4)+1)) -> 2039-40 | U50: =IF(dms_RPT="financial",(VALUE(LEFT(T50,4)+1)&"-"&MID(T50,3,2)+2),VALUE(LEFT(T50,4)+1)) -> 2040-41 | V50: =IF(dms_RPT="financial",(VALUE(LEFT(U50,4)+1)&"-"&MID(U50,3,2)+2),VALUE(LEFT(U50,4)+1)) -> 2041-42
B51: Opex - High Voltage | E51: 7029.699769 | F51: 13607.36143 | G51: 18964.26768 | H51: 24501.9908 | I51: 29479.53686 | J51: 33255.74451 | K51: 36526.72648 | L51: 39783.45264 | M51: 42570.37366 | N51: 45352.8146
B52: Opex - Low Voltage | E52: 101849.3896 | F52: 203914.8423 | G52: 290346.9249 | H52: 367339.6643 | I52: 437522.542 | J52: 497574.472 | K52: 552348.3075 | L52: 605365.1591 | M52: 653485.8331 | N52: 700046.2319
B66: Total opex | C66: =SUM(C51:C65) -> 0 | D66: =SUM(D51:D65) -> 0 | E66: 108879.0894 | F66: 217522.2037 | G66: 309311.1926 | H66: 391841.6551 | I66: 467002.0789 | J66: 530830.2165 | K66: 588875.034 | L66: 645148.6118 | M66: 696056.2068 | N66: 745399.0465 | O66: 0 | P66: 0 | Q66: 0 | R66: 0 | S66: 0 | T66: 0 | U66: 0 | V66: 0
B68: 7.7.2.2- SERIES B
C69: =CONCATENATE("Forecast ($0's, real ", dms_DollarReal) -> Forecast ($0's, real June 2024
C70: =CRCP_y4 -> 2022-23 | D70: =IF(dms_RPT="financial",(VALUE(LEFT(C70,4)+1)&"-"&MID(C70,3,2)+2),VALUE(LEFT(C70,4)+1)) -> 2023-24 | E70: =IF(dms_RPT="financial",(VALUE(LEFT(D70,4)+1)&"-"&MID(D70,3,2)+2),VALUE(LEFT(D70,4)+1)) -> 2024-25 | F70: =IF(dms_RPT="financial",(VALUE(LEFT(E70,4)+1)&"-"&MID(E70,3,2)+2),VALUE(LEFT(E70,4)+1)) -> 2025-26 | G70: =IF(dms_RPT="financial",(VALUE(LEFT(F70,4)+1)&"-"&MID(F70,3,2)+2),VALUE(LEFT(F70,4)+1)) -> 2026-27 | H70: =IF(dms_RPT="financial",(VALUE(LEFT(G70,4)+1)&"-"&MID(G70,3,2)+2),VALUE(LEFT(G70,4)+1)) -> 2027-28 | I70: =IF(dms_RPT="financial",(VALUE(LEFT(H70,4)+1)&"-"&MID(H70,3,2)+2),VALUE(LEFT(H70,4)+1)) -> 2028-29 | J70: =IF(dms_RPT="financial",(VALUE(LEFT(I70,4)+1)&"-"&MID(I70,3,2)+2),VALUE(LEFT(I70,4)+1)) -> 2029-30 | K70: =IF(dms_RPT="financial",(VALUE(LEFT(J70,4)+1)&"-"&MID(J70,3,2)+2),VALUE(LEFT(J70,4)+1)) -> 2030-31 | L70: =IF(dms_RPT="financial",(VALUE(LEFT(K70,4)+1)&"-"&MID(K70,3,2)+2),VALUE(LEFT(K70,4)+1)) -> 2031-32 | M70: =IF(dms_RPT="financial",(VALUE(LEFT(L70,4)+1)&"-"&MID(L70,3,2)+2),VALUE(LEFT(L70,4)+1)) -> 2032-33 | N70: =IF(dms_RPT="financial",(VALUE(LEFT(M70,4)+1)&"-"&MID(M70,3,2)+2),VALUE(LEFT(M70,4)+1)) -> 2033-34 | O70: =IF(dms_RPT="financial",(VALUE(LEFT(N70,4)+1)&"-"&MID(N70,3,2)+2),VALUE(LEFT(N70,4)+1)) -> 2034-35 | P70: =IF(dms_RPT="financial",(VALUE(LEFT(O70,4)+1)&"-"&MID(O70,3,2)+2),VALUE(LEFT(O70,4)+1)) -> 2035-36 | Q70: =IF(dms_RPT="financial",(VALUE(LEFT(P70,4)+1)&"-"&MID(P70,3,2)+2),VALUE(LEFT(P70,4)+1)) -> 2036-37 | R70: =IF(dms_RPT="financial",(VALUE(LEFT(Q70,4)+1)&"-"&MID(Q70,3,2)+2),VALUE(LEFT(Q70,4)+1)) -> 2037-38 | S70: =IF(dms_RPT="financial",(VALUE(LEFT(R70,4)+1)&"-"&MID(R70,3,2)+2),VALUE(LEFT(R70,4)+1)) -> 2038-39 | T70: =IF(dms_RPT="financial",(VALUE(LEFT(S70,4)+1)&"-"&MID(S70,3,2)+2),VALUE(LEFT(S70,4)+1)) -> 2039-40 | U70: =IF(dms_RPT="financial",(VALUE(LEFT(T70,4)+1)&"-"&MID(T70,3,2)+2),VALUE(LEFT(T70,4)+1)) -> 2040-41 | V70: =IF(dms_RPT="financial",(VALUE(LEFT(U70,4)+1)&"-"&MID(U70,3,2)+2),VALUE(LEFT(U70,4)+1)) -> 2041-42
B86: Total opex | C86: =SUM(C71:C85) -> 0 | D86: =SUM(D71:D85) -> 0 | E86: =SUM(E71:E85) -> 0 | F86: =SUM(F71:F85) -> 0 | G86: =SUM(G71:G85) -> 0 | H86: =SUM(H71:H85) -> 0 | I86: =SUM(I71:I85) -> 0 | J86: =SUM(J71:J85) -> 0 | K86: =SUM(K71:K85) -> 0 | L86: =SUM(L71:L85) -> 0 | M86: =SUM(M71:M85) -> 0 | N86: =SUM(N71:N85) -> 0 | O86: =SUM(O71:O85) -> 0 | P86: =SUM(P71:P85) -> 0 | Q86: =SUM(Q71:Q85) -> 0 | R86: =SUM(R71:R85) -> 0 | S86: =SUM(S71:S85) -> 0 | T86: =SUM(T71:T85) -> 0 | U86: =SUM(U71:U85) -> 0 | V86: =SUM(V71:V85) -> 0
B88: 7.7.2.3 - SERIES C
C89: =CONCATENATE("Forecast ($0's, real ", dms_DollarReal) -> Forecast ($0's, real June 2024
C90: =CRCP_y4 -> 2022-23 | D90: =IF(dms_RPT="financial",(VALUE(LEFT(C90,4)+1)&"-"&MID(C90,3,2)+2),VALUE(LEFT(C90,4)+1)) -> 2023-24 | E90: =IF(dms_RPT="financial",(VALUE(LEFT(D90,4)+1)&"-"&MID(D90,3,2)+2),VALUE(LEFT(D90,4)+1)) -> 2024-25 | F90: =IF(dms_RPT="financial",(VALUE(LEFT(E90,4)+1)&"-"&MID(E90,3,2)+2),VALUE(LEFT(E90,4)+1)) -> 2025-26 | G90: =IF(dms_RPT="financial",(VALUE(LEFT(F90,4)+1)&"-"&MID(F90,3,2)+2),VALUE(LEFT(F90,4)+1)) -> 2026-27 | H90: =IF(dms_RPT="financial",(VALUE(LEFT(G90,4)+1)&"-"&MID(G90,3,2)+2),VALUE(LEFT(G90,4)+1)) -> 2027-28 | I90: =IF(dms_RPT="financial",(VALUE(LEFT(H90,4)+1)&"-"&MID(H90,3,2)+2),VALUE(LEFT(H90,4)+1)) -> 2028-29 | J90: =IF(dms_RPT="financial",(VALUE(LEFT(I90,4)+1)&"-"&MID(I90,3,2)+2),VALUE(LEFT(I90,4)+1)) -> 2029-30 | K90: =IF(dms_RPT="financial",(VALUE(LEFT(J90,4)+1)&"-"&MID(J90,3,2)+2),VALUE(LEFT(J90,4)+1)) -> 2030-31 | L90: =IF(dms_RPT="financial",(VALUE(LEFT(K90,4)+1)&"-"&MID(K90,3,2)+2),VALUE(LEFT(K90,4)+1)) -> 2031-32 | M90: =IF(dms_RPT="financial",(VALUE(LEFT(L90,4)+1)&"-"&MID(L90,3,2)+2),VALUE(LEFT(L90,4)+1)) -> 2032-33 | N90: =IF(dms_RPT="financial",(VALUE(LEFT(M90,4)+1)&"-"&MID(M90,3,2)+2),VALUE(LEFT(M90,4)+1)) -> 2033-34 | O90: =IF(dms_RPT="financial",(VALUE(LEFT(N90,4)+1)&"-"&MID(N90,3,2)+2),VALUE(LEFT(N90,4)+1)) -> 2034-35 | P90: =IF(dms_RPT="financial",(VALUE(LEFT(O90,4)+1)&"-"&MID(O90,3,2)+2),VALUE(LEFT(O90,4)+1)) -> 2035-36 | Q90: =IF(dms_RPT="financial",(VALUE(LEFT(P90,4)+1)&"-"&MID(P90,3,2)+2),VALUE(LEFT(P90,4)+1)) -> 2036-37 | R90: =IF(dms_RPT="financial",(VALUE(LEFT(Q90,4)+1)&"-"&MID(Q90,3,2)+2),VALUE(LEFT(Q90,4)+1)) -> 2037-38 | S90: =IF(dms_RPT="financial",(VALUE(LEFT(R90,4)+1)&"-"&MID(R90,3,2)+2),VALUE(LEFT(R90,4)+1)) -> 2038-39 | T90: =IF(dms_RPT="financial",(VALUE(LEFT(S90,4)+1)&"-"&MID(S90,3,2)+2),VALUE(LEFT(S90,4)+1)) -> 2039-40 | U90: =IF(dms_RPT="financial",(VALUE(LEFT(T90,4)+1)&"-"&MID(T90,3,2)+2),VALUE(LEFT(T90,4)+1)) -> 2040-41 | V90: =IF(dms_RPT="financial",(VALUE(LEFT(U90,4)+1)&"-"&MID(U90,3,2)+2),VALUE(LEFT(U90,4)+1)) -> 2041-42
B106: Total opex | C106: =SUM(C91:C105) -> 0 | D106: =SUM(D91:D105) -> 0 | E106: =SUM(E91:E105) -> 0 | F106: =SUM(F91:F105) -> 0 | G106: =SUM(G91:G105) -> 0 | H106: =SUM(H91:H105) -> 0 | I106: =SUM(I91:I105) -> 0 | J106: =SUM(J91:J105) -> 0 | K106: =SUM(K91:K105) -> 0 | L106: =SUM(L91:L105) -> 0 | M106: =SUM(M91:M105) -> 0 | N106: =SUM(N91:N105) -> 0 | O106: =SUM(O91:O105) -> 0 | P106: =SUM(P91:P105) -> 0 | Q106: =SUM(Q91:Q105) -> 0 | R106: =SUM(R91:R105) -> 0 | S106: =SUM(S91:S105) -> 0 | T106: =SUM(T91:T105) -> 0 | U106: =SUM(U91:U105) -> 0 | V106: =SUM(V91:V105) -> 0
B110: 7.7.3 - INPUTS TO LRMC CALCULATION - DEMAND
B111: 7.7.3.1 - SERIES A
C112: =CONCATENATE("Forecast ($0's, real ", dms_DollarReal) -> Forecast ($0's, real June 2024
C113: =CRCP_y4 -> 2022-23 | D113: =IF(dms_RPT="financial",(VALUE(LEFT(C113,4)+1)&"-"&MID(C113,3,2)+2),VALUE(LEFT(C113,4)+1)) -> 2023-24 | E113: =IF(dms_RPT="financial",(VALUE(LEFT(D113,4)+1)&"-"&MID(D113,3,2)+2),VALUE(LEFT(D113,4)+1)) -> 2024-25 | F113: =IF(dms_RPT="financial",(VALUE(LEFT(E113,4)+1)&"-"&MID(E113,3,2)+2),VALUE(LEFT(E113,4)+1)) -> 2025-26 | G113: =IF(dms_RPT="financial",(VALUE(LEFT(F113,4)+1)&"-"&MID(F113,3,2)+2),VALUE(LEFT(F113,4)+1)) -> 2026-27 | H113: =IF(dms_RPT="financial",(VALUE(LEFT(G113,4)+1)&"-"&MID(G113,3,2)+2),VALUE(LEFT(G113,4)+1)) -> 2027-28 | I113: =IF(dms_RPT="financial",(VALUE(LEFT(H113,4)+1)&"-"&MID(H113,3,2)+2),VALUE(LEFT(H113,4)+1)) -> 2028-29 | J113: =IF(dms_RPT="financial",(VALUE(LEFT(I113,4)+1)&"-"&MID(I113,3,2)+2),VALUE(LEFT(I113,4)+1)) -> 2029-30 | K113: =IF(dms_RPT="financial",(VALUE(LEFT(J113,4)+1)&"-"&MID(J113,3,2)+2),VALUE(LEFT(J113,4)+1)) -> 2030-31 | L113: =IF(dms_RPT="financial",(VALUE(LEFT(K113,4)+1)&"-"&MID(K113,3,2)+2),VALUE(LEFT(K113,4)+1)) -> 2031-32 | M113: =IF(dms_RPT="financial",(VALUE(LEFT(L113,4)+1)&"-"&MID(L113,3,2)+2),VALUE(LEFT(L113,4)+1)) -> 2032-33 | N113: =IF(dms_RPT="financial",(VALUE(LEFT(M113,4)+1)&"-"&MID(M113,3,2)+2),VALUE(LEFT(M113,4)+1)) -> 2033-34 | O113: =IF(dms_RPT="financial",(VALUE(LEFT(N113,4)+1)&"-"&MID(N113,3,2)+2),VALUE(LEFT(N113,4)+1)) -> 2034-35 | P113: =IF(dms_RPT="financial",(VALUE(LEFT(O113,4)+1)&"-"&MID(O113,3,2)+2),VALUE(LEFT(O113,4)+1)) -> 2035-36 | Q113: =IF(dms_RPT="financial",(VALUE(LEFT(P113,4)+1)&"-"&MID(P113,3,2)+2),VALUE(LEFT(P113,4)+1)) -> 2036-37 | R113: =IF(dms_RPT="financial",(VALUE(LEFT(Q113,4)+1)&"-"&MID(Q113,3,2)+2),VALUE(LEFT(Q113,4)+1)) -> 2037-38 | S113: =IF(dms_RPT="financial",(VALUE(LEFT(R113,4)+1)&"-"&MID(R113,3,2)+2),VALUE(LEFT(R113,4)+1)) -> 2038-39 | T113: =IF(dms_RPT="financial",(VALUE(LEFT(S113,4)+1)&"-"&MID(S113,3,2)+2),VALUE(LEFT(S113,4)+1)) -> 2039-40 | U113: =IF(dms_RPT="financial",(VALUE(LEFT(T113,4)+1)&"-"&MID(T113,3,2)+2),VALUE(LEFT(T113,4)+1)) -> 2040-41 | V113: =IF(dms_RPT="financial",(VALUE(LEFT(U113,4)+1)&"-"&MID(U113,3,2)+2),VALUE(LEFT(U113,4)+1)) -> 2041-42
B114: Incremental Demand - High Voltage | E114: 1.483902615 | F114: 1.436644925 | G114: 1.49380677 | H114: 1.401198641 | I114: 1.468785833 | J114: 1.463842414 | K114: 1.414491085 | L114: 1.50155852 | M114: 1.451110654 | N114: 1.538910479
B115: Incremental Demand - Low Voltage | E115: 10.4378244 | F115: 10.10541211 | G115: 10.50749059 | H115: 9.856081673 | I115: 10.33149241 | J115: 10.29672023 | K115: 9.949581202 | L115: 10.56201667 | M115: 10.20716456 | N115: 10.8247517
B124: Total demand | C124: =-SUM(C114:C123) -> 0 | D124: =-SUM(D114:D123) -> 0 | E124: -11.92172702 | F124: -11.54205703 | G124: -12.00129736 | H124: -11.25728031 | I124: -11.80027824 | J124: -11.76056264 | K124: -11.36407229 | L124: -12.06357519 | M124: -11.65827522 | N124: -12.36366218 | O124: 0 | P124: 0 | Q124: 0 | R124: 0 | S124: 0 | T124: 0 | U124: 0 | V124: 0
B126: 7.7.3.2 - SERIES B
C127: =CONCATENATE("Forecast ($0's, real ", dms_DollarReal) -> Forecast ($0's, real June 2024
C128: =CRCP_y4 -> 2022-23 | D128: =IF(dms_RPT="financial",(VALUE(LEFT(C128,4)+1)&"-"&MID(C128,3,2)+2),VALUE(LEFT(C128,4)+1)) -> 2023-24 | E128: =IF(dms_RPT="financial",(VALUE(LEFT(D128,4)+1)&"-"&MID(D128,3,2)+2),VALUE(LEFT(D128,4)+1)) -> 2024-25 | F128: =IF(dms_RPT="financial",(VALUE(LEFT(E128,4)+1)&"-"&MID(E128,3,2)+2),VALUE(LEFT(E128,4)+1)) -> 2025-26 | G128: =IF(dms_RPT="financial",(VALUE(LEFT(F128,4)+1)&"-"&MID(F128,3,2)+2),VALUE(LEFT(F128,4)+1)) -> 2026-27 | H128: =IF(dms_RPT="financial",(VALUE(LEFT(G128,4)+1)&"-"&MID(G128,3,2)+2),VALUE(LEFT(G128,4)+1)) -> 2027-28 | I128: =IF(dms_RPT="financial",(VALUE(LEFT(H128,4)+1)&"-"&MID(H128,3,2)+2),VALUE(LEFT(H128,4)+1)) -> 2028-29 | J128: =IF(dms_RPT="financial",(VALUE(LEFT(I128,4)+1)&"-"&MID(I128,3,2)+2),VALUE(LEFT(I128,4)+1)) -> 2029-30 | K128: =IF(dms_RPT="financial",(VALUE(LEFT(J128,4)+1)&"-"&MID(J128,3,2)+2),VALUE(LEFT(J128,4)+1)) -> 2030-31 | L128: =IF(dms_RPT="financial",(VALUE(LEFT(K128,4)+1)&"-"&MID(K128,3,2)+2),VALUE(LEFT(K128,4)+1)) -> 2031-32 | M128: =IF(dms_RPT="financial",(VALUE(LEFT(L128,4)+1)&"-"&MID(L128,3,2)+2),VALUE(LEFT(L128,4)+1)) -> 2032-33 | N128: =IF(dms_RPT="financial",(VALUE(LEFT(M128,4)+1)&"-"&MID(M128,3,2)+2),VALUE(LEFT(M128,4)+1)) -> 2033-34 | O128: =IF(dms_RPT="financial",(VALUE(LEFT(N128,4)+1)&"-"&MID(N128,3,2)+2),VALUE(LEFT(N128,4)+1)) -> 2034-35 | P128: =IF(dms_RPT="financial",(VALUE(LEFT(O128,4)+1)&"-"&MID(O128,3,2)+2),VALUE(LEFT(O128,4)+1)) -> 2035-36 | Q128: =IF(dms_RPT="financial",(VALUE(LEFT(P128,4)+1)&"-"&MID(P128,3,2)+2),VALUE(LEFT(P128,4)+1)) -> 2036-37 | R128: =IF(dms_RPT="financial",(VALUE(LEFT(Q128,4)+1)&"-"&MID(Q128,3,2)+2),VALUE(LEFT(Q128,4)+1)) -> 2037-38 | S128: =IF(dms_RPT="financial",(VALUE(LEFT(R128,4)+1)&"-"&MID(R128,3,2)+2),VALUE(LEFT(R128,4)+1)) -> 2038-39 | T128: =IF(dms_RPT="financial",(VALUE(LEFT(S128,4)+1)&"-"&MID(S128,3,2)+2),VALUE(LEFT(S128,4)+1)) -> 2039-40 | U128: =IF(dms_RPT="financial",(VALUE(LEFT(T128,4)+1)&"-"&MID(T128,3,2)+2),VALUE(LEFT(T128,4)+1)) -> 2040-41 | V128: =IF(dms_RPT="financial",(VALUE(LEFT(U128,4)+1)&"-"&MID(U128,3,2)+2),VALUE(LEFT(U128,4)+1)) -> 2041-42
B139: Total demand | C139: =-SUM(C129:C138) -> 0 | D139: =-SUM(D129:D138) -> 0 | E139: =-SUM(E129:E138) -> 0 | F139: =-SUM(F129:F138) -> 0 | G139: =-SUM(G129:G138) -> 0 | H139: =-SUM(H129:H138) -> 0 | I139: =-SUM(I129:I138) -> 0 | J139: =-SUM(J129:J138) -> 0 | K139: =-SUM(K129:K138) -> 0 | L139: =-SUM(L129:L138) -> 0 | M139: =-SUM(M129:M138) -> 0 | N139: =-SUM(N129:N138) -> 0 | O139: =-SUM(O129:O138) -> 0 | P139: =-SUM(P129:P138) -> 0 | Q139: =-SUM(Q129:Q138) -> 0 | R139: =-SUM(R129:R138) -> 0 | S139: =-SUM(S129:S138) -> 0 | T139: =-SUM(T129:T138) -> 0 | U139: =-SUM(U129:U138) -> 0 | V139: =-SUM(V129:V138) -> 0
B141: 7.7.3.3 - SERIES C
C142: =CONCATENATE("Forecast ($0's, real ", dms_DollarReal) -> Forecast ($0's, real June 2024
C143: =CRCP_y4 -> 2022-23 | D143: =IF(dms_RPT="financial",(VALUE(LEFT(C143,4)+1)&"-"&MID(C143,3,2)+2),VALUE(LEFT(C143,4)+1)) -> 2023-24 | E143: =IF(dms_RPT="financial",(VALUE(LEFT(D143,4)+1)&"-"&MID(D143,3,2)+2),VALUE(LEFT(D143,4)+1)) -> 2024-25 | F143: =IF(dms_RPT="financial",(VALUE(LEFT(E143,4)+1)&"-"&MID(E143,3,2)+2),VALUE(LEFT(E143,4)+1)) -> 2025-26 | G143: =IF(dms_RPT="financial",(VALUE(LEFT(F143,4)+1)&"-"&MID(F143,3,2)+2),VALUE(LEFT(F143,4)+1)) -> 2026-27 | H143: =IF(dms_RPT="financial",(VALUE(LEFT(G143,4)+1)&"-"&MID(G143,3,2)+2),VALUE(LEFT(G143,4)+1)) -> 2027-28 | I143: =IF(dms_RPT="financial",(VALUE(LEFT(H143,4)+1)&"-"&MID(H143,3,2)+2),VALUE(LEFT(H143,4)+1)) -> 2028-29 | J143: =IF(dms_RPT="financial",(VALUE(LEFT(I143,4)+1)&"-"&MID(I143,3,2)+2),VALUE(LEFT(I143,4)+1)) -> 2029-30 | K143: =IF(dms_RPT="financial",(VALUE(LEFT(J143,4)+1)&"-"&MID(J143,3,2)+2),VALUE(LEFT(J143,4)+1)) -> 2030-31 | L143: =IF(dms_RPT="financial",(VALUE(LEFT(K143,4)+1)&"-"&MID(K143,3,2)+2),VALUE(LEFT(K143,4)+1)) -> 2031-32 | M143: =IF(dms_RPT="financial",(VALUE(LEFT(L143,4)+1)&"-"&MID(L143,3,2)+2),VALUE(LEFT(L143,4)+1)) -> 2032-33 | N143: =IF(dms_RPT="financial",(VALUE(LEFT(M143,4)+1)&"-"&MID(M143,3,2)+2),VALUE(LEFT(M143,4)+1)) -> 2033-34 | O143: =IF(dms_RPT="financial",(VALUE(LEFT(N143,4)+1)&"-"&MID(N143,3,2)+2),VALUE(LEFT(N143,4)+1)) -> 2034-35 | P143: =IF(dms_RPT="financial",(VALUE(LEFT(O143,4)+1)&"-"&MID(O143,3,2)+2),VALUE(LEFT(O143,4)+1)) -> 2035-36 | Q143: =IF(dms_RPT="financial",(VALUE(LEFT(P143,4)+1)&"-"&MID(P143,3,2)+2),VALUE(LEFT(P143,4)+1)) -> 2036-37 | R143: =IF(dms_RPT="financial",(VALUE(LEFT(Q143,4)+1)&"-"&MID(Q143,3,2)+2),VALUE(LEFT(Q143,4)+1)) -> 2037-38 | S143: =IF(dms_RPT="financial",(VALUE(LEFT(R143,4)+1)&"-"&MID(R143,3,2)+2),VALUE(LEFT(R143,4)+1)) -> 2038-39 | T143: =IF(dms_RPT="financial",(VALUE(LEFT(S143,4)+1)&"-"&MID(S143,3,2)+2),VALUE(LEFT(S143,4)+1)) -> 2039-40 | U143: =IF(dms_RPT="financial",(VALUE(LEFT(T143,4)+1)&"-"&MID(T143,3,2)+2),VALUE(LEFT(T143,4)+1)) -> 2040-41 | V143: =IF(dms_RPT="financial",(VALUE(LEFT(U143,4)+1)&"-"&MID(U143,3,2)+2),VALUE(LEFT(U143,4)+1)) -> 2041-42
B154: Total demand | C154: =-SUM(C144:C153) -> 0 | D154: =-SUM(D144:D153) -> 0 | E154: =-SUM(E144:E153) -> 0 | F154: =-SUM(F144:F153) -> 0 | G154: =-SUM(G144:G153) -> 0 | H154: =-SUM(H144:H153) -> 0 | I154: =-SUM(I144:I153) -> 0 | J154: =-SUM(J144:J153) -> 0 | K154: =-SUM(K144:K153) -> 0 | L154: =-SUM(L144:L153) -> 0 | M154: =-SUM(M144:M153) -> 0 | N154: =-SUM(N144:N153) -> 0 | O154: =-SUM(O144:O153) -> 0 | P154: =-SUM(P144:P153) -> 0 | Q154: =-SUM(Q144:Q153) -> 0 | R154: =-SUM(R144:R153) -> 0 | S154: =-SUM(S144:S153) -> 0 | T154: =-SUM(T144:T153) -> 0 | U154: =-SUM(U144:U153) -> 0 | V154: =-SUM(V144:V153) -> 0

Sheet 7.8 Export Services
B1: =INDEX(dms_Worksheet_List,MATCH(dms_Model,dms_Model_List)) -> REGULATORY REPORTING STATEMENT
B2: =INDEX(dms_TradingNameFull_List,MATCH(dms_TradingName,dms_TradingName_List)) -> TasNetworks (D)
B3: =CONCATENATE("REGULATORY PERIOD FROM ", FRCP_y1," TO ",dms_MultiYear_FinalYear_Result) -> REGULATORY PERIOD FROM 2024-25 TO 2028-29
B4: 7.8 EXPORT SERVICES
B6: Expenditure must only be related to DER integration, and must exclude amounts relating to DMIA
B8: Export service related overvoltage complaint management examples include but not limited to: complaint processing, analysis, transformer tapping
B10: 7.8.1 - OPEX FOR PROVISION OF EXPORT SERVICES
C11: =CONCATENATE("EXPENDITURE ($0's, real ",dms_DollarReal, ")") -> EXPENDITURE ($0's, real June 2024)
C12: =CRCP_y4 -> 2022-23 | D12: =CRCP_y5 -> 2023-24 | E12: =FRCP_y1 -> 2024-25 | F12: =FRCP_y2 -> 2025-26 | G12: =FRCP_y3 -> 2026-27 | H12: =FRCP_y4 -> 2027-28 | I12: =FRCP_y5 -> 2028-29
B13: Export service related overvoltage complaint management | C13: 74756.77276 | D13: 74756.77276 | E13: 74756.77276 | F13: 74756.77276 | G13: 74756.77276 | H13: 74756.77276 | I13: 74756.77276
B14: Other opex | C14: 49837.8485 | D14: 49837.8485 | E14: 49837.8485 | F14: 49837.8485 | G14: 49837.8485 | H14: 49837.8485 | I14: 49837.8485
B17: ICT capex examples include but not limited to: establishing systems for network visibility, hosting capacity assessments, generation of dynamic operating envelopes
B18: Network monitoring capex examples include but not limited to: implementing transformer monitors
B20: 7.8.2 - CAPEX FOR THE PROVISION OF EXPORT SERVICES
C21: =CONCATENATE("EXPENDITURE ($0's, real ",dms_DollarReal, ")") -> EXPENDITURE ($0's, real June 2024)
C22: =CRCP_y4 -> 2022-23 | D22: =CRCP_y5 -> 2023-24 | E22: =FRCP_y1 -> 2024-25 | F22: =FRCP_y2 -> 2025-26 | G22: =FRCP_y3 -> 2026-27 | H22: =FRCP_y4 -> 2027-28 | I22: =FRCP_y5 -> 2028-29
B23: ICT capex
B24: Network monitoring capex | C24: 89824.92683 | D24: 101327.9472 | E24: 101168.0338 | F24: 101293.1508 | G24: 101355.755 | H24: 101384.8257 | I24: 101437.9706
B25: Other capex | C25: 134737.3902 | D25: 151991.9208 | E25: 151752.0507 | F25: 151939.7261 | G25: 152033.6325 | H25: 152077.2386 | I25: 152156.956
B30: 7.8.3 - EXPORT VOLUMES - NET METERED VOLUME OF ENERGY EXPORTED
B31: A. BY FEEDER CLASSIFICATION
C32: VOLUMES MWh
C33: =CRCP_y4 -> 2022-23 | D33: =CRCP_y5 -> 2023-24 | E33: =FRCP_y1 -> 2024-25 | F33: =FRCP_y2 -> 2025-26 | G33: =FRCP_y3 -> 2026-27 | H33: =FRCP_y4 -> 2027-28 | I33: =FRCP_y5 -> 2028-29
B34: i. Beginning of period
B35: =INDEX(dms_FeederName_1,MATCH(dms_TradingName,dms_TradingName_List)) -> Critical Infrastructure | C35: 126.2445177
B36: =INDEX(dms_FeederName_2,MATCH(dms_TradingName,dms_TradingName_List)) -> Urban | C36: 110235.6869
B37: =INDEX(dms_FeederName_3,MATCH(dms_TradingName,dms_TradingName_List)) -> High density commercial | C37: 624.6868488
B38: =INDEX(dms_FeederName_4,MATCH(dms_TradingName,dms_TradingName_List)) -> High density rural | C38: 34877.51884
B39: =IF(ISBLANK(INDEX(dms_FeederName_5,MATCH(dms_TradingName,dms_TradingName_List))),"",INDEX(dms_FeederName_5,MATCH(dms_TradingName,dms_TradingName_List))) -> Low density rural | C39: 96628.75942
B40: ii. End of period
B41: =INDEX(dms_FeederName_1,MATCH(dms_TradingName,dms_TradingName_List)) -> Critical Infrastructure | C41: 156.8124567 | D41: 182.7260002 | E41: 206.6022208 | F41: 231.7630709 | G41: 255.1576117 | H41: 277.4240545 | I41: 298.46133
B42: =INDEX(dms_FeederName_2,MATCH(dms_TradingName,dms_TradingName_List)) -> Urban | C42: 129824.7184 | D42: 149059.9035 | E42: 168362.7274 | F42: 188596.0017 | G42: 208082.8171 | H42: 226579.3904 | I42: 244124.3278
B43: =INDEX(dms_FeederName_3,MATCH(dms_TradingName,dms_TradingName_List)) -> High density commercial | C43: 772.0012117 | D43: 898.3442356 | E43: 1015.631208 | F43: 1139.168641 | G43: 1254.407771 | H43: 1364.061929 | I43: 1467.701423
B44: =INDEX(dms_FeederName_4,MATCH(dms_TradingName,dms_TradingName_List)) -> High density rural | C44: 41104.66391 | D44: 47204.51675 | E44: 53318.13589 | F44: 59726.9314 | G44: 65896.26433 | H44: 71752.31557 | I44: 77306.77535
B45: =IF(ISBLANK(INDEX(dms_FeederName_5,MATCH(dms_TradingName,dms_TradingName_List))),"",INDEX(dms_FeederName_5,MATCH(dms_TradingName,dms_TradingName_List))) -> Low density rural | C45: 118480.8327 | D45: 137577.4339 | E45: 155516.3114 | F45: 174396.8512 | G45: 192098.5528 | H45: 208935.6672 | I45: 224858.4285
B48: 7.8.4 EXPORT SERVICES - CUSTOMER NUMBERS
B49: A. BY FEEDER CLASSIFICATION
C50: CUSTOMER NUMBERS (0's)
C51: =CRCP_y4 -> 2022-23 | D51: =CRCP_y5 -> 2023-24 | E51: =FRCP_y1 -> 2024-25 | F51: =FRCP_y2 -> 2025-26 | G51: =FRCP_y3 -> 2026-27 | H51: =FRCP_y4 -> 2027-28 | I51: =FRCP_y5 -> 2028-29
B52: i. Beginning of period
B53: =INDEX(dms_FeederName_1,MATCH(dms_TradingName,dms_TradingName_List)) -> Critical Infrastructure | C53: 30
B54: =INDEX(dms_FeederName_2,MATCH(dms_TradingName,dms_TradingName_List)) -> Urban | C54: 25943
B55: =INDEX(dms_FeederName_3,MATCH(dms_TradingName,dms_TradingName_List)) -> High density commercial | C55: 108
B56: =INDEX(dms_FeederName_4,MATCH(dms_TradingName,dms_TradingName_List)) -> High density rural | C56: 7932
B57: =IF(ISBLANK(INDEX(dms_FeederName_5,MATCH(dms_TradingName,dms_TradingName_List))),"",INDEX(dms_FeederName_5,MATCH(dms_TradingName,dms_TradingName_List))) -> Low density rural | C57: 6824
B58: ii. End of period
B59: =INDEX(dms_FeederName_1,MATCH(dms_TradingName,dms_TradingName_List)) -> Critical Infrastructure | C59: 35 | D59: 39 | E59: 42 | F59: 44 | G59: 46 | H59: 48 | I59: 51
B60: =INDEX(dms_FeederName_2,MATCH(dms_TradingName,dms_TradingName_List)) -> Urban | C60: 27931 | D60: 29866 | E60: 31729 | F60: 33547 | G60: 35222 | H60: 36732 | I60: 38108
B61: =INDEX(dms_FeederName_3,MATCH(dms_TradingName,dms_TradingName_List)) -> High density commercial | C61: 119 | D61: 129 | E61: 138 | F61: 146 | G61: 153 | H61: 160 | I61: 166
B62: =INDEX(dms_FeederName_4,MATCH(dms_TradingName,dms_TradingName_List)) -> High density rural | C62: 8543 | D62: 9137 | E62: 9708 | F62: 10264 | G62: 10776 | H62: 11237 | I62: 11658
B63: =IF(ISBLANK(INDEX(dms_FeederName_5,MATCH(dms_TradingName,dms_TradingName_List))),"",INDEX(dms_FeederName_5,MATCH(dms_TradingName,dms_TradingName_List))) -> Low density rural | C63: 7351 | D63: 7863 | E63: 8355 | F63: 8833 | G63: 9274 | H63: 9671 | I63: 10033

Sheet AER Sheet Heading (hidden)
B1: =INDEX(dms_Worksheet_List,MATCH(dms_Model,dms_Model_List)) -> REGULATORY REPORTING STATEMENT
B2: =INDEX(dms_TradingNameFull_List,MATCH(dms_TradingName,dms_TradingName_List)) -> TasNetworks (D)
B3: =dms_Header_Span -> 2022-23 to 2028-29
B4: XX
C11: EXPENDITURE
C12: =CONCATENATE("Forecast ($0's, real ",dms_DollarReal,")") -> Forecast ($0's, real June 2024)
C13: =dms_y1 -> 2022-23 | D13: =dms_y2 -> 2023-24 | E13: =dms_y3 -> 2024-25 | F13: =dms_y4 -> 2025-26 | G13: =dms_y5 -> 2026-27 | H13: =dms_y6 -> 2027-28 | I13: =dms_y7 -> 2028-29
C36: =SUM(C15:C35) -> 0 | D36: =SUM(D15:D35) -> 0 | E36: 0 | F36: 0 | G36: 0 | H36: 0 | I36: 0
C37: =SUM(C15:C36) -> 0 | D37: =SUM(D15:D36) -> 0 | E37: 0 | F37: 0 | G37: 0 | H37: 0 | I37: 0
C42: VOLUMES
C43: 0's
C44: =dms_y1 -> 2022-23 | D44: =dms_y2 -> 2023-24 | E44: =dms_y3 -> 2024-25 | F44: =dms_y4 -> 2025-26 | G44: =dms_y5 -> 2026-27 | H44: =dms_y6 -> 2027-28 | I44: =dms_y7 -> 2028-29
C67: =SUM(C46:C66) -> 0 | D67: =SUM(D46:D66) -> 0 | E67: =SUM(E46:E66) -> 0 | F67: =SUM(F46:F66) -> 0 | G67: =SUM(G46:G66) -> 0 | H67: =SUM(H46:H66) -> 0 | I67: =SUM(I46:I66) -> 0
C68: =SUM(C46:C67) -> 0 | D68: =SUM(D46:D67) -> 0 | E68: =SUM(E46:E67) -> 0 | F68: =SUM(F46:F67) -> 0 | G68: =SUM(G46:G67) -> 0 | H68: =SUM(H46:H67) -> 0 | I68: =SUM(I46:I67) -> 0

Sheet AER CF (hidden)
B1: AER CONDITIONAL FORMATTING
B3: CELLS FLAGED "Y" and greyed out will be greyed out in the worksheets.
B4: CONDITIONAL FORMATTING MAP
F5: =INDEX(dms_CF_3.6.1, MATCH(dms_TradingName,dms_CF_TradingName))="Y" | G5: =INDEX(dms_CF_3.6.5, MATCH(dms_TradingName,dms_CF_TradingName))="Y" | H5: =INDEX(dms_CF_3.6.6.1, MATCH(dms_TradingName,dms_CF_TradingName))="Y" | I5: =INDEX(dms_CF_3.6.6.2, MATCH(dms_TradingName,dms_CF_TradingName))="Y" | J5: =INDEX(dms_CF_3.6.6.3, MATCH(dms_TradingName,dms_CF_TradingName))="Y" | K5: =INDEX(dms_CF_3.6.7.1, MATCH(dms_TradingName,dms_CF_TradingName))="Y" | L5: =INDEX(dms_CF_3.6.7.2, MATCH(dms_TradingName,dms_CF_TradingName))="Y" | M5: =INDEX(dms_CF_3.6.7.3, MATCH(dms_TradingName,dms_CF_TradingName))="Y" | N5: =INDEX(dms_CF_3.6.7.4, MATCH(dms_TradingName,dms_CF_TradingName))="Y" | O5: =INDEX(dms_CF_3.6.8, MATCH(dms_TradingName,dms_CF_TradingName))="Y" | P5: =INDEX(dms_CF_4.1, MATCH(dms_TradingName,dms_CF_TradingName))="Y" | Q5: =INDEX(dms_CF_6.8, MATCH(dms_TradingName,dms_CF_TradingName))="Y" | R5: =INDEX(dms_CF_7.12, MATCH(dms_TradingName,dms_CF_TradingName))="Y" | S5: =INDEX(dms_CF_8.1_A, MATCH(dms_TradingName,dms_CF_TradingName))="Y" | T5: =INDEX(dms_CF_8.1_B, MATCH(dms_TradingName,dms_CF_TradingName))="Y" | U5: =INDEX(dms_CF_8.1_Neg, MATCH(dms_TradingName,dms_CF_TradingName))="Y" -> TRUE | V5: =INDEX(dms_CF_4.4.1_Neg, MATCH(dms_TradingName,dms_CF_TradingName))="Y" | Y5: =INDEX(dms_CF_F10, MATCH(dms_TradingName,dms_CF_TradingName))="Y"
B6: dms_CF_TradingName | C6: JurisdictionList | D6: Sector | E6: Segment | F6: dms_CF_3.6.1 | G6: dms_CF_3.6.5 | H6: dms_CF_3.6.6.1 | I6: dms_CF_3.6.6.2 | J6: dms_CF_3.6.6.3 | K6: dms_CF_3.6.7.1 | L6: dms_CF_3.6.7.2 | M6: dms_CF_3.6.7.3 | N6: dms_CF_3.6.7.4 | O6: dms_CF_3.6.8 | P6: dms_CF_4.1 | Q6: dms_CF_6.8 (set from dms_MAIFI_flag) | R6: dms_CF_7.12 | S6: dms_CF_8.1_A (and 8.4) | T6: dms_CF_8.1_B (and 8.4) | U6: dms_CF_8.1_Neg (and 8.4) | V6: dms_CF_4.4.1 | W6: dms_CF_MAIFI_flag (set from dms_MAIFI_flag) | X6: 9.5 TUOS (set from Jurisdiction) | Y6: dms_CF_F10
B7: Amadeus | C7: NT | D7: Gas | E7: Transmission | F7: - | G7: - | H7: - | I7: - | J7: - | K7: - | L7: - | M7: - | N7: - | O7: - | P7: - | Q7: - | R7: - | S7: - | T7: - | U7: - | V7: - | W7: - | X7: - | Y7: -
B8: APA GasNet | C8: Vic | D8: Gas | E8: Transmission | F8: - | G8: - | H8: - | I8: - | J8: - | K8: - | L8: - | M8: - | N8: - | O8: - | P8: - | Q8: - | R8: - | S8: - | T8: - | U8: - | V8: - | W8: - | X8: - | Y8: -
B9: Ausgrid | C9: NSW | D9: Electricity | E9: Distribution | G9: Y | H9: N | I9: N | J9: N | K9: N | L9: N | M9: N | N9: Y | O9: N | P9: N | Q9: =IFERROR(IF(_xlfn.SINGLE(dms_MAIFI_Flag)="Yes","N","Y"),"Y") -> Y | R9: Y | S9: N | T9: Y | U9: Y | V9: N | W9: =IFERROR(LEFT(_xlfn.SINGLE(dms_MAIFI_Flag)),"N") -> N | X9: =IF('AER CF'!$C7="Vic","Y","N") -> N
B10: Ausgrid (Tx Assets) | C10: NSW | D10: Electricity | E10: Distribution | G10: Y | H10: N | I10: N | J10: N | K10: N | L10: N | M10: N | N10: Y | O10: N | P10: N | Q10: Y | R10: Y | S10: N | T10: Y | U10: Y | V10: N | W10: N | X10: =IF('AER CF'!$C8="Vic","Y","N") -> Y
B11: AusNet (D) | C11: Vic | D11: Electricity | E11: Distribution | G11: N | H11: N | K11: N | L11: N | M11: N | N11: N | O11: N | P11: N | Q11: Y | R11: N | S11: N | T11: N | U11: Y | V11: N | W11: N | X11: =IF('AER CF'!$C9="Vic","Y","N") -> N
B12: AusNet (T) | C12: Vic | D12: Electricity | E12: Transmission | G12: N | K12: N | L12: N | M12: N | N12: N | O12: N | P12: Y | Q12: Y | R12: N | S12: N | T12: N | U12: Y | V12: N | W12: N | X12: =IF('AER CF'!$C10="Vic","Y","N") -> N
B13: Australian Distribution Co. | C13: NSW | D13: Electricity | E13: Distribution | F13: N | G13: N | H13: N | I13: N | K13: N | L13: N | M13: N | N13: N | O13: N | P13: N | Q13: Y | R13: N | S13: N | T13: N | U13: N | V13: N | W13: N | X13: =IF('AER CF'!$C13="Vic","Y","N") -> N
B14: Australian Distribution Co. (Vic) | C14: Vic | D14: Electricity | E14: Distribution | F14: N | G14: N | H14: N | I14: N | K14: N | L14: N | M14: N | N14: N | O14: N | P14: N | Q14: Y | R14: N | S14: N | T14: N | U14: N | V14: N | W14: N | X14: =IF('AER CF'!$C14="Vic","Y","N") -> Y
